Workbook

Sheet Cover
A1: =CELL("address",'Input-Gen'!A1) -> '[SoW Model - Land for Community Facilities (LGIP)_APR 2017.xlsm]Input-Gen'!$A$1
D9: Brisbane City Council LGIP Schedule of Works Model Parks and Land for Community Facilities - Community Facilities Network DRAFT
D23: Model Name: | F23: =MID(A1,FIND("[",A1)+1,LEN(A1)-(FIND("$1",A1)-FIND("]",A1)+4)) -> SoW Model - Land for Community Facilities (LGIP)_APR 2017.xlsm
D24: Last Updated: | F24: 2017-04-10T09:31:52
D25: Last Modified By: | F25: Rick Evans
C45: Admin Access Enabled? --> | F45: No
C46: V1.1

Sheet Inputs
F19: =MID(CELL("filename",A15),FIND("]",CELL("filename",A15))+1,256) -> Inputs

Sheet LGIP existing infrastructure
A1: Existing trunk infrastructure value
A2: Land for community facilities network
C5: Local (single catchment servicing) | E5: District/Metropolitan (Brisbane wide)
B6: Catchment | C6: Land | D6: Construction | E6: Land | F6: Construction
B7: Fringe | C7: 7926.54 | D7: 0 | E7: 17797.25 | F7: 355940
B8: Urban East | C8: 6874190.3 | D8: 2198485 | E8: 9628617.5 | F8: 3153020
B9: Urban North | C9: 5049180.86 | D9: 1383395 | E9: 22117308.38 | F9: 10722695
B10: Urban South | C10: 3919632.88 | D10: 1768145 | E10: 11211248.76 | F10: 2872780
B11: Urban West | C11: 9426860.7 | D11: 1112360 | E11: 12545867.12 | F11: 4567085
A14: Notes:
A15: Refer to the Public parks and land for community facilities network extrinsic material report for details on the valuation of existing assets for the land for community facilities network

Sheet LGIP future infratructure
A1: LGIP ID (1) | B1: Map reference | C1: Suburb | D1: Project description | E1: Location | F1: Service level | G1: Estimated year of completion (2) | H1: Service catchment | I1: Area of land (hectares) | J1: Land cost ($) | K1: Site preparation and connection to services (direct construction) cost ($) | L1: Indirect construction cost ($) (3) | M1: Project cost ($) (4) | N1: Construction contingency cost ($) (5) | O1: Total construction cost ($) (6) | P1: Value of the trunk infrastructure ($) (7) | Q1: Establishment cost ($) (8)
A2: CDE-CF-001 | B2: PCF72 | C2: Carseldine, Bracken Ridge | D2: Land acquisition, basic site preparation and connection to services to provide DISTRICT LIBRARY | E2: Carseldine / Bracken Ridge | F2: District | G2: 2016 - 2021 | H2: Urban North | I2: 0.3 | J2: 600000 | K2: 397633 | L2: 67598 | M2: 60480 | N2: 39428 | O2: 565139 | P2: 1165139 | Q2: 1165139
A3: EAF-CF-001 | B3: PCF154 | C3: Eagle Farm, Hamilton | D3: Land acquisition, basic site preparation and connection to services to provide DISTRICT COMMUNITY HUB | E3: Eagle Farm/ Hamiton | F3: District | G3: 2021 - 2026 | H3: Urban North | I3: 0.6 | J3: 10296000 | K3: 423786 | L3: 72044 | M3: 64458 | N3: 84043 | O3: 644331 | P3: 10940331 | Q3: 10940331
A4: MIT-CF-001 | B4: PCF131 | C4: Mitchelton | D4: Land acquisition, basic site preparation and connection to services to provide DISTRICT INTEGRATED FACILITY | E4: Mitchelton Centre Neighbourhood Plan area | F4: District | G4: 2016 - 2021 | H4: Urban West | I4: 1.18 | J4: 15528800 | K4: 470429 | L4: 79973 | M4: 71552 | N4: 46647 | O4: 668601 | P4: 16197401 | Q4: 16197401
A5: ROC-CF-001 | B5: PCF275 | C5: Rochedale | D5: Land acquisition, basic site preparation and connection to services to provide LOCAL COMMUNITY CENTRE | E5: NW corner Miles Platting Road and Gardner Road | F5: District | G5: 2016 - 2021 | H5: Urban East | I5: 0.2 | J5: 1422000 | K5: 384903 | L5: 65434 | M5: 58544 | N5: 38166 | O5: 547046 | P5: 1969046 | Q5: 1969046
A6: WES-CF-001 | B6: PCF192 | C6: West End | D6: Land acquisition, basic site preparation and connection to services to provide LOCAL COMMUNITY CENTRE AND LIBRARY EXTENSION | E6: South Brisbane Riverside Neighbourhood Plan area | F6: Local | G6: 2021 - 2026 | H6: Urban South | I6: 0.18 | J6: 3997800 | K6: 202217 | L6: 34377 | M6: 30757 | N6: 40103 | O6: 307454 | P6: 4305254 | Q6: 4305254
A7: WSR-CF-001 | B7: PCF153 | C7: Windsor | D7: Land acquisition, basic site preparation and connection to services to provide LOCAL COMMUNITY CENTRE | E7: Lutwyche Road Corridor Neighbourhood Plan | F7: Local | G7: 2016 - 2021 | H7: Urban North | I7: 0.18 | J7: 4069800 | K7: 291467 | L7: 49549 | M7: 44332 | N7: 28901 | O7: 414250 | P7: 4484050 | Q7: 4484050
I8: Total | J8: 35914400 | K8: 2170435 | L8: 368975 | M8: 330123 | N8: 277288 | O8: 3146821 | P8: 39061221 | Q8: 39061221
A10: Notes-
A11: (1) Refer to the Local government infrastructure plan identifier (LGIP ID) when identifying the infrastructure projects on the plans for trunk infrastructure maps.
A12: (2) The estimated year of completion is an estimate of the earliest need for the project.
A13: (3) Indirect construction costs are on costs or overheads applied to the direct construction cost, to deliver the project. Indirect construction costs equate to 17% of the direct construction cost.
A14: (4) Project costs are on costs to undertake detailed design, survey, geotechnical investigations, project management, and supervision of construction works and obtain certification from a Registered Professional Engineer of Queensland. Project costs equate to 13% of the direct and indirect construction costs.
A15: (5) Contingency costs are based on the project delivery date, and applied to the direct construction cost, indirect construction cost and project cost. Contingencies equate to 7.5% for projects with a delivery date up to 2021 and 15% for projects with a delivery date up to 2026.
A16: (6) Total construction cost is the sum of direct construction cost, indirect construction cost, project cost and construction contingency cost, at 30 June 2016.
A17: (7) Value of the trunk infrastructure is the sum of land cost and total construction cost, at 30 June 2016.
A18: (8) Establishment cost is the total value of the trunk infrastructure item, comprising the total infrastructure cost, at 30 June 2016.
A19: (-) A dash denotes that the field is not applicable.

Sheet Input-Gen
F2: Brisbane City Council
F3: Schedule of Works Model - Land for community facilities network
F5: Input - General
G6: =IF(BaseCaseCheck=0,BaseCase,NotBaseCase) -> Please Note: Model is not currently applying Base Case parameter values
G7: =IF(Integrity=0,IntOK,IntErr) -> 
F15: General
G17: Timing & Structure
G19: Model Start Date | I19: dd-mmm-yy | M19: 2016-07-01
G20: Modelling Periods | I20: No. of Years | M20: =YEAR(M21)-YEAR(Model_Start_Date) -> 10
G21: Model End Date | I21: dd-mmm-yy | M21: =MAX(FY_End) -> 2026-06-30
G23: Months in Year | I23: months | M23: 12
G24: Duration between each planning period | I24: years | M24: 5
G25: Thousand Conversion | I25: # | M25: 1000
G27: Method for calculating infrastructure charge
G29: Public Parks and Land for Community Facilities (1 = average, 0 = marginal) | I29: Select >>> | M29: 1
G31: On Costs and Contingencies - Embellishments Only
G33: On Cost | I33: % build cost
G34: Contingency | I34: % build cost
F36: Other Conditions
G38: Land, cut-off date for inclusion in infrastructure charges | I38: dd-mmm-yy | M38: 1990-01-01
G40: Maximum administration cost recoverable without approval from the Department of Infrastructure and Planning | I40: % | M40: 0
F42: Indexation/Discounting parameters
G44: Community Facilities
G45: Most recent PPI value | I45: # | M45: 110.5634114
G46: Base PPI value | I46: # | M46: 100.7685196
G48: Year of most recent PPI value | I48: year | M48: 2016
G49: Year of base PPI value | I49: year | M49: 2011
G51: Number of periods | I51: % | M51: =M48-M49 -> 5
G52: PPI Charge-rate indexation rate | I52: % | M52: =(M45/M46)^(1/M51)-1 -> 0.0187258123
G53: Over-ride charge-rate indexation rate | I53: % | M53: 0
G54: Comparison charge-rate indexation rate | I54: % | M54: 0.025
G56: Recommended premium to bond rate, post-tax nominal | I56: % | M56: 0
G58: Ten year bond rate, average 20 working days to 01-Jul-11 | I58: % | M58: 0
G59: Rate of return, post-tax nominal (Nominal WACC) | I59: % | M59: 0.0591
G60: Rate of return, post-tax real (Real WACC) | I60: % | M60: =(1+M59)/(1+RevEsc)-1 -> 0.0591
F62: Integrity
G64: Integrity OK message | I64: text | M64: Model integrity OK
G65: Integrity error message | I65: text | M65: Model integrity error
G66: Number of decimal places to which integrity checks are calculated | I66: # | M66: 2
G68: Base case message | I68: text | M68: Model is applying base case parameter values
G69: Alternative scenario message | I69: text | M69: Please Note: Model is not currently applying Base Case parameter values
F71: Input File References
G73: General
G74: ID Number | I74: text
G75: Map Reference | I75: text
G76: Trunk Infrastructure Type | I76: text
G77: Catchment Type | I77: text
G79: Capacity
G80: Spare capacity of existing asset at the beginning of the planning period | I80: text
G81: Spare capacity at the end of planning period | I81: text
G82: Future costs to service future demand | I82: text
G83: External Usage | I83: text
G85: Charge Area
G86: General Urban | I86: text
G87: Centres | I87: text
G88: Fringe | I88: text
G90: Land Information
G91: Acquired Area | I91: text
G92: Date of Acquisition | I92: text
G93: Acquisition Cost of Existing Land | I93: text
G94: ="Value of existing land as at "&TEXT(Model_Start_Date-1,"dd-mmm-yy")&" (Average Approach)" -> Value of existing land as at 30-Jun-16 (Average Approach) | I94: text
G95: Contingency Cost (Average Approach) | I95: text
G97: Constructed Assets Costs
G98: Expected Construction Completion / Commissioning Date | I98: text
G99: ="Actual / Expected Construction Cost at "&TEXT(Model_Start_Date-1,"dd-mmm-yy")&" (Average Approach)" -> Actual / Expected Construction Cost at 30-Jun-16 (Average Approach) | I99: text
G100: Design & Supervision Cost @ 14% of Cost | I100: text
G101: Contingency Cost @ 25% of Cost | I101: text
G103: Administration Costs
G104: Date of Administration Cost | I104: text
G105: (A) Percentage point of total Constructed Asset | I105: text
G106: ="(B) Defined Value as at "&TEXT(Model_Start_Date-1,"dd-mmm-yy") -> (B) Defined Value as at 30-Jun-16 | I106: text
G107: ="Subsidies / Grants as at "&TEXT(Model_Start_Date-1,"dd-mmm-yy") -> Subsidies / Grants as at 30-Jun-16 | I107: text
F111: End of Page

Sheet Input-Infra
F2: Brisbane City Council
F3: ='Input-Gen'!$F$3 -> Schedule of Works Model - Land for community facilities network
F5: Input - Infrastructure Details
G6: =IF(BaseCaseCheck=0,BaseCase,NotBaseCase) -> Please Note: Model is not currently applying Base Case parameter values
G7: =IF(Integrity=0,IntOK,IntErr) -> 
L9: General
S10: Capacity
Z11: Service catchment
AL12: Land Information
BB13: Site Preparation and Provision of Services Costs
BX14: Administration Costs
M17: LGIP ID | N17: LGIP Map Reference | O17: Trunk Infrastructure Type | P17: Catchment Type | T17: Spare capacity of existing asset at the beginning of the planning period | U17: Terminal value adjustment | V17: Future costs to service future demand | W17: External Usage | AA17: Urban East | AB17: Urban North | AC17: Urban South | AD17: Urban West | AE17: Fringe | AG17: Total | AM17: Acquired Area | AN17: Date of Acquisition | AO17: Acquisition Cost of Existing Land | AQ17: ="Value of existing land as at " & TEXT(Model_Start_Date-1,"dd-mmm-yy") & " (Avg. Approach)" -> Value of existing land as at 30-Jun-16 (Avg. Approach) | AR17: Contingency Cost (Avg. Approach) | AT17: Land Total (Avg. Approach) | AV17: ="Value of existing land as at " & TEXT(Model_Start_Date-1,"dd-mmm-yy") & " (Mar. Approach)" -> Value of existing land as at 30-Jun-16 (Mar. Approach) | AW17: Contingency Cost (Mar. Approach) | AY17: Land Total (Mar. Approach) | BC17: Expected Preparation Completion Date | BD17: ="Actual / Expected Site Preparation Cost as at " & TEXT(Model_Start_Date-1,"dd-mmm-yy") &" (Avearge Approach)" -> Actual / Expected Site Preparation Cost as at 30-Jun-16 (Avearge Approach) | BE17: Construction allowances (including indirect costs, projects costs and contingencies) | BF17: Spare column | BH17: ="Total @ "& TEXT(Model_Start_Date-1,"dd-mmm-yy") &" (Average Approach)"&" (Including indirect cost, project cost, contingency)" -> Total @ 30-Jun-16 (Average Approach) (Including indirect cost, project cost, contingency) | BJ17: ="Actual / Expected Site Preparation Cost as at " & TEXT(Model_Start_Date-1,"dd-mmm-yy") &" (Marginal Approach)" -> Actual / Expected Site Preparation Cost as at 30-Jun-16 (Marginal Approach) | BK17: Spare column | BL17: Spare column | BN17: ="Total @ "& TEXT(Model_Start_Date-1,"dd-mmm-yy") &" (Marginal Approach)" -> Total @ 30-Jun-16 (Marginal Approach) | BO17: Source (e.g. unit cost report, contract, asset register, etc.) | BQ17: TOTAL Average Approach (Land and Constructed Asset) | BU17: TOTAL Marginal Approach (Land and Constructed Asset) | BY17: Date of Administration Cost | BZ17: Methodology Option (A) = 0, (B) = 1 | CA17: (A) Percentage point of total Constructed Asset | CB17: ="(B) Defined Value as at " & TEXT(Model_Start_Date-1,"dd-mmm-yy") -> (B) Defined Value as at 30-Jun-16 | CC17: ="Check: If (B) value is greater than "&TEXT('Input-Gen'!M40,"0%")&" of total Constructed Asset Cost" -> Check: If (B) value is greater than 0% of total Constructed Asset Cost | CE17: ="Subsidies / Grants as at " & TEXT(Model_Start_Date-1,"dd-mmm-yy") -> Subsidies / Grants as at 30-Jun-16
G18: LGIP ID | T18: Not used for LGIP | U18: Unrecoverable costs due to unmet capacity | V18: Not used for LGIP | W18: Not used for LGIP | AA18: Proportion of total costs attributed to each service catchment | BU18: Not used in LGIP)
M19: # | N19: # | T19: % | U19: % | V19: % | W19: % | AA19: % | AD19: % | AE19: % | AM19: Ha | AN19: dd-mmm-yy | AO19: $'000 | AQ19: $'000 | AR19: % | AV19: $'000 | AW19: % | BC19: dd-mmm-yy | BD19: $'000 | BE19: $'000 | BF19: $'000 | BH19: $'000 | BJ19: $'000 | BK19: $'000 | BL19: $'000 | BN19: $'000 | BQ19: $'000 | BU19: $'000 | BZ19: Select >>> | CA19: % | CB19: $'000 | CE19: $'000
F23: Existing Infrastructure
AI24: Check
G25: Urban North (local facilities) | O25: Local community facilities | AA25: 0 | AB25: 1 | AC25: 0 | AD25: 0 | AE25: 0 | AG25: =SUM(AA25:AE25) -> 1 | AI25: =IF(AND(M25<>"",AG25<>1),1,0) -> 0 | AN25: 1990-06-30 | AQ25: ='LGIP existing infrastructure'!C9/1000 -> 5049.18086 | AT25: =AQ25*(1+AR25) -> 5049.18086 | AV25: =AQ25 -> 5049.18086 | AW25: 0 | AY25: =AV25*(1+AW25) -> 5049.18086 | BD25: ='LGIP existing infrastructure'!D9/1000 -> 1383.395 | BE25: 0 | BH25: =SUM(BD25:BF25) -> 1383.395 | BJ25: =BD25 -> 1383.395 | BK25: =BE25 -> 0 | BL25: 0 | BN25: =BH25 -> 1383.395 | BQ25: =SUM(BH25,AT25) -> 6432.57586 | BU25: =AY25+BN25 -> 6432.57586 | BZ25: 0 | CC25: =IF(BZ25=1,IF(CB25>BQ25*'Input-Gen'!$M$40,"Check Value","OK"),"") -> 
G26: Urban South (local facilities) | O26: Local community facilities | AA26: 0 | AB26: 0 | AC26: 1 | AD26: 0 | AE26: 0 | AG26: =SUM(AA26:AE26) -> 1 | AI26: =IF(AND(M26<>"",AG26<>1),1,0) -> 0 | AN26: 1990-06-30 | AQ26: ='LGIP existing infrastructure'!C10/1000 -> 3919.63288 | AT26: =AQ26*(1+AR26) -> 3919.63288 | AV26: 3919.63288 | AW26: 0 | AY26: =AV26*(1+AW26) -> 3919.63288 | BD26: ='LGIP existing infrastructure'!D10/1000 -> 1768.145 | BE26: 0 | BH26: =SUM(BD26:BF26) -> 1768.145 | BJ26: 1768.145 | BK26: 0 | BL26: 0 | BN26: =BH26 -> 1768.145 | BQ26: =SUM(BH26,AT26) -> 5687.77788 | BU26: =AY26+BN26 -> 5687.77788 | BZ26: 0 | CC26: =IF(BZ26=1,IF(CB26>BQ26*'Input-Gen'!$M$40,"Check Value","OK"),"") -> 
G27: Urban East (local facilities) | O27: Local community facilities | AA27: 1 | AB27: 0 | AC27: 0 | AD27: 0 | AE27: 0 | AG27: 1 | AN27: 1990-06-30 | AQ27: ='LGIP existing infrastructure'!C8/1000 -> 6874.1903 | AT27: =AQ27*(1+AR27) -> 6874.1903 | AV27: =AQ27 -> 6874.1903 | AW27: =AR27 -> 0 | AY27: =AV27*(1+AW27) -> 6874.1903 | BD27: ='LGIP existing infrastructure'!D8/1000 -> 2198.485 | BE27: 0 | BH27: =SUM(BD27:BF27) -> 2198.485 | BJ27: 2198.485 | BK27: =BE27 -> 0 | BL27: =BF27 -> 0 | BN27: =BH27 -> 2198.485 | BQ27: =SUM(BH27,AT27) -> 9072.6753 | BU27: =AY27+BN27 -> 9072.6753
G28: Urban West (local facilities) | O28: Local community facilities | AA28: 0 | AB28: 0 | AC28: 0 | AD28: 1 | AE28: 0 | AG28: 1 | AN28: 1990-06-30 | AQ28: ='LGIP existing infrastructure'!C11/1000 -> 9426.8607 | AT28: 9426.8607 | AV28: 9426.8607 | AW28: 0 | AY28: 9426.8607 | BD28: ='LGIP existing infrastructure'!D11/1000 -> 1112.36 | BE28: 0 | BH28: 1112.36 | BJ28: 1112.36 | BK28: 0 | BL28: 0 | BN28: 1112.36 | BQ28: 10539.2207 | BU28: 10539.2207
G29: Citywide (District, metropolitan facilities) | O29: District and metropolitan facilities | AA29: 0.2075575546 | AB29: 0.3034991043 | AC29: 0.2900438333 | AD29: 0.1839985382 | AE29: 0.01490096965 | AG29: 1 | AN29: 1990-06-30 | AQ29: =SUM('LGIP existing infrastructure'!E7:E11)/1000 -> 55520.83901 | AT29: 55520.83901 | AV29: 55520.83901 | AW29: 0 | AY29: 55520.83901 | BD29: =SUM('LGIP existing infrastructure'!F7:F11)/1000 -> 21671.52 | BE29: 0 | BH29: 21671.52 | BJ29: 21671.52 | BK29: 0 | BL29: 0 | BN29: 21671.52 | BQ29: 77192.35901 | BU29: 77192.35901
G30: Fringe (local facilities) | O30: Local community facilities | AA30: 0 | AB30: 0 | AC30: 0 | AD30: 0 | AE30: 1 | AG30: 1 | AN30: 1990-06-30 | AQ30: ='LGIP existing infrastructure'!C7/1000 -> 7.92654 | AT30: 7.92654 | AV30: 7.92654 | AW30: 0 | AY30: 7.92654 | BD30: ='LGIP existing infrastructure'!D7/1000 -> 0 | BE30: 0 | BH30: 0 | BJ30: 0 | BK30: 0 | BL30: 0 | BN30: 0 | BQ30: 7.92654 | BU30: 7.92654
AG31: 0 | AT31: 0 | AV31: 0 | AW31: 0 | AY31: 0 | BE31: 0 | BH31: 0 | BJ31: 0 | BK31: 0 | BL31: 0 | BN31: 0 | BQ31: 0 | BU31: 0
AG32: 0 | AT32: =AQ32*(1+AR32) -> 0 | AV32: =AQ32 -> 0 | AW32: =AR32 -> 0 | AY32: =AV32*(1+AW32) -> 0 | BE32: 0 | BH32: 0 | BJ32: 0 | BK32: 0 | BL32: 0 | BN32: 0 | BQ32: 0 | BU32: 0
AG33: 0 | AT33: 0 | AV33: 0 | AW33: 0 | AY33: 0 | BE33: 0 | BH33: 0 | BJ33: 0 | BK33: 0 | BL33: 0 | BN33: 0 | BQ33: 0 | BU33: 0
AG34: 0 | AT34: 0 | AV34: 0 | AW34: 0 | AY34: 0 | BE34: 0 | BH34: 0 | BJ34: 0 | BK34: 0 | BL34: 0 | BN34: 0 | BQ34: 0 | BU34: 0
AG35: 0 | AT35: 0 | AV35: 0 | AW35: 0 | AY35: 0 | BE35: 0 | BH35: 0 | BJ35: 0 | BK35: 0 | BL35: 0 | BN35: 0 | BQ35: 0 | BU35: 0
AG36: 0 | AT36: 0 | AV36: 0 | AW36: 0 | AY36: 0 | BE36: 0 | BH36: 0 | BJ36: 0 | BK36: 0 | BL36: 0 | BN36: 0 | BQ36: 0 | BU36: 0
AG37: 0 | AT37: 0 | AV37: 0 | AW37: 0 | AY37: 0 | BE37: 0 | BH37: 0 | BJ37: 0 | BK37: 0 | BL37: 0 | BN37: 0 | BQ37: 0 | BU37: 0
AG38: 0 | AT38: 0 | AV38: 0 | AW38: 0 | AY38: 0 | BE38: 0 | BH38: 0 | BJ38: 0 | BK38: 0 | BL38: 0 | BN38: 0 | BQ38: 0 | BU38: 0
AG39: 0 | AT39: 0 | AV39: 0 | AW39: 0 | AY39: 0 | BE39: 0 | BH39: 0 | BJ39: 0 | BK39: 0 | BL39: 0 | BN39: 0 | BQ39: 0 | BU39: 0
AG40: 0 | AT40: 0 | AV40: 0 | AW40: 0 | AY40: 0 | BE40: 0 | BH40: 0 | BJ40: 0 | BK40: 0 | BL40: 0 | BN40: 0 | BQ40: 0 | BU40: 0
AG41: 0 | AT41: 0 | AV41: 0 | AW41: 0 | AY41: 0 | BE41: 0 | BH41: 0 | BJ41: 0 | BK41: 0 | BL41: 0 | BN41: 0 | BQ41: 0 | BU41: 0
AG42: 0 | AT42: 0 | AV42: 0 | AW42: 0 | AY42: 0 | BE42: 0 | BH42: 0 | BJ42: 0 | BK42: 0 | BL42: 0 | BN42: 0 | BQ42: 0 | BU42: 0
AG43: 0 | AT43: 0 | AV43: 0 | AW43: 0 | AY43: 0 | BE43: 0 | BH43: 0 | BJ43: 0 | BK43: 0 | BL43: 0 | BN43: 0 | BQ43: 0 | BU43: 0
AG44: 0 | AT44: 0 | AV44: 0 | AW44: 0 | AY44: 0 | BE44: 0 | BH44: 0 | BJ44: 0 | BK44: 0 | BL44: 0 | BN44: 0 | BQ44: 0 | BU44: 0
AG45: 0 | AT45: 0 | AV45: 0 | AW45: 0 | AY45: 0 | BE45: 0 | BH45: 0 | BJ45: 0 | BK45: 0 | BL45: 0 | BN45: 0 | BQ45: 0 | BU45: 0
AG46: 0 | AT46: 0 | AV46: 0 | AW46: 0 | AY46: 0 | BE46: 0 | BH46: 0 | BJ46: 0 | BK46: 0 | BL46: 0 | BN46: 0 | BQ46: 0 | BU46: 0
AG47: 0 | AT47: 0 | AV47: 0 | AW47: 0 | AY47: 0 | BE47: 0 | BH47: 0 | BJ47: 0 | BK47: 0 | BL47: 0 | BN47: 0 | BQ47: 0 | BU47: 0
AG48: 0 | AT48: 0 | AV48: 0 | AW48: 0 | AY48: 0 | BE48: 0 | BH48: 0 | BJ48: 0 | BK48: 0 | BL48: 0 | BN48: 0 | BQ48: 0 | BU48: 0
AG49: 0 | AT49: 0 | AV49: 0 | AW49: 0 | AY49: 0 | BE49: 0 | BH49: 0 | BJ49: 0 | BK49: 0 | BL49: 0 | BN49: 0 | BQ49: 0 | BU49: 0
AG50: 0 | AT50: 0 | AV50: 0 | AW50: 0 | AY50: 0 | BE50: 0 | BH50: 0 | BJ50: 0 | BK50: 0 | BL50: 0 | BN50: 0 | BQ50: 0 | BU50: 0
AG51: 0 | AT51: 0 | AV51: 0 | AW51: 0 | AY51: 0 | BE51: 0 | BH51: 0 | BJ51: 0 | BK51: 0 | BL51: 0 | BN51: 0 | BQ51: 0 | BU51: 0
AG52: 0 | AT52: 0 | AV52: 0 | AW52: 0 | AY52: 0 | BE52: 0 | BH52: 0 | BJ52: 0 | BK52: 0 | BL52: 0 | BN52: 0 | BQ52: 0 | BU52: 0
AG53: 0 | AT53: 0 | AV53: 0 | AW53: 0 | AY53: 0 | BE53: 0 | BH53: 0 | BJ53: 0 | BK53: 0 | BL53: 0 | BN53: 0 | BQ53: 0 | BU53: 0
AG54: 0 | AT54: 0 | AV54: 0 | AW54: 0 | AY54: 0 | BE54: 0 | BH54: 0 | BJ54: 0 | BK54: 0 | BL54: 0 | BN54: 0 | BQ54: 0 | BU54: 0
AG55: 0 | AT55: 0 | AV55: 0 | AW55: 0 | AY55: 0 | BE55: 0 | BH55: 0 | BJ55: 0 | BK55: 0 | BL55: 0 | BN55: 0 | BQ55: 0 | BU55: 0
AG56: 0 | AT56: 0 | AV56: 0 | AW56: 0 | AY56: 0 | BE56: 0 | BH56: 0 | BJ56: 0 | BK56: 0 | BL56: 0 | BN56: 0 | BQ56: 0 | BU56: 0
AG57: 0 | AT57: 0 | AV57: 0 | AW57: 0 | AY57: 0 | BE57: 0 | BH57: 0 | BJ57: 0 | BK57: 0 | BL57: 0 | BN57: 0 | BQ57: 0 | BU57: 0
AG58: 0 | AT58: 0 | AV58: 0 | AW58: 0 | AY58: 0 | BE58: 0 | BH58: 0 | BJ58: 0 | BK58: 0 | BL58: 0 | BN58: 0 | BQ58: 0 | BU58: 0
AG59: 0 | AT59: 0 | AV59: 0 | AW59: 0 | AY59: 0 | BE59: 0 | BH59: 0 | BJ59: 0 | BK59: 0 | BL59: 0 | BN59: 0 | BQ59: 0 | BU59: 0
AG60: 0 | AT60: 0 | AV60: 0 | AW60: 0 | AY60: 0 | BE60: 0 | BH60: 0 | BJ60: 0 | BK60: 0 | BL60: 0 | BN60: 0 | BQ60: 0 | BU60: 0
AG61: 0 | AT61: 0 | AV61: 0 | AW61: 0 | AY61: 0 | BE61: 0 | BH61: 0 | BJ61: 0 | BK61: 0 | BL61: 0 | BN61: 0 | BQ61: 0 | BU61: 0
AG62: 0 | AT62: 0 | AV62: 0 | AW62: 0 | AY62: 0 | BE62: 0 | BH62: 0 | BJ62: 0 | BK62: 0 | BL62: 0 | BN62: 0 | BQ62: 0 | BU62: 0
AG63: 0 | AT63: 0 | AV63: 0 | AW63: 0 | AY63: 0 | BE63: 0 | BH63: 0 | BJ63: 0 | BK63: 0 | BL63: 0 | BN63: 0 | BQ63: 0 | BU63: 0
AG64: 0 | AT64: 0 | AV64: 0 | AW64: 0 | AY64: 0 | BE64: 0 | BH64: 0 | BJ64: 0 | BK64: 0 | BL64: 0 | BN64: 0 | BQ64: 0 | BU64: 0
AG65: 0 | AT65: 0 | AV65: 0 | AW65: 0 | AY65: 0 | BE65: 0 | BH65: 0 | BJ65: 0 | BK65: 0 | BL65: 0 | BN65: 0 | BQ65: 0 | BU65: 0
AG66: 0 | AT66: 0 | AV66: 0 | AW66: 0 | AY66: 0 | BE66: 0 | BH66: 0 | BJ66: 0 | BK66: 0 | BL66: 0 | BN66: 0 | BQ66: 0 | BU66: 0
AG67: 0 | AT67: 0 | AV67: 0 | AW67: 0 | AY67: 0 | BE67: 0 | BH67: 0 | BJ67: 0 | BK67: 0 | BL67: 0 | BN67: 0 | BQ67: 0 | BU67: 0
AG68: 0 | AT68: 0 | AV68: 0 | AW68: 0 | AY68: 0 | BE68: 0 | BH68: 0 | BJ68: 0 | BK68: 0 | BL68: 0 | BN68: 0 | BQ68: 0 | BU68: 0
AG69: 0 | AT69: 0 | AV69: 0 | AW69: 0 | AY69: 0 | BE69: 0 | BH69: 0 | BJ69: 0 | BK69: 0 | BL69: 0 | BN69: 0 | BQ69: 0 | BU69: 0
AG70: 0 | AT70: 0 | AV70: 0 | AW70: 0 | AY70: 0 | BE70: 0 | BH70: 0 | BJ70: 0 | BK70: 0 | BL70: 0 | BN70: 0 | BQ70: 0 | BU70: 0
AG71: 0 | AT71: 0 | AV71: 0 | AW71: 0 | AY71: 0 | BE71: 0 | BH71: 0 | BJ71: 0 | BK71: 0 | BL71: 0 | BN71: 0 | BQ71: 0 | BU71: 0
AG72: 0 | AT72: 0 | AV72: 0 | AW72: 0 | AY72: 0 | BE72: 0 | BH72: 0 | BJ72: 0 | BK72: 0 | BL72: 0 | BN72: 0 | BQ72: 0 | BU72: 0
AG73: 0 | AT73: 0 | AV73: 0 | AW73: 0 | AY73: 0 | BE73: 0 | BH73: 0 | BJ73: 0 | BK73: 0 | BL73: 0 | BN73: 0 | BQ73: 0 | BU73: 0
AG74: 0 | AT74: 0 | AV74: 0 | AW74: 0 | AY74: 0 | BE74: 0 | BH74: 0 | BJ74: 0 | BK74: 0 | BL74: 0 | BN74: 0 | BQ74: 0 | BU74: 0
AG75: 0 | AT75: 0 | AV75: 0 | AW75: 0 | AY75: 0 | BE75: 0 | BH75: 0 | BJ75: 0 | BK75: 0 | BL75: 0 | BN75: 0 | BQ75: 0 | BU75: 0
AG76: 0 | AT76: 0 | AV76: 0 | AW76: 0 | AY76: 0 | BE76: 0 | BH76: 0 | BJ76: 0 | BK76: 0 | BL76: 0 | BN76: 0 | BQ76: 0 | BU76: 0
AG77: 0 | AT77: 0 | AV77: 0 | AW77: 0 | AY77: 0 | BE77: 0 | BH77: 0 | BJ77: 0 | BK77: 0 | BL77: 0 | BN77: 0 | BQ77: 0 | BU77: 0
AG78: 0 | AT78: 0 | AV78: 0 | AW78: 0 | AY78: 0 | BE78: 0 | BH78: 0 | BJ78: 0 | BK78: 0 | BL78: 0 | BN78: 0 | BQ78: 0 | BU78: 0
AG79: 0 | AT79: 0 | AV79: 0 | AW79: 0 | AY79: 0 | BE79: 0 | BH79: 0 | BJ79: 0 | BK79: 0 | BL79: 0 | BN79: 0 | BQ79: 0 | BU79: 0
AG80: 0 | AT80: 0 | AV80: 0 | AW80: 0 | AY80: 0 | BE80: 0 | BH80: 0 | BJ80: 0 | BK80: 0 | BL80: 0 | BN80: 0 | BQ80: 0 | BU80: 0
AG81: 0 | AT81: 0 | AV81: 0 | AW81: 0 | AY81: 0 | BE81: 0 | BH81: 0 | BJ81: 0 | BK81: 0 | BL81: 0 | BN81: 0 | BQ81: 0 | BU81: 0
AG82: 0 | AT82: 0 | AV82: 0 | AW82: 0 | AY82: 0 | BE82: 0 | BH82: 0 | BJ82: 0 | BK82: 0 | BL82: 0 | BN82: 0 | BQ82: 0 | BU82: 0
AG83: 0 | AT83: 0 | AV83: 0 | AW83: 0 | AY83: 0 | BE83: 0 | BH83: 0 | BJ83: 0 | BK83: 0 | BL83: 0 | BN83: 0 | BQ83: 0 | BU83: 0
AG84: 0 | AT84: 0 | AV84: 0 | AW84: 0 | AY84: 0 | BE84: 0 | BH84: 0 | BJ84: 0 | BK84: 0 | BL84: 0 | BN84: 0 | BQ84: 0 | BU84: 0
AG85: 0 | AT85: 0 | AV85: 0 | AW85: 0 | AY85: 0 | BE85: 0 | BH85: 0 | BJ85: 0 | BK85: 0 | BL85: 0 | BN85: 0 | BQ85: 0 | BU85: 0
AG86: 0 | AT86: 0 | AV86: 0 | AW86: 0 | AY86: 0 | BE86: 0 | BH86: 0 | BJ86: 0 | BK86: 0 | BL86: 0 | BN86: 0 | BQ86: 0 | BU86: 0
AG87: 0 | AT87: 0 | AV87: 0 | AW87: 0 | AY87: 0 | BE87: 0 | BH87: 0 | BJ87: 0 | BK87: 0 | BL87: 0 | BN87: 0 | BQ87: 0 | BU87: 0
AG88: 0 | AT88: 0 | AV88: 0 | AW88: 0 | AY88: 0 | BE88: 0 | BH88: 0 | BJ88: 0 | BK88: 0 | BL88: 0 | BN88: 0 | BQ88: 0 | BU88: 0
AG89: 0 | AT89: 0 | AV89: 0 | AW89: 0 | AY89: 0 | BE89: 0 | BH89: 0 | BJ89: 0 | BK89: 0 | BL89: 0 | BN89: 0 | BQ89: 0 | BU89: 0
AG90: =SUM(AA90:AE90) -> 0 | AT90: 0 | AV90: 0 | AW90: 0 | AY90: 0 | BE90: 0 | BH90: 0 | BJ90: 0 | BK90: 0 | BL90: 0 | BN90: 0 | BQ90: 0 | BU90: 0
AG91: 0 | AT91: 0 | AV91: 0 | AW91: 0 | AY91: 0 | BE91: 0 | BH91: =SUM(BD91:BF91) -> 0 | BJ91: =BD91 -> 0 | BK91: =BE91 -> 0 | BL91: =BF91 -> 0 | BN91: =BH91 -> 0 | BQ91: =SUM(BH91,AT91) -> 0 | BU91: =AY91+BN91 -> 0
AG92: 0 | AT92: 0 | AV92: 0 | AW92: 0 | AY92: 0 | BE92: 0 | BH92: 0 | BJ92: 0 | BK92: 0 | BL92: 0 | BN92: 0 | BQ92: 0 | BU92: 0
AG93: 0 | AT93: 0 | AV93: 0 | AW93: 0 | AY93: 0 | BE93: 0 | BH93: 0 | BJ93: 0 | BK93: 0 | BL93: 0 | BN93: 0 | BQ93: 0 | BU93: 0
AG94: 0 | AT94: 0 | AV94: 0 | AW94: 0 | AY94: 0 | BE94: 0 | BH94: 0 | BJ94: 0 | BK94: 0 | BL94: 0 | BN94: 0 | BQ94: 0 | BU94: 0
AG95: 0 | AT95: 0 | AV95: 0 | AW95: 0 | AY95: 0 | BE95: 0 | BH95: 0 | BJ95: 0 | BK95: 0 | BL95: 0 | BN95: 0 | BQ95: 0 | BU95: 0
AG96: 0 | AT96: =AQ96*(1+AR96) -> 0 | AV96: =AQ96 -> 0 | AW96: =AR96 -> 0 | AY96: =AV96*(1+AW96) -> 0 | BE96: 0 | BH96: 0 | BJ96: 0 | BK96: 0 | BL96: 0 | BN96: 0 | BQ96: 0 | BU96: 0
AG97: 0 | AT97: 0 | AV97: 0 | AW97: 0 | AY97: 0 | BE97: 0 | BH97: 0 | BJ97: 0 | BK97: 0 | BL97: 0 | BN97: 0 | BQ97: 0 | BU97: 0
AG98: 0 | AT98: 0 | AV98: 0 | AW98: 0 | AY98: 0 | BE98: 0 | BH98: 0 | BJ98: 0 | BK98: 0 | BL98: 0 | BN98: 0 | BQ98: 0 | BU98: 0
AG99: 0 | AT99: 0 | AV99: 0 | AW99: 0 | AY99: 0 | BE99: 0 | BH99: 0 | BJ99: 0 | BK99: 0 | BL99: 0 | BN99: 0 | BQ99: 0 | BU99: 0
AG100: 0 | AT100: 0 | AV100: 0 | AW100: 0 | AY100: 0 | BE100: 0 | BH100: 0 | BJ100: 0 | BK100: 0 | BL100: 0 | BN100: 0 | BQ100: 0 | BU100: 0
AG101: 0 | AT101: 0 | AV101: 0 | AW101: 0 | AY101: 0 | BE101: 0 | BH101: 0 | BJ101: 0 | BK101: 0 | BL101: 0 | BN101: 0 | BQ101: 0 | BU101: 0
AG102: 0 | AT102: 0 | AV102: 0 | AW102: 0 | AY102: 0 | BE102: 0 | BH102: 0 | BJ102: 0 | BK102: 0 | BL102: 0 | BN102: 0 | BQ102: 0 | BU102: 0
AG103: 0 | AT103: 0 | AV103: 0 | AW103: 0 | AY103: 0 | BE103: 0 | BH103: 0 | BJ103: 0 | BK103: 0 | BL103: 0 | BN103: 0 | BQ103: 0 | BU103: 0
AG104: 0 | AT104: 0 | AV104: 0 | AW104: 0 | AY104: 0 | BE104: 0 | BH104: 0 | BJ104: 0 | BK104: 0 | BL104: 0 | BN104: 0 | BQ104: 0 | BU104: 0
AG105: 0 | AT105: 0 | AV105: 0 | AW105: 0 | AY105: 0 | BE105: 0 | BH105: 0 | BJ105: 0 | BK105: 0 | BL105: 0 | BN105: 0 | BQ105: 0 | BU105: 0
AG106: 0 | AT106: 0 | AV106: 0 | AW106: 0 | AY106: 0 | BE106: 0 | BH106: 0 | BJ106: 0 | BK106: 0 | BL106: 0 | BN106: 0 | BQ106: 0 | BU106: 0
AG107: 0 | AT107: 0 | AV107: 0 | AW107: 0 | AY107: 0 | BE107: 0 | BH107: 0 | BJ107: 0 | BK107: 0 | BL107: 0 | BN107: 0 | BQ107: 0 | BU107: 0
AG108: 0 | AT108: 0 | AV108: 0 | AW108: 0 | AY108: 0 | BE108: 0 | BH108: 0 | BJ108: 0 | BK108: 0 | BL108: 0 | BN108: 0 | BQ108: 0 | BU108: 0
AG109: 0 | AT109: 0 | AV109: 0 | AW109: 0 | AY109: 0 | BH109: 0 | BJ109: 0 | BK109: 0 | BL109: 0 | BN109: 0 | BQ109: 0 | BU109: 0
AG110: 0 | AT110: 0 | AV110: 0 | AW110: 0 | AY110: 0 | BH110: 0 | BJ110: 0 | BK110: 0 | BL110: 0 | BN110: 0 | BQ110: 0 | BU110: 0
AG111: 0 | AI111: =IF(AND(M111<>"",AG111<>1),1,0) -> 0 | AT111: 0 | AV111: 0 | AW111: 0 | AY111: 0 | BH111: 0 | BJ111: 0 | BK111: 0 | BL111: 0 | BN111: 0 | BQ111: 0 | BU111: 0 | BZ111: 0 | CC111: =IF(BZ111=1,IF(CB111>BQ111*'Input-Gen'!$M$40,"Check Value","OK"),"") -> 
AG112: 0 | AI112: =IF(AND(M112<>"",AG112<>1),1,0) -> 0 | AT112: 0 | AV112: 0 | AW112: 0 | AY112: 0 | BH112: 0 | BJ112: 0 | BK112: 0 | BL112: 0 | BN112: 0 | BQ112: 0 | BU112: 0 | BZ112: 0 | CC112: =IF(BZ112=1,IF(CB112>BQ112*'Input-Gen'!$M$40,"Check Value","OK"),"") -> 
AG113: 0 | AI113: =IF(AND(M113<>"",AG113<>1),1,0) -> 0 | AT113: 0 | AV113: 0 | AW113: 0 | AY113: 0 | BH113: 0 | BJ113: 0 | BK113: 0 | BL113: 0 | BN113: 0 | BQ113: 0 | BU113: 0 | BZ113: 0 | CC113: =IF(BZ113=1,IF(CB113>BQ113*'Input-Gen'!$M$40,"Check Value","OK"),"") -> 
G115: Total | T115: =SUM(T25:T113) -> 0 | U115: =SUM(U25:U113) -> 0 | W115: =SUM(W25:W113) -> 0 | AA115: =SUM(AA25:AA113) -> 1.207557555 | AB115: =SUM(AB25:AB113) -> 1.303499104 | AC115: 1.290043833 | AD115: 1.183998538 | AE115: 1.01490097 | AG115: =SUM(AA115:AE115)=SUM(AG25:AG113) -> TRUE | AM115: =SUM(AM25:AM113) -> 0 | AO115: =SUM(AO25:AO113) -> 0 | AQ115: =SUM(AQ25:AQ113) -> 80798.63029 | AR115: =SUM(AR25:AR113) -> 0 | AT115: =SUM(AT25:AT113) -> 80798.63029 | AV115: =SUM(AV25:AV113) -> 80798.63029 | AW115: =SUM(AW25:AW113) -> 0 | AY115: =SUM(AY25:AY113) -> 80798.63029 | BD115: =SUM(BD25:BD113) -> 28133.905 | BE115: =SUM(BE25:BE113) -> 0 | BF115: =SUM(BF25:BF113) -> 0 | BH115: =SUM(BH25:BH113) -> 28133.905 | BJ115: =SUM(BJ25:BJ113) -> 28133.905 | BK115: =SUM(BK25:BK113) -> 0 | BL115: =SUM(BL25:BL113) -> 0 | BN115: =SUM(BN25:BN113) -> 28133.905 | BQ115: =SUM(BQ25:BQ113) -> 108932.5353 | BU115: =SUM(BU25:BU113) -> 108932.5353 | BZ115: =SUM(BZ25:BZ113) -> 0 | CB115: =SUM(CB25:CB113) -> 0 | CC115: =IF(BZ115=1,IF(CB115>BQ115*'Input-Gen'!$M$40,"Check Value","OK"),"") ->  | CE115: =SUM(CE25:CE113) -> 0
F118: Future Infrastructure | X118: Check
G120: ='LGIP future infratructure'!A2 -> CDE-CF-001 | M120: =G120 -> CDE-CF-001 | N120: ='LGIP future infratructure'!B2 -> PCF72 | O120: ='LGIP future infratructure'!D2 -> Land acquisition, basic site preparation and connection to services to provide DISTRICT LIBRARY | P120: ='LGIP future infratructure'!F2 -> District | U120: 0 | X120: =IFERROR(V120-INDEX(#REF!,MATCH('Input-Infra'!G120,#REF!,),),0) -> 0 | AA120: 0.2075575546 | AB120: 0.3034991043 | AC120: 0.2900438333 | AD120: 0.1839985382 | AE120: 0.01490096965 | AG120: =ROUND(SUM(AA120:AE120),IntAccuracy) -> 1 | AI120: =IF(AND(M120<>"",AG120<>1),1,0) -> 0 | AJ120: =IFERROR(SUM(AA120:AE120)-SUM(INDEX(#REF!,MATCH('Input-Infra'!G120,#REF!,),)),0) -> 0 | AM120: ='LGIP future infratructure'!I2 -> 0.3 | AN120: =IF('LGIP future infratructure'!G2="2016 - 2021",DATE(2019,6,30),DATE(2024,6,30)) -> 2019-06-30 | AQ120: ='LGIP future infratructure'!J2/1000 -> 600 | AT120: =AQ120*(1+AR120) -> 600 | AV120: =AQ120*V120 -> 0 | AW120: =AR120 -> 0 | AY120: =AV120*(1+AW120) -> 0 | BC120: =AN120 -> 2019-06-30 | BD120: ='LGIP future infratructure'!K2/1000 -> 397.633 | BE120: =SUM('LGIP future infratructure'!L2:N2)/1000 -> 167.506 | BH120: =SUM(BD120:BF120) -> 565.139 | BJ120: =BD120*$V120 -> 0 | BK120: =BE120*$V120 -> 0 | BL120: =BF120*$V120 -> 0 | BN120: =SUM(BJ120:BL120) -> 0 | BQ120: =SUM(BH120,AT120) -> 1165.139 | BU120: =AY120+BN120 -> 0 | BY120: =MAX(BC120,AN120) -> 2019-06-30 | CC120: =IF(BZ120=1,IF(CB120>BQ120*'Input-Gen'!$M$40,"Check Value","OK"),"") ->  | CE120: 0
G121: ='LGIP future infratructure'!A3 -> EAF-CF-001 | M121: =G121 -> EAF-CF-001 | N121: ='LGIP future infratructure'!B3 -> PCF154 | O121: ='LGIP future infratructure'!D3 -> Land acquisition, basic site preparation and connection to services to provide DISTRICT COMMUNITY HUB | P121: ='LGIP future infratructure'!F3 -> District | U121: 0 | X121: =IFERROR(V121-INDEX(#REF!,MATCH('Input-Infra'!G121,#REF!,),),0) -> 0 | AA121: 0.2075575546 | AB121: 0.3034991043 | AC121: 0.2900438333 | AD121: 0.1839985382 | AE121: 0.01490096965 | AG121: 1 | AI121: 0 | AJ121: =IFERROR(SUM(AA121:AE121)-SUM(INDEX(#REF!,MATCH('Input-Infra'!G121,#REF!,),)),0) -> 0 | AM121: ='LGIP future infratructure'!I3 -> 0.6 | AN121: =IF('LGIP future infratructure'!G3="2016 - 2021",DATE(2019,6,30),DATE(2024,6,30)) -> 2024-06-30 | AQ121: ='LGIP future infratructure'!J3/1000 -> 10296 | AT121: 10296 | AV121: =AQ121*V121 -> 0 | AW121: =AR121 -> 0 | AY121: =AV121*(1+AW121) -> 0 | BC121: =AN121 -> 2024-06-30 | BD121: ='LGIP future infratructure'!K3/1000 -> 423.786 | BE121: =SUM('LGIP future infratructure'!L3:N3)/1000 -> 220.545 | BH121: =SUM(BD121:BF121) -> 644.331 | BJ121: =BD121*$V121 -> 0 | BK121: =BE121*$V121 -> 0 | BL121: =BF121*$V121 -> 0 | BN121: =SUM(BJ121:BL121) -> 0 | BQ121: =SUM(BH121,AT121) -> 10940.331 | BU121: 0 | BY121: 2024-06-30 | CC121: =IF(BZ121=1,IF(CB121>BQ121*'Input-Gen'!$M$40,"Check Value","OK"),"") ->  | CE121: 0
G122: ='LGIP future infratructure'!A4 -> MIT-CF-001 | M122: MIT-CF-001 | N122: ='LGIP future infratructure'!B4 -> PCF131 | O122: ='LGIP future infratructure'!D4 -> Land acquisition, basic site preparation and connection to services to provide DISTRICT INTEGRATED FACILITY | P122: ='LGIP future infratructure'!F4 -> District | U122: 0 | X122: =IFERROR(V122-INDEX(#REF!,MATCH('Input-Infra'!G122,#REF!,),),0) -> 0 | AA122: 0.2075575546 | AB122: 0.3034991043 | AC122: 0.2900438333 | AD122: 0.1839985382 | AE122: 0.01490096965 | AG122: =ROUND(SUM(AA122:AE122),IntAccuracy) -> 1 | AI122: =IF(AND(M122<>"",AG122<>1),1,0) -> 0 | AJ122: =IFERROR(SUM(AA122:AE122)-SUM(INDEX(#REF!,MATCH('Input-Infra'!G122,#REF!,),)),0) -> 0 | AM122: ='LGIP future infratructure'!I4 -> 1.18 | AN122: =IF('LGIP future infratructure'!G4="2016 - 2021",DATE(2019,6,30),DATE(2024,6,30)) -> 2019-06-30 | AQ122: ='LGIP future infratructure'!J4/1000 -> 15528.8 | AT122: 15528.8 | AV122: 0 | AW122: 0 | AY122: =AV122*(1+AW122) -> 0 | BC122: 2019-06-30 | BD122: ='LGIP future infratructure'!K4/1000 -> 470.429 | BE122: =SUM('LGIP future infratructure'!L4:N4)/1000 -> 198.172 | BH122: 668.601 | BJ122: 0 | BK122: 0 | BL122: 0 | BN122: 0 | BQ122: =SUM(BH122,AT122) -> 16197.401 | BU122: =AY122+BN122 -> 0 | BY122: =MAX(BC122,AN122) -> 2019-06-30 | CC122: =IF(BZ122=1,IF(CB122>BQ122*'Input-Gen'!$M$40,"Check Value","OK"),"") ->  | CE122: 0
G123: ='LGIP future infratructure'!A5 -> ROC-CF-001 | M123: ROC-CF-001 | N123: ='LGIP future infratructure'!B5 -> PCF275 | O123: ='LGIP future infratructure'!D5 -> Land acquisition, basic site preparation and connection to services to provide LOCAL COMMUNITY CENTRE | P123: ='LGIP future infratructure'!F5 -> District | U123: 0 | X123: =IFERROR(V123-INDEX(#REF!,MATCH('Input-Infra'!G123,#REF!,),),0) -> 0 | AA123: 0.2075575546 | AB123: 0.3034991043 | AC123: 0.2900438333 | AD123: 0.1839985382 | AE123: 0.01490096965 | AG123: 1 | AI123: 0 | AJ123: =IFERROR(SUM(AA123:AE123)-SUM(INDEX(#REF!,MATCH('Input-Infra'!G123,#REF!,),)),0) -> 0 | AM123: ='LGIP future infratructure'!I5 -> 0.2 | AN123: =IF('LGIP future infratructure'!G5="2016 - 2021",DATE(2019,6,30),DATE(2024,6,30)) -> 2019-06-30 | AQ123: ='LGIP future infratructure'!J5/1000 -> 1422 | AT123: 1422 | AV123: 0 | AW123: =AR123 -> 0 | AY123: =AV123*(1+AW123) -> 0 | BC123: 2019-06-30 | BD123: ='LGIP future infratructure'!K5/1000 -> 384.903 | BE123: =SUM('LGIP future infratructure'!L5:N5)/1000 -> 162.144 | BH123: 547.047 | BJ123: 0 | BK123: 0 | BL123: 0 | BN123: =SUM(BJ123:BL123) -> 0 | BQ123: 1969.047 | BU123: 0 | BY123: 2019-06-30 | CC123: =IF(BZ123=1,IF(CB123>BQ123*'Input-Gen'!$M$40,"Check Value","OK"),"") ->  | CE123: 0
G124: ='LGIP future infratructure'!A6 -> WES-CF-001 | M124: WES-CF-001 | N124: ='LGIP future infratructure'!B6 -> PCF192 | O124: ='LGIP future infratructure'!D6 -> Land acquisition, basic site preparation and connection to services to provide LOCAL COMMUNITY CENTRE AND LIBRARY EXTENSION | P124: ='LGIP future infratructure'!F6 -> Local | U124: 0.3032902194 | X124: =IFERROR(V124-INDEX(#REF!,MATCH('Input-Infra'!G124,#REF!,),),0) -> 0 | AA124: 0 | AB124: 0 | AC124: 1 | AD124: 0 | AE124: 0 | AG124: 1 | AI124: 0 | AJ124: =IFERROR(SUM(AA124:AE124)-SUM(INDEX(#REF!,MATCH('Input-Infra'!G124,#REF!,),)),0) -> 0 | AM124: ='LGIP future infratructure'!I6 -> 0.18 | AN124: =IF('LGIP future infratructure'!G6="2016 - 2021",DATE(2019,6,30),DATE(2024,6,30)) -> 2024-06-30 | AQ124: ='LGIP future infratructure'!J6/1000 -> 3997.8 | AT124: 3997.8 | AV124: 0 | AW124: 0 | AY124: =AV124*(1+AW124) -> 0 | BC124: 2024-06-30 | BD124: ='LGIP future infratructure'!K6/1000 -> 202.217 | BE124: =SUM('LGIP future infratructure'!L6:N6)/1000 -> 105.237 | BH124: 307.454 | BJ124: 0 | BK124: 0 | BL124: 0 | BN124: 0 | BQ124: 4305.254 | BU124: 0 | BY124: 2024-06-30 | CC124: =IF(BZ124=1,IF(CB124>BQ124*'Input-Gen'!$M$40,"Check Value","OK"),"") ->  | CE124: 0
G125: ='LGIP future infratructure'!A7 -> WSR-CF-001 | M125: WSR-CF-001 | N125: ='LGIP future infratructure'!B7 -> PCF153 | O125: ='LGIP future infratructure'!D7 -> Land acquisition, basic site preparation and connection to services to provide LOCAL COMMUNITY CENTRE | P125: ='LGIP future infratructure'!F7 -> Local | U125: 0 | X125: =IFERROR(V125-INDEX(#REF!,MATCH('Input-Infra'!G125,#REF!,),),0) -> 0 | AA125: 0 | AB125: 1 | AC125: 0 | AD125: 0 | AE125: 0 | AG125: 1 | AI125: 0 | AJ125: =IFERROR(SUM(AA125:AE125)-SUM(INDEX(#REF!,MATCH('Input-Infra'!G125,#REF!,),)),0) -> 0 | AM125: ='LGIP future infratructure'!I7 -> 0.18 | AN125: =IF('LGIP future infratructure'!G7="2016 - 2021",DATE(2019,6,30),DATE(2024,6,30)) -> 2019-06-30 | AQ125: ='LGIP future infratructure'!J7/1000 -> 4069.8 | AT125: 4069.8 | AV125: 0 | AW125: 0 | AY125: 0 | BC125: 2019-06-30 | BD125: ='LGIP future infratructure'!K7/1000 -> 291.467 | BE125: =SUM('LGIP future infratructure'!L7:N7)/1000 -> 122.782 | BH125: 414.249 | BJ125: 0 | BK125: 0 | BL125: 0 | BN125: 0 | BQ125: 4484.049 | BU125: 0 | BY125: 2019-06-30 | CC125: =IF(BZ125=1,IF(CB125>BQ125*'Input-Gen'!$M$40,"Check Value","OK"),"") ->  | CE125: 0
G126: Spare 1 | X126: =IFERROR(V126-INDEX(#REF!,MATCH('Input-Infra'!G126,#REF!,),),0) -> 0 | AG126: 0 | AI126: 0 | AJ126: =IFERROR(SUM(AA126:AE126)-SUM(INDEX(#REF!,MATCH('Input-Infra'!G126,#REF!,),)),0) -> 0 | AT126: 0 | AV126: 0 | AW126: 0 | AY126: 0 | BH126: 0 | BJ126: 0 | BK126: 0 | BL126: 0 | BN126: 0 | BQ126: 0 | BU126: 0 | BY126: 00:00:00 | CC126: =IF(BZ126=1,IF(CB126>BQ126*'Input-Gen'!$M$40,"Check Value","OK"),"") ->  | CE126: 0
G127: Spare 2 | X127: =IFERROR(V127-INDEX(#REF!,MATCH('Input-Infra'!G127,#REF!,),),0) -> 0 | AG127: 0 | AI127: 0 | AJ127: =IFERROR(SUM(AA127:AE127)-SUM(INDEX(#REF!,MATCH('Input-Infra'!G127,#REF!,),)),0) -> 0 | AT127: 0 | AV127: 0 | AW127: 0 | AY127: 0 | BH127: 0 | BJ127: 0 | BK127: 0 | BL127: 0 | BN127: 0 | BQ127: 0 | BU127: 0 | BY127: 00:00:00 | CC127: =IF(BZ127=1,IF(CB127>BQ127*'Input-Gen'!$M$40,"Check Value","OK"),"") ->  | CE127: 0
G128: Spare 3 | X128: =IFERROR(V128-INDEX(#REF!,MATCH('Input-Infra'!G128,#REF!,),),0) -> 0 | AG128: 0 | AI128: 0 | AJ128: =IFERROR(SUM(AA128:AE128)-SUM(INDEX(#REF!,MATCH('Input-Infra'!G128,#REF!,),)),0) -> 0 | AT128: 0 | AV128: 0 | AW128: 0 | AY128: 0 | BH128: 0 | BJ128: 0 | BK128: 0 | BL128: 0 | BN128: 0 | BQ128: 0 | BU128: 0 | BY128: 00:00:00 | CC128: =IF(BZ128=1,IF(CB128>BQ128*'Input-Gen'!$M$40,"Check Value","OK"),"") ->  | CE128: 0
G129: Spare 4 | X129: =IFERROR(V129-INDEX(#REF!,MATCH('Input-Infra'!G129,#REF!,),),0) -> 0 | AG129: 0 | AI129: 0 | AJ129: =IFERROR(SUM(AA129:AE129)-SUM(INDEX(#REF!,MATCH('Input-Infra'!G129,#REF!,),)),0) -> 0 | AT129: 0 | AV129: 0 | AW129: 0 | AY129: 0 | BH129: 0 | BJ129: 0 | BK129: 0 | BL129: 0 | BN129: 0 | BQ129: 0 | BU129: 0 | BY129: 00:00:00 | CC129: =IF(BZ129=1,IF(CB129>BQ129*'Input-Gen'!$M$40,"Check Value","OK"),"") ->  | CE129: 0
G130: Spare 5 | X130: =IFERROR(V130-INDEX(#REF!,MATCH('Input-Infra'!G130,#REF!,),),0) -> 0 | AG130: 0 | AI130: 0 | AJ130: =IFERROR(SUM(AA130:AE130)-SUM(INDEX(#REF!,MATCH('Input-Infra'!G130,#REF!,),)),0) -> 0 | AT130: 0 | AV130: 0 | AW130: 0 | AY130: 0 | BH130: 0 | BJ130: 0 | BK130: 0 | BL130: 0 | BN130: 0 | BQ130: 0 | BU130: 0 | BY130: 00:00:00 | CC130: =IF(BZ130=1,IF(CB130>BQ130*'Input-Gen'!$M$40,"Check Value","OK"),"") ->  | CE130: 0
G131: Spare 6 | X131: =IFERROR(V131-INDEX(#REF!,MATCH('Input-Infra'!G131,#REF!,),),0) -> 0 | AG131: 0 | AI131: 0 | AJ131: =IFERROR(SUM(AA131:AE131)-SUM(INDEX(#REF!,MATCH('Input-Infra'!G131,#REF!,),)),0) -> 0 | AT131: 0 | AV131: 0 | AW131: 0 | AY131: 0 | BH131: 0 | BJ131: 0 | BK131: 0 | BL131: 0 | BN131: 0 | BQ131: 0 | BU131: 0 | BY131: 00:00:00 | CC131: =IF(BZ131=1,IF(CB131>BQ131*'Input-Gen'!$M$40,"Check Value","OK"),"") ->  | CE131: 0
G132: Spare 7 | X132: =IFERROR(V132-INDEX(#REF!,MATCH('Input-Infra'!G132,#REF!,),),0) -> 0 | AG132: 0 | AI132: 0 | AJ132: =IFERROR(SUM(AA132:AE132)-SUM(INDEX(#REF!,MATCH('Input-Infra'!G132,#REF!,),)),0) -> 0 | AT132: 0 | AV132: 0 | AW132: 0 | AY132: 0 | BH132: 0 | BJ132: 0 | BK132: 0 | BL132: 0 | BN132: 0 | BQ132: 0 | BU132: 0 | BY132: 00:00:00 | CC132: =IF(BZ132=1,IF(CB132>BQ132*'Input-Gen'!$M$40,"Check Value","OK"),"") ->  | CE132: 0
G133: Spare 8 | X133: =IFERROR(V133-INDEX(#REF!,MATCH('Input-Infra'!G133,#REF!,),),0) -> 0 | AG133: 0 | AI133: 0 | AJ133: =IFERROR(SUM(AA133:AE133)-SUM(INDEX(#REF!,MATCH('Input-Infra'!G133,#REF!,),)),0) -> 0 | AT133: 0 | AV133: 0 | AW133: 0 | AY133: 0 | BH133: 0 | BJ133: 0 | BK133: 0 | BL133: 0 | BN133: 0 | BQ133: 0 | BU133: 0 | BY133: 00:00:00 | CC133: =IF(BZ133=1,IF(CB133>BQ133*'Input-Gen'!$M$40,"Check Value","OK"),"") ->  | CE133: 0
G134: Spare 9 | X134: =IFERROR(V134-INDEX(#REF!,MATCH('Input-Infra'!G134,#REF!,),),0) -> 0 | AG134: 0 | AI134: 0 | AJ134: =IFERROR(SUM(AA134:AE134)-SUM(INDEX(#REF!,MATCH('Input-Infra'!G134,#REF!,),)),0) -> 0 | AT134: 0 | AV134: 0 | AW134: 0 | AY134: 0 | BH134: 0 | BJ134: 0 | BK134: 0 | BL134: 0 | BN134: 0 | BQ134: 0 | BU134: 0 | BY134: 00:00:00 | CC134: =IF(BZ134=1,IF(CB134>BQ134*'Input-Gen'!$M$40,"Check Value","OK"),"") ->  | CE134: 0
G135: Spare 10 | X135: =IFERROR(V135-INDEX(#REF!,MATCH('Input-Infra'!G135,#REF!,),),0) -> 0 | AG135: 0 | AI135: 0 | AJ135: =IFERROR(SUM(AA135:AE135)-SUM(INDEX(#REF!,MATCH('Input-Infra'!G135,#REF!,),)),0) -> 0 | AT135: 0 | AV135: 0 | AW135: 0 | AY135: 0 | BH135: 0 | BJ135: 0 | BK135: 0 | BL135: 0 | BN135: 0 | BQ135: 0 | BU135: 0 | BY135: 00:00:00 | CC135: =IF(BZ135=1,IF(CB135>BQ135*'Input-Gen'!$M$40,"Check Value","OK"),"") ->  | CE135: 0
G136: Spare 11 | X136: =IFERROR(V136-INDEX(#REF!,MATCH('Input-Infra'!G136,#REF!,),),0) -> 0 | AG136: 0 | AI136: 0 | AJ136: =IFERROR(SUM(AA136:AE136)-SUM(INDEX(#REF!,MATCH('Input-Infra'!G136,#REF!,),)),0) -> 0 | AT136: 0 | AV136: 0 | AW136: 0 | AY136: 0 | BH136: 0 | BJ136: 0 | BK136: 0 | BL136: 0 | BN136: 0 | BQ136: 0 | BU136: 0 | BY136: 00:00:00 | CC136: =IF(BZ136=1,IF(CB136>BQ136*'Input-Gen'!$M$40,"Check Value","OK"),"") ->  | CE136: 0
G137: Spare 12 | X137: =IFERROR(V137-INDEX(#REF!,MATCH('Input-Infra'!G137,#REF!,),),0) -> 0 | AG137: 0 | AI137: 0 | AJ137: =IFERROR(SUM(AA137:AE137)-SUM(INDEX(#REF!,MATCH('Input-Infra'!G137,#REF!,),)),0) -> 0 | AT137: 0 | AV137: 0 | AW137: 0 | AY137: 0 | BH137: 0 | BJ137: 0 | BK137: 0 | BL137: 0 | BN137: 0 | BQ137: 0 | BU137: 0 | BY137: 00:00:00 | CC137: =IF(BZ137=1,IF(CB137>BQ137*'Input-Gen'!$M$40,"Check Value","OK"),"") ->  | CE137: 0
G138: Spare 13 | X138: =IFERROR(V138-INDEX(#REF!,MATCH('Input-Infra'!G138,#REF!,),),0) -> 0 | AG138: 0 | AI138: 0 | AJ138: =IFERROR(SUM(AA138:AE138)-SUM(INDEX(#REF!,MATCH('Input-Infra'!G138,#REF!,),)),0) -> 0 | AT138: 0 | AV138: 0 | AW138: 0 | AY138: 0 | BH138: 0 | BJ138: 0 | BK138: 0 | BL138: 0 | BN138: 0 | BQ138: 0 | BU138: 0 | BY138: 00:00:00 | CC138: =IF(BZ138=1,IF(CB138>BQ138*'Input-Gen'!$M$40,"Check Value","OK"),"") ->  | CE138: 0
G139: Spare 14 | X139: =IFERROR(V139-INDEX(#REF!,MATCH('Input-Infra'!G139,#REF!,),),0) -> 0 | AG139: 0 | AI139: 0 | AJ139: =IFERROR(SUM(AA139:AE139)-SUM(INDEX(#REF!,MATCH('Input-Infra'!G139,#REF!,),)),0) -> 0 | AT139: 0 | AV139: 0 | AW139: 0 | AY139: 0 | BH139: 0 | BJ139: 0 | BK139: 0 | BL139: 0 | BN139: 0 | BQ139: 0 | BU139: 0 | BY139: 00:00:00 | CC139: =IF(BZ139=1,IF(CB139>BQ139*'Input-Gen'!$M$40,"Check Value","OK"),"") ->  | CE139: 0
G140: Spare 15 | X140: =IFERROR(V140-INDEX(#REF!,MATCH('Input-Infra'!G140,#REF!,),),0) -> 0 | AG140: 0 | AI140: 0 | AJ140: =IFERROR(SUM(AA140:AE140)-SUM(INDEX(#REF!,MATCH('Input-Infra'!G140,#REF!,),)),0) -> 0 | AT140: 0 | AV140: 0 | AW140: 0 | AY140: 0 | BH140: 0 | BJ140: 0 | BK140: =BE140*$V140 -> 0 | BL140: =BF140*$V140 -> 0 | BN140: 0 | BQ140: 0 | BU140: 0 | BY140: 00:00:00 | CC140: =IF(BZ140=1,IF(CB140>BQ140*'Input-Gen'!$M$40,"Check Value","OK"),"") ->  | CE140: 0
G141: Spare 16 | X141: =IFERROR(V141-INDEX(#REF!,MATCH('Input-Infra'!G141,#REF!,),),0) -> 0 | AG141: 0 | AI141: 0 | AJ141: =IFERROR(SUM(AA141:AE141)-SUM(INDEX(#REF!,MATCH('Input-Infra'!G141,#REF!,),)),0) -> 0 | AT141: 0 | AW141: 0 | BH141: 0 | BN141: 0 | BQ141: 0 | BU141: 0 | CC141: =IF(BZ141=1,IF(CB141>BQ141*'Input-Gen'!$M$40,"Check Value","OK"),"") ->  | CE141: 0
G142: Spare 17 | X142: =IFERROR(V142-INDEX(#REF!,MATCH('Input-Infra'!G142,#REF!,),),0) -> 0 | AG142: 0 | AI142: 0 | AJ142: =IFERROR(SUM(AA142:AE142)-SUM(INDEX(#REF!,MATCH('Input-Infra'!G142,#REF!,),)),0) -> 0 | AT142: 0 | AW142: 0 | BH142: 0 | BN142: 0 | BQ142: 0 | BU142: 0 | CC142: =IF(BZ142=1,IF(CB142>BQ142*'Input-Gen'!$M$40,"Check Value","OK"),"") ->  | CE142: 0
G143: Spare 18 | X143: =IFERROR(V143-INDEX(#REF!,MATCH('Input-Infra'!G143,#REF!,),),0) -> 0 | AG143: 0 | AI143: =IF(AND(M143<>"",AG143<>1),1,0) -> 0 | AJ143: =IFERROR(SUM(AA143:AE143)-SUM(INDEX(#REF!,MATCH('Input-Infra'!G143,#REF!,),)),0) -> 0 | AT143: =AQ143*(1+AR143) -> 0 | AW143: 0 | BH143: 0 | BN143: 0 | BQ143: =SUM(BH143,AT143) -> 0 | BU143: 0 | CC143: =IF(BZ143=1,IF(CB143>BQ143*'Input-Gen'!$M$40,"Check Value","OK"),"") ->  | CE143: 0
G144: Spare 19 | X144: =IFERROR(V144-INDEX(#REF!,MATCH('Input-Infra'!G144,#REF!,),),0) -> 0 | AG144: 0 | AI144: 0 | AJ144: =IFERROR(SUM(AA144:AE144)-SUM(INDEX(#REF!,MATCH('Input-Infra'!G144,#REF!,),)),0) -> 0 | AT144: 0 | AW144: 0 | BH144: 0 | BN144: 0 | BQ144: 0 | BU144: 0 | CC144: =IF(BZ144=1,IF(CB144>BQ144*'Input-Gen'!$M$40,"Check Value","OK"),"") ->  | CE144: 0
G145: Spare 20 | X145: =IFERROR(V145-INDEX(#REF!,MATCH('Input-Infra'!G145,#REF!,),),0) -> 0 | AG145: 0 | AI145: 0 | AJ145: =IFERROR(SUM(AA145:AE145)-SUM(INDEX(#REF!,MATCH('Input-Infra'!G145,#REF!,),)),0) -> 0 | AT145: 0 | AW145: 0 | BH145: 0 | BN145: 0 | BQ145: 0 | BU145: 0 | CC145: =IF(BZ145=1,IF(CB145>BQ145*'Input-Gen'!$M$40,"Check Value","OK"),"") ->  | CE145: 0
G146: Spare 21 | X146: =IFERROR(V146-INDEX(#REF!,MATCH('Input-Infra'!G146,#REF!,),),0) -> 0 | AG146: 0 | AI146: 0 | AJ146: =IFERROR(SUM(AA146:AE146)-SUM(INDEX(#REF!,MATCH('Input-Infra'!G146,#REF!,),)),0) -> 0 | AW146: 0 | BH146: 0 | BN146: 0 | BU146: 0 | CC146: =IF(BZ146=1,IF(CB146>BQ146*'Input-Gen'!$M$40,"Check Value","OK"),"") ->  | CE146: 0
G147: Spare 22 | X147: =IFERROR(V147-INDEX(#REF!,MATCH('Input-Infra'!G147,#REF!,),),0) -> 0 | AG147: 0 | AI147: 0 | AJ147: =IFERROR(SUM(AA147:AE147)-SUM(INDEX(#REF!,MATCH('Input-Infra'!G147,#REF!,),)),0) -> 0 | AT147: 0 | AV147: 0 | AW147: 0 | AY147: 0 | BH147: 0 | BL147: 0 | BN147: 0 | BQ147: 0 | BU147: 0 | CC147: =IF(BZ147=1,IF(CB147>BQ147*'Input-Gen'!$M$40,"Check Value","OK"),"") ->  | CE147: 0
G148: Spare 23 | X148: =IFERROR(V148-INDEX(#REF!,MATCH('Input-Infra'!G148,#REF!,),),0) -> 0 | AG148: 0 | AI148: 0 | AJ148: =IFERROR(SUM(AA148:AE148)-SUM(INDEX(#REF!,MATCH('Input-Infra'!G148,#REF!,),)),0) -> 0 | AT148: =AQ148*(1+AR148) -> 0 | AV148: =AQ148*V148 -> 0 | AW148: 0 | AY148: 0 | BH148: 0 | BJ148: 0 | BK148: 0 | BL148: 0 | BN148: 0 | BQ148: 0 | BU148: 0 | CC148: =IF(BZ148=1,IF(CB148>BQ148*'Input-Gen'!$M$40,"Check Value","OK"),"") ->  | CE148: 0
G149: Spare 24 | X149: =IFERROR(V149-INDEX(#REF!,MATCH('Input-Infra'!G149,#REF!,),),0) -> 0 | AG149: 0 | AI149: 0 | AJ149: =IFERROR(SUM(AA149:AE149)-SUM(INDEX(#REF!,MATCH('Input-Infra'!G149,#REF!,),)),0) -> 0 | AT149: 0 | AV149: 0 | AW149: 0 | AY149: 0 | BH149: 0 | BJ149: 0 | BK149: 0 | BL149: 0 | BN149: 0 | BQ149: 0 | BU149: 0 | CC149: =IF(BZ149=1,IF(CB149>BQ149*'Input-Gen'!$M$40,"Check Value","OK"),"") ->  | CE149: 0
G150: Spare 25 | X150: =IFERROR(V150-INDEX(#REF!,MATCH('Input-Infra'!G150,#REF!,),),0) -> 0 | AG150: 0 | AI150: 0 | AJ150: =IFERROR(SUM(AA150:AE150)-SUM(INDEX(#REF!,MATCH('Input-Infra'!G150,#REF!,),)),0) -> 0 | AT150: 0 | AV150: 0 | AW150: 0 | AY150: 0 | BH150: 0 | BJ150: 0 | BK150: 0 | BL150: 0 | BN150: 0 | BQ150: 0 | BU150: 0 | CC150: =IF(BZ150=1,IF(CB150>BQ150*'Input-Gen'!$M$40,"Check Value","OK"),"") ->  | CE150: 0
G151: Spare 26 | X151: =IFERROR(V151-INDEX(#REF!,MATCH('Input-Infra'!G151,#REF!,),),0) -> 0 | AG151: 0 | AI151: 0 | AJ151: =IFERROR(SUM(AA151:AE151)-SUM(INDEX(#REF!,MATCH('Input-Infra'!G151,#REF!,),)),0) -> 0 | AT151: 0 | AV151: 0 | AW151: 0 | AY151: 0 | BH151: 0 | BJ151: 0 | BK151: 0 | BL151: 0 | BN151: 0 | BQ151: 0 | BU151: 0 | CC151: =IF(BZ151=1,IF(CB151>BQ151*'Input-Gen'!$M$40,"Check Value","OK"),"") ->  | CE151: 0
G152: Spare 27 | X152: =IFERROR(V152-INDEX(#REF!,MATCH('Input-Infra'!G152,#REF!,),),0) -> 0 | AG152: 0 | AI152: 0 | AJ152: =IFERROR(SUM(AA152:AE152)-SUM(INDEX(#REF!,MATCH('Input-Infra'!G152,#REF!,),)),0) -> 0 | AT152: 0 | AV152: 0 | AW152: 0 | AY152: 0 | BH152: 0 | BJ152: 0 | BK152: 0 | BL152: 0 | BN152: 0 | BQ152: 0 | BU152: 0 | CC152: =IF(BZ152=1,IF(CB152>BQ152*'Input-Gen'!$M$40,"Check Value","OK"),"") ->  | CE152: 0
G153: Spare 28 | X153: =IFERROR(V153-INDEX(#REF!,MATCH('Input-Infra'!G153,#REF!,),),0) -> 0 | AG153: 0 | AI153: 0 | AJ153: =IFERROR(SUM(AA153:AE153)-SUM(INDEX(#REF!,MATCH('Input-Infra'!G153,#REF!,),)),0) -> 0 | AT153: 0 | AV153: 0 | AW153: 0 | AY153: 0 | BH153: 0 | BJ153: 0 | BK153: 0 | BL153: 0 | BN153: 0 | BQ153: 0 | BU153: 0 | CC153: =IF(BZ153=1,IF(CB153>BQ153*'Input-Gen'!$M$40,"Check Value","OK"),"") ->  | CE153: 0
G154: Spare 29 | X154: =IFERROR(V154-INDEX(#REF!,MATCH('Input-Infra'!G154,#REF!,),),0) -> 0 | AG154: 0 | AI154: 0 | AJ154: =IFERROR(SUM(AA154:AE154)-SUM(INDEX(#REF!,MATCH('Input-Infra'!G154,#REF!,),)),0) -> 0 | AT154: 0 | AV154: 0 | AW154: 0 | AY154: 0 | BH154: 0 | BJ154: 0 | BK154: 0 | BL154: 0 | BN154: 0 | BQ154: 0 | BU154: 0 | CC154: =IF(BZ154=1,IF(CB154>BQ154*'Input-Gen'!$M$40,"Check Value","OK"),"") ->  | CE154: 0
G155: Spare 30 | X155: =IFERROR(V155-INDEX(#REF!,MATCH('Input-Infra'!G155,#REF!,),),0) -> 0 | AG155: 0 | AI155: 0 | AJ155: =IFERROR(SUM(AA155:AE155)-SUM(INDEX(#REF!,MATCH('Input-Infra'!G155,#REF!,),)),0) -> 0 | AT155: 0 | AV155: 0 | AW155: 0 | AY155: 0 | BH155: 0 | BJ155: 0 | BK155: 0 | BL155: 0 | BN155: 0 | BQ155: 0 | BU155: 0 | CC155: =IF(BZ155=1,IF(CB155>BQ155*'Input-Gen'!$M$40,"Check Value","OK"),"") ->  | CE155: 0
G156: Spare 31 | X156: =IFERROR(V156-INDEX(#REF!,MATCH('Input-Infra'!G156,#REF!,),),0) -> 0 | AG156: 0 | AI156: 0 | AJ156: =IFERROR(SUM(AA156:AE156)-SUM(INDEX(#REF!,MATCH('Input-Infra'!G156,#REF!,),)),0) -> 0 | AT156: 0 | AV156: 0 | AW156: 0 | AY156: 0 | BH156: 0 | BJ156: 0 | BK156: 0 | BL156: 0 | BN156: 0 | BQ156: 0 | BU156: 0 | CC156: =IF(BZ156=1,IF(CB156>BQ156*'Input-Gen'!$M$40,"Check Value","OK"),"") ->  | CE156: 0
G157: Spare 32 | X157: =IFERROR(V157-INDEX(#REF!,MATCH('Input-Infra'!G157,#REF!,),),0) -> 0 | AG157: 0 | AI157: 0 | AJ157: =IFERROR(SUM(AA157:AE157)-SUM(INDEX(#REF!,MATCH('Input-Infra'!G157,#REF!,),)),0) -> 0 | AT157: 0 | AV157: 0 | AW157: 0 | AY157: 0 | BH157: 0 | BJ157: 0 | BK157: 0 | BL157: 0 | BN157: 0 | BQ157: 0 | BU157: 0 | CC157: =IF(BZ157=1,IF(CB157>BQ157*'Input-Gen'!$M$40,"Check Value","OK"),"") ->  | CE157: 0
G158: Spare 33 | X158: =IFERROR(V158-INDEX(#REF!,MATCH('Input-Infra'!G158,#REF!,),),0) -> 0 | AG158: 0 | AI158: 0 | AJ158: =IFERROR(SUM(AA158:AE158)-SUM(INDEX(#REF!,MATCH('Input-Infra'!G158,#REF!,),)),0) -> 0 | AT158: 0 | AV158: 0 | AW158: 0 | AY158: 0 | BH158: 0 | BJ158: 0 | BK158: 0 | BL158: 0 | BN158: 0 | BQ158: 0 | BU158: 0 | CC158: =IF(BZ158=1,IF(CB158>BQ158*'Input-Gen'!$M$40,"Check Value","OK"),"") ->  | CE158: 0
G159: Spare 34 | X159: =IFERROR(V159-INDEX(#REF!,MATCH('Input-Infra'!G159,#REF!,),),0) -> 0 | AG159: 0 | AI159: 0 | AJ159: =IFERROR(SUM(AA159:AE159)-SUM(INDEX(#REF!,MATCH('Input-Infra'!G159,#REF!,),)),0) -> 0 | AT159: 0 | AV159: 0 | AW159: 0 | AY159: 0 | BH159: 0 | BJ159: 0 | BK159: 0 | BL159: 0 | BN159: 0 | BQ159: 0 | BU159: 0 | CC159: =IF(BZ159=1,IF(CB159>BQ159*'Input-Gen'!$M$40,"Check Value","OK"),"") ->  | CE159: 0
G160: Spare 35 | X160: =IFERROR(V160-INDEX(#REF!,MATCH('Input-Infra'!G160,#REF!,),),0) -> 0 | AG160: 0 | AI160: 0 | AJ160: =IFERROR(SUM(AA160:AE160)-SUM(INDEX(#REF!,MATCH('Input-Infra'!G160,#REF!,),)),0) -> 0 | AT160: 0 | AV160: 0 | AW160: 0 | AY160: 0 | BH160: 0 | BJ160: 0 | BK160: 0 | BL160: 0 | BN160: 0 | BQ160: 0 | BU160: 0 | CC160: =IF(BZ160=1,IF(CB160>BQ160*'Input-Gen'!$M$40,"Check Value","OK"),"") ->  | CE160: 0
G161: Spare 36 | X161: =IFERROR(V161-INDEX(#REF!,MATCH('Input-Infra'!G161,#REF!,),),0) -> 0 | AG161: 0 | AI161: 0 | AJ161: =IFERROR(SUM(AA161:AE161)-SUM(INDEX(#REF!,MATCH('Input-Infra'!G161,#REF!,),)),0) -> 0 | AT161: 0 | AV161: 0 | AW161: 0 | AY161: 0 | BH161: 0 | BJ161: 0 | BK161: 0 | BL161: 0 | BN161: 0 | BQ161: 0 | BU161: 0 | CC161: =IF(BZ161=1,IF(CB161>BQ161*'Input-Gen'!$M$40,"Check Value","OK"),"") ->  | CE161: 0
G162: Spare 37 | X162: =IFERROR(V162-INDEX(#REF!,MATCH('Input-Infra'!G162,#REF!,),),0) -> 0 | AG162: 0 | AI162: 0 | AJ162: =IFERROR(SUM(AA162:AE162)-SUM(INDEX(#REF!,MATCH('Input-Infra'!G162,#REF!,),)),0) -> 0 | AT162: 0 | AV162: 0 | AW162: 0 | AY162: 0 | BH162: 0 | BJ162: 0 | BK162: 0 | BL162: 0 | BN162: 0 | BQ162: 0 | BU162: 0 | CC162: =IF(BZ162=1,IF(CB162>BQ162*'Input-Gen'!$M$40,"Check Value","OK"),"") ->  | CE162: 0
G163: Spare 38 | X163: =IFERROR(V163-INDEX(#REF!,MATCH('Input-Infra'!G163,#REF!,),),0) -> 0 | AG163: 0 | AI163: 0 | AJ163: =IFERROR(SUM(AA163:AE163)-SUM(INDEX(#REF!,MATCH('Input-Infra'!G163,#REF!,),)),0) -> 0 | AT163: 0 | AV163: 0 | AW163: 0 | AY163: 0 | BH163: 0 | BJ163: 0 | BK163: 0 | BL163: 0 | BN163: 0 | BQ163: 0 | BU163: 0 | CC163: =IF(BZ163=1,IF(CB163>BQ163*'Input-Gen'!$M$40,"Check Value","OK"),"") ->  | CE163: 0
G164: Spare 39 | X164: =IFERROR(V164-INDEX(#REF!,MATCH('Input-Infra'!G164,#REF!,),),0) -> 0 | AG164: 0 | AI164: 0 | AJ164: =IFERROR(SUM(AA164:AE164)-SUM(INDEX(#REF!,MATCH('Input-Infra'!G164,#REF!,),)),0) -> 0 | AT164: 0 | AV164: 0 | AW164: 0 | AY164: 0 | BH164: 0 | BJ164: 0 | BK164: 0 | BL164: 0 | BN164: 0 | BQ164: 0 | BU164: 0 | CC164: =IF(BZ164=1,IF(CB164>BQ164*'Input-Gen'!$M$40,"Check Value","OK"),"") ->  | CE164: 0
G165: Spare 40 | X165: =IFERROR(V165-INDEX(#REF!,MATCH('Input-Infra'!G165,#REF!,),),0) -> 0 | AG165: 0 | AI165: 0 | AJ165: =IFERROR(SUM(AA165:AE165)-SUM(INDEX(#REF!,MATCH('Input-Infra'!G165,#REF!,),)),0) -> 0 | AT165: 0 | AV165: 0 | AW165: 0 | AY165: 0 | BH165: 0 | BJ165: 0 | BK165: 0 | BL165: 0 | BN165: 0 | BQ165: 0 | BU165: 0 | CC165: =IF(BZ165=1,IF(CB165>BQ165*'Input-Gen'!$M$40,"Check Value","OK"),"") ->  | CE165: 0
G166: Spare 41 | X166: =IFERROR(V166-INDEX(#REF!,MATCH('Input-Infra'!G166,#REF!,),),0) -> 0 | AG166: 0 | AI166: 0 | AJ166: =IFERROR(SUM(AA166:AE166)-SUM(INDEX(#REF!,MATCH('Input-Infra'!G166,#REF!,),)),0) -> 0 | AT166: 0 | AV166: 0 | AW166: 0 | AY166: 0 | BH166: 0 | BJ166: 0 | BK166: 0 | BL166: 0 | BN166: 0 | BQ166: 0 | BU166: 0 | CC166: =IF(BZ166=1,IF(CB166>BQ166*'Input-Gen'!$M$40,"Check Value","OK"),"") ->  | CE166: 0
G167: Spare 42 | X167: =IFERROR(V167-INDEX(#REF!,MATCH('Input-Infra'!G167,#REF!,),),0) -> 0 | AG167: 0 | AI167: 0 | AJ167: =IFERROR(SUM(AA167:AE167)-SUM(INDEX(#REF!,MATCH('Input-Infra'!G167,#REF!,),)),0) -> 0 | AT167: 0 | AV167: 0 | AW167: 0 | AY167: 0 | BH167: 0 | BJ167: 0 | BK167: =BE167*$V167 -> 0 | BL167: =BF167*$V167 -> 0 | BN167: 0 | BQ167: 0 | BU167: 0 | BZ167: 0 | CC167: =IF(BZ167=1,IF(CB167>BQ167*'Input-Gen'!$M$40,"Check Value","OK"),"") ->  | CE167: 0
G169: Total | T169: =SUM(T120:T167) -> 0 | U169: =SUM(U120:U167) -> 0.3032902194 | V169: 0 | W169: 0 | X169: =SUM(X120:X167) -> 0 | AA169: =SUM(AA120:AA167) -> 0.8302302183 | AB169: =SUM(AB120:AB167) -> 2.213996417 | AC169: 2.160175333 | AD169: 0.7359941526 | AE169: 0.05960387858 | AG169: =(SUM(AG$120:AG$146)=SUM(AA169:AE169)) -> TRUE | AI169: =SUM(AI25:AI167) -> 0 | AJ169: =SUM(AJ120:AJ167) -> 0 | AM169: =SUM(AM120:AM167) -> 2.64 | AO169: =SUM(AO120:AO167) -> 0 | AQ169: =SUM(AQ120:AQ167) -> 35914.4 | AR169: =SUM(AR120:AR167) -> 0 | AT169: =SUM(AT120:AT167) -> 35914.4 | AV169: =SUM(AV120:AV167) -> 0 | AW169: =SUM(AW120:AW167) -> 0 | AY169: =SUM(AY120:AY167) -> 0 | BD169: =SUM(BD120:BD167) -> 2170.435 | BE169: =SUM(BE120:BE167) -> 976.386 | BF169: =SUM(BF120:BF167) -> 0 | BH169: =SUM(BH120:BH167) -> 3146.821 | BJ169: =SUM(BJ120:BJ167) -> 0 | BK169: =SUM(BK120:BK167) -> 0 | BL169: 0 | BN169: =SUM(BN120:BN167) -> 0 | BQ169: =SUM(BQ120:BQ167) -> 39061.221 | BU169: =SUM(BU120:BU167) -> 0 | CB169: =SUM(CB120:CB167) -> 0 | CC169: =IF(BZ169=1,IF(CB169>BQ169*'Input-Gen'!$M$40,"Check Value","OK"),"") ->  | CE169: =SUM(CE120:CE167) -> 0
F171: End of Page

Sheet Input-Time Series
F2: Brisbane City Council
F3: ='Input-Gen'!$F$3 -> Schedule of Works Model - Land for community facilities network | G3: ='Input-Gen'!F3 -> Schedule of Works Model - Land for community facilities network
F5: Input - Time Series
G6: =IF(BaseCaseCheck=0,BaseCase,NotBaseCase) -> Please Note: Model is not currently applying Base Case parameter values
G9: Period Number | K9: ="NPV as at" & " " & TEXT(Model_Start_Date-1,"dd-mmm-yyyy") -> NPV as at 30-Jun-2016 | S9: =S17 -> 0 | T9: =T17 -> 1 | U9: 2 | V9: 3 | W9: 4 | X9: 5 | Y9: 6 | Z9: 7 | AA9: 8 | AB9: 9 | AC9: 10 | AD9: 0 | AE9: 0 | AF9: 0 | AG9: 0 | AH9: 0 | AI9: 0 | AJ9: 0 | AK9: 0 | AL9: 0 | AM9: 0
G10: Period Beginning Date | M10: Total Nominal Demand | S10: =FY_Begin -> 2015-07-01 | T10: 2016-07-01 | U10: 2017-07-01 | V10: 2018-07-01 | W10: 2019-07-01 | X10: 2020-07-01 | Y10: 2021-07-01 | Z10: 2022-07-01 | AA10: 2023-07-01 | AB10: 2024-07-01 | AC10: 2025-07-01
G11: Period Ending Date | L11: 2005-06-30 | S11: =FY_End -> 2016-06-30 | T11: 2017-06-30 | U11: 2018-06-30 | V11: 2019-06-30 | W11: 2020-06-30 | X11: 2021-06-30 | Y11: 2022-06-30 | Z11: 2023-06-30 | AA11: 2024-06-30 | AB11: 2025-06-30 | AC11: 2026-06-30 | AO11: Source
F15: Timing and Index calculations
G17: Period Number | I17: # | S17: 0 | T17: =S17+1 -> 1 | U17: =T17+1 -> 2 | V17: 3 | W17: 4 | X17: 5 | Y17: 6 | Z17: 7 | AA17: 8 | AB17: 9 | AC17: 10
G18: Financial Year Beginning | I18: dd-mmm-yy | S18: =EOMONTH(S19,-Months_in_Year)+1 -> 2015-07-01 | T18: 2016-07-01 | U18: 2017-07-01 | V18: 2018-07-01 | W18: 2019-07-01 | X18: 2020-07-01 | Y18: 2021-07-01 | Z18: 2022-07-01 | AA18: 2023-07-01 | AB18: 2024-07-01 | AC18: 2025-07-01
G19: Financial Year Ending | I19: dd-mmm-yy | S19: =IF(S17=0,Model_Start_Date-1,EOMONTH(R19,Months_in_Year)) -> 2016-06-30 | T19: 2017-06-30 | U19: 2018-06-30 | V19: 2019-06-30 | W19: 2020-06-30 | X19: 2021-06-30 | Y19: 2022-06-30 | Z19: 2023-06-30 | AA19: 2024-06-30 | AB19: 2025-06-30 | AC19: 2026-06-30
G21: Escalation Rate - Annual
G23: Consumer Price Index (CPI) | I23: % pa | T23: 0.025 | U23: 0.025 | V23: 0.025 | W23: 0.025 | X23: 0.025 | Y23: 0.025 | Z23: 0.025 | AA23: 0.025 | AB23: 0.025 | AC23: 0.025
G24: Land cost escalation | I24: % pa | T24: 0.025 | U24: 0.025 | V24: 0.025 | W24: 0.025 | X24: 0.025 | Y24: 0.025 | Z24: 0.025 | AA24: 0.025 | AB24: 0.025 | AC24: 0.025
G25: Constructed asset escalation | I25: % pa | T25: 0.0187258123 | U25: 0.0187258123 | V25: 0.0187258123 | W25: 0.0187258123 | X25: 0.0187258123 | Y25: 0.0187258123 | Z25: 0.0187258123 | AA25: 0.0187258123 | AB25: 0.0187258123 | AC25: 0.0187258123
G26: Administration cost escalation | I26: % pa | T26: 0 | U26: 0 | V26: 0 | W26: 0 | X26: 0 | Y26: 0 | Z26: 0 | AA26: 0 | AB26: 0 | AC26: 0
G27: Spare 1 escalation | I27: % pa
G29: Escalation Rate - Cumulative
G31: Consumer Price Index (CPI) | I31: % pa | S31: =IF(S$17>0,(1+S23)*R31,1) -> 1 | T31: 1.025 | U31: 1.050625 | V31: 1.076890625 | W31: 1.103812891 | X31: 1.131408213 | Y31: 1.159693418 | Z31: 1.188685754 | AA31: 1.218402898 | AB31: 1.24886297 | AC31: 1.280084544
G32: Land cost escalation | I32: % pa | S32: =IF(S$17>0,(1+S24)*R32,1) -> 1 | T32: 1.025 | U32: 1.050625 | V32: 1.076890625 | W32: 1.103812891 | X32: 1.131408213 | Y32: 1.159693418 | Z32: 1.188685754 | AA32: 1.218402898 | AB32: 1.24886297 | AC32: 1.280084544
G33: Constructed asset escalation | I33: % pa | S33: =IF(S$17>0,(1+S25)*R33,1) -> 1 | T33: 1.018725812 | U33: 1.037802281 | V33: 1.057235971 | W33: 1.077033574 | X33: 1.097201902 | Y33: 1.117747899 | Z33: 1.138678636 | AA33: 1.160001319 | AB33: 1.181723286 | AC33: 1.203852014
G34: Spare 1 escalation | I34: % pa | S34: =IF(S$17>0,(1+S27)*R34,1) -> 1 | T34: 1 | U34: 1 | V34: 1 | W34: 1 | X34: 1 | Y34: 1 | Z34: 1 | AA34: 1 | AB34: 1 | AC34: 1
G35: Administration cost escalation | I35: % pa | S35: =IF(S$17>0,(1+S26)*R35,1) -> 1 | T35: 1 | U35: 1 | V35: 1 | W35: 1 | X35: 1 | Y35: 1 | Z35: 1 | AA35: 1 | AB35: 1 | AC35: 1
G36: Revenue escalation | I36: % pa | S36: =IF(S$17>0,(1+RevEsc)*R36,1) -> 1 | T36: =IF(T$17>0,(1+RevEsc)*S36,1) -> 1 | U36: =IF(U$17>0,(1+RevEsc)*T36,1) -> 1 | V36: =IF(V$17>0,(1+RevEsc)*U36,1) -> 1 | W36: =IF(W$17>0,(1+RevEsc)*V36,1) -> 1 | X36: =IF(X$17>0,(1+RevEsc)*W36,1) -> 1 | Y36: =IF(Y$17>0,(1+RevEsc)*X36,1) -> 1 | Z36: =IF(Z$17>0,(1+RevEsc)*Y36,1) -> 1 | AA36: =IF(AA$17>0,(1+RevEsc)*Z36,1) -> 1 | AB36: =IF(AB$17>0,(1+RevEsc)*AA36,1) -> 1 | AC36: =IF(AC$17>0,(1+RevEsc)*AB36,1) -> 1
F39: Demand by Service catchment
G41: Total Demand | AO41: % Growth | AP41: Rank
G43: ='Input-Infra'!AA$17 -> Urban East | I43: EP | S43: 261140 | X43: 269823 | AC43: 282831 | AO43: =AC43/S43-1 -> 0.08306272498 | AP43: =RANK(AO43,$AO$43:$AO$47) -> 3
G44: ='Input-Infra'!AB$17 -> Urban North | I44: EP | S44: 364760 | X44: 390211 | AC44: 413567 | AO44: =AC44/S44-1 -> 0.1338057901 | AP44: =RANK(AO44,$AO$43:$AO$47) -> 1
G45: ='Input-Infra'!AC$17 -> Urban South | I45: EP | S45: 348928 | X45: 374505 | AC45: 395232 | AO45: 0.132703595 | AP45: 2
G46: ='Input-Infra'!AD$17 -> Urban West | I46: EP | S46: 242606 | X46: 247828 | AC46: 250728 | AO46: 0.03347814976 | AP46: 5
G47: ='Input-Infra'!AE$17 -> Fringe | I47: EP | S47: 18971 | X47: 19762 | AC47: 20305 | AO47: 0.07031785357 | AP47: 4
G49: Total | I49: EP | S49: =SUM(S43:S47) -> 1236405 | X49: =SUM(X43:X47) -> 1302129 | AC49: =SUM(AC43:AC47) -> 1362663 | AO49: =AC49/S49-1 -> 0.1021170248
G52: Existing Demand
G54: =G43 -> Urban East | I54: EP | K54: =S54 -> 261140 | M54: =S54 -> 261140 | S54: =IF(S$17=0,S43,0) -> 261140 | T54: 0 | U54: 0 | V54: 0 | W54: 0 | X54: 0 | Y54: 0 | Z54: 0 | AA54: 0 | AB54: 0 | AC54: 0
G55: =G44 -> Urban North | I55: EP | K55: =S55 -> 364760 | M55: =S55 -> 364760 | S55: =IF(S$17=0,S44,0) -> 364760 | T55: 0 | U55: 0 | V55: 0 | W55: 0 | X55: 0 | Y55: 0 | Z55: 0 | AA55: 0 | AB55: 0 | AC55: 0
G56: Urban South | I56: EP | K56: 348928 | M56: 348928 | S56: =IF(S$17=0,S45,0) -> 348928 | T56: 0 | U56: 0 | V56: 0 | W56: 0 | X56: 0 | Y56: 0 | Z56: 0 | AA56: 0 | AB56: 0 | AC56: 0
G57: Urban West | I57: EP | K57: 242606 | M57: 242606 | S57: =IF(S$17=0,S46,0) -> 242606 | T57: 0 | U57: 0 | V57: 0 | W57: 0 | X57: 0 | Y57: 0 | Z57: 0 | AA57: 0 | AB57: 0 | AC57: 0
G58: Fringe | I58: EP | K58: =S58 -> 18971 | M58: =S58 -> 18971 | S58: =IF(S$17=0,S47,0) -> 18971 | T58: 0 | U58: 0 | V58: 0 | W58: 0 | X58: 0 | Y58: 0 | Z58: 0 | AA58: 0 | AB58: 0 | AC58: 0
G60: Total | I60: EP | K60: =SUM(K54:K58) -> 1236405 | M60: =SUM(M54:M58) -> 1236405 | S60: =SUM(S54:S58) -> 1236405 | T60: 0 | U60: 0 | V60: 0 | W60: 0 | X60: 0 | Y60: 0 | Z60: 0 | AA60: 0 | AB60: 0 | AC60: 0
G62: Future Demand
G64: Year of Next Input
G65: =G54 -> Urban East | I65: EP | S65: =IF(S$9=MAX($S$9:$AM$9),S$9,SMALL((S$9:$AM$9)*ISNUMBER(S43:$AM43),SUM(IF((S$9:$AM$9)*ISNUMBER(S43:$AM43)=0,1,0))+1)) -> 5 | T65: =IF(T$9=MAX($S$9:$AM$9),T$9,SMALL((T$9:$AM$9)*ISNUMBER(T43:$AM43),SUM(IF((T$9:$AM$9)*ISNUMBER(T43:$AM43)=0,1,0))+1)) -> 5 | U65: =IF(U$9=MAX($S$9:$AM$9),U$9,SMALL((U$9:$AM$9)*ISNUMBER(U43:$AM43),SUM(IF((U$9:$AM$9)*ISNUMBER(U43:$AM43)=0,1,0))+1)) -> 5 | V65: =IF(V$9=MAX($S$9:$AM$9),V$9,SMALL((V$9:$AM$9)*ISNUMBER(V43:$AM43),SUM(IF((V$9:$AM$9)*ISNUMBER(V43:$AM43)=0,1,0))+1)) -> 5 | W65: =IF(W$9=MAX($S$9:$AM$9),W$9,SMALL((W$9:$AM$9)*ISNUMBER(W43:$AM43),SUM(IF((W$9:$AM$9)*ISNUMBER(W43:$AM43)=0,1,0))+1)) -> 5 | X65: =IF(X$9=MAX($S$9:$AM$9),X$9,SMALL((X$9:$AM$9)*ISNUMBER(X43:$AM43),SUM(IF((X$9:$AM$9)*ISNUMBER(X43:$AM43)=0,1,0))+1)) -> 5 | Y65: =IF(Y$9=MAX($S$9:$AM$9),Y$9,SMALL((Y$9:$AM$9)*ISNUMBER(Y43:$AM43),SUM(IF((Y$9:$AM$9)*ISNUMBER(Y43:$AM43)=0,1,0))+1)) -> 10 | Z65: =IF(Z$9=MAX($S$9:$AM$9),Z$9,SMALL((Z$9:$AM$9)*ISNUMBER(Z43:$AM43),SUM(IF((Z$9:$AM$9)*ISNUMBER(Z43:$AM43)=0,1,0))+1)) -> 10 | AA65: =IF(AA$9=MAX($S$9:$AM$9),AA$9,SMALL((AA$9:$AM$9)*ISNUMBER(AA43:$AM43),SUM(IF((AA$9:$AM$9)*ISNUMBER(AA43:$AM43)=0,1,0))+1)) -> 10 | AB65: =IF(AB$9=MAX($S$9:$AM$9),AB$9,SMALL((AB$9:$AM$9)*ISNUMBER(AB43:$AM43),SUM(IF((AB$9:$AM$9)*ISNUMBER(AB43:$AM43)=0,1,0))+1)) -> 10 | AC65: =IF(AC$9=MAX($S$9:$AM$9),AC$9,SMALL((AC$9:$AM$9)*ISNUMBER(AC43:$AM43),SUM(IF((AC$9:$AM$9)*ISNUMBER(AC43:$AM43)=0,1,0))+1)) -> 10
G66: =G55 -> Urban North | I66: EP | S66: =IF(S$9=MAX($S$9:$AM$9),S$9,SMALL((S$9:$AM$9)*ISNUMBER(S44:$AM44),SUM(IF((S$9:$AM$9)*ISNUMBER(S44:$AM44)=0,1,0))+1)) -> 5 | T66: =IF(T$9=MAX($S$9:$AM$9),T$9,SMALL((T$9:$AM$9)*ISNUMBER(T44:$AM44),SUM(IF((T$9:$AM$9)*ISNUMBER(T44:$AM44)=0,1,0))+1)) -> 5 | U66: =IF(U$9=MAX($S$9:$AM$9),U$9,SMALL((U$9:$AM$9)*ISNUMBER(U44:$AM44),SUM(IF((U$9:$AM$9)*ISNUMBER(U44:$AM44)=0,1,0))+1)) -> 5 | V66: =IF(V$9=MAX($S$9:$AM$9),V$9,SMALL((V$9:$AM$9)*ISNUMBER(V44:$AM44),SUM(IF((V$9:$AM$9)*ISNUMBER(V44:$AM44)=0,1,0))+1)) -> 5 | W66: =IF(W$9=MAX($S$9:$AM$9),W$9,SMALL((W$9:$AM$9)*ISNUMBER(W44:$AM44),SUM(IF((W$9:$AM$9)*ISNUMBER(W44:$AM44)=0,1,0))+1)) -> 5 | X66: =IF(X$9=MAX($S$9:$AM$9),X$9,SMALL((X$9:$AM$9)*ISNUMBER(X44:$AM44),SUM(IF((X$9:$AM$9)*ISNUMBER(X44:$AM44)=0,1,0))+1)) -> 5 | Y66: =IF(Y$9=MAX($S$9:$AM$9),Y$9,SMALL((Y$9:$AM$9)*ISNUMBER(Y44:$AM44),SUM(IF((Y$9:$AM$9)*ISNUMBER(Y44:$AM44)=0,1,0))+1)) -> 10 | Z66: =IF(Z$9=MAX($S$9:$AM$9),Z$9,SMALL((Z$9:$AM$9)*ISNUMBER(Z44:$AM44),SUM(IF((Z$9:$AM$9)*ISNUMBER(Z44:$AM44)=0,1,0))+1)) -> 10 | AA66: =IF(AA$9=MAX($S$9:$AM$9),AA$9,SMALL((AA$9:$AM$9)*ISNUMBER(AA44:$AM44),SUM(IF((AA$9:$AM$9)*ISNUMBER(AA44:$AM44)=0,1,0))+1)) -> 10 | AB66: =IF(AB$9=MAX($S$9:$AM$9),AB$9,SMALL((AB$9:$AM$9)*ISNUMBER(AB44:$AM44),SUM(IF((AB$9:$AM$9)*ISNUMBER(AB44:$AM44)=0,1,0))+1)) -> 10 | AC66: =IF(AC$9=MAX($S$9:$AM$9),AC$9,SMALL((AC$9:$AM$9)*ISNUMBER(AC44:$AM44),SUM(IF((AC$9:$AM$9)*ISNUMBER(AC44:$AM44)=0,1,0))+1)) -> 10
G67: Urban South | I67: EP | S67: =IF(S$9=MAX($S$9:$AM$9),S$9,SMALL((S$9:$AM$9)*ISNUMBER(S45:$AM45),SUM(IF((S$9:$AM$9)*ISNUMBER(S45:$AM45)=0,1,0))+1)) -> 5 | T67: =IF(T$9=MAX($S$9:$AM$9),T$9,SMALL((T$9:$AM$9)*ISNUMBER(T45:$AM45),SUM(IF((T$9:$AM$9)*ISNUMBER(T45:$AM45)=0,1,0))+1)) -> 5 | U67: =IF(U$9=MAX($S$9:$AM$9),U$9,SMALL((U$9:$AM$9)*ISNUMBER(U45:$AM45),SUM(IF((U$9:$AM$9)*ISNUMBER(U45:$AM45)=0,1,0))+1)) -> 5 | V67: =IF(V$9=MAX($S$9:$AM$9),V$9,SMALL((V$9:$AM$9)*ISNUMBER(V45:$AM45),SUM(IF((V$9:$AM$9)*ISNUMBER(V45:$AM45)=0,1,0))+1)) -> 5 | W67: =IF(W$9=MAX($S$9:$AM$9),W$9,SMALL((W$9:$AM$9)*ISNUMBER(W45:$AM45),SUM(IF((W$9:$AM$9)*ISNUMBER(W45:$AM45)=0,1,0))+1)) -> 5 | X67: =IF(X$9=MAX($S$9:$AM$9),X$9,SMALL((X$9:$AM$9)*ISNUMBER(X45:$AM45),SUM(IF((X$9:$AM$9)*ISNUMBER(X45:$AM45)=0,1,0))+1)) -> 5 | Y67: =IF(Y$9=MAX($S$9:$AM$9),Y$9,SMALL((Y$9:$AM$9)*ISNUMBER(Y45:$AM45),SUM(IF((Y$9:$AM$9)*ISNUMBER(Y45:$AM45)=0,1,0))+1)) -> 10 | Z67: =IF(Z$9=MAX($S$9:$AM$9),Z$9,SMALL((Z$9:$AM$9)*ISNUMBER(Z45:$AM45),SUM(IF((Z$9:$AM$9)*ISNUMBER(Z45:$AM45)=0,1,0))+1)) -> 10 | AA67: =IF(AA$9=MAX($S$9:$AM$9),AA$9,SMALL((AA$9:$AM$9)*ISNUMBER(AA45:$AM45),SUM(IF((AA$9:$AM$9)*ISNUMBER(AA45:$AM45)=0,1,0))+1)) -> 10 | AB67: =IF(AB$9=MAX($S$9:$AM$9),AB$9,SMALL((AB$9:$AM$9)*ISNUMBER(AB45:$AM45),SUM(IF((AB$9:$AM$9)*ISNUMBER(AB45:$AM45)=0,1,0))+1)) -> 10 | AC67: =IF(AC$9=MAX($S$9:$AM$9),AC$9,SMALL((AC$9:$AM$9)*ISNUMBER(AC45:$AM45),SUM(IF((AC$9:$AM$9)*ISNUMBER(AC45:$AM45)=0,1,0))+1)) -> 10
G68: Urban West | I68: EP | S68: =IF(S$9=MAX($S$9:$AM$9),S$9,SMALL((S$9:$AM$9)*ISNUMBER(S46:$AM46),SUM(IF((S$9:$AM$9)*ISNUMBER(S46:$AM46)=0,1,0))+1)) -> 5 | T68: =IF(T$9=MAX($S$9:$AM$9),T$9,SMALL((T$9:$AM$9)*ISNUMBER(T46:$AM46),SUM(IF((T$9:$AM$9)*ISNUMBER(T46:$AM46)=0,1,0))+1)) -> 5 | U68: =IF(U$9=MAX($S$9:$AM$9),U$9,SMALL((U$9:$AM$9)*ISNUMBER(U46:$AM46),SUM(IF((U$9:$AM$9)*ISNUMBER(U46:$AM46)=0,1,0))+1)) -> 5 | V68: =IF(V$9=MAX($S$9:$AM$9),V$9,SMALL((V$9:$AM$9)*ISNUMBER(V46:$AM46),SUM(IF((V$9:$AM$9)*ISNUMBER(V46:$AM46)=0,1,0))+1)) -> 5 | W68: =IF(W$9=MAX($S$9:$AM$9),W$9,SMALL((W$9:$AM$9)*ISNUMBER(W46:$AM46),SUM(IF((W$9:$AM$9)*ISNUMBER(W46:$AM46)=0,1,0))+1)) -> 5 | X68: =IF(X$9=MAX($S$9:$AM$9),X$9,SMALL((X$9:$AM$9)*ISNUMBER(X46:$AM46),SUM(IF((X$9:$AM$9)*ISNUMBER(X46:$AM46)=0,1,0))+1)) -> 5 | Y68: =IF(Y$9=MAX($S$9:$AM$9),Y$9,SMALL((Y$9:$AM$9)*ISNUMBER(Y46:$AM46),SUM(IF((Y$9:$AM$9)*ISNUMBER(Y46:$AM46)=0,1,0))+1)) -> 10 | Z68: =IF(Z$9=MAX($S$9:$AM$9),Z$9,SMALL((Z$9:$AM$9)*ISNUMBER(Z46:$AM46),SUM(IF((Z$9:$AM$9)*ISNUMBER(Z46:$AM46)=0,1,0))+1)) -> 10 | AA68: =IF(AA$9=MAX($S$9:$AM$9),AA$9,SMALL((AA$9:$AM$9)*ISNUMBER(AA46:$AM46),SUM(IF((AA$9:$AM$9)*ISNUMBER(AA46:$AM46)=0,1,0))+1)) -> 10 | AB68: =IF(AB$9=MAX($S$9:$AM$9),AB$9,SMALL((AB$9:$AM$9)*ISNUMBER(AB46:$AM46),SUM(IF((AB$9:$AM$9)*ISNUMBER(AB46:$AM46)=0,1,0))+1)) -> 10 | AC68: =IF(AC$9=MAX($S$9:$AM$9),AC$9,SMALL((AC$9:$AM$9)*ISNUMBER(AC46:$AM46),SUM(IF((AC$9:$AM$9)*ISNUMBER(AC46:$AM46)=0,1,0))+1)) -> 10
G69: Fringe | I69: EP | S69: =IF(S$9=MAX($S$9:$AM$9),S$9,SMALL((S$9:$AM$9)*ISNUMBER(S47:$AM47),SUM(IF((S$9:$AM$9)*ISNUMBER(S47:$AM47)=0,1,0))+1)) -> 5 | T69: =IF(T$9=MAX($S$9:$AM$9),T$9,SMALL((T$9:$AM$9)*ISNUMBER(T47:$AM47),SUM(IF((T$9:$AM$9)*ISNUMBER(T47:$AM47)=0,1,0))+1)) -> 5 | U69: =IF(U$9=MAX($S$9:$AM$9),U$9,SMALL((U$9:$AM$9)*ISNUMBER(U47:$AM47),SUM(IF((U$9:$AM$9)*ISNUMBER(U47:$AM47)=0,1,0))+1)) -> 5 | V69: =IF(V$9=MAX($S$9:$AM$9),V$9,SMALL((V$9:$AM$9)*ISNUMBER(V47:$AM47),SUM(IF((V$9:$AM$9)*ISNUMBER(V47:$AM47)=0,1,0))+1)) -> 5 | W69: =IF(W$9=MAX($S$9:$AM$9),W$9,SMALL((W$9:$AM$9)*ISNUMBER(W47:$AM47),SUM(IF((W$9:$AM$9)*ISNUMBER(W47:$AM47)=0,1,0))+1)) -> 5 | X69: =IF(X$9=MAX($S$9:$AM$9),X$9,SMALL((X$9:$AM$9)*ISNUMBER(X47:$AM47),SUM(IF((X$9:$AM$9)*ISNUMBER(X47:$AM47)=0,1,0))+1)) -> 5 | Y69: =IF(Y$9=MAX($S$9:$AM$9),Y$9,SMALL((Y$9:$AM$9)*ISNUMBER(Y47:$AM47),SUM(IF((Y$9:$AM$9)*ISNUMBER(Y47:$AM47)=0,1,0))+1)) -> 10 | Z69: =IF(Z$9=MAX($S$9:$AM$9),Z$9,SMALL((Z$9:$AM$9)*ISNUMBER(Z47:$AM47),SUM(IF((Z$9:$AM$9)*ISNUMBER(Z47:$AM47)=0,1,0))+1)) -> 10 | AA69: =IF(AA$9=MAX($S$9:$AM$9),AA$9,SMALL((AA$9:$AM$9)*ISNUMBER(AA47:$AM47),SUM(IF((AA$9:$AM$9)*ISNUMBER(AA47:$AM47)=0,1,0))+1)) -> 10 | AB69: =IF(AB$9=MAX($S$9:$AM$9),AB$9,SMALL((AB$9:$AM$9)*ISNUMBER(AB47:$AM47),SUM(IF((AB$9:$AM$9)*ISNUMBER(AB47:$AM47)=0,1,0))+1)) -> 10 | AC69: =IF(AC$9=MAX($S$9:$AM$9),AC$9,SMALL((AC$9:$AM$9)*ISNUMBER(AC47:$AM47),SUM(IF((AC$9:$AM$9)*ISNUMBER(AC47:$AM47)=0,1,0))+1)) -> 10
G71: Year of Previous Input
G72: =G65 -> Urban East | I72: EP | S72: =IFERROR(SMALL(($R$9:S$9)*ISNUMBER($R43:S43),SUM(IF(($R$9:S$9)*ISNUMBER($R43:S43)<S$9,1,0))),S$9) -> 0 | T72: =IFERROR(SMALL(($R$9:T$9)*ISNUMBER($R43:T43),SUM(IF(($R$9:T$9)*ISNUMBER($R43:T43)<T$9,1,0))),T$9) -> 0 | U72: =IFERROR(SMALL(($R$9:U$9)*ISNUMBER($R43:U43),SUM(IF(($R$9:U$9)*ISNUMBER($R43:U43)<U$9,1,0))),U$9) -> 0 | V72: =IFERROR(SMALL(($R$9:V$9)*ISNUMBER($R43:V43),SUM(IF(($R$9:V$9)*ISNUMBER($R43:V43)<V$9,1,0))),V$9) -> 0 | W72: =IFERROR(SMALL(($R$9:W$9)*ISNUMBER($R43:W43),SUM(IF(($R$9:W$9)*ISNUMBER($R43:W43)<W$9,1,0))),W$9) -> 0 | X72: =IFERROR(SMALL(($R$9:X$9)*ISNUMBER($R43:X43),SUM(IF(($R$9:X$9)*ISNUMBER($R43:X43)<X$9,1,0))),X$9) -> 0 | Y72: =IFERROR(SMALL(($R$9:Y$9)*ISNUMBER($R43:Y43),SUM(IF(($R$9:Y$9)*ISNUMBER($R43:Y43)<Y$9,1,0))),Y$9) -> 5 | Z72: =IFERROR(SMALL(($R$9:Z$9)*ISNUMBER($R43:Z43),SUM(IF(($R$9:Z$9)*ISNUMBER($R43:Z43)<Z$9,1,0))),Z$9) -> 5 | AA72: =IFERROR(SMALL(($R$9:AA$9)*ISNUMBER($R43:AA43),SUM(IF(($R$9:AA$9)*ISNUMBER($R43:AA43)<AA$9,1,0))),AA$9) -> 5 | AB72: =IFERROR(SMALL(($R$9:AB$9)*ISNUMBER($R43:AB43),SUM(IF(($R$9:AB$9)*ISNUMBER($R43:AB43)<AB$9,1,0))),AB$9) -> 5 | AC72: =IFERROR(SMALL(($R$9:AC$9)*ISNUMBER($R43:AC43),SUM(IF(($R$9:AC$9)*ISNUMBER($R43:AC43)<AC$9,1,0))),AC$9) -> 5
G73: =G66 -> Urban North | I73: EP | S73: =IFERROR(SMALL(($R$9:S$9)*ISNUMBER($R44:S44),SUM(IF(($R$9:S$9)*ISNUMBER($R44:S44)<S$9,1,0))),S$9) -> 0 | T73: =IFERROR(SMALL(($R$9:T$9)*ISNUMBER($R44:T44),SUM(IF(($R$9:T$9)*ISNUMBER($R44:T44)<T$9,1,0))),T$9) -> 0 | U73: =IFERROR(SMALL(($R$9:U$9)*ISNUMBER($R44:U44),SUM(IF(($R$9:U$9)*ISNUMBER($R44:U44)<U$9,1,0))),U$9) -> 0 | V73: =IFERROR(SMALL(($R$9:V$9)*ISNUMBER($R44:V44),SUM(IF(($R$9:V$9)*ISNUMBER($R44:V44)<V$9,1,0))),V$9) -> 0 | W73: =IFERROR(SMALL(($R$9:W$9)*ISNUMBER($R44:W44),SUM(IF(($R$9:W$9)*ISNUMBER($R44:W44)<W$9,1,0))),W$9) -> 0 | X73: =IFERROR(SMALL(($R$9:X$9)*ISNUMBER($R44:X44),SUM(IF(($R$9:X$9)*ISNUMBER($R44:X44)<X$9,1,0))),X$9) -> 0 | Y73: =IFERROR(SMALL(($R$9:Y$9)*ISNUMBER($R44:Y44),SUM(IF(($R$9:Y$9)*ISNUMBER($R44:Y44)<Y$9,1,0))),Y$9) -> 5 | Z73: =IFERROR(SMALL(($R$9:Z$9)*ISNUMBER($R44:Z44),SUM(IF(($R$9:Z$9)*ISNUMBER($R44:Z44)<Z$9,1,0))),Z$9) -> 5 | AA73: =IFERROR(SMALL(($R$9:AA$9)*ISNUMBER($R44:AA44),SUM(IF(($R$9:AA$9)*ISNUMBER($R44:AA44)<AA$9,1,0))),AA$9) -> 5 | AB73: =IFERROR(SMALL(($R$9:AB$9)*ISNUMBER($R44:AB44),SUM(IF(($R$9:AB$9)*ISNUMBER($R44:AB44)<AB$9,1,0))),AB$9) -> 5 | AC73: =IFERROR(SMALL(($R$9:AC$9)*ISNUMBER($R44:AC44),SUM(IF(($R$9:AC$9)*ISNUMBER($R44:AC44)<AC$9,1,0))),AC$9) -> 5
G74: Urban South | I74: EP | S74: =IFERROR(SMALL(($R$9:S$9)*ISNUMBER($R45:S45),SUM(IF(($R$9:S$9)*ISNUMBER($R45:S45)<S$9,1,0))),S$9) -> 0 | T74: =IFERROR(SMALL(($R$9:T$9)*ISNUMBER($R45:T45),SUM(IF(($R$9:T$9)*ISNUMBER($R45:T45)<T$9,1,0))),T$9) -> 0 | U74: =IFERROR(SMALL(($R$9:U$9)*ISNUMBER($R45:U45),SUM(IF(($R$9:U$9)*ISNUMBER($R45:U45)<U$9,1,0))),U$9) -> 0 | V74: =IFERROR(SMALL(($R$9:V$9)*ISNUMBER($R45:V45),SUM(IF(($R$9:V$9)*ISNUMBER($R45:V45)<V$9,1,0))),V$9) -> 0 | W74: =IFERROR(SMALL(($R$9:W$9)*ISNUMBER($R45:W45),SUM(IF(($R$9:W$9)*ISNUMBER($R45:W45)<W$9,1,0))),W$9) -> 0 | X74: =IFERROR(SMALL(($R$9:X$9)*ISNUMBER($R45:X45),SUM(IF(($R$9:X$9)*ISNUMBER($R45:X45)<X$9,1,0))),X$9) -> 0 | Y74: =IFERROR(SMALL(($R$9:Y$9)*ISNUMBER($R45:Y45),SUM(IF(($R$9:Y$9)*ISNUMBER($R45:Y45)<Y$9,1,0))),Y$9) -> 5 | Z74: =IFERROR(SMALL(($R$9:Z$9)*ISNUMBER($R45:Z45),SUM(IF(($R$9:Z$9)*ISNUMBER($R45:Z45)<Z$9,1,0))),Z$9) -> 5 | AA74: =IFERROR(SMALL(($R$9:AA$9)*ISNUMBER($R45:AA45),SUM(IF(($R$9:AA$9)*ISNUMBER($R45:AA45)<AA$9,1,0))),AA$9) -> 5 | AB74: =IFERROR(SMALL(($R$9:AB$9)*ISNUMBER($R45:AB45),SUM(IF(($R$9:AB$9)*ISNUMBER($R45:AB45)<AB$9,1,0))),AB$9) -> 5 | AC74: =IFERROR(SMALL(($R$9:AC$9)*ISNUMBER($R45:AC45),SUM(IF(($R$9:AC$9)*ISNUMBER($R45:AC45)<AC$9,1,0))),AC$9) -> 5
G75: Urban West | I75: EP | S75: =IFERROR(SMALL(($R$9:S$9)*ISNUMBER($R46:S46),SUM(IF(($R$9:S$9)*ISNUMBER($R46:S46)<S$9,1,0))),S$9) -> 0 | T75: =IFERROR(SMALL(($R$9:T$9)*ISNUMBER($R46:T46),SUM(IF(($R$9:T$9)*ISNUMBER($R46:T46)<T$9,1,0))),T$9) -> 0 | U75: =IFERROR(SMALL(($R$9:U$9)*ISNUMBER($R46:U46),SUM(IF(($R$9:U$9)*ISNUMBER($R46:U46)<U$9,1,0))),U$9) -> 0 | V75: =IFERROR(SMALL(($R$9:V$9)*ISNUMBER($R46:V46),SUM(IF(($R$9:V$9)*ISNUMBER($R46:V46)<V$9,1,0))),V$9) -> 0 | W75: =IFERROR(SMALL(($R$9:W$9)*ISNUMBER($R46:W46),SUM(IF(($R$9:W$9)*ISNUMBER($R46:W46)<W$9,1,0))),W$9) -> 0 | X75: =IFERROR(SMALL(($R$9:X$9)*ISNUMBER($R46:X46),SUM(IF(($R$9:X$9)*ISNUMBER($R46:X46)<X$9,1,0))),X$9) -> 0 | Y75: =IFERROR(SMALL(($R$9:Y$9)*ISNUMBER($R46:Y46),SUM(IF(($R$9:Y$9)*ISNUMBER($R46:Y46)<Y$9,1,0))),Y$9) -> 5 | Z75: =IFERROR(SMALL(($R$9:Z$9)*ISNUMBER($R46:Z46),SUM(IF(($R$9:Z$9)*ISNUMBER($R46:Z46)<Z$9,1,0))),Z$9) -> 5 | AA75: =IFERROR(SMALL(($R$9:AA$9)*ISNUMBER($R46:AA46),SUM(IF(($R$9:AA$9)*ISNUMBER($R46:AA46)<AA$9,1,0))),AA$9) -> 5 | AB75: =IFERROR(SMALL(($R$9:AB$9)*ISNUMBER($R46:AB46),SUM(IF(($R$9:AB$9)*ISNUMBER($R46:AB46)<AB$9,1,0))),AB$9) -> 5 | AC75: =IFERROR(SMALL(($R$9:AC$9)*ISNUMBER($R46:AC46),SUM(IF(($R$9:AC$9)*ISNUMBER($R46:AC46)<AC$9,1,0))),AC$9) -> 5
G76: Fringe | I76: EP | S76: =IFERROR(SMALL(($R$9:S$9)*ISNUMBER($R47:S47),SUM(IF(($R$9:S$9)*ISNUMBER($R47:S47)<S$9,1,0))),S$9) -> 0 | T76: =IFERROR(SMALL(($R$9:T$9)*ISNUMBER($R47:T47),SUM(IF(($R$9:T$9)*ISNUMBER($R47:T47)<T$9,1,0))),T$9) -> 0 | U76: =IFERROR(SMALL(($R$9:U$9)*ISNUMBER($R47:U47),SUM(IF(($R$9:U$9)*ISNUMBER($R47:U47)<U$9,1,0))),U$9) -> 0 | V76: =IFERROR(SMALL(($R$9:V$9)*ISNUMBER($R47:V47),SUM(IF(($R$9:V$9)*ISNUMBER($R47:V47)<V$9,1,0))),V$9) -> 0 | W76: =IFERROR(SMALL(($R$9:W$9)*ISNUMBER($R47:W47),SUM(IF(($R$9:W$9)*ISNUMBER($R47:W47)<W$9,1,0))),W$9) -> 0 | X76: =IFERROR(SMALL(($R$9:X$9)*ISNUMBER($R47:X47),SUM(IF(($R$9:X$9)*ISNUMBER($R47:X47)<X$9,1,0))),X$9) -> 0 | Y76: =IFERROR(SMALL(($R$9:Y$9)*ISNUMBER($R47:Y47),SUM(IF(($R$9:Y$9)*ISNUMBER($R47:Y47)<Y$9,1,0))),Y$9) -> 5 | Z76: =IFERROR(SMALL(($R$9:Z$9)*ISNUMBER($R47:Z47),SUM(IF(($R$9:Z$9)*ISNUMBER($R47:Z47)<Z$9,1,0))),Z$9) -> 5 | AA76: =IFERROR(SMALL(($R$9:AA$9)*ISNUMBER($R47:AA47),SUM(IF(($R$9:AA$9)*ISNUMBER($R47:AA47)<AA$9,1,0))),AA$9) -> 5 | AB76: =IFERROR(SMALL(($R$9:AB$9)*ISNUMBER($R47:AB47),SUM(IF(($R$9:AB$9)*ISNUMBER($R47:AB47)<AB$9,1,0))),AB$9) -> 5 | AC76: =IFERROR(SMALL(($R$9:AC$9)*ISNUMBER($R47:AC47),SUM(IF(($R$9:AC$9)*ISNUMBER($R47:AC47)<AC$9,1,0))),AC$9) -> 5
G78: Annual Demand
G79: =G54 -> Urban East | I79: EP | K79: =NPV(WACC_real,T79:AC79) -> 15577.28123 | M79: =SUM(T79:AC79) -> 21691 | S79: =IF(S$9=MIN($S$9:$AM$9),0,(INDEX($S43:$AM43,,S65+1)-INDEX($S43:$AM43,,S72+1))/(S65-S72)) -> 0 | T79: 1736.6 | U79: 1736.6 | V79: 1736.6 | W79: 1736.6 | X79: 1736.6 | Y79: 2601.6 | Z79: 2601.6 | AA79: 2601.6 | AB79: 2601.6 | AC79: 2601.6
G80: =G55 -> Urban North | I80: EP | K80: =NPV(WACC_real,T80:AC80) -> 36296.82245 | M80: =SUM(T80:AC80) -> 48807 | S80: =IF(S$9=MIN($S$9:$AM$9),0,(INDEX($S44:$AM44,,S66+1)-INDEX($S44:$AM44,,S73+1))/(S66-S73)) -> 0 | T80: 5090.2 | U80: 5090.2 | V80: 5090.2 | W80: 5090.2 | X80: 5090.2 | Y80: 4671.2 | Z80: 4671.2 | AA80: 4671.2 | AB80: 4671.2 | AC80: 4671.2
G81: Urban South | I81: EP | K81: =NPV(WACC_real,T81:AC81) -> 34737.03995 | M81: 46304 | S81: =IF(S$9=MIN($S$9:$AM$9),0,(INDEX($S45:$AM45,,S67+1)-INDEX($S45:$AM45,,S74+1))/(S67-S74)) -> 0 | T81: 5115.4 | U81: 5115.4 | V81: 5115.4 | W81: 5115.4 | X81: 5115.4 | Y81: 4145.4 | Z81: 4145.4 | AA81: 4145.4 | AB81: 4145.4 | AC81: 4145.4
G82: Urban West | I82: EP | K82: =NPV(WACC_real,T82:AC82) -> 6248.132514 | M82: 8122 | S82: =IF(S$9=MIN($S$9:$AM$9),0,(INDEX($S46:$AM46,,S68+1)-INDEX($S46:$AM46,,S75+1))/(S68-S75)) -> 0 | T82: 1044.4 | U82: 1044.4 | V82: 1044.4 | W82: 1044.4 | X82: 1044.4 | Y82: 580 | Z82: 580 | AA82: 580 | AB82: 580 | AC82: 580
G83: Fringe | I83: EP | K83: =NPV(WACC_real,T83:AC83) -> 1012.170531 | M83: 1334 | S83: =IF(S$9=MIN($S$9:$AM$9),0,(INDEX($S47:$AM47,,S69+1)-INDEX($S47:$AM47,,S76+1))/(S69-S76)) -> 0 | T83: 158.2 | U83: 158.2 | V83: 158.2 | W83: 158.2 | X83: 158.2 | Y83: 108.6 | Z83: 108.6 | AA83: 108.6 | AB83: 108.6 | AC83: 108.6
G85: Total | I85: EP | K85: =SUM(K79:K83) -> 93871.44667 | M85: =SUM(M79:M83) -> 126258 | S85: =SUM(S79:S83) -> 0 | T85: 13144.8 | U85: 13144.8 | V85: 13144.8 | W85: 13144.8 | X85: 13144.8 | Y85: 12106.8 | Z85: 12106.8 | AA85: 12106.8 | AB85: 12106.8 | AC85: 12106.8
G87: Future Demand as a percentage of Ultimate Demand | I87: %
G89: Cumulative Total
G91: =G79 -> Urban East | I91: EP | K91: =K54+K79 -> 276717.2812 | M91: =M54+M79 -> 282831 | N91: =RANK(K91,$K$91:$K$95) -> 3 | S91: =IF(S$17=0,S54,R91+S79) -> 261140 | T91: 262876.6 | U91: 264613.2 | V91: 266349.8 | W91: 268086.4 | X91: 269823 | Y91: 272424.6 | Z91: 275026.2 | AA91: 277627.8 | AB91: 280229.4 | AC91: 282831
G92: =G80 -> Urban North | I92: EP | K92: =K55+K80 -> 401056.8224 | M92: =M55+M80 -> 413567 | N92: =RANK(K92,$K$91:$K$95) -> 1 | S92: =IF(S$17=0,S55,R92+S80) -> 364760 | T92: 369850.2 | U92: 374940.4 | V92: 380030.6 | W92: 385120.8 | X92: 390211 | Y92: 394882.2 | Z92: 399553.4 | AA92: 404224.6 | AB92: 408895.8 | AC92: 413567
G93: Urban South | I93: EP | K93: 383665.0399 | M93: 395232 | S93: =IF(S$17=0,S56,R93+S81) -> 348928 | T93: =IF(T$17=0,T56,S93+T81) -> 354043.4 | U93: =IF(U$17=0,U56,T93+U81) -> 359158.8 | V93: =IF(V$17=0,V56,U93+V81) -> 364274.2 | W93: =IF(W$17=0,W56,V93+W81) -> 369389.6 | X93: =IF(X$17=0,X56,W93+X81) -> 374505 | Y93: =IF(Y$17=0,Y56,X93+Y81) -> 378650.4 | Z93: =IF(Z$17=0,Z56,Y93+Z81) -> 382795.8 | AA93: =IF(AA$17=0,AA56,Z93+AA81) -> 386941.2 | AB93: =IF(AB$17=0,AB56,AA93+AB81) -> 391086.6 | AC93: =IF(AC$17=0,AC56,AB93+AC81) -> 395232
G94: Urban West | I94: EP | K94: 248854.1325 | M94: 250728 | S94: 242606 | T94: 243650.4 | U94: 244694.8 | V94: 245739.2 | W94: 246783.6 | X94: 247828 | Y94: 248408 | Z94: 248988 | AA94: 249568 | AB94: 250148 | AC94: 250728
G95: Fringe | I95: EP | K95: 19983.17053 | M95: 20305 | N95: =RANK(K95,$K$91:$K$95) -> 5 | S95: =IF(S$17=0,S58,R95+S83) -> 18971 | T95: 19129.2 | U95: 19287.4 | V95: 19445.6 | W95: 19603.8 | X95: 19762 | Y95: 19870.6 | Z95: 19979.2 | AA95: 20087.8 | AB95: 20196.4 | AC95: 20305
G97: Total | I97: EP | K97: =SUM(K91:K95) -> 1330276.447 | M97: =SUM(M91:M95) -> 1362663 | S97: =SUM(S91:S95) -> 1236405 | T97: 1249549.8 | U97: 1262694.6 | V97: 1275839.4 | W97: 1288984.2 | X97: 1302129 | Y97: 1314235.8 | Z97: 1326342.6 | AA97: 1338449.4 | AB97: 1350556.2 | AC97: 1362663
G99: Internal checks | S99: =IF(S49>0,ROUND(S49-S97,IntAccuracy),0) -> 0 | T99: 0 | U99: 0 | V99: 0 | W99: 0 | X99: 0 | Y99: 0 | Z99: 0 | AA99: 0 | AB99: 0 | AC99: 0
F101: End of Page

Sheet Calculations
F19: =MID(CELL("filename",A15),FIND("]",CELL("filename",A15))+1,256) -> Calculations

Sheet Nominal Cost (Avg)
F2: Brisbane City Council
F3: ='Input-Gen'!$F$3 -> Schedule of Works Model - Land for community facilities network
F5: Allocation | G5: NPV of Total Cost
G6: =IF(BaseCaseCheck=0,BaseCase,NotBaseCase) -> Please Note: Model is not currently applying Base Case parameter values
G7: =IF(Integrity=0,IntOK,IntErr) -> 
G9: Period Number | K9: ="NPV as at" & " " & TEXT(Model_Start_Date-1,"dd-mmm-yyyy") -> NPV as at 30-Jun-2016 | M9: Difference between Input Value & Nominal Value | O9: Check | Q9: Total Nominal Value | S9: =ForecastPeriod -> 0 | T9: 1 | U9: 2 | V9: 3 | W9: 4 | X9: 5 | Y9: 6 | Z9: 7 | AA9: 8 | AB9: 9 | AC9: 10 | AD9: 0 | AE9: 0 | AF9: 0 | AG9: 0 | AH9: 0 | AI9: 0 | AJ9: 0 | AK9: 0 | AL9: 0 | AM9: 0
G10: Period Beginning Date | S10: =FY_Begin -> 2015-07-01 | T10: =FY_Begin -> 2016-07-01 | U10: 2017-07-01 | V10: 2018-07-01 | W10: 2019-07-01 | X10: 2020-07-01 | Y10: 2021-07-01 | Z10: 2022-07-01 | AA10: 2023-07-01 | AB10: 2024-07-01 | AC10: 2025-07-01
G11: Period Ending Date | S11: =FY_End -> 2016-06-30 | T11: =FY_End -> 2017-06-30 | U11: 2018-06-30 | V11: 2019-06-30 | W11: 2020-06-30 | X11: 2021-06-30 | Y11: 2022-06-30 | Z11: 2023-06-30 | AA11: 2024-06-30 | AB11: 2025-06-30 | AC11: 2026-06-30
F15: Indexation
G17: Cost and Revenue Indices
G18: Consumer Price Index (CPI) | I18: # | S18: ='Input-Time Series'!S31 -> 1 | T18: ='Input-Time Series'!T31 -> 1.025 | U18: ='Input-Time Series'!U31 -> 1.050625 | V18: ='Input-Time Series'!V31 -> 1.076890625 | W18: ='Input-Time Series'!W31 -> 1.103812891 | X18: ='Input-Time Series'!X31 -> 1.131408213 | Y18: ='Input-Time Series'!Y31 -> 1.159693418 | Z18: ='Input-Time Series'!Z31 -> 1.188685754 | AA18: ='Input-Time Series'!AA31 -> 1.218402898 | AB18: ='Input-Time Series'!AB31 -> 1.24886297 | AC18: ='Input-Time Series'!AC31 -> 1.280084544
G19: Land cost escalation | S19: ='Input-Time Series'!S32 -> 1 | T19: ='Input-Time Series'!T32 -> 1.025 | U19: ='Input-Time Series'!U32 -> 1.050625 | V19: ='Input-Time Series'!V32 -> 1.076890625 | W19: ='Input-Time Series'!W32 -> 1.103812891 | X19: ='Input-Time Series'!X32 -> 1.131408213 | Y19: ='Input-Time Series'!Y32 -> 1.159693418 | Z19: ='Input-Time Series'!Z32 -> 1.188685754 | AA19: ='Input-Time Series'!AA32 -> 1.218402898 | AB19: ='Input-Time Series'!AB32 -> 1.24886297 | AC19: ='Input-Time Series'!AC32 -> 1.280084544
G20: Constructed Asset escalation | I20: # | S20: ='Input-Time Series'!S33 -> 1 | T20: ='Input-Time Series'!T33 -> 1.018725812 | U20: ='Input-Time Series'!U33 -> 1.037802281 | V20: ='Input-Time Series'!V33 -> 1.057235971 | W20: ='Input-Time Series'!W33 -> 1.077033574 | X20: ='Input-Time Series'!X33 -> 1.097201902 | Y20: ='Input-Time Series'!Y33 -> 1.117747899 | Z20: ='Input-Time Series'!Z33 -> 1.138678636 | AA20: ='Input-Time Series'!AA33 -> 1.160001319 | AB20: ='Input-Time Series'!AB33 -> 1.181723286 | AC20: ='Input-Time Series'!AC33 -> 1.203852014
G21: Spare 1 escalation | I21: # | S21: ='Input-Time Series'!S34 -> 1 | T21: ='Input-Time Series'!T34 -> 1 | U21: ='Input-Time Series'!U34 -> 1 | V21: ='Input-Time Series'!V34 -> 1 | W21: ='Input-Time Series'!W34 -> 1 | X21: ='Input-Time Series'!X34 -> 1 | Y21: ='Input-Time Series'!Y34 -> 1 | Z21: ='Input-Time Series'!Z34 -> 1 | AA21: ='Input-Time Series'!AA34 -> 1 | AB21: ='Input-Time Series'!AB34 -> 1 | AC21: ='Input-Time Series'!AC34 -> 1
G22: Administration cost escalation | I22: # | S22: ='Input-Time Series'!S35 -> 1 | T22: ='Input-Time Series'!T35 -> 1 | U22: ='Input-Time Series'!U35 -> 1 | V22: ='Input-Time Series'!V35 -> 1 | W22: ='Input-Time Series'!W35 -> 1 | X22: ='Input-Time Series'!X35 -> 1 | Y22: ='Input-Time Series'!Y35 -> 1 | Z22: ='Input-Time Series'!Z35 -> 1 | AA22: ='Input-Time Series'!AA35 -> 1 | AB22: ='Input-Time Series'!AB35 -> 1 | AC22: ='Input-Time Series'!AC35 -> 1
G23: Revenue escalation | I23: # | S23: ='Input-Time Series'!S36 -> 1 | T23: ='Input-Time Series'!T36 -> 1 | U23: ='Input-Time Series'!U36 -> 1 | V23: ='Input-Time Series'!V36 -> 1 | W23: ='Input-Time Series'!W36 -> 1 | X23: ='Input-Time Series'!X36 -> 1 | Y23: ='Input-Time Series'!Y36 -> 1 | Z23: ='Input-Time Series'!Z36 -> 1 | AA23: ='Input-Time Series'!AA36 -> 1 | AB23: ='Input-Time Series'!AB36 -> 1 | AC23: ='Input-Time Series'!AC36 -> 1
F26: Total costs
G28: Existing Infrastructure
G30: =Existing -> Urban North (local facilities) | I30: $'000 | K30: =NPV(WACC_nom,T30:AC30)+S30 -> 6432.57586 | Q30: =SUM(S30:AC30) -> 6432.57586 | S30: =IF('Input-Infra'!$AN25>='Input-Gen'!$M$38,S182,0) + S334 + S790 -S486 -> 6432.57586 | T30: =IF('Input-Infra'!$AN25>='Input-Gen'!$M$38,T182,0) + T334 + T790 -T486 -> 0 | U30: =IF('Input-Infra'!$AN25>='Input-Gen'!$M$38,U182,0) + U334 + U790 -U486 -> 0 | V30: =IF('Input-Infra'!$AN25>='Input-Gen'!$M$38,V182,0) + V334 + V790 -V486 -> 0 | W30: =IF('Input-Infra'!$AN25>='Input-Gen'!$M$38,W182,0) + W334 + W790 -W486 -> 0 | X30: =IF('Input-Infra'!$AN25>='Input-Gen'!$M$38,X182,0) + X334 + X790 -X486 -> 0 | Y30: =IF('Input-Infra'!$AN25>='Input-Gen'!$M$38,Y182,0) + Y334 + Y790 -Y486 -> 0 | Z30: =IF('Input-Infra'!$AN25>='Input-Gen'!$M$38,Z182,0) + Z334 + Z790 -Z486 -> 0 | AA30: =IF('Input-Infra'!$AN25>='Input-Gen'!$M$38,AA182,0) + AA334 + AA790 -AA486 -> 0 | AB30: =IF('Input-Infra'!$AN25>='Input-Gen'!$M$38,AB182,0) + AB334 + AB790 -AB486 -> 0 | AC30: =IF('Input-Infra'!$AN25>='Input-Gen'!$M$38,AC182,0) + AC334 + AC790 -AC486 -> 0
G31: Urban South (local facilities) | I31: $'000 | K31: 5687.77788 | Q31: =SUM(S31:AC31) -> 5687.77788 | S31: =IF('Input-Infra'!$AN26>='Input-Gen'!$M$38,S183,0) + S335 + S791 -S487 -> 5687.77788 | T31: =IF('Input-Infra'!$AN26>='Input-Gen'!$M$38,T183,0) + T335 + T791 -T487 -> 0 | U31: =IF('Input-Infra'!$AN26>='Input-Gen'!$M$38,U183,0) + U335 + U791 -U487 -> 0 | V31: =IF('Input-Infra'!$AN26>='Input-Gen'!$M$38,V183,0) + V335 + V791 -V487 -> 0 | W31: =IF('Input-Infra'!$AN26>='Input-Gen'!$M$38,W183,0) + W335 + W791 -W487 -> 0 | X31: =IF('Input-Infra'!$AN26>='Input-Gen'!$M$38,X183,0) + X335 + X791 -X487 -> 0 | Y31: =IF('Input-Infra'!$AN26>='Input-Gen'!$M$38,Y183,0) + Y335 + Y791 -Y487 -> 0 | Z31: =IF('Input-Infra'!$AN26>='Input-Gen'!$M$38,Z183,0) + Z335 + Z791 -Z487 -> 0 | AA31: =IF('Input-Infra'!$AN26>='Input-Gen'!$M$38,AA183,0) + AA335 + AA791 -AA487 -> 0 | AB31: =IF('Input-Infra'!$AN26>='Input-Gen'!$M$38,AB183,0) + AB335 + AB791 -AB487 -> 0 | AC31: =IF('Input-Infra'!$AN26>='Input-Gen'!$M$38,AC183,0) + AC335 + AC791 -AC487 -> 0
G32: Urban East (local facilities) | I32: $'000 | K32: 9072.6753 | Q32: 9072.6753 | S32: =IF('Input-Infra'!$AN27>='Input-Gen'!$M$38,S184,0) + S336 + S792 -S488 -> 9072.6753 | T32: =IF('Input-Infra'!$AN27>='Input-Gen'!$M$38,T184,0) + T336 + T792 -T488 -> 0 | U32: =IF('Input-Infra'!$AN27>='Input-Gen'!$M$38,U184,0) + U336 + U792 -U488 -> 0 | V32: =IF('Input-Infra'!$AN27>='Input-Gen'!$M$38,V184,0) + V336 + V792 -V488 -> 0 | W32: =IF('Input-Infra'!$AN27>='Input-Gen'!$M$38,W184,0) + W336 + W792 -W488 -> 0 | X32: =IF('Input-Infra'!$AN27>='Input-Gen'!$M$38,X184,0) + X336 + X792 -X488 -> 0 | Y32: =IF('Input-Infra'!$AN27>='Input-Gen'!$M$38,Y184,0) + Y336 + Y792 -Y488 -> 0 | Z32: =IF('Input-Infra'!$AN27>='Input-Gen'!$M$38,Z184,0) + Z336 + Z792 -Z488 -> 0 | AA32: =IF('Input-Infra'!$AN27>='Input-Gen'!$M$38,AA184,0) + AA336 + AA792 -AA488 -> 0 | AB32: =IF('Input-Infra'!$AN27>='Input-Gen'!$M$38,AB184,0) + AB336 + AB792 -AB488 -> 0 | AC32: =IF('Input-Infra'!$AN27>='Input-Gen'!$M$38,AC184,0) + AC336 + AC792 -AC488 -> 0
G33: Urban West (local facilities) | I33: $'000 | K33: 10539.2207 | Q33: 10539.2207 | S33: =IF('Input-Infra'!$AN28>='Input-Gen'!$M$38,S185,0) + S337 + S793 -S489 -> 10539.2207 | T33: =IF('Input-Infra'!$AN28>='Input-Gen'!$M$38,T185,0) + T337 + T793 -T489 -> 0 | U33: =IF('Input-Infra'!$AN28>='Input-Gen'!$M$38,U185,0) + U337 + U793 -U489 -> 0 | V33: =IF('Input-Infra'!$AN28>='Input-Gen'!$M$38,V185,0) + V337 + V793 -V489 -> 0 | W33: =IF('Input-Infra'!$AN28>='Input-Gen'!$M$38,W185,0) + W337 + W793 -W489 -> 0 | X33: =IF('Input-Infra'!$AN28>='Input-Gen'!$M$38,X185,0) + X337 + X793 -X489 -> 0 | Y33: =IF('Input-Infra'!$AN28>='Input-Gen'!$M$38,Y185,0) + Y337 + Y793 -Y489 -> 0 | Z33: =IF('Input-Infra'!$AN28>='Input-Gen'!$M$38,Z185,0) + Z337 + Z793 -Z489 -> 0 | AA33: =IF('Input-Infra'!$AN28>='Input-Gen'!$M$38,AA185,0) + AA337 + AA793 -AA489 -> 0 | AB33: =IF('Input-Infra'!$AN28>='Input-Gen'!$M$38,AB185,0) + AB337 + AB793 -AB489 -> 0 | AC33: =IF('Input-Infra'!$AN28>='Input-Gen'!$M$38,AC185,0) + AC337 + AC793 -AC489 -> 0
G34: Citywide (District, metropolitan facilities) | I34: $'000 | K34: 77192.35901 | Q34: 77192.35901 | S34: =IF('Input-Infra'!$AN29>='Input-Gen'!$M$38,S186,0) + S338 + S794 -S490 -> 77192.35901 | T34: =IF('Input-Infra'!$AN29>='Input-Gen'!$M$38,T186,0) + T338 + T794 -T490 -> 0 | U34: =IF('Input-Infra'!$AN29>='Input-Gen'!$M$38,U186,0) + U338 + U794 -U490 -> 0 | V34: =IF('Input-Infra'!$AN29>='Input-Gen'!$M$38,V186,0) + V338 + V794 -V490 -> 0 | W34: =IF('Input-Infra'!$AN29>='Input-Gen'!$M$38,W186,0) + W338 + W794 -W490 -> 0 | X34: =IF('Input-Infra'!$AN29>='Input-Gen'!$M$38,X186,0) + X338 + X794 -X490 -> 0 | Y34: =IF('Input-Infra'!$AN29>='Input-Gen'!$M$38,Y186,0) + Y338 + Y794 -Y490 -> 0 | Z34: =IF('Input-Infra'!$AN29>='Input-Gen'!$M$38,Z186,0) + Z338 + Z794 -Z490 -> 0 | AA34: =IF('Input-Infra'!$AN29>='Input-Gen'!$M$38,AA186,0) + AA338 + AA794 -AA490 -> 0 | AB34: =IF('Input-Infra'!$AN29>='Input-Gen'!$M$38,AB186,0) + AB338 + AB794 -AB490 -> 0 | AC34: =IF('Input-Infra'!$AN29>='Input-Gen'!$M$38,AC186,0) + AC338 + AC794 -AC490 -> 0
G35: Fringe (local facilities) | I35: $'000 | K35: 7.92654 | Q35: 7.92654 | S35: =IF('Input-Infra'!$AN30>='Input-Gen'!$M$38,S187,0) + S339 + S795 -S491 -> 7.92654 | T35: =IF('Input-Infra'!$AN30>='Input-Gen'!$M$38,T187,0) + T339 + T795 -T491 -> 0 | U35: =IF('Input-Infra'!$AN30>='Input-Gen'!$M$38,U187,0) + U339 + U795 -U491 -> 0 | V35: =IF('Input-Infra'!$AN30>='Input-Gen'!$M$38,V187,0) + V339 + V795 -V491 -> 0 | W35: =IF('Input-Infra'!$AN30>='Input-Gen'!$M$38,W187,0) + W339 + W795 -W491 -> 0 | X35: =IF('Input-Infra'!$AN30>='Input-Gen'!$M$38,X187,0) + X339 + X795 -X491 -> 0 | Y35: =IF('Input-Infra'!$AN30>='Input-Gen'!$M$38,Y187,0) + Y339 + Y795 -Y491 -> 0 | Z35: =IF('Input-Infra'!$AN30>='Input-Gen'!$M$38,Z187,0) + Z339 + Z795 -Z491 -> 0 | AA35: =IF('Input-Infra'!$AN30>='Input-Gen'!$M$38,AA187,0) + AA339 + AA795 -AA491 -> 0 | AB35: =IF('Input-Infra'!$AN30>='Input-Gen'!$M$38,AB187,0) + AB339 + AB795 -AB491 -> 0 | AC35: =IF('Input-Infra'!$AN30>='Input-Gen'!$M$38,AC187,0) + AC339 + AC795 -AC491 -> 0
G36: 0 | I36: $'000 | K36: 0 | Q36: 0 | S36: =IF('Input-Infra'!$AN31>='Input-Gen'!$M$38,S188,0) + S340 + S796 -S492 -> 0 | T36: =IF('Input-Infra'!$AN31>='Input-Gen'!$M$38,T188,0) + T340 + T796 -T492 -> 0 | U36: =IF('Input-Infra'!$AN31>='Input-Gen'!$M$38,U188,0) + U340 + U796 -U492 -> 0 | V36: =IF('Input-Infra'!$AN31>='Input-Gen'!$M$38,V188,0) + V340 + V796 -V492 -> 0 | W36: =IF('Input-Infra'!$AN31>='Input-Gen'!$M$38,W188,0) + W340 + W796 -W492 -> 0 | X36: =IF('Input-Infra'!$AN31>='Input-Gen'!$M$38,X188,0) + X340 + X796 -X492 -> 0 | Y36: =IF('Input-Infra'!$AN31>='Input-Gen'!$M$38,Y188,0) + Y340 + Y796 -Y492 -> 0 | Z36: =IF('Input-Infra'!$AN31>='Input-Gen'!$M$38,Z188,0) + Z340 + Z796 -Z492 -> 0 | AA36: =IF('Input-Infra'!$AN31>='Input-Gen'!$M$38,AA188,0) + AA340 + AA796 -AA492 -> 0 | AB36: =IF('Input-Infra'!$AN31>='Input-Gen'!$M$38,AB188,0) + AB340 + AB796 -AB492 -> 0 | AC36: =IF('Input-Infra'!$AN31>='Input-Gen'!$M$38,AC188,0) + AC340 + AC796 -AC492 -> 0
G37: 0 | I37: $'000 | K37: 0 | Q37: 0 | S37: =IF('Input-Infra'!$AN32>='Input-Gen'!$M$38,S189,0) + S341 + S797 -S493 -> 0 | T37: =IF('Input-Infra'!$AN32>='Input-Gen'!$M$38,T189,0) + T341 + T797 -T493 -> 0 | U37: =IF('Input-Infra'!$AN32>='Input-Gen'!$M$38,U189,0) + U341 + U797 -U493 -> 0 | V37: =IF('Input-Infra'!$AN32>='Input-Gen'!$M$38,V189,0) + V341 + V797 -V493 -> 0 | W37: =IF('Input-Infra'!$AN32>='Input-Gen'!$M$38,W189,0) + W341 + W797 -W493 -> 0 | X37: =IF('Input-Infra'!$AN32>='Input-Gen'!$M$38,X189,0) + X341 + X797 -X493 -> 0 | Y37: =IF('Input-Infra'!$AN32>='Input-Gen'!$M$38,Y189,0) + Y341 + Y797 -Y493 -> 0 | Z37: =IF('Input-Infra'!$AN32>='Input-Gen'!$M$38,Z189,0) + Z341 + Z797 -Z493 -> 0 | AA37: =IF('Input-Infra'!$AN32>='Input-Gen'!$M$38,AA189,0) + AA341 + AA797 -AA493 -> 0 | AB37: =IF('Input-Infra'!$AN32>='Input-Gen'!$M$38,AB189,0) + AB341 + AB797 -AB493 -> 0 | AC37: =IF('Input-Infra'!$AN32>='Input-Gen'!$M$38,AC189,0) + AC341 + AC797 -AC493 -> 0
G38: 0 | I38: $'000 | K38: 0 | Q38: 0 | S38: =IF('Input-Infra'!$AN33>='Input-Gen'!$M$38,S190,0) + S342 + S798 -S494 -> 0 | T38: =IF('Input-Infra'!$AN33>='Input-Gen'!$M$38,T190,0) + T342 + T798 -T494 -> 0 | U38: =IF('Input-Infra'!$AN33>='Input-Gen'!$M$38,U190,0) + U342 + U798 -U494 -> 0 | V38: =IF('Input-Infra'!$AN33>='Input-Gen'!$M$38,V190,0) + V342 + V798 -V494 -> 0 | W38: =IF('Input-Infra'!$AN33>='Input-Gen'!$M$38,W190,0) + W342 + W798 -W494 -> 0 | X38: =IF('Input-Infra'!$AN33>='Input-Gen'!$M$38,X190,0) + X342 + X798 -X494 -> 0 | Y38: =IF('Input-Infra'!$AN33>='Input-Gen'!$M$38,Y190,0) + Y342 + Y798 -Y494 -> 0 | Z38: =IF('Input-Infra'!$AN33>='Input-Gen'!$M$38,Z190,0) + Z342 + Z798 -Z494 -> 0 | AA38: =IF('Input-Infra'!$AN33>='Input-Gen'!$M$38,AA190,0) + AA342 + AA798 -AA494 -> 0 | AB38: =IF('Input-Infra'!$AN33>='Input-Gen'!$M$38,AB190,0) + AB342 + AB798 -AB494 -> 0 | AC38: =IF('Input-Infra'!$AN33>='Input-Gen'!$M$38,AC190,0) + AC342 + AC798 -AC494 -> 0
G39: 0 | I39: $'000 | K39: 0 | Q39: 0 | S39: =IF('Input-Infra'!$AN34>='Input-Gen'!$M$38,S191,0) + S343 + S799 -S495 -> 0 | T39: =IF('Input-Infra'!$AN34>='Input-Gen'!$M$38,T191,0) + T343 + T799 -T495 -> 0 | U39: =IF('Input-Infra'!$AN34>='Input-Gen'!$M$38,U191,0) + U343 + U799 -U495 -> 0 | V39: =IF('Input-Infra'!$AN34>='Input-Gen'!$M$38,V191,0) + V343 + V799 -V495 -> 0 | W39: =IF('Input-Infra'!$AN34>='Input-Gen'!$M$38,W191,0) + W343 + W799 -W495 -> 0 | X39: =IF('Input-Infra'!$AN34>='Input-Gen'!$M$38,X191,0) + X343 + X799 -X495 -> 0 | Y39: =IF('Input-Infra'!$AN34>='Input-Gen'!$M$38,Y191,0) + Y343 + Y799 -Y495 -> 0 | Z39: =IF('Input-Infra'!$AN34>='Input-Gen'!$M$38,Z191,0) + Z343 + Z799 -Z495 -> 0 | AA39: =IF('Input-Infra'!$AN34>='Input-Gen'!$M$38,AA191,0) + AA343 + AA799 -AA495 -> 0 | AB39: =IF('Input-Infra'!$AN34>='Input-Gen'!$M$38,AB191,0) + AB343 + AB799 -AB495 -> 0 | AC39: =IF('Input-Infra'!$AN34>='Input-Gen'!$M$38,AC191,0) + AC343 + AC799 -AC495 -> 0
G40: 0 | I40: $'000 | K40: 0 | Q40: 0 | S40: =IF('Input-Infra'!$AN35>='Input-Gen'!$M$38,S192,0) + S344 + S800 -S496 -> 0 | T40: =IF('Input-Infra'!$AN35>='Input-Gen'!$M$38,T192,0) + T344 + T800 -T496 -> 0 | U40: =IF('Input-Infra'!$AN35>='Input-Gen'!$M$38,U192,0) + U344 + U800 -U496 -> 0 | V40: =IF('Input-Infra'!$AN35>='Input-Gen'!$M$38,V192,0) + V344 + V800 -V496 -> 0 | W40: =IF('Input-Infra'!$AN35>='Input-Gen'!$M$38,W192,0) + W344 + W800 -W496 -> 0 | X40: =IF('Input-Infra'!$AN35>='Input-Gen'!$M$38,X192,0) + X344 + X800 -X496 -> 0 | Y40: =IF('Input-Infra'!$AN35>='Input-Gen'!$M$38,Y192,0) + Y344 + Y800 -Y496 -> 0 | Z40: =IF('Input-Infra'!$AN35>='Input-Gen'!$M$38,Z192,0) + Z344 + Z800 -Z496 -> 0 | AA40: =IF('Input-Infra'!$AN35>='Input-Gen'!$M$38,AA192,0) + AA344 + AA800 -AA496 -> 0 | AB40: =IF('Input-Infra'!$AN35>='Input-Gen'!$M$38,AB192,0) + AB344 + AB800 -AB496 -> 0 | AC40: =IF('Input-Infra'!$AN35>='Input-Gen'!$M$38,AC192,0) + AC344 + AC800 -AC496 -> 0
G41: 0 | I41: $'000 | K41: 0 | Q41: 0 | S41: =IF('Input-Infra'!$AN36>='Input-Gen'!$M$38,S193,0) + S345 + S801 -S497 -> 0 | T41: =IF('Input-Infra'!$AN36>='Input-Gen'!$M$38,T193,0) + T345 + T801 -T497 -> 0 | U41: =IF('Input-Infra'!$AN36>='Input-Gen'!$M$38,U193,0) + U345 + U801 -U497 -> 0 | V41: =IF('Input-Infra'!$AN36>='Input-Gen'!$M$38,V193,0) + V345 + V801 -V497 -> 0 | W41: =IF('Input-Infra'!$AN36>='Input-Gen'!$M$38,W193,0) + W345 + W801 -W497 -> 0 | X41: =IF('Input-Infra'!$AN36>='Input-Gen'!$M$38,X193,0) + X345 + X801 -X497 -> 0 | Y41: =IF('Input-Infra'!$AN36>='Input-Gen'!$M$38,Y193,0) + Y345 + Y801 -Y497 -> 0 | Z41: =IF('Input-Infra'!$AN36>='Input-Gen'!$M$38,Z193,0) + Z345 + Z801 -Z497 -> 0 | AA41: =IF('Input-Infra'!$AN36>='Input-Gen'!$M$38,AA193,0) + AA345 + AA801 -AA497 -> 0 | AB41: =IF('Input-Infra'!$AN36>='Input-Gen'!$M$38,AB193,0) + AB345 + AB801 -AB497 -> 0 | AC41: =IF('Input-Infra'!$AN36>='Input-Gen'!$M$38,AC193,0) + AC345 + AC801 -AC497 -> 0
G42: 0 | I42: $'000 | K42: 0 | Q42: 0 | S42: =IF('Input-Infra'!$AN37>='Input-Gen'!$M$38,S194,0) + S346 + S802 -S498 -> 0 | T42: =IF('Input-Infra'!$AN37>='Input-Gen'!$M$38,T194,0) + T346 + T802 -T498 -> 0 | U42: =IF('Input-Infra'!$AN37>='Input-Gen'!$M$38,U194,0) + U346 + U802 -U498 -> 0 | V42: =IF('Input-Infra'!$AN37>='Input-Gen'!$M$38,V194,0) + V346 + V802 -V498 -> 0 | W42: =IF('Input-Infra'!$AN37>='Input-Gen'!$M$38,W194,0) + W346 + W802 -W498 -> 0 | X42: =IF('Input-Infra'!$AN37>='Input-Gen'!$M$38,X194,0) + X346 + X802 -X498 -> 0 | Y42: =IF('Input-Infra'!$AN37>='Input-Gen'!$M$38,Y194,0) + Y346 + Y802 -Y498 -> 0 | Z42: =IF('Input-Infra'!$AN37>='Input-Gen'!$M$38,Z194,0) + Z346 + Z802 -Z498 -> 0 | AA42: =IF('Input-Infra'!$AN37>='Input-Gen'!$M$38,AA194,0) + AA346 + AA802 -AA498 -> 0 | AB42: =IF('Input-Infra'!$AN37>='Input-Gen'!$M$38,AB194,0) + AB346 + AB802 -AB498 -> 0 | AC42: =IF('Input-Infra'!$AN37>='Input-Gen'!$M$38,AC194,0) + AC346 + AC802 -AC498 -> 0
G43: 0 | I43: $'000 | K43: 0 | Q43: 0 | S43: =IF('Input-Infra'!$AN38>='Input-Gen'!$M$38,S195,0) + S347 + S803 -S499 -> 0 | T43: =IF('Input-Infra'!$AN38>='Input-Gen'!$M$38,T195,0) + T347 + T803 -T499 -> 0 | U43: =IF('Input-Infra'!$AN38>='Input-Gen'!$M$38,U195,0) + U347 + U803 -U499 -> 0 | V43: =IF('Input-Infra'!$AN38>='Input-Gen'!$M$38,V195,0) + V347 + V803 -V499 -> 0 | W43: =IF('Input-Infra'!$AN38>='Input-Gen'!$M$38,W195,0) + W347 + W803 -W499 -> 0 | X43: =IF('Input-Infra'!$AN38>='Input-Gen'!$M$38,X195,0) + X347 + X803 -X499 -> 0 | Y43: =IF('Input-Infra'!$AN38>='Input-Gen'!$M$38,Y195,0) + Y347 + Y803 -Y499 -> 0 | Z43: =IF('Input-Infra'!$AN38>='Input-Gen'!$M$38,Z195,0) + Z347 + Z803 -Z499 -> 0 | AA43: =IF('Input-Infra'!$AN38>='Input-Gen'!$M$38,AA195,0) + AA347 + AA803 -AA499 -> 0 | AB43: =IF('Input-Infra'!$AN38>='Input-Gen'!$M$38,AB195,0) + AB347 + AB803 -AB499 -> 0 | AC43: =IF('Input-Infra'!$AN38>='Input-Gen'!$M$38,AC195,0) + AC347 + AC803 -AC499 -> 0
G44: 0 | I44: $'000 | K44: 0 | Q44: 0 | S44: =IF('Input-Infra'!$AN39>='Input-Gen'!$M$38,S196,0) + S348 + S804 -S500 -> 0 | T44: =IF('Input-Infra'!$AN39>='Input-Gen'!$M$38,T196,0) + T348 + T804 -T500 -> 0 | U44: =IF('Input-Infra'!$AN39>='Input-Gen'!$M$38,U196,0) + U348 + U804 -U500 -> 0 | V44: =IF('Input-Infra'!$AN39>='Input-Gen'!$M$38,V196,0) + V348 + V804 -V500 -> 0 | W44: =IF('Input-Infra'!$AN39>='Input-Gen'!$M$38,W196,0) + W348 + W804 -W500 -> 0 | X44: =IF('Input-Infra'!$AN39>='Input-Gen'!$M$38,X196,0) + X348 + X804 -X500 -> 0 | Y44: =IF('Input-Infra'!$AN39>='Input-Gen'!$M$38,Y196,0) + Y348 + Y804 -Y500 -> 0 | Z44: =IF('Input-Infra'!$AN39>='Input-Gen'!$M$38,Z196,0) + Z348 + Z804 -Z500 -> 0 | AA44: =IF('Input-Infra'!$AN39>='Input-Gen'!$M$38,AA196,0) + AA348 + AA804 -AA500 -> 0 | AB44: =IF('Input-Infra'!$AN39>='Input-Gen'!$M$38,AB196,0) + AB348 + AB804 -AB500 -> 0 | AC44: =IF('Input-Infra'!$AN39>='Input-Gen'!$M$38,AC196,0) + AC348 + AC804 -AC500 -> 0
G45: 0 | I45: $'000 | K45: 0 | Q45: 0 | S45: =IF('Input-Infra'!$AN40>='Input-Gen'!$M$38,S197,0) + S349 + S805 -S501 -> 0 | T45: =IF('Input-Infra'!$AN40>='Input-Gen'!$M$38,T197,0) + T349 + T805 -T501 -> 0 | U45: =IF('Input-Infra'!$AN40>='Input-Gen'!$M$38,U197,0) + U349 + U805 -U501 -> 0 | V45: =IF('Input-Infra'!$AN40>='Input-Gen'!$M$38,V197,0) + V349 + V805 -V501 -> 0 | W45: =IF('Input-Infra'!$AN40>='Input-Gen'!$M$38,W197,0) + W349 + W805 -W501 -> 0 | X45: =IF('Input-Infra'!$AN40>='Input-Gen'!$M$38,X197,0) + X349 + X805 -X501 -> 0 | Y45: =IF('Input-Infra'!$AN40>='Input-Gen'!$M$38,Y197,0) + Y349 + Y805 -Y501 -> 0 | Z45: =IF('Input-Infra'!$AN40>='Input-Gen'!$M$38,Z197,0) + Z349 + Z805 -Z501 -> 0 | AA45: =IF('Input-Infra'!$AN40>='Input-Gen'!$M$38,AA197,0) + AA349 + AA805 -AA501 -> 0 | AB45: =IF('Input-Infra'!$AN40>='Input-Gen'!$M$38,AB197,0) + AB349 + AB805 -AB501 -> 0 | AC45: =IF('Input-Infra'!$AN40>='Input-Gen'!$M$38,AC197,0) + AC349 + AC805 -AC501 -> 0
G46: 0 | I46: $'000 | K46: 0 | Q46: 0 | S46: =IF('Input-Infra'!$AN41>='Input-Gen'!$M$38,S198,0) + S350 + S806 -S502 -> 0 | T46: =IF('Input-Infra'!$AN41>='Input-Gen'!$M$38,T198,0) + T350 + T806 -T502 -> 0 | U46: =IF('Input-Infra'!$AN41>='Input-Gen'!$M$38,U198,0) + U350 + U806 -U502 -> 0 | V46: =IF('Input-Infra'!$AN41>='Input-Gen'!$M$38,V198,0) + V350 + V806 -V502 -> 0 | W46: =IF('Input-Infra'!$AN41>='Input-Gen'!$M$38,W198,0) + W350 + W806 -W502 -> 0 | X46: =IF('Input-Infra'!$AN41>='Input-Gen'!$M$38,X198,0) + X350 + X806 -X502 -> 0 | Y46: =IF('Input-Infra'!$AN41>='Input-Gen'!$M$38,Y198,0) + Y350 + Y806 -Y502 -> 0 | Z46: =IF('Input-Infra'!$AN41>='Input-Gen'!$M$38,Z198,0) + Z350 + Z806 -Z502 -> 0 | AA46: =IF('Input-Infra'!$AN41>='Input-Gen'!$M$38,AA198,0) + AA350 + AA806 -AA502 -> 0 | AB46: =IF('Input-Infra'!$AN41>='Input-Gen'!$M$38,AB198,0) + AB350 + AB806 -AB502 -> 0 | AC46: =IF('Input-Infra'!$AN41>='Input-Gen'!$M$38,AC198,0) + AC350 + AC806 -AC502 -> 0
G47: 0 | I47: $'000 | K47: 0 | Q47: 0 | S47: =IF('Input-Infra'!$AN42>='Input-Gen'!$M$38,S199,0) + S351 + S807 -S503 -> 0 | T47: =IF('Input-Infra'!$AN42>='Input-Gen'!$M$38,T199,0) + T351 + T807 -T503 -> 0 | U47: =IF('Input-Infra'!$AN42>='Input-Gen'!$M$38,U199,0) + U351 + U807 -U503 -> 0 | V47: =IF('Input-Infra'!$AN42>='Input-Gen'!$M$38,V199,0) + V351 + V807 -V503 -> 0 | W47: =IF('Input-Infra'!$AN42>='Input-Gen'!$M$38,W199,0) + W351 + W807 -W503 -> 0 | X47: =IF('Input-Infra'!$AN42>='Input-Gen'!$M$38,X199,0) + X351 + X807 -X503 -> 0 | Y47: =IF('Input-Infra'!$AN42>='Input-Gen'!$M$38,Y199,0) + Y351 + Y807 -Y503 -> 0 | Z47: =IF('Input-Infra'!$AN42>='Input-Gen'!$M$38,Z199,0) + Z351 + Z807 -Z503 -> 0 | AA47: =IF('Input-Infra'!$AN42>='Input-Gen'!$M$38,AA199,0) + AA351 + AA807 -AA503 -> 0 | AB47: =IF('Input-Infra'!$AN42>='Input-Gen'!$M$38,AB199,0) + AB351 + AB807 -AB503 -> 0 | AC47: =IF('Input-Infra'!$AN42>='Input-Gen'!$M$38,AC199,0) + AC351 + AC807 -AC503 -> 0
G48: 0 | I48: $'000 | K48: 0 | Q48: 0 | S48: =IF('Input-Infra'!$AN43>='Input-Gen'!$M$38,S200,0) + S352 + S808 -S504 -> 0 | T48: =IF('Input-Infra'!$AN43>='Input-Gen'!$M$38,T200,0) + T352 + T808 -T504 -> 0 | U48: =IF('Input-Infra'!$AN43>='Input-Gen'!$M$38,U200,0) + U352 + U808 -U504 -> 0 | V48: =IF('Input-Infra'!$AN43>='Input-Gen'!$M$38,V200,0) + V352 + V808 -V504 -> 0 | W48: =IF('Input-Infra'!$AN43>='Input-Gen'!$M$38,W200,0) + W352 + W808 -W504 -> 0 | X48: =IF('Input-Infra'!$AN43>='Input-Gen'!$M$38,X200,0) + X352 + X808 -X504 -> 0 | Y48: =IF('Input-Infra'!$AN43>='Input-Gen'!$M$38,Y200,0) + Y352 + Y808 -Y504 -> 0 | Z48: =IF('Input-Infra'!$AN43>='Input-Gen'!$M$38,Z200,0) + Z352 + Z808 -Z504 -> 0 | AA48: =IF('Input-Infra'!$AN43>='Input-Gen'!$M$38,AA200,0) + AA352 + AA808 -AA504 -> 0 | AB48: =IF('Input-Infra'!$AN43>='Input-Gen'!$M$38,AB200,0) + AB352 + AB808 -AB504 -> 0 | AC48: =IF('Input-Infra'!$AN43>='Input-Gen'!$M$38,AC200,0) + AC352 + AC808 -AC504 -> 0
G49: 0 | I49: $'000 | K49: 0 | Q49: 0 | S49: =IF('Input-Infra'!$AN44>='Input-Gen'!$M$38,S201,0) + S353 + S809 -S505 -> 0 | T49: =IF('Input-Infra'!$AN44>='Input-Gen'!$M$38,T201,0) + T353 + T809 -T505 -> 0 | U49: =IF('Input-Infra'!$AN44>='Input-Gen'!$M$38,U201,0) + U353 + U809 -U505 -> 0 | V49: =IF('Input-Infra'!$AN44>='Input-Gen'!$M$38,V201,0) + V353 + V809 -V505 -> 0 | W49: =IF('Input-Infra'!$AN44>='Input-Gen'!$M$38,W201,0) + W353 + W809 -W505 -> 0 | X49: =IF('Input-Infra'!$AN44>='Input-Gen'!$M$38,X201,0) + X353 + X809 -X505 -> 0 | Y49: =IF('Input-Infra'!$AN44>='Input-Gen'!$M$38,Y201,0) + Y353 + Y809 -Y505 -> 0 | Z49: =IF('Input-Infra'!$AN44>='Input-Gen'!$M$38,Z201,0) + Z353 + Z809 -Z505 -> 0 | AA49: =IF('Input-Infra'!$AN44>='Input-Gen'!$M$38,AA201,0) + AA353 + AA809 -AA505 -> 0 | AB49: =IF('Input-Infra'!$AN44>='Input-Gen'!$M$38,AB201,0) + AB353 + AB809 -AB505 -> 0 | AC49: =IF('Input-Infra'!$AN44>='Input-Gen'!$M$38,AC201,0) + AC353 + AC809 -AC505 -> 0
G50: 0 | I50: $'000 | K50: 0 | Q50: 0 | S50: =IF('Input-Infra'!$AN45>='Input-Gen'!$M$38,S202,0) + S354 + S810 -S506 -> 0 | T50: =IF('Input-Infra'!$AN45>='Input-Gen'!$M$38,T202,0) + T354 + T810 -T506 -> 0 | U50: =IF('Input-Infra'!$AN45>='Input-Gen'!$M$38,U202,0) + U354 + U810 -U506 -> 0 | V50: =IF('Input-Infra'!$AN45>='Input-Gen'!$M$38,V202,0) + V354 + V810 -V506 -> 0 | W50: =IF('Input-Infra'!$AN45>='Input-Gen'!$M$38,W202,0) + W354 + W810 -W506 -> 0 | X50: =IF('Input-Infra'!$AN45>='Input-Gen'!$M$38,X202,0) + X354 + X810 -X506 -> 0 | Y50: =IF('Input-Infra'!$AN45>='Input-Gen'!$M$38,Y202,0) + Y354 + Y810 -Y506 -> 0 | Z50: =IF('Input-Infra'!$AN45>='Input-Gen'!$M$38,Z202,0) + Z354 + Z810 -Z506 -> 0 | AA50: =IF('Input-Infra'!$AN45>='Input-Gen'!$M$38,AA202,0) + AA354 + AA810 -AA506 -> 0 | AB50: =IF('Input-Infra'!$AN45>='Input-Gen'!$M$38,AB202,0) + AB354 + AB810 -AB506 -> 0 | AC50: =IF('Input-Infra'!$AN45>='Input-Gen'!$M$38,AC202,0) + AC354 + AC810 -AC506 -> 0
G51: 0 | I51: $'000 | K51: 0 | Q51: 0 | S51: =IF('Input-Infra'!$AN46>='Input-Gen'!$M$38,S203,0) + S355 + S811 -S507 -> 0 | T51: =IF('Input-Infra'!$AN46>='Input-Gen'!$M$38,T203,0) + T355 + T811 -T507 -> 0 | U51: =IF('Input-Infra'!$AN46>='Input-Gen'!$M$38,U203,0) + U355 + U811 -U507 -> 0 | V51: =IF('Input-Infra'!$AN46>='Input-Gen'!$M$38,V203,0) + V355 + V811 -V507 -> 0 | W51: =IF('Input-Infra'!$AN46>='Input-Gen'!$M$38,W203,0) + W355 + W811 -W507 -> 0 | X51: =IF('Input-Infra'!$AN46>='Input-Gen'!$M$38,X203,0) + X355 + X811 -X507 -> 0 | Y51: =IF('Input-Infra'!$AN46>='Input-Gen'!$M$38,Y203,0) + Y355 + Y811 -Y507 -> 0 | Z51: =IF('Input-Infra'!$AN46>='Input-Gen'!$M$38,Z203,0) + Z355 + Z811 -Z507 -> 0 | AA51: =IF('Input-Infra'!$AN46>='Input-Gen'!$M$38,AA203,0) + AA355 + AA811 -AA507 -> 0 | AB51: =IF('Input-Infra'!$AN46>='Input-Gen'!$M$38,AB203,0) + AB355 + AB811 -AB507 -> 0 | AC51: =IF('Input-Infra'!$AN46>='Input-Gen'!$M$38,AC203,0) + AC355 + AC811 -AC507 -> 0
G52: 0 | I52: $'000 | K52: 0 | Q52: 0 | S52: =IF('Input-Infra'!$AN47>='Input-Gen'!$M$38,S204,0) + S356 + S812 -S508 -> 0 | T52: =IF('Input-Infra'!$AN47>='Input-Gen'!$M$38,T204,0) + T356 + T812 -T508 -> 0 | U52: =IF('Input-Infra'!$AN47>='Input-Gen'!$M$38,U204,0) + U356 + U812 -U508 -> 0 | V52: =IF('Input-Infra'!$AN47>='Input-Gen'!$M$38,V204,0) + V356 + V812 -V508 -> 0 | W52: =IF('Input-Infra'!$AN47>='Input-Gen'!$M$38,W204,0) + W356 + W812 -W508 -> 0 | X52: =IF('Input-Infra'!$AN47>='Input-Gen'!$M$38,X204,0) + X356 + X812 -X508 -> 0 | Y52: =IF('Input-Infra'!$AN47>='Input-Gen'!$M$38,Y204,0) + Y356 + Y812 -Y508 -> 0 | Z52: =IF('Input-Infra'!$AN47>='Input-Gen'!$M$38,Z204,0) + Z356 + Z812 -Z508 -> 0 | AA52: =IF('Input-Infra'!$AN47>='Input-Gen'!$M$38,AA204,0) + AA356 + AA812 -AA508 -> 0 | AB52: =IF('Input-Infra'!$AN47>='Input-Gen'!$M$38,AB204,0) + AB356 + AB812 -AB508 -> 0 | AC52: =IF('Input-Infra'!$AN47>='Input-Gen'!$M$38,AC204,0) + AC356 + AC812 -AC508 -> 0
G53: 0 | I53: $'000 | K53: 0 | Q53: 0 | S53: =IF('Input-Infra'!$AN48>='Input-Gen'!$M$38,S205,0) + S357 + S813 -S509 -> 0 | T53: =IF('Input-Infra'!$AN48>='Input-Gen'!$M$38,T205,0) + T357 + T813 -T509 -> 0 | U53: =IF('Input-Infra'!$AN48>='Input-Gen'!$M$38,U205,0) + U357 + U813 -U509 -> 0 | V53: =IF('Input-Infra'!$AN48>='Input-Gen'!$M$38,V205,0) + V357 + V813 -V509 -> 0 | W53: =IF('Input-Infra'!$AN48>='Input-Gen'!$M$38,W205,0) + W357 + W813 -W509 -> 0 | X53: =IF('Input-Infra'!$AN48>='Input-Gen'!$M$38,X205,0) + X357 + X813 -X509 -> 0 | Y53: =IF('Input-Infra'!$AN48>='Input-Gen'!$M$38,Y205,0) + Y357 + Y813 -Y509 -> 0 | Z53: =IF('Input-Infra'!$AN48>='Input-Gen'!$M$38,Z205,0) + Z357 + Z813 -Z509 -> 0 | AA53: =IF('Input-Infra'!$AN48>='Input-Gen'!$M$38,AA205,0) + AA357 + AA813 -AA509 -> 0 | AB53: =IF('Input-Infra'!$AN48>='Input-Gen'!$M$38,AB205,0) + AB357 + AB813 -AB509 -> 0 | AC53: =IF('Input-Infra'!$AN48>='Input-Gen'!$M$38,AC205,0) + AC357 + AC813 -AC509 -> 0
G54: 0 | I54: $'000 | K54: 0 | Q54: 0 | S54: =IF('Input-Infra'!$AN49>='Input-Gen'!$M$38,S206,0) + S358 + S814 -S510 -> 0 | T54: =IF('Input-Infra'!$AN49>='Input-Gen'!$M$38,T206,0) + T358 + T814 -T510 -> 0 | U54: =IF('Input-Infra'!$AN49>='Input-Gen'!$M$38,U206,0) + U358 + U814 -U510 -> 0 | V54: =IF('Input-Infra'!$AN49>='Input-Gen'!$M$38,V206,0) + V358 + V814 -V510 -> 0 | W54: =IF('Input-Infra'!$AN49>='Input-Gen'!$M$38,W206,0) + W358 + W814 -W510 -> 0 | X54: =IF('Input-Infra'!$AN49>='Input-Gen'!$M$38,X206,0) + X358 + X814 -X510 -> 0 | Y54: =IF('Input-Infra'!$AN49>='Input-Gen'!$M$38,Y206,0) + Y358 + Y814 -Y510 -> 0 | Z54: =IF('Input-Infra'!$AN49>='Input-Gen'!$M$38,Z206,0) + Z358 + Z814 -Z510 -> 0 | AA54: =IF('Input-Infra'!$AN49>='Input-Gen'!$M$38,AA206,0) + AA358 + AA814 -AA510 -> 0 | AB54: =IF('Input-Infra'!$AN49>='Input-Gen'!$M$38,AB206,0) + AB358 + AB814 -AB510 -> 0 | AC54: =IF('Input-Infra'!$AN49>='Input-Gen'!$M$38,AC206,0) + AC358 + AC814 -AC510 -> 0
G55: 0 | I55: $'000 | K55: 0 | Q55: 0 | S55: =IF('Input-Infra'!$AN50>='Input-Gen'!$M$38,S207,0) + S359 + S815 -S511 -> 0 | T55: =IF('Input-Infra'!$AN50>='Input-Gen'!$M$38,T207,0) + T359 + T815 -T511 -> 0 | U55: =IF('Input-Infra'!$AN50>='Input-Gen'!$M$38,U207,0) + U359 + U815 -U511 -> 0 | V55: =IF('Input-Infra'!$AN50>='Input-Gen'!$M$38,V207,0) + V359 + V815 -V511 -> 0 | W55: =IF('Input-Infra'!$AN50>='Input-Gen'!$M$38,W207,0) + W359 + W815 -W511 -> 0 | X55: =IF('Input-Infra'!$AN50>='Input-Gen'!$M$38,X207,0) + X359 + X815 -X511 -> 0 | Y55: =IF('Input-Infra'!$AN50>='Input-Gen'!$M$38,Y207,0) + Y359 + Y815 -Y511 -> 0 | Z55: =IF('Input-Infra'!$AN50>='Input-Gen'!$M$38,Z207,0) + Z359 + Z815 -Z511 -> 0 | AA55: =IF('Input-Infra'!$AN50>='Input-Gen'!$M$38,AA207,0) + AA359 + AA815 -AA511 -> 0 | AB55: =IF('Input-Infra'!$AN50>='Input-Gen'!$M$38,AB207,0) + AB359 + AB815 -AB511 -> 0 | AC55: =IF('Input-Infra'!$AN50>='Input-Gen'!$M$38,AC207,0) + AC359 + AC815 -AC511 -> 0
G56: 0 | I56: $'000 | K56: 0 | Q56: 0 | S56: =IF('Input-Infra'!$AN51>='Input-Gen'!$M$38,S208,0) + S360 + S816 -S512 -> 0 | T56: =IF('Input-Infra'!$AN51>='Input-Gen'!$M$38,T208,0) + T360 + T816 -T512 -> 0 | U56: =IF('Input-Infra'!$AN51>='Input-Gen'!$M$38,U208,0) + U360 + U816 -U512 -> 0 | V56: =IF('Input-Infra'!$AN51>='Input-Gen'!$M$38,V208,0) + V360 + V816 -V512 -> 0 | W56: =IF('Input-Infra'!$AN51>='Input-Gen'!$M$38,W208,0) + W360 + W816 -W512 -> 0 | X56: =IF('Input-Infra'!$AN51>='Input-Gen'!$M$38,X208,0) + X360 + X816 -X512 -> 0 | Y56: =IF('Input-Infra'!$AN51>='Input-Gen'!$M$38,Y208,0) + Y360 + Y816 -Y512 -> 0 | Z56: =IF('Input-Infra'!$AN51>='Input-Gen'!$M$38,Z208,0) + Z360 + Z816 -Z512 -> 0 | AA56: =IF('Input-Infra'!$AN51>='Input-Gen'!$M$38,AA208,0) + AA360 + AA816 -AA512 -> 0 | AB56: =IF('Input-Infra'!$AN51>='Input-Gen'!$M$38,AB208,0) + AB360 + AB816 -AB512 -> 0 | AC56: =IF('Input-Infra'!$AN51>='Input-Gen'!$M$38,AC208,0) + AC360 + AC816 -AC512 -> 0
G57: 0 | I57: $'000 | K57: 0 | Q57: 0 | S57: =IF('Input-Infra'!$AN52>='Input-Gen'!$M$38,S209,0) + S361 + S817 -S513 -> 0 | T57: =IF('Input-Infra'!$AN52>='Input-Gen'!$M$38,T209,0) + T361 + T817 -T513 -> 0 | U57: =IF('Input-Infra'!$AN52>='Input-Gen'!$M$38,U209,0) + U361 + U817 -U513 -> 0 | V57: =IF('Input-Infra'!$AN52>='Input-Gen'!$M$38,V209,0) + V361 + V817 -V513 -> 0 | W57: =IF('Input-Infra'!$AN52>='Input-Gen'!$M$38,W209,0) + W361 + W817 -W513 -> 0 | X57: =IF('Input-Infra'!$AN52>='Input-Gen'!$M$38,X209,0) + X361 + X817 -X513 -> 0 | Y57: =IF('Input-Infra'!$AN52>='Input-Gen'!$M$38,Y209,0) + Y361 + Y817 -Y513 -> 0 | Z57: =IF('Input-Infra'!$AN52>='Input-Gen'!$M$38,Z209,0) + Z361 + Z817 -Z513 -> 0 | AA57: =IF('Input-Infra'!$AN52>='Input-Gen'!$M$38,AA209,0) + AA361 + AA817 -AA513 -> 0 | AB57: =IF('Input-Infra'!$AN52>='Input-Gen'!$M$38,AB209,0) + AB361 + AB817 -AB513 -> 0 | AC57: =IF('Input-Infra'!$AN52>='Input-Gen'!$M$38,AC209,0) + AC361 + AC817 -AC513 -> 0
G58: 0 | I58: $'000 | K58: 0 | Q58: 0 | S58: =IF('Input-Infra'!$AN53>='Input-Gen'!$M$38,S210,0) + S362 + S818 -S514 -> 0 | T58: =IF('Input-Infra'!$AN53>='Input-Gen'!$M$38,T210,0) + T362 + T818 -T514 -> 0 | U58: =IF('Input-Infra'!$AN53>='Input-Gen'!$M$38,U210,0) + U362 + U818 -U514 -> 0 | V58: =IF('Input-Infra'!$AN53>='Input-Gen'!$M$38,V210,0) + V362 + V818 -V514 -> 0 | W58: =IF('Input-Infra'!$AN53>='Input-Gen'!$M$38,W210,0) + W362 + W818 -W514 -> 0 | X58: =IF('Input-Infra'!$AN53>='Input-Gen'!$M$38,X210,0) + X362 + X818 -X514 -> 0 | Y58: =IF('Input-Infra'!$AN53>='Input-Gen'!$M$38,Y210,0) + Y362 + Y818 -Y514 -> 0 | Z58: =IF('Input-Infra'!$AN53>='Input-Gen'!$M$38,Z210,0) + Z362 + Z818 -Z514 -> 0 | AA58: =IF('Input-Infra'!$AN53>='Input-Gen'!$M$38,AA210,0) + AA362 + AA818 -AA514 -> 0 | AB58: =IF('Input-Infra'!$AN53>='Input-Gen'!$M$38,AB210,0) + AB362 + AB818 -AB514 -> 0 | AC58: =IF('Input-Infra'!$AN53>='Input-Gen'!$M$38,AC210,0) + AC362 + AC818 -AC514 -> 0
G59: 0 | I59: $'000 | K59: 0 | Q59: 0 | S59: =IF('Input-Infra'!$AN54>='Input-Gen'!$M$38,S211,0) + S363 + S819 -S515 -> 0 | T59: =IF('Input-Infra'!$AN54>='Input-Gen'!$M$38,T211,0) + T363 + T819 -T515 -> 0 | U59: =IF('Input-Infra'!$AN54>='Input-Gen'!$M$38,U211,0) + U363 + U819 -U515 -> 0 | V59: =IF('Input-Infra'!$AN54>='Input-Gen'!$M$38,V211,0) + V363 + V819 -V515 -> 0 | W59: =IF('Input-Infra'!$AN54>='Input-Gen'!$M$38,W211,0) + W363 + W819 -W515 -> 0 | X59: =IF('Input-Infra'!$AN54>='Input-Gen'!$M$38,X211,0) + X363 + X819 -X515 -> 0 | Y59: =IF('Input-Infra'!$AN54>='Input-Gen'!$M$38,Y211,0) + Y363 + Y819 -Y515 -> 0 | Z59: =IF('Input-Infra'!$AN54>='Input-Gen'!$M$38,Z211,0) + Z363 + Z819 -Z515 -> 0 | AA59: =IF('Input-Infra'!$AN54>='Input-Gen'!$M$38,AA211,0) + AA363 + AA819 -AA515 -> 0 | AB59: =IF('Input-Infra'!$AN54>='Input-Gen'!$M$38,AB211,0) + AB363 + AB819 -AB515 -> 0 | AC59: =IF('Input-Infra'!$AN54>='Input-Gen'!$M$38,AC211,0) + AC363 + AC819 -AC515 -> 0
G60: 0 | I60: $'000 | K60: 0 | Q60: 0 | S60: =IF('Input-Infra'!$AN55>='Input-Gen'!$M$38,S212,0) + S364 + S820 -S516 -> 0 | T60: =IF('Input-Infra'!$AN55>='Input-Gen'!$M$38,T212,0) + T364 + T820 -T516 -> 0 | U60: =IF('Input-Infra'!$AN55>='Input-Gen'!$M$38,U212,0) + U364 + U820 -U516 -> 0 | V60: =IF('Input-Infra'!$AN55>='Input-Gen'!$M$38,V212,0) + V364 + V820 -V516 -> 0 | W60: =IF('Input-Infra'!$AN55>='Input-Gen'!$M$38,W212,0) + W364 + W820 -W516 -> 0 | X60: =IF('Input-Infra'!$AN55>='Input-Gen'!$M$38,X212,0) + X364 + X820 -X516 -> 0 | Y60: =IF('Input-Infra'!$AN55>='Input-Gen'!$M$38,Y212,0) + Y364 + Y820 -Y516 -> 0 | Z60: =IF('Input-Infra'!$AN55>='Input-Gen'!$M$38,Z212,0) + Z364 + Z820 -Z516 -> 0 | AA60: =IF('Input-Infra'!$AN55>='Input-Gen'!$M$38,AA212,0) + AA364 + AA820 -AA516 -> 0 | AB60: =IF('Input-Infra'!$AN55>='Input-Gen'!$M$38,AB212,0) + AB364 + AB820 -AB516 -> 0 | AC60: =IF('Input-Infra'!$AN55>='Input-Gen'!$M$38,AC212,0) + AC364 + AC820 -AC516 -> 0
G61: 0 | I61: $'000 | K61: 0 | Q61: 0 | S61: =IF('Input-Infra'!$AN56>='Input-Gen'!$M$38,S213,0) + S365 + S821 -S517 -> 0 | T61: =IF('Input-Infra'!$AN56>='Input-Gen'!$M$38,T213,0) + T365 + T821 -T517 -> 0 | U61: =IF('Input-Infra'!$AN56>='Input-Gen'!$M$38,U213,0) + U365 + U821 -U517 -> 0 | V61: =IF('Input-Infra'!$AN56>='Input-Gen'!$M$38,V213,0) + V365 + V821 -V517 -> 0 | W61: =IF('Input-Infra'!$AN56>='Input-Gen'!$M$38,W213,0) + W365 + W821 -W517 -> 0 | X61: =IF('Input-Infra'!$AN56>='Input-Gen'!$M$38,X213,0) + X365 + X821 -X517 -> 0 | Y61: =IF('Input-Infra'!$AN56>='Input-Gen'!$M$38,Y213,0) + Y365 + Y821 -Y517 -> 0 | Z61: =IF('Input-Infra'!$AN56>='Input-Gen'!$M$38,Z213,0) + Z365 + Z821 -Z517 -> 0 | AA61: =IF('Input-Infra'!$AN56>='Input-Gen'!$M$38,AA213,0) + AA365 + AA821 -AA517 -> 0 | AB61: =IF('Input-Infra'!$AN56>='Input-Gen'!$M$38,AB213,0) + AB365 + AB821 -AB517 -> 0 | AC61: =IF('Input-Infra'!$AN56>='Input-Gen'!$M$38,AC213,0) + AC365 + AC821 -AC517 -> 0
G62: 0 | I62: $'000 | K62: =NPV(WACC_nom,T62:AC62)+S62 -> 0 | Q62: 0 | S62: =IF('Input-Infra'!$AN57>='Input-Gen'!$M$38,S214,0) + S366 + S822 -S518 -> 0 | T62: =IF('Input-Infra'!$AN57>='Input-Gen'!$M$38,T214,0) + T366 + T822 -T518 -> 0 | U62: =IF('Input-Infra'!$AN57>='Input-Gen'!$M$38,U214,0) + U366 + U822 -U518 -> 0 | V62: =IF('Input-Infra'!$AN57>='Input-Gen'!$M$38,V214,0) + V366 + V822 -V518 -> 0 | W62: =IF('Input-Infra'!$AN57>='Input-Gen'!$M$38,W214,0) + W366 + W822 -W518 -> 0 | X62: =IF('Input-Infra'!$AN57>='Input-Gen'!$M$38,X214,0) + X366 + X822 -X518 -> 0 | Y62: =IF('Input-Infra'!$AN57>='Input-Gen'!$M$38,Y214,0) + Y366 + Y822 -Y518 -> 0 | Z62: =IF('Input-Infra'!$AN57>='Input-Gen'!$M$38,Z214,0) + Z366 + Z822 -Z518 -> 0 | AA62: =IF('Input-Infra'!$AN57>='Input-Gen'!$M$38,AA214,0) + AA366 + AA822 -AA518 -> 0 | AB62: =IF('Input-Infra'!$AN57>='Input-Gen'!$M$38,AB214,0) + AB366 + AB822 -AB518 -> 0 | AC62: =IF('Input-Infra'!$AN57>='Input-Gen'!$M$38,AC214,0) + AC366 + AC822 -AC518 -> 0
G63: 0 | I63: $'000 | K63: 0 | Q63: 0 | S63: =IF('Input-Infra'!$AN58>='Input-Gen'!$M$38,S215,0) + S367 + S823 -S519 -> 0 | T63: =IF('Input-Infra'!$AN58>='Input-Gen'!$M$38,T215,0) + T367 + T823 -T519 -> 0 | U63: =IF('Input-Infra'!$AN58>='Input-Gen'!$M$38,U215,0) + U367 + U823 -U519 -> 0 | V63: =IF('Input-Infra'!$AN58>='Input-Gen'!$M$38,V215,0) + V367 + V823 -V519 -> 0 | W63: =IF('Input-Infra'!$AN58>='Input-Gen'!$M$38,W215,0) + W367 + W823 -W519 -> 0 | X63: =IF('Input-Infra'!$AN58>='Input-Gen'!$M$38,X215,0) + X367 + X823 -X519 -> 0 | Y63: =IF('Input-Infra'!$AN58>='Input-Gen'!$M$38,Y215,0) + Y367 + Y823 -Y519 -> 0 | Z63: =IF('Input-Infra'!$AN58>='Input-Gen'!$M$38,Z215,0) + Z367 + Z823 -Z519 -> 0 | AA63: =IF('Input-Infra'!$AN58>='Input-Gen'!$M$38,AA215,0) + AA367 + AA823 -AA519 -> 0 | AB63: =IF('Input-Infra'!$AN58>='Input-Gen'!$M$38,AB215,0) + AB367 + AB823 -AB519 -> 0 | AC63: =IF('Input-Infra'!$AN58>='Input-Gen'!$M$38,AC215,0) + AC367 + AC823 -AC519 -> 0
G64: 0 | I64: $'000 | K64: 0 | Q64: 0 | S64: =IF('Input-Infra'!$AN59>='Input-Gen'!$M$38,S216,0) + S368 + S824 -S520 -> 0 | T64: =IF('Input-Infra'!$AN59>='Input-Gen'!$M$38,T216,0) + T368 + T824 -T520 -> 0 | U64: =IF('Input-Infra'!$AN59>='Input-Gen'!$M$38,U216,0) + U368 + U824 -U520 -> 0 | V64: =IF('Input-Infra'!$AN59>='Input-Gen'!$M$38,V216,0) + V368 + V824 -V520 -> 0 | W64: =IF('Input-Infra'!$AN59>='Input-Gen'!$M$38,W216,0) + W368 + W824 -W520 -> 0 | X64: =IF('Input-Infra'!$AN59>='Input-Gen'!$M$38,X216,0) + X368 + X824 -X520 -> 0 | Y64: =IF('Input-Infra'!$AN59>='Input-Gen'!$M$38,Y216,0) + Y368 + Y824 -Y520 -> 0 | Z64: =IF('Input-Infra'!$AN59>='Input-Gen'!$M$38,Z216,0) + Z368 + Z824 -Z520 -> 0 | AA64: =IF('Input-Infra'!$AN59>='Input-Gen'!$M$38,AA216,0) + AA368 + AA824 -AA520 -> 0 | AB64: =IF('Input-Infra'!$AN59>='Input-Gen'!$M$38,AB216,0) + AB368 + AB824 -AB520 -> 0 | AC64: =IF('Input-Infra'!$AN59>='Input-Gen'!$M$38,AC216,0) + AC368 + AC824 -AC520 -> 0
G65: 0 | I65: $'000 | K65: 0 | Q65: 0 | S65: =IF('Input-Infra'!$AN60>='Input-Gen'!$M$38,S217,0) + S369 + S825 -S521 -> 0 | T65: =IF('Input-Infra'!$AN60>='Input-Gen'!$M$38,T217,0) + T369 + T825 -T521 -> 0 | U65: =IF('Input-Infra'!$AN60>='Input-Gen'!$M$38,U217,0) + U369 + U825 -U521 -> 0 | V65: =IF('Input-Infra'!$AN60>='Input-Gen'!$M$38,V217,0) + V369 + V825 -V521 -> 0 | W65: =IF('Input-Infra'!$AN60>='Input-Gen'!$M$38,W217,0) + W369 + W825 -W521 -> 0 | X65: =IF('Input-Infra'!$AN60>='Input-Gen'!$M$38,X217,0) + X369 + X825 -X521 -> 0 | Y65: =IF('Input-Infra'!$AN60>='Input-Gen'!$M$38,Y217,0) + Y369 + Y825 -Y521 -> 0 | Z65: =IF('Input-Infra'!$AN60>='Input-Gen'!$M$38,Z217,0) + Z369 + Z825 -Z521 -> 0 | AA65: =IF('Input-Infra'!$AN60>='Input-Gen'!$M$38,AA217,0) + AA369 + AA825 -AA521 -> 0 | AB65: =IF('Input-Infra'!$AN60>='Input-Gen'!$M$38,AB217,0) + AB369 + AB825 -AB521 -> 0 | AC65: =IF('Input-Infra'!$AN60>='Input-Gen'!$M$38,AC217,0) + AC369 + AC825 -AC521 -> 0
G66: 0 | I66: $'000 | K66: 0 | Q66: 0 | S66: =IF('Input-Infra'!$AN61>='Input-Gen'!$M$38,S218,0) + S370 + S826 -S522 -> 0 | T66: =IF('Input-Infra'!$AN61>='Input-Gen'!$M$38,T218,0) + T370 + T826 -T522 -> 0 | U66: =IF('Input-Infra'!$AN61>='Input-Gen'!$M$38,U218,0) + U370 + U826 -U522 -> 0 | V66: =IF('Input-Infra'!$AN61>='Input-Gen'!$M$38,V218,0) + V370 + V826 -V522 -> 0 | W66: =IF('Input-Infra'!$AN61>='Input-Gen'!$M$38,W218,0) + W370 + W826 -W522 -> 0 | X66: =IF('Input-Infra'!$AN61>='Input-Gen'!$M$38,X218,0) + X370 + X826 -X522 -> 0 | Y66: =IF('Input-Infra'!$AN61>='Input-Gen'!$M$38,Y218,0) + Y370 + Y826 -Y522 -> 0 | Z66: =IF('Input-Infra'!$AN61>='Input-Gen'!$M$38,Z218,0) + Z370 + Z826 -Z522 -> 0 | AA66: =IF('Input-Infra'!$AN61>='Input-Gen'!$M$38,AA218,0) + AA370 + AA826 -AA522 -> 0 | AB66: =IF('Input-Infra'!$AN61>='Input-Gen'!$M$38,AB218,0) + AB370 + AB826 -AB522 -> 0 | AC66: =IF('Input-Infra'!$AN61>='Input-Gen'!$M$38,AC218,0) + AC370 + AC826 -AC522 -> 0
G67: 0 | I67: $'000 | K67: 0 | Q67: 0 | S67: =IF('Input-Infra'!$AN62>='Input-Gen'!$M$38,S219,0) + S371 + S827 -S523 -> 0 | T67: =IF('Input-Infra'!$AN62>='Input-Gen'!$M$38,T219,0) + T371 + T827 -T523 -> 0 | U67: =IF('Input-Infra'!$AN62>='Input-Gen'!$M$38,U219,0) + U371 + U827 -U523 -> 0 | V67: =IF('Input-Infra'!$AN62>='Input-Gen'!$M$38,V219,0) + V371 + V827 -V523 -> 0 | W67: =IF('Input-Infra'!$AN62>='Input-Gen'!$M$38,W219,0) + W371 + W827 -W523 -> 0 | X67: =IF('Input-Infra'!$AN62>='Input-Gen'!$M$38,X219,0) + X371 + X827 -X523 -> 0 | Y67: =IF('Input-Infra'!$AN62>='Input-Gen'!$M$38,Y219,0) + Y371 + Y827 -Y523 -> 0 | Z67: =IF('Input-Infra'!$AN62>='Input-Gen'!$M$38,Z219,0) + Z371 + Z827 -Z523 -> 0 | AA67: =IF('Input-Infra'!$AN62>='Input-Gen'!$M$38,AA219,0) + AA371 + AA827 -AA523 -> 0 | AB67: =IF('Input-Infra'!$AN62>='Input-Gen'!$M$38,AB219,0) + AB371 + AB827 -AB523 -> 0 | AC67: =IF('Input-Infra'!$AN62>='Input-Gen'!$M$38,AC219,0) + AC371 + AC827 -AC523 -> 0
G68: 0 | I68: $'000 | K68: 0 | Q68: 0 | S68: =IF('Input-Infra'!$AN63>='Input-Gen'!$M$38,S220,0) + S372 + S828 -S524 -> 0 | T68: =IF('Input-Infra'!$AN63>='Input-Gen'!$M$38,T220,0) + T372 + T828 -T524 -> 0 | U68: =IF('Input-Infra'!$AN63>='Input-Gen'!$M$38,U220,0) + U372 + U828 -U524 -> 0 | V68: =IF('Input-Infra'!$AN63>='Input-Gen'!$M$38,V220,0) + V372 + V828 -V524 -> 0 | W68: =IF('Input-Infra'!$AN63>='Input-Gen'!$M$38,W220,0) + W372 + W828 -W524 -> 0 | X68: =IF('Input-Infra'!$AN63>='Input-Gen'!$M$38,X220,0) + X372 + X828 -X524 -> 0 | Y68: =IF('Input-Infra'!$AN63>='Input-Gen'!$M$38,Y220,0) + Y372 + Y828 -Y524 -> 0 | Z68: =IF('Input-Infra'!$AN63>='Input-Gen'!$M$38,Z220,0) + Z372 + Z828 -Z524 -> 0 | AA68: =IF('Input-Infra'!$AN63>='Input-Gen'!$M$38,AA220,0) + AA372 + AA828 -AA524 -> 0 | AB68: =IF('Input-Infra'!$AN63>='Input-Gen'!$M$38,AB220,0) + AB372 + AB828 -AB524 -> 0 | AC68: =IF('Input-Infra'!$AN63>='Input-Gen'!$M$38,AC220,0) + AC372 + AC828 -AC524 -> 0
G69: 0 | I69: $'000 | K69: 0 | Q69: 0 | S69: =IF('Input-Infra'!$AN64>='Input-Gen'!$M$38,S221,0) + S373 + S829 -S525 -> 0 | T69: =IF('Input-Infra'!$AN64>='Input-Gen'!$M$38,T221,0) + T373 + T829 -T525 -> 0 | U69: =IF('Input-Infra'!$AN64>='Input-Gen'!$M$38,U221,0) + U373 + U829 -U525 -> 0 | V69: =IF('Input-Infra'!$AN64>='Input-Gen'!$M$38,V221,0) + V373 + V829 -V525 -> 0 | W69: =IF('Input-Infra'!$AN64>='Input-Gen'!$M$38,W221,0) + W373 + W829 -W525 -> 0 | X69: =IF('Input-Infra'!$AN64>='Input-Gen'!$M$38,X221,0) + X373 + X829 -X525 -> 0 | Y69: =IF('Input-Infra'!$AN64>='Input-Gen'!$M$38,Y221,0) + Y373 + Y829 -Y525 -> 0 | Z69: =IF('Input-Infra'!$AN64>='Input-Gen'!$M$38,Z221,0) + Z373 + Z829 -Z525 -> 0 | AA69: =IF('Input-Infra'!$AN64>='Input-Gen'!$M$38,AA221,0) + AA373 + AA829 -AA525 -> 0 | AB69: =IF('Input-Infra'!$AN64>='Input-Gen'!$M$38,AB221,0) + AB373 + AB829 -AB525 -> 0 | AC69: =IF('Input-Infra'!$AN64>='Input-Gen'!$M$38,AC221,0) + AC373 + AC829 -AC525 -> 0
G70: 0 | I70: $'000 | K70: 0 | Q70: 0 | S70: =IF('Input-Infra'!$AN65>='Input-Gen'!$M$38,S222,0) + S374 + S830 -S526 -> 0 | T70: =IF('Input-Infra'!$AN65>='Input-Gen'!$M$38,T222,0) + T374 + T830 -T526 -> 0 | U70: =IF('Input-Infra'!$AN65>='Input-Gen'!$M$38,U222,0) + U374 + U830 -U526 -> 0 | V70: =IF('Input-Infra'!$AN65>='Input-Gen'!$M$38,V222,0) + V374 + V830 -V526 -> 0 | W70: =IF('Input-Infra'!$AN65>='Input-Gen'!$M$38,W222,0) + W374 + W830 -W526 -> 0 | X70: =IF('Input-Infra'!$AN65>='Input-Gen'!$M$38,X222,0) + X374 + X830 -X526 -> 0 | Y70: =IF('Input-Infra'!$AN65>='Input-Gen'!$M$38,Y222,0) + Y374 + Y830 -Y526 -> 0 | Z70: =IF('Input-Infra'!$AN65>='Input-Gen'!$M$38,Z222,0) + Z374 + Z830 -Z526 -> 0 | AA70: =IF('Input-Infra'!$AN65>='Input-Gen'!$M$38,AA222,0) + AA374 + AA830 -AA526 -> 0 | AB70: =IF('Input-Infra'!$AN65>='Input-Gen'!$M$38,AB222,0) + AB374 + AB830 -AB526 -> 0 | AC70: =IF('Input-Infra'!$AN65>='Input-Gen'!$M$38,AC222,0) + AC374 + AC830 -AC526 -> 0
G71: 0 | I71: $'000 | K71: 0 | Q71: 0 | S71: =IF('Input-Infra'!$AN66>='Input-Gen'!$M$38,S223,0) + S375 + S831 -S527 -> 0 | T71: =IF('Input-Infra'!$AN66>='Input-Gen'!$M$38,T223,0) + T375 + T831 -T527 -> 0 | U71: =IF('Input-Infra'!$AN66>='Input-Gen'!$M$38,U223,0) + U375 + U831 -U527 -> 0 | V71: =IF('Input-Infra'!$AN66>='Input-Gen'!$M$38,V223,0) + V375 + V831 -V527 -> 0 | W71: =IF('Input-Infra'!$AN66>='Input-Gen'!$M$38,W223,0) + W375 + W831 -W527 -> 0 | X71: =IF('Input-Infra'!$AN66>='Input-Gen'!$M$38,X223,0) + X375 + X831 -X527 -> 0 | Y71: =IF('Input-Infra'!$AN66>='Input-Gen'!$M$38,Y223,0) + Y375 + Y831 -Y527 -> 0 | Z71: =IF('Input-Infra'!$AN66>='Input-Gen'!$M$38,Z223,0) + Z375 + Z831 -Z527 -> 0 | AA71: =IF('Input-Infra'!$AN66>='Input-Gen'!$M$38,AA223,0) + AA375 + AA831 -AA527 -> 0 | AB71: =IF('Input-Infra'!$AN66>='Input-Gen'!$M$38,AB223,0) + AB375 + AB831 -AB527 -> 0 | AC71: =IF('Input-Infra'!$AN66>='Input-Gen'!$M$38,AC223,0) + AC375 + AC831 -AC527 -> 0
G72: 0 | I72: $'000 | K72: 0 | Q72: 0 | S72: =IF('Input-Infra'!$AN67>='Input-Gen'!$M$38,S224,0) + S376 + S832 -S528 -> 0 | T72: =IF('Input-Infra'!$AN67>='Input-Gen'!$M$38,T224,0) + T376 + T832 -T528 -> 0 | U72: =IF('Input-Infra'!$AN67>='Input-Gen'!$M$38,U224,0) + U376 + U832 -U528 -> 0 | V72: =IF('Input-Infra'!$AN67>='Input-Gen'!$M$38,V224,0) + V376 + V832 -V528 -> 0 | W72: =IF('Input-Infra'!$AN67>='Input-Gen'!$M$38,W224,0) + W376 + W832 -W528 -> 0 | X72: =IF('Input-Infra'!$AN67>='Input-Gen'!$M$38,X224,0) + X376 + X832 -X528 -> 0 | Y72: =IF('Input-Infra'!$AN67>='Input-Gen'!$M$38,Y224,0) + Y376 + Y832 -Y528 -> 0 | Z72: =IF('Input-Infra'!$AN67>='Input-Gen'!$M$38,Z224,0) + Z376 + Z832 -Z528 -> 0 | AA72: =IF('Input-Infra'!$AN67>='Input-Gen'!$M$38,AA224,0) + AA376 + AA832 -AA528 -> 0 | AB72: =IF('Input-Infra'!$AN67>='Input-Gen'!$M$38,AB224,0) + AB376 + AB832 -AB528 -> 0 | AC72: =IF('Input-Infra'!$AN67>='Input-Gen'!$M$38,AC224,0) + AC376 + AC832 -AC528 -> 0
G73: 0 | I73: $'000 | K73: 0 | Q73: 0 | S73: =IF('Input-Infra'!$AN68>='Input-Gen'!$M$38,S225,0) + S377 + S833 -S529 -> 0 | T73: =IF('Input-Infra'!$AN68>='Input-Gen'!$M$38,T225,0) + T377 + T833 -T529 -> 0 | U73: =IF('Input-Infra'!$AN68>='Input-Gen'!$M$38,U225,0) + U377 + U833 -U529 -> 0 | V73: =IF('Input-Infra'!$AN68>='Input-Gen'!$M$38,V225,0) + V377 + V833 -V529 -> 0 | W73: =IF('Input-Infra'!$AN68>='Input-Gen'!$M$38,W225,0) + W377 + W833 -W529 -> 0 | X73: =IF('Input-Infra'!$AN68>='Input-Gen'!$M$38,X225,0) + X377 + X833 -X529 -> 0 | Y73: =IF('Input-Infra'!$AN68>='Input-Gen'!$M$38,Y225,0) + Y377 + Y833 -Y529 -> 0 | Z73: =IF('Input-Infra'!$AN68>='Input-Gen'!$M$38,Z225,0) + Z377 + Z833 -Z529 -> 0 | AA73: =IF('Input-Infra'!$AN68>='Input-Gen'!$M$38,AA225,0) + AA377 + AA833 -AA529 -> 0 | AB73: =IF('Input-Infra'!$AN68>='Input-Gen'!$M$38,AB225,0) + AB377 + AB833 -AB529 -> 0 | AC73: =IF('Input-Infra'!$AN68>='Input-Gen'!$M$38,AC225,0) + AC377 + AC833 -AC529 -> 0
G74: 0 | I74: $'000 | K74: 0 | Q74: 0 | S74: =IF('Input-Infra'!$AN69>='Input-Gen'!$M$38,S226,0) + S378 + S834 -S530 -> 0 | T74: =IF('Input-Infra'!$AN69>='Input-Gen'!$M$38,T226,0) + T378 + T834 -T530 -> 0 | U74: =IF('Input-Infra'!$AN69>='Input-Gen'!$M$38,U226,0) + U378 + U834 -U530 -> 0 | V74: =IF('Input-Infra'!$AN69>='Input-Gen'!$M$38,V226,0) + V378 + V834 -V530 -> 0 | W74: =IF('Input-Infra'!$AN69>='Input-Gen'!$M$38,W226,0) + W378 + W834 -W530 -> 0 | X74: =IF('Input-Infra'!$AN69>='Input-Gen'!$M$38,X226,0) + X378 + X834 -X530 -> 0 | Y74: =IF('Input-Infra'!$AN69>='Input-Gen'!$M$38,Y226,0) + Y378 + Y834 -Y530 -> 0 | Z74: =IF('Input-Infra'!$AN69>='Input-Gen'!$M$38,Z226,0) + Z378 + Z834 -Z530 -> 0 | AA74: =IF('Input-Infra'!$AN69>='Input-Gen'!$M$38,AA226,0) + AA378 + AA834 -AA530 -> 0 | AB74: =IF('Input-Infra'!$AN69>='Input-Gen'!$M$38,AB226,0) + AB378 + AB834 -AB530 -> 0 | AC74: =IF('Input-Infra'!$AN69>='Input-Gen'!$M$38,AC226,0) + AC378 + AC834 -AC530 -> 0
G75: 0 | I75: $'000 | K75: 0 | Q75: 0 | S75: =IF('Input-Infra'!$AN70>='Input-Gen'!$M$38,S227,0) + S379 + S835 -S531 -> 0 | T75: =IF('Input-Infra'!$AN70>='Input-Gen'!$M$38,T227,0) + T379 + T835 -T531 -> 0 | U75: =IF('Input-Infra'!$AN70>='Input-Gen'!$M$38,U227,0) + U379 + U835 -U531 -> 0 | V75: =IF('Input-Infra'!$AN70>='Input-Gen'!$M$38,V227,0) + V379 + V835 -V531 -> 0 | W75: =IF('Input-Infra'!$AN70>='Input-Gen'!$M$38,W227,0) + W379 + W835 -W531 -> 0 | X75: =IF('Input-Infra'!$AN70>='Input-Gen'!$M$38,X227,0) + X379 + X835 -X531 -> 0 | Y75: =IF('Input-Infra'!$AN70>='Input-Gen'!$M$38,Y227,0) + Y379 + Y835 -Y531 -> 0 | Z75: =IF('Input-Infra'!$AN70>='Input-Gen'!$M$38,Z227,0) + Z379 + Z835 -Z531 -> 0 | AA75: =IF('Input-Infra'!$AN70>='Input-Gen'!$M$38,AA227,0) + AA379 + AA835 -AA531 -> 0 | AB75: =IF('Input-Infra'!$AN70>='Input-Gen'!$M$38,AB227,0) + AB379 + AB835 -AB531 -> 0 | AC75: =IF('Input-Infra'!$AN70>='Input-Gen'!$M$38,AC227,0) + AC379 + AC835 -AC531 -> 0
G76: 0 | I76: $'000 | K76: 0 | Q76: 0 | S76: =IF('Input-Infra'!$AN71>='Input-Gen'!$M$38,S228,0) + S380 + S836 -S532 -> 0 | T76: =IF('Input-Infra'!$AN71>='Input-Gen'!$M$38,T228,0) + T380 + T836 -T532 -> 0 | U76: =IF('Input-Infra'!$AN71>='Input-Gen'!$M$38,U228,0) + U380 + U836 -U532 -> 0 | V76: =IF('Input-Infra'!$AN71>='Input-Gen'!$M$38,V228,0) + V380 + V836 -V532 -> 0 | W76: =IF('Input-Infra'!$AN71>='Input-Gen'!$M$38,W228,0) + W380 + W836 -W532 -> 0 | X76: =IF('Input-Infra'!$AN71>='Input-Gen'!$M$38,X228,0) + X380 + X836 -X532 -> 0 | Y76: =IF('Input-Infra'!$AN71>='Input-Gen'!$M$38,Y228,0) + Y380 + Y836 -Y532 -> 0 | Z76: =IF('Input-Infra'!$AN71>='Input-Gen'!$M$38,Z228,0) + Z380 + Z836 -Z532 -> 0 | AA76: =IF('Input-Infra'!$AN71>='Input-Gen'!$M$38,AA228,0) + AA380 + AA836 -AA532 -> 0 | AB76: =IF('Input-Infra'!$AN71>='Input-Gen'!$M$38,AB228,0) + AB380 + AB836 -AB532 -> 0 | AC76: =IF('Input-Infra'!$AN71>='Input-Gen'!$M$38,AC228,0) + AC380 + AC836 -AC532 -> 0
G77: 0 | I77: $'000 | K77: 0 | Q77: 0 | S77: =IF('Input-Infra'!$AN72>='Input-Gen'!$M$38,S229,0) + S381 + S837 -S533 -> 0 | T77: =IF('Input-Infra'!$AN72>='Input-Gen'!$M$38,T229,0) + T381 + T837 -T533 -> 0 | U77: =IF('Input-Infra'!$AN72>='Input-Gen'!$M$38,U229,0) + U381 + U837 -U533 -> 0 | V77: =IF('Input-Infra'!$AN72>='Input-Gen'!$M$38,V229,0) + V381 + V837 -V533 -> 0 | W77: =IF('Input-Infra'!$AN72>='Input-Gen'!$M$38,W229,0) + W381 + W837 -W533 -> 0 | X77: =IF('Input-Infra'!$AN72>='Input-Gen'!$M$38,X229,0) + X381 + X837 -X533 -> 0 | Y77: =IF('Input-Infra'!$AN72>='Input-Gen'!$M$38,Y229,0) + Y381 + Y837 -Y533 -> 0 | Z77: =IF('Input-Infra'!$AN72>='Input-Gen'!$M$38,Z229,0) + Z381 + Z837 -Z533 -> 0 | AA77: =IF('Input-Infra'!$AN72>='Input-Gen'!$M$38,AA229,0) + AA381 + AA837 -AA533 -> 0 | AB77: =IF('Input-Infra'!$AN72>='Input-Gen'!$M$38,AB229,0) + AB381 + AB837 -AB533 -> 0 | AC77: =IF('Input-Infra'!$AN72>='Input-Gen'!$M$38,AC229,0) + AC381 + AC837 -AC533 -> 0
G78: 0 | I78: $'000 | K78: 0 | Q78: 0 | S78: =IF('Input-Infra'!$AN73>='Input-Gen'!$M$38,S230,0) + S382 + S838 -S534 -> 0 | T78: =IF('Input-Infra'!$AN73>='Input-Gen'!$M$38,T230,0) + T382 + T838 -T534 -> 0 | U78: =IF('Input-Infra'!$AN73>='Input-Gen'!$M$38,U230,0) + U382 + U838 -U534 -> 0 | V78: =IF('Input-Infra'!$AN73>='Input-Gen'!$M$38,V230,0) + V382 + V838 -V534 -> 0 | W78: =IF('Input-Infra'!$AN73>='Input-Gen'!$M$38,W230,0) + W382 + W838 -W534 -> 0 | X78: =IF('Input-Infra'!$AN73>='Input-Gen'!$M$38,X230,0) + X382 + X838 -X534 -> 0 | Y78: =IF('Input-Infra'!$AN73>='Input-Gen'!$M$38,Y230,0) + Y382 + Y838 -Y534 -> 0 | Z78: =IF('Input-Infra'!$AN73>='Input-Gen'!$M$38,Z230,0) + Z382 + Z838 -Z534 -> 0 | AA78: =IF('Input-Infra'!$AN73>='Input-Gen'!$M$38,AA230,0) + AA382 + AA838 -AA534 -> 0 | AB78: =IF('Input-Infra'!$AN73>='Input-Gen'!$M$38,AB230,0) + AB382 + AB838 -AB534 -> 0 | AC78: =IF('Input-Infra'!$AN73>='Input-Gen'!$M$38,AC230,0) + AC382 + AC838 -AC534 -> 0
G79: 0 | I79: $'000 | K79: 0 | Q79: 0 | S79: =IF('Input-Infra'!$AN74>='Input-Gen'!$M$38,S231,0) + S383 + S839 -S535 -> 0 | T79: =IF('Input-Infra'!$AN74>='Input-Gen'!$M$38,T231,0) + T383 + T839 -T535 -> 0 | U79: =IF('Input-Infra'!$AN74>='Input-Gen'!$M$38,U231,0) + U383 + U839 -U535 -> 0 | V79: =IF('Input-Infra'!$AN74>='Input-Gen'!$M$38,V231,0) + V383 + V839 -V535 -> 0 | W79: =IF('Input-Infra'!$AN74>='Input-Gen'!$M$38,W231,0) + W383 + W839 -W535 -> 0 | X79: =IF('Input-Infra'!$AN74>='Input-Gen'!$M$38,X231,0) + X383 + X839 -X535 -> 0 | Y79: =IF('Input-Infra'!$AN74>='Input-Gen'!$M$38,Y231,0) + Y383 + Y839 -Y535 -> 0 | Z79: =IF('Input-Infra'!$AN74>='Input-Gen'!$M$38,Z231,0) + Z383 + Z839 -Z535 -> 0 | AA79: =IF('Input-Infra'!$AN74>='Input-Gen'!$M$38,AA231,0) + AA383 + AA839 -AA535 -> 0 | AB79: =IF('Input-Infra'!$AN74>='Input-Gen'!$M$38,AB231,0) + AB383 + AB839 -AB535 -> 0 | AC79: =IF('Input-Infra'!$AN74>='Input-Gen'!$M$38,AC231,0) + AC383 + AC839 -AC535 -> 0
G80: 0 | I80: $'000 | K80: 0 | Q80: 0 | S80: =IF('Input-Infra'!$AN75>='Input-Gen'!$M$38,S232,0) + S384 + S840 -S536 -> 0 | T80: =IF('Input-Infra'!$AN75>='Input-Gen'!$M$38,T232,0) + T384 + T840 -T536 -> 0 | U80: =IF('Input-Infra'!$AN75>='Input-Gen'!$M$38,U232,0) + U384 + U840 -U536 -> 0 | V80: =IF('Input-Infra'!$AN75>='Input-Gen'!$M$38,V232,0) + V384 + V840 -V536 -> 0 | W80: =IF('Input-Infra'!$AN75>='Input-Gen'!$M$38,W232,0) + W384 + W840 -W536 -> 0 | X80: =IF('Input-Infra'!$AN75>='Input-Gen'!$M$38,X232,0) + X384 + X840 -X536 -> 0 | Y80: =IF('Input-Infra'!$AN75>='Input-Gen'!$M$38,Y232,0) + Y384 + Y840 -Y536 -> 0 | Z80: =IF('Input-Infra'!$AN75>='Input-Gen'!$M$38,Z232,0) + Z384 + Z840 -Z536 -> 0 | AA80: =IF('Input-Infra'!$AN75>='Input-Gen'!$M$38,AA232,0) + AA384 + AA840 -AA536 -> 0 | AB80: =IF('Input-Infra'!$AN75>='Input-Gen'!$M$38,AB232,0) + AB384 + AB840 -AB536 -> 0 | AC80: =IF('Input-Infra'!$AN75>='Input-Gen'!$M$38,AC232,0) + AC384 + AC840 -AC536 -> 0
G81: 0 | I81: $'000 | K81: 0 | Q81: 0 | S81: =IF('Input-Infra'!$AN76>='Input-Gen'!$M$38,S233,0) + S385 + S841 -S537 -> 0 | T81: =IF('Input-Infra'!$AN76>='Input-Gen'!$M$38,T233,0) + T385 + T841 -T537 -> 0 | U81: =IF('Input-Infra'!$AN76>='Input-Gen'!$M$38,U233,0) + U385 + U841 -U537 -> 0 | V81: =IF('Input-Infra'!$AN76>='Input-Gen'!$M$38,V233,0) + V385 + V841 -V537 -> 0 | W81: =IF('Input-Infra'!$AN76>='Input-Gen'!$M$38,W233,0) + W385 + W841 -W537 -> 0 | X81: =IF('Input-Infra'!$AN76>='Input-Gen'!$M$38,X233,0) + X385 + X841 -X537 -> 0 | Y81: =IF('Input-Infra'!$AN76>='Input-Gen'!$M$38,Y233,0) + Y385 + Y841 -Y537 -> 0 | Z81: =IF('Input-Infra'!$AN76>='Input-Gen'!$M$38,Z233,0) + Z385 + Z841 -Z537 -> 0 | AA81: =IF('Input-Infra'!$AN76>='Input-Gen'!$M$38,AA233,0) + AA385 + AA841 -AA537 -> 0 | AB81: =IF('Input-Infra'!$AN76>='Input-Gen'!$M$38,AB233,0) + AB385 + AB841 -AB537 -> 0 | AC81: =IF('Input-Infra'!$AN76>='Input-Gen'!$M$38,AC233,0) + AC385 + AC841 -AC537 -> 0
G82: 0 | I82: $'000 | K82: 0 | Q82: 0 | S82: =IF('Input-Infra'!$AN77>='Input-Gen'!$M$38,S234,0) + S386 + S842 -S538 -> 0 | T82: =IF('Input-Infra'!$AN77>='Input-Gen'!$M$38,T234,0) + T386 + T842 -T538 -> 0 | U82: =IF('Input-Infra'!$AN77>='Input-Gen'!$M$38,U234,0) + U386 + U842 -U538 -> 0 | V82: =IF('Input-Infra'!$AN77>='Input-Gen'!$M$38,V234,0) + V386 + V842 -V538 -> 0 | W82: =IF('Input-Infra'!$AN77>='Input-Gen'!$M$38,W234,0) + W386 + W842 -W538 -> 0 | X82: =IF('Input-Infra'!$AN77>='Input-Gen'!$M$38,X234,0) + X386 + X842 -X538 -> 0 | Y82: =IF('Input-Infra'!$AN77>='Input-Gen'!$M$38,Y234,0) + Y386 + Y842 -Y538 -> 0 | Z82: =IF('Input-Infra'!$AN77>='Input-Gen'!$M$38,Z234,0) + Z386 + Z842 -Z538 -> 0 | AA82: =IF('Input-Infra'!$AN77>='Input-Gen'!$M$38,AA234,0) + AA386 + AA842 -AA538 -> 0 | AB82: =IF('Input-Infra'!$AN77>='Input-Gen'!$M$38,AB234,0) + AB386 + AB842 -AB538 -> 0 | AC82: =IF('Input-Infra'!$AN77>='Input-Gen'!$M$38,AC234,0) + AC386 + AC842 -AC538 -> 0
G83: 0 | I83: $'000 | K83: 0 | Q83: 0 | S83: =IF('Input-Infra'!$AN78>='Input-Gen'!$M$38,S235,0) + S387 + S843 -S539 -> 0 | T83: =IF('Input-Infra'!$AN78>='Input-Gen'!$M$38,T235,0) + T387 + T843 -T539 -> 0 | U83: =IF('Input-Infra'!$AN78>='Input-Gen'!$M$38,U235,0) + U387 + U843 -U539 -> 0 | V83: =IF('Input-Infra'!$AN78>='Input-Gen'!$M$38,V235,0) + V387 + V843 -V539 -> 0 | W83: =IF('Input-Infra'!$AN78>='Input-Gen'!$M$38,W235,0) + W387 + W843 -W539 -> 0 | X83: =IF('Input-Infra'!$AN78>='Input-Gen'!$M$38,X235,0) + X387 + X843 -X539 -> 0 | Y83: =IF('Input-Infra'!$AN78>='Input-Gen'!$M$38,Y235,0) + Y387 + Y843 -Y539 -> 0 | Z83: =IF('Input-Infra'!$AN78>='Input-Gen'!$M$38,Z235,0) + Z387 + Z843 -Z539 -> 0 | AA83: =IF('Input-Infra'!$AN78>='Input-Gen'!$M$38,AA235,0) + AA387 + AA843 -AA539 -> 0 | AB83: =IF('Input-Infra'!$AN78>='Input-Gen'!$M$38,AB235,0) + AB387 + AB843 -AB539 -> 0 | AC83: =IF('Input-Infra'!$AN78>='Input-Gen'!$M$38,AC235,0) + AC387 + AC843 -AC539 -> 0
G84: 0 | I84: $'000 | K84: 0 | Q84: 0 | S84: =IF('Input-Infra'!$AN79>='Input-Gen'!$M$38,S236,0) + S388 + S844 -S540 -> 0 | T84: =IF('Input-Infra'!$AN79>='Input-Gen'!$M$38,T236,0) + T388 + T844 -T540 -> 0 | U84: =IF('Input-Infra'!$AN79>='Input-Gen'!$M$38,U236,0) + U388 + U844 -U540 -> 0 | V84: =IF('Input-Infra'!$AN79>='Input-Gen'!$M$38,V236,0) + V388 + V844 -V540 -> 0 | W84: =IF('Input-Infra'!$AN79>='Input-Gen'!$M$38,W236,0) + W388 + W844 -W540 -> 0 | X84: =IF('Input-Infra'!$AN79>='Input-Gen'!$M$38,X236,0) + X388 + X844 -X540 -> 0 | Y84: =IF('Input-Infra'!$AN79>='Input-Gen'!$M$38,Y236,0) + Y388 + Y844 -Y540 -> 0 | Z84: =IF('Input-Infra'!$AN79>='Input-Gen'!$M$38,Z236,0) + Z388 + Z844 -Z540 -> 0 | AA84: =IF('Input-Infra'!$AN79>='Input-Gen'!$M$38,AA236,0) + AA388 + AA844 -AA540 -> 0 | AB84: =IF('Input-Infra'!$AN79>='Input-Gen'!$M$38,AB236,0) + AB388 + AB844 -AB540 -> 0 | AC84: =IF('Input-Infra'!$AN79>='Input-Gen'!$M$38,AC236,0) + AC388 + AC844 -AC540 -> 0
G85: 0 | I85: $'000 | K85: 0 | Q85: 0 | S85: =IF('Input-Infra'!$AN80>='Input-Gen'!$M$38,S237,0) + S389 + S845 -S541 -> 0 | T85: =IF('Input-Infra'!$AN80>='Input-Gen'!$M$38,T237,0) + T389 + T845 -T541 -> 0 | U85: =IF('Input-Infra'!$AN80>='Input-Gen'!$M$38,U237,0) + U389 + U845 -U541 -> 0 | V85: =IF('Input-Infra'!$AN80>='Input-Gen'!$M$38,V237,0) + V389 + V845 -V541 -> 0 | W85: =IF('Input-Infra'!$AN80>='Input-Gen'!$M$38,W237,0) + W389 + W845 -W541 -> 0 | X85: =IF('Input-Infra'!$AN80>='Input-Gen'!$M$38,X237,0) + X389 + X845 -X541 -> 0 | Y85: =IF('Input-Infra'!$AN80>='Input-Gen'!$M$38,Y237,0) + Y389 + Y845 -Y541 -> 0 | Z85: =IF('Input-Infra'!$AN80>='Input-Gen'!$M$38,Z237,0) + Z389 + Z845 -Z541 -> 0 | AA85: =IF('Input-Infra'!$AN80>='Input-Gen'!$M$38,AA237,0) + AA389 + AA845 -AA541 -> 0 | AB85: =IF('Input-Infra'!$AN80>='Input-Gen'!$M$38,AB237,0) + AB389 + AB845 -AB541 -> 0 | AC85: =IF('Input-Infra'!$AN80>='Input-Gen'!$M$38,AC237,0) + AC389 + AC845 -AC541 -> 0
G86: 0 | I86: $'000 | K86: 0 | Q86: 0 | S86: =IF('Input-Infra'!$AN81>='Input-Gen'!$M$38,S238,0) + S390 + S846 -S542 -> 0 | T86: =IF('Input-Infra'!$AN81>='Input-Gen'!$M$38,T238,0) + T390 + T846 -T542 -> 0 | U86: =IF('Input-Infra'!$AN81>='Input-Gen'!$M$38,U238,0) + U390 + U846 -U542 -> 0 | V86: =IF('Input-Infra'!$AN81>='Input-Gen'!$M$38,V238,0) + V390 + V846 -V542 -> 0 | W86: =IF('Input-Infra'!$AN81>='Input-Gen'!$M$38,W238,0) + W390 + W846 -W542 -> 0 | X86: =IF('Input-Infra'!$AN81>='Input-Gen'!$M$38,X238,0) + X390 + X846 -X542 -> 0 | Y86: =IF('Input-Infra'!$AN81>='Input-Gen'!$M$38,Y238,0) + Y390 + Y846 -Y542 -> 0 | Z86: =IF('Input-Infra'!$AN81>='Input-Gen'!$M$38,Z238,0) + Z390 + Z846 -Z542 -> 0 | AA86: =IF('Input-Infra'!$AN81>='Input-Gen'!$M$38,AA238,0) + AA390 + AA846 -AA542 -> 0 | AB86: =IF('Input-Infra'!$AN81>='Input-Gen'!$M$38,AB238,0) + AB390 + AB846 -AB542 -> 0 | AC86: =IF('Input-Infra'!$AN81>='Input-Gen'!$M$38,AC238,0) + AC390 + AC846 -AC542 -> 0
G87: 0 | I87: $'000 | K87: 0 | Q87: 0 | S87: =IF('Input-Infra'!$AN82>='Input-Gen'!$M$38,S239,0) + S391 + S847 -S543 -> 0 | T87: =IF('Input-Infra'!$AN82>='Input-Gen'!$M$38,T239,0) + T391 + T847 -T543 -> 0 | U87: =IF('Input-Infra'!$AN82>='Input-Gen'!$M$38,U239,0) + U391 + U847 -U543 -> 0 | V87: =IF('Input-Infra'!$AN82>='Input-Gen'!$M$38,V239,0) + V391 + V847 -V543 -> 0 | W87: =IF('Input-Infra'!$AN82>='Input-Gen'!$M$38,W239,0) + W391 + W847 -W543 -> 0 | X87: =IF('Input-Infra'!$AN82>='Input-Gen'!$M$38,X239,0) + X391 + X847 -X543 -> 0 | Y87: =IF('Input-Infra'!$AN82>='Input-Gen'!$M$38,Y239,0) + Y391 + Y847 -Y543 -> 0 | Z87: =IF('Input-Infra'!$AN82>='Input-Gen'!$M$38,Z239,0) + Z391 + Z847 -Z543 -> 0 | AA87: =IF('Input-Infra'!$AN82>='Input-Gen'!$M$38,AA239,0) + AA391 + AA847 -AA543 -> 0 | AB87: =IF('Input-Infra'!$AN82>='Input-Gen'!$M$38,AB239,0) + AB391 + AB847 -AB543 -> 0 | AC87: =IF('Input-Infra'!$AN82>='Input-Gen'!$M$38,AC239,0) + AC391 + AC847 -AC543 -> 0
G88: 0 | I88: $'000 | K88: 0 | Q88: 0 | S88: =IF('Input-Infra'!$AN83>='Input-Gen'!$M$38,S240,0) + S392 + S848 -S544 -> 0 | T88: =IF('Input-Infra'!$AN83>='Input-Gen'!$M$38,T240,0) + T392 + T848 -T544 -> 0 | U88: =IF('Input-Infra'!$AN83>='Input-Gen'!$M$38,U240,0) + U392 + U848 -U544 -> 0 | V88: =IF('Input-Infra'!$AN83>='Input-Gen'!$M$38,V240,0) + V392 + V848 -V544 -> 0 | W88: =IF('Input-Infra'!$AN83>='Input-Gen'!$M$38,W240,0) + W392 + W848 -W544 -> 0 | X88: =IF('Input-Infra'!$AN83>='Input-Gen'!$M$38,X240,0) + X392 + X848 -X544 -> 0 | Y88: =IF('Input-Infra'!$AN83>='Input-Gen'!$M$38,Y240,0) + Y392 + Y848 -Y544 -> 0 | Z88: =IF('Input-Infra'!$AN83>='Input-Gen'!$M$38,Z240,0) + Z392 + Z848 -Z544 -> 0 | AA88: =IF('Input-Infra'!$AN83>='Input-Gen'!$M$38,AA240,0) + AA392 + AA848 -AA544 -> 0 | AB88: =IF('Input-Infra'!$AN83>='Input-Gen'!$M$38,AB240,0) + AB392 + AB848 -AB544 -> 0 | AC88: =IF('Input-Infra'!$AN83>='Input-Gen'!$M$38,AC240,0) + AC392 + AC848 -AC544 -> 0
G89: 0 | I89: $'000 | K89: 0 | Q89: 0 | S89: =IF('Input-Infra'!$AN84>='Input-Gen'!$M$38,S241,0) + S393 + S849 -S545 -> 0 | T89: =IF('Input-Infra'!$AN84>='Input-Gen'!$M$38,T241,0) + T393 + T849 -T545 -> 0 | U89: =IF('Input-Infra'!$AN84>='Input-Gen'!$M$38,U241,0) + U393 + U849 -U545 -> 0 | V89: =IF('Input-Infra'!$AN84>='Input-Gen'!$M$38,V241,0) + V393 + V849 -V545 -> 0 | W89: =IF('Input-Infra'!$AN84>='Input-Gen'!$M$38,W241,0) + W393 + W849 -W545 -> 0 | X89: =IF('Input-Infra'!$AN84>='Input-Gen'!$M$38,X241,0) + X393 + X849 -X545 -> 0 | Y89: =IF('Input-Infra'!$AN84>='Input-Gen'!$M$38,Y241,0) + Y393 + Y849 -Y545 -> 0 | Z89: =IF('Input-Infra'!$AN84>='Input-Gen'!$M$38,Z241,0) + Z393 + Z849 -Z545 -> 0 | AA89: =IF('Input-Infra'!$AN84>='Input-Gen'!$M$38,AA241,0) + AA393 + AA849 -AA545 -> 0 | AB89: =IF('Input-Infra'!$AN84>='Input-Gen'!$M$38,AB241,0) + AB393 + AB849 -AB545 -> 0 | AC89: =IF('Input-Infra'!$AN84>='Input-Gen'!$M$38,AC241,0) + AC393 + AC849 -AC545 -> 0
G90: 0 | I90: $'000 | K90: 0 | Q90: 0 | S90: =IF('Input-Infra'!$AN85>='Input-Gen'!$M$38,S242,0) + S394 + S850 -S546 -> 0 | T90: =IF('Input-Infra'!$AN85>='Input-Gen'!$M$38,T242,0) + T394 + T850 -T546 -> 0 | U90: =IF('Input-Infra'!$AN85>='Input-Gen'!$M$38,U242,0) + U394 + U850 -U546 -> 0 | V90: =IF('Input-Infra'!$AN85>='Input-Gen'!$M$38,V242,0) + V394 + V850 -V546 -> 0 | W90: =IF('Input-Infra'!$AN85>='Input-Gen'!$M$38,W242,0) + W394 + W850 -W546 -> 0 | X90: =IF('Input-Infra'!$AN85>='Input-Gen'!$M$38,X242,0) + X394 + X850 -X546 -> 0 | Y90: =IF('Input-Infra'!$AN85>='Input-Gen'!$M$38,Y242,0) + Y394 + Y850 -Y546 -> 0 | Z90: =IF('Input-Infra'!$AN85>='Input-Gen'!$M$38,Z242,0) + Z394 + Z850 -Z546 -> 0 | AA90: =IF('Input-Infra'!$AN85>='Input-Gen'!$M$38,AA242,0) + AA394 + AA850 -AA546 -> 0 | AB90: =IF('Input-Infra'!$AN85>='Input-Gen'!$M$38,AB242,0) + AB394 + AB850 -AB546 -> 0 | AC90: =IF('Input-Infra'!$AN85>='Input-Gen'!$M$38,AC242,0) + AC394 + AC850 -AC546 -> 0
G91: 0 | I91: $'000 | K91: 0 | Q91: 0 | S91: =IF('Input-Infra'!$AN86>='Input-Gen'!$M$38,S243,0) + S395 + S851 -S547 -> 0 | T91: =IF('Input-Infra'!$AN86>='Input-Gen'!$M$38,T243,0) + T395 + T851 -T547 -> 0 | U91: =IF('Input-Infra'!$AN86>='Input-Gen'!$M$38,U243,0) + U395 + U851 -U547 -> 0 | V91: =IF('Input-Infra'!$AN86>='Input-Gen'!$M$38,V243,0) + V395 + V851 -V547 -> 0 | W91: =IF('Input-Infra'!$AN86>='Input-Gen'!$M$38,W243,0) + W395 + W851 -W547 -> 0 | X91: =IF('Input-Infra'!$AN86>='Input-Gen'!$M$38,X243,0) + X395 + X851 -X547 -> 0 | Y91: =IF('Input-Infra'!$AN86>='Input-Gen'!$M$38,Y243,0) + Y395 + Y851 -Y547 -> 0 | Z91: =IF('Input-Infra'!$AN86>='Input-Gen'!$M$38,Z243,0) + Z395 + Z851 -Z547 -> 0 | AA91: =IF('Input-Infra'!$AN86>='Input-Gen'!$M$38,AA243,0) + AA395 + AA851 -AA547 -> 0 | AB91: =IF('Input-Infra'!$AN86>='Input-Gen'!$M$38,AB243,0) + AB395 + AB851 -AB547 -> 0 | AC91: =IF('Input-Infra'!$AN86>='Input-Gen'!$M$38,AC243,0) + AC395 + AC851 -AC547 -> 0
G92: 0 | I92: $'000 | K92: 0 | Q92: 0 | S92: =IF('Input-Infra'!$AN87>='Input-Gen'!$M$38,S244,0) + S396 + S852 -S548 -> 0 | T92: =IF('Input-Infra'!$AN87>='Input-Gen'!$M$38,T244,0) + T396 + T852 -T548 -> 0 | U92: =IF('Input-Infra'!$AN87>='Input-Gen'!$M$38,U244,0) + U396 + U852 -U548 -> 0 | V92: =IF('Input-Infra'!$AN87>='Input-Gen'!$M$38,V244,0) + V396 + V852 -V548 -> 0 | W92: =IF('Input-Infra'!$AN87>='Input-Gen'!$M$38,W244,0) + W396 + W852 -W548 -> 0 | X92: =IF('Input-Infra'!$AN87>='Input-Gen'!$M$38,X244,0) + X396 + X852 -X548 -> 0 | Y92: =IF('Input-Infra'!$AN87>='Input-Gen'!$M$38,Y244,0) + Y396 + Y852 -Y548 -> 0 | Z92: =IF('Input-Infra'!$AN87>='Input-Gen'!$M$38,Z244,0) + Z396 + Z852 -Z548 -> 0 | AA92: =IF('Input-Infra'!$AN87>='Input-Gen'!$M$38,AA244,0) + AA396 + AA852 -AA548 -> 0 | AB92: =IF('Input-Infra'!$AN87>='Input-Gen'!$M$38,AB244,0) + AB396 + AB852 -AB548 -> 0 | AC92: =IF('Input-Infra'!$AN87>='Input-Gen'!$M$38,AC244,0) + AC396 + AC852 -AC548 -> 0
G93: 0 | I93: $'000 | K93: 0 | Q93: 0 | S93: =IF('Input-Infra'!$AN88>='Input-Gen'!$M$38,S245,0) + S397 + S853 -S549 -> 0 | T93: =IF('Input-Infra'!$AN88>='Input-Gen'!$M$38,T245,0) + T397 + T853 -T549 -> 0 | U93: =IF('Input-Infra'!$AN88>='Input-Gen'!$M$38,U245,0) + U397 + U853 -U549 -> 0 | V93: =IF('Input-Infra'!$AN88>='Input-Gen'!$M$38,V245,0) + V397 + V853 -V549 -> 0 | W93: =IF('Input-Infra'!$AN88>='Input-Gen'!$M$38,W245,0) + W397 + W853 -W549 -> 0 | X93: =IF('Input-Infra'!$AN88>='Input-Gen'!$M$38,X245,0) + X397 + X853 -X549 -> 0 | Y93: =IF('Input-Infra'!$AN88>='Input-Gen'!$M$38,Y245,0) + Y397 + Y853 -Y549 -> 0 | Z93: =IF('Input-Infra'!$AN88>='Input-Gen'!$M$38,Z245,0) + Z397 + Z853 -Z549 -> 0 | AA93: =IF('Input-Infra'!$AN88>='Input-Gen'!$M$38,AA245,0) + AA397 + AA853 -AA549 -> 0 | AB93: =IF('Input-Infra'!$AN88>='Input-Gen'!$M$38,AB245,0) + AB397 + AB853 -AB549 -> 0 | AC93: =IF('Input-Infra'!$AN88>='Input-Gen'!$M$38,AC245,0) + AC397 + AC853 -AC549 -> 0
G94: 0 | I94: $'000 | K94: =NPV(WACC_nom,T94:AC94)+S94 -> 0 | Q94: 0 | S94: =IF('Input-Infra'!$AN89>='Input-Gen'!$M$38,S246,0) + S398 + S854 -S550 -> 0 | T94: =IF('Input-Infra'!$AN89>='Input-Gen'!$M$38,T246,0) + T398 + T854 -T550 -> 0 | U94: =IF('Input-Infra'!$AN89>='Input-Gen'!$M$38,U246,0) + U398 + U854 -U550 -> 0 | V94: =IF('Input-Infra'!$AN89>='Input-Gen'!$M$38,V246,0) + V398 + V854 -V550 -> 0 | W94: =IF('Input-Infra'!$AN89>='Input-Gen'!$M$38,W246,0) + W398 + W854 -W550 -> 0 | X94: =IF('Input-Infra'!$AN89>='Input-Gen'!$M$38,X246,0) + X398 + X854 -X550 -> 0 | Y94: =IF('Input-Infra'!$AN89>='Input-Gen'!$M$38,Y246,0) + Y398 + Y854 -Y550 -> 0 | Z94: =IF('Input-Infra'!$AN89>='Input-Gen'!$M$38,Z246,0) + Z398 + Z854 -Z550 -> 0 | AA94: =IF('Input-Infra'!$AN89>='Input-Gen'!$M$38,AA246,0) + AA398 + AA854 -AA550 -> 0 | AB94: =IF('Input-Infra'!$AN89>='Input-Gen'!$M$38,AB246,0) + AB398 + AB854 -AB550 -> 0 | AC94: =IF('Input-Infra'!$AN89>='Input-Gen'!$M$38,AC246,0) + AC398 + AC854 -AC550 -> 0
G95: 0 | I95: $'000 | K95: 0 | Q95: =SUM(S95:AC95) -> 0 | S95: =IF('Input-Infra'!$AN90>='Input-Gen'!$M$38,S247,0) + S399 + S855 -S551 -> 0 | T95: =IF('Input-Infra'!$AN90>='Input-Gen'!$M$38,T247,0) + T399 + T855 -T551 -> 0 | U95: =IF('Input-Infra'!$AN90>='Input-Gen'!$M$38,U247,0) + U399 + U855 -U551 -> 0 | V95: =IF('Input-Infra'!$AN90>='Input-Gen'!$M$38,V247,0) + V399 + V855 -V551 -> 0 | W95: =IF('Input-Infra'!$AN90>='Input-Gen'!$M$38,W247,0) + W399 + W855 -W551 -> 0 | X95: =IF('Input-Infra'!$AN90>='Input-Gen'!$M$38,X247,0) + X399 + X855 -X551 -> 0 | Y95: =IF('Input-Infra'!$AN90>='Input-Gen'!$M$38,Y247,0) + Y399 + Y855 -Y551 -> 0 | Z95: =IF('Input-Infra'!$AN90>='Input-Gen'!$M$38,Z247,0) + Z399 + Z855 -Z551 -> 0 | AA95: =IF('Input-Infra'!$AN90>='Input-Gen'!$M$38,AA247,0) + AA399 + AA855 -AA551 -> 0 | AB95: =IF('Input-Infra'!$AN90>='Input-Gen'!$M$38,AB247,0) + AB399 + AB855 -AB551 -> 0 | AC95: =IF('Input-Infra'!$AN90>='Input-Gen'!$M$38,AC247,0) + AC399 + AC855 -AC551 -> 0
G96: 0 | I96: $'000 | K96: 0 | Q96: 0 | S96: =IF('Input-Infra'!$AN91>='Input-Gen'!$M$38,S248,0) + S400 + S856 -S552 -> 0 | T96: =IF('Input-Infra'!$AN91>='Input-Gen'!$M$38,T248,0) + T400 + T856 -T552 -> 0 | U96: =IF('Input-Infra'!$AN91>='Input-Gen'!$M$38,U248,0) + U400 + U856 -U552 -> 0 | V96: =IF('Input-Infra'!$AN91>='Input-Gen'!$M$38,V248,0) + V400 + V856 -V552 -> 0 | W96: =IF('Input-Infra'!$AN91>='Input-Gen'!$M$38,W248,0) + W400 + W856 -W552 -> 0 | X96: =IF('Input-Infra'!$AN91>='Input-Gen'!$M$38,X248,0) + X400 + X856 -X552 -> 0 | Y96: =IF('Input-Infra'!$AN91>='Input-Gen'!$M$38,Y248,0) + Y400 + Y856 -Y552 -> 0 | Z96: =IF('Input-Infra'!$AN91>='Input-Gen'!$M$38,Z248,0) + Z400 + Z856 -Z552 -> 0 | AA96: =IF('Input-Infra'!$AN91>='Input-Gen'!$M$38,AA248,0) + AA400 + AA856 -AA552 -> 0 | AB96: =IF('Input-Infra'!$AN91>='Input-Gen'!$M$38,AB248,0) + AB400 + AB856 -AB552 -> 0 | AC96: =IF('Input-Infra'!$AN91>='Input-Gen'!$M$38,AC248,0) + AC400 + AC856 -AC552 -> 0
G97: 0 | I97: $'000 | K97: 0 | Q97: 0 | S97: =IF('Input-Infra'!$AN92>='Input-Gen'!$M$38,S249,0) + S401 + S857 -S553 -> 0 | T97: =IF('Input-Infra'!$AN92>='Input-Gen'!$M$38,T249,0) + T401 + T857 -T553 -> 0 | U97: =IF('Input-Infra'!$AN92>='Input-Gen'!$M$38,U249,0) + U401 + U857 -U553 -> 0 | V97: =IF('Input-Infra'!$AN92>='Input-Gen'!$M$38,V249,0) + V401 + V857 -V553 -> 0 | W97: =IF('Input-Infra'!$AN92>='Input-Gen'!$M$38,W249,0) + W401 + W857 -W553 -> 0 | X97: =IF('Input-Infra'!$AN92>='Input-Gen'!$M$38,X249,0) + X401 + X857 -X553 -> 0 | Y97: =IF('Input-Infra'!$AN92>='Input-Gen'!$M$38,Y249,0) + Y401 + Y857 -Y553 -> 0 | Z97: =IF('Input-Infra'!$AN92>='Input-Gen'!$M$38,Z249,0) + Z401 + Z857 -Z553 -> 0 | AA97: =IF('Input-Infra'!$AN92>='Input-Gen'!$M$38,AA249,0) + AA401 + AA857 -AA553 -> 0 | AB97: =IF('Input-Infra'!$AN92>='Input-Gen'!$M$38,AB249,0) + AB401 + AB857 -AB553 -> 0 | AC97: =IF('Input-Infra'!$AN92>='Input-Gen'!$M$38,AC249,0) + AC401 + AC857 -AC553 -> 0
G98: 0 | I98: $'000 | K98: 0 | Q98: 0 | S98: =IF('Input-Infra'!$AN93>='Input-Gen'!$M$38,S250,0) + S402 + S858 -S554 -> 0 | T98: =IF('Input-Infra'!$AN93>='Input-Gen'!$M$38,T250,0) + T402 + T858 -T554 -> 0 | U98: =IF('Input-Infra'!$AN93>='Input-Gen'!$M$38,U250,0) + U402 + U858 -U554 -> 0 | V98: =IF('Input-Infra'!$AN93>='Input-Gen'!$M$38,V250,0) + V402 + V858 -V554 -> 0 | W98: =IF('Input-Infra'!$AN93>='Input-Gen'!$M$38,W250,0) + W402 + W858 -W554 -> 0 | X98: =IF('Input-Infra'!$AN93>='Input-Gen'!$M$38,X250,0) + X402 + X858 -X554 -> 0 | Y98: =IF('Input-Infra'!$AN93>='Input-Gen'!$M$38,Y250,0) + Y402 + Y858 -Y554 -> 0 | Z98: =IF('Input-Infra'!$AN93>='Input-Gen'!$M$38,Z250,0) + Z402 + Z858 -Z554 -> 0 | AA98: =IF('Input-Infra'!$AN93>='Input-Gen'!$M$38,AA250,0) + AA402 + AA858 -AA554 -> 0 | AB98: =IF('Input-Infra'!$AN93>='Input-Gen'!$M$38,AB250,0) + AB402 + AB858 -AB554 -> 0 | AC98: =IF('Input-Infra'!$AN93>='Input-Gen'!$M$38,AC250,0) + AC402 + AC858 -AC554 -> 0
G99: 0 | I99: $'000 | K99: 0 | Q99: 0 | S99: =IF('Input-Infra'!$AN94>='Input-Gen'!$M$38,S251,0) + S403 + S859 -S555 -> 0 | T99: =IF('Input-Infra'!$AN94>='Input-Gen'!$M$38,T251,0) + T403 + T859 -T555 -> 0 | U99: =IF('Input-Infra'!$AN94>='Input-Gen'!$M$38,U251,0) + U403 + U859 -U555 -> 0 | V99: =IF('Input-Infra'!$AN94>='Input-Gen'!$M$38,V251,0) + V403 + V859 -V555 -> 0 | W99: =IF('Input-Infra'!$AN94>='Input-Gen'!$M$38,W251,0) + W403 + W859 -W555 -> 0 | X99: =IF('Input-Infra'!$AN94>='Input-Gen'!$M$38,X251,0) + X403 + X859 -X555 -> 0 | Y99: =IF('Input-Infra'!$AN94>='Input-Gen'!$M$38,Y251,0) + Y403 + Y859 -Y555 -> 0 | Z99: =IF('Input-Infra'!$AN94>='Input-Gen'!$M$38,Z251,0) + Z403 + Z859 -Z555 -> 0 | AA99: =IF('Input-Infra'!$AN94>='Input-Gen'!$M$38,AA251,0) + AA403 + AA859 -AA555 -> 0 | AB99: =IF('Input-Infra'!$AN94>='Input-Gen'!$M$38,AB251,0) + AB403 + AB859 -AB555 -> 0 | AC99: =IF('Input-Infra'!$AN94>='Input-Gen'!$M$38,AC251,0) + AC403 + AC859 -AC555 -> 0
G100: 0 | I100: $'000 | K100: 0 | Q100: 0 | S100: =IF('Input-Infra'!$AN95>='Input-Gen'!$M$38,S252,0) + S404 + S860 -S556 -> 0 | T100: =IF('Input-Infra'!$AN95>='Input-Gen'!$M$38,T252,0) + T404 + T860 -T556 -> 0 | U100: =IF('Input-Infra'!$AN95>='Input-Gen'!$M$38,U252,0) + U404 + U860 -U556 -> 0 | V100: =IF('Input-Infra'!$AN95>='Input-Gen'!$M$38,V252,0) + V404 + V860 -V556 -> 0 | W100: =IF('Input-Infra'!$AN95>='Input-Gen'!$M$38,W252,0) + W404 + W860 -W556 -> 0 | X100: =IF('Input-Infra'!$AN95>='Input-Gen'!$M$38,X252,0) + X404 + X860 -X556 -> 0 | Y100: =IF('Input-Infra'!$AN95>='Input-Gen'!$M$38,Y252,0) + Y404 + Y860 -Y556 -> 0 | Z100: =IF('Input-Infra'!$AN95>='Input-Gen'!$M$38,Z252,0) + Z404 + Z860 -Z556 -> 0 | AA100: =IF('Input-Infra'!$AN95>='Input-Gen'!$M$38,AA252,0) + AA404 + AA860 -AA556 -> 0 | AB100: =IF('Input-Infra'!$AN95>='Input-Gen'!$M$38,AB252,0) + AB404 + AB860 -AB556 -> 0 | AC100: =IF('Input-Infra'!$AN95>='Input-Gen'!$M$38,AC252,0) + AC404 + AC860 -AC556 -> 0
G101: 0 | I101: $'000 | K101: 0 | Q101: 0 | S101: =IF('Input-Infra'!$AN96>='Input-Gen'!$M$38,S253,0) + S405 + S861 -S557 -> 0 | T101: =IF('Input-Infra'!$AN96>='Input-Gen'!$M$38,T253,0) + T405 + T861 -T557 -> 0 | U101: =IF('Input-Infra'!$AN96>='Input-Gen'!$M$38,U253,0) + U405 + U861 -U557 -> 0 | V101: =IF('Input-Infra'!$AN96>='Input-Gen'!$M$38,V253,0) + V405 + V861 -V557 -> 0 | W101: =IF('Input-Infra'!$AN96>='Input-Gen'!$M$38,W253,0) + W405 + W861 -W557 -> 0 | X101: =IF('Input-Infra'!$AN96>='Input-Gen'!$M$38,X253,0) + X405 + X861 -X557 -> 0 | Y101: =IF('Input-Infra'!$AN96>='Input-Gen'!$M$38,Y253,0) + Y405 + Y861 -Y557 -> 0 | Z101: =IF('Input-Infra'!$AN96>='Input-Gen'!$M$38,Z253,0) + Z405 + Z861 -Z557 -> 0 | AA101: =IF('Input-Infra'!$AN96>='Input-Gen'!$M$38,AA253,0) + AA405 + AA861 -AA557 -> 0 | AB101: =IF('Input-Infra'!$AN96>='Input-Gen'!$M$38,AB253,0) + AB405 + AB861 -AB557 -> 0 | AC101: =IF('Input-Infra'!$AN96>='Input-Gen'!$M$38,AC253,0) + AC405 + AC861 -AC557 -> 0
G102: 0 | I102: $'000 | K102: 0 | Q102: 0 | S102: =IF('Input-Infra'!$AN97>='Input-Gen'!$M$38,S254,0) + S406 + S862 -S558 -> 0 | T102: =IF('Input-Infra'!$AN97>='Input-Gen'!$M$38,T254,0) + T406 + T862 -T558 -> 0 | U102: =IF('Input-Infra'!$AN97>='Input-Gen'!$M$38,U254,0) + U406 + U862 -U558 -> 0 | V102: =IF('Input-Infra'!$AN97>='Input-Gen'!$M$38,V254,0) + V406 + V862 -V558 -> 0 | W102: =IF('Input-Infra'!$AN97>='Input-Gen'!$M$38,W254,0) + W406 + W862 -W558 -> 0 | X102: =IF('Input-Infra'!$AN97>='Input-Gen'!$M$38,X254,0) + X406 + X862 -X558 -> 0 | Y102: =IF('Input-Infra'!$AN97>='Input-Gen'!$M$38,Y254,0) + Y406 + Y862 -Y558 -> 0 | Z102: =IF('Input-Infra'!$AN97>='Input-Gen'!$M$38,Z254,0) + Z406 + Z862 -Z558 -> 0 | AA102: =IF('Input-Infra'!$AN97>='Input-Gen'!$M$38,AA254,0) + AA406 + AA862 -AA558 -> 0 | AB102: =IF('Input-Infra'!$AN97>='Input-Gen'!$M$38,AB254,0) + AB406 + AB862 -AB558 -> 0 | AC102: =IF('Input-Infra'!$AN97>='Input-Gen'!$M$38,AC254,0) + AC406 + AC862 -AC558 -> 0
G103: 0 | I103: $'000 | K103: 0 | Q103: 0 | S103: =IF('Input-Infra'!$AN98>='Input-Gen'!$M$38,S255,0) + S407 + S863 -S559 -> 0 | T103: =IF('Input-Infra'!$AN98>='Input-Gen'!$M$38,T255,0) + T407 + T863 -T559 -> 0 | U103: =IF('Input-Infra'!$AN98>='Input-Gen'!$M$38,U255,0) + U407 + U863 -U559 -> 0 | V103: =IF('Input-Infra'!$AN98>='Input-Gen'!$M$38,V255,0) + V407 + V863 -V559 -> 0 | W103: =IF('Input-Infra'!$AN98>='Input-Gen'!$M$38,W255,0) + W407 + W863 -W559 -> 0 | X103: =IF('Input-Infra'!$AN98>='Input-Gen'!$M$38,X255,0) + X407 + X863 -X559 -> 0 | Y103: =IF('Input-Infra'!$AN98>='Input-Gen'!$M$38,Y255,0) + Y407 + Y863 -Y559 -> 0 | Z103: =IF('Input-Infra'!$AN98>='Input-Gen'!$M$38,Z255,0) + Z407 + Z863 -Z559 -> 0 | AA103: =IF('Input-Infra'!$AN98>='Input-Gen'!$M$38,AA255,0) + AA407 + AA863 -AA559 -> 0 | AB103: =IF('Input-Infra'!$AN98>='Input-Gen'!$M$38,AB255,0) + AB407 + AB863 -AB559 -> 0 | AC103: =IF('Input-Infra'!$AN98>='Input-Gen'!$M$38,AC255,0) + AC407 + AC863 -AC559 -> 0
G104: 0 | I104: $'000 | K104: 0 | Q104: 0 | S104: =IF('Input-Infra'!$AN99>='Input-Gen'!$M$38,S256,0) + S408 + S864 -S560 -> 0 | T104: =IF('Input-Infra'!$AN99>='Input-Gen'!$M$38,T256,0) + T408 + T864 -T560 -> 0 | U104: =IF('Input-Infra'!$AN99>='Input-Gen'!$M$38,U256,0) + U408 + U864 -U560 -> 0 | V104: =IF('Input-Infra'!$AN99>='Input-Gen'!$M$38,V256,0) + V408 + V864 -V560 -> 0 | W104: =IF('Input-Infra'!$AN99>='Input-Gen'!$M$38,W256,0) + W408 + W864 -W560 -> 0 | X104: =IF('Input-Infra'!$AN99>='Input-Gen'!$M$38,X256,0) + X408 + X864 -X560 -> 0 | Y104: =IF('Input-Infra'!$AN99>='Input-Gen'!$M$38,Y256,0) + Y408 + Y864 -Y560 -> 0 | Z104: =IF('Input-Infra'!$AN99>='Input-Gen'!$M$38,Z256,0) + Z408 + Z864 -Z560 -> 0 | AA104: =IF('Input-Infra'!$AN99>='Input-Gen'!$M$38,AA256,0) + AA408 + AA864 -AA560 -> 0 | AB104: =IF('Input-Infra'!$AN99>='Input-Gen'!$M$38,AB256,0) + AB408 + AB864 -AB560 -> 0 | AC104: =IF('Input-Infra'!$AN99>='Input-Gen'!$M$38,AC256,0) + AC408 + AC864 -AC560 -> 0
G105: 0 | I105: $'000 | K105: 0 | Q105: 0 | S105: =IF('Input-Infra'!$AN100>='Input-Gen'!$M$38,S257,0) + S409 + S865 -S561 -> 0 | T105: =IF('Input-Infra'!$AN100>='Input-Gen'!$M$38,T257,0) + T409 + T865 -T561 -> 0 | U105: =IF('Input-Infra'!$AN100>='Input-Gen'!$M$38,U257,0) + U409 + U865 -U561 -> 0 | V105: =IF('Input-Infra'!$AN100>='Input-Gen'!$M$38,V257,0) + V409 + V865 -V561 -> 0 | W105: =IF('Input-Infra'!$AN100>='Input-Gen'!$M$38,W257,0) + W409 + W865 -W561 -> 0 | X105: =IF('Input-Infra'!$AN100>='Input-Gen'!$M$38,X257,0) + X409 + X865 -X561 -> 0 | Y105: =IF('Input-Infra'!$AN100>='Input-Gen'!$M$38,Y257,0) + Y409 + Y865 -Y561 -> 0 | Z105: =IF('Input-Infra'!$AN100>='Input-Gen'!$M$38,Z257,0) + Z409 + Z865 -Z561 -> 0 | AA105: =IF('Input-Infra'!$AN100>='Input-Gen'!$M$38,AA257,0) + AA409 + AA865 -AA561 -> 0 | AB105: =IF('Input-Infra'!$AN100>='Input-Gen'!$M$38,AB257,0) + AB409 + AB865 -AB561 -> 0 | AC105: =IF('Input-Infra'!$AN100>='Input-Gen'!$M$38,AC257,0) + AC409 + AC865 -AC561 -> 0
G106: 0 | I106: $'000 | K106: 0 | Q106: 0 | S106: =IF('Input-Infra'!$AN101>='Input-Gen'!$M$38,S258,0) + S410 + S866 -S562 -> 0 | T106: =IF('Input-Infra'!$AN101>='Input-Gen'!$M$38,T258,0) + T410 + T866 -T562 -> 0 | U106: =IF('Input-Infra'!$AN101>='Input-Gen'!$M$38,U258,0) + U410 + U866 -U562 -> 0 | V106: =IF('Input-Infra'!$AN101>='Input-Gen'!$M$38,V258,0) + V410 + V866 -V562 -> 0 | W106: =IF('Input-Infra'!$AN101>='Input-Gen'!$M$38,W258,0) + W410 + W866 -W562 -> 0 | X106: =IF('Input-Infra'!$AN101>='Input-Gen'!$M$38,X258,0) + X410 + X866 -X562 -> 0 | Y106: =IF('Input-Infra'!$AN101>='Input-Gen'!$M$38,Y258,0) + Y410 + Y866 -Y562 -> 0 | Z106: =IF('Input-Infra'!$AN101>='Input-Gen'!$M$38,Z258,0) + Z410 + Z866 -Z562 -> 0 | AA106: =IF('Input-Infra'!$AN101>='Input-Gen'!$M$38,AA258,0) + AA410 + AA866 -AA562 -> 0 | AB106: =IF('Input-Infra'!$AN101>='Input-Gen'!$M$38,AB258,0) + AB410 + AB866 -AB562 -> 0 | AC106: =IF('Input-Infra'!$AN101>='Input-Gen'!$M$38,AC258,0) + AC410 + AC866 -AC562 -> 0
G107: 0 | I107: $'000 | K107: 0 | Q107: 0 | S107: =IF('Input-Infra'!$AN102>='Input-Gen'!$M$38,S259,0) + S411 + S867 -S563 -> 0 | T107: =IF('Input-Infra'!$AN102>='Input-Gen'!$M$38,T259,0) + T411 + T867 -T563 -> 0 | U107: =IF('Input-Infra'!$AN102>='Input-Gen'!$M$38,U259,0) + U411 + U867 -U563 -> 0 | V107: =IF('Input-Infra'!$AN102>='Input-Gen'!$M$38,V259,0) + V411 + V867 -V563 -> 0 | W107: =IF('Input-Infra'!$AN102>='Input-Gen'!$M$38,W259,0) + W411 + W867 -W563 -> 0 | X107: =IF('Input-Infra'!$AN102>='Input-Gen'!$M$38,X259,0) + X411 + X867 -X563 -> 0 | Y107: =IF('Input-Infra'!$AN102>='Input-Gen'!$M$38,Y259,0) + Y411 + Y867 -Y563 -> 0 | Z107: =IF('Input-Infra'!$AN102>='Input-Gen'!$M$38,Z259,0) + Z411 + Z867 -Z563 -> 0 | AA107: =IF('Input-Infra'!$AN102>='Input-Gen'!$M$38,AA259,0) + AA411 + AA867 -AA563 -> 0 | AB107: =IF('Input-Infra'!$AN102>='Input-Gen'!$M$38,AB259,0) + AB411 + AB867 -AB563 -> 0 | AC107: =IF('Input-Infra'!$AN102>='Input-Gen'!$M$38,AC259,0) + AC411 + AC867 -AC563 -> 0
G108: 0 | I108: $'000 | K108: 0 | Q108: 0 | S108: =IF('Input-Infra'!$AN103>='Input-Gen'!$M$38,S260,0) + S412 + S868 -S564 -> 0 | T108: =IF('Input-Infra'!$AN103>='Input-Gen'!$M$38,T260,0) + T412 + T868 -T564 -> 0 | U108: =IF('Input-Infra'!$AN103>='Input-Gen'!$M$38,U260,0) + U412 + U868 -U564 -> 0 | V108: =IF('Input-Infra'!$AN103>='Input-Gen'!$M$38,V260,0) + V412 + V868 -V564 -> 0 | W108: =IF('Input-Infra'!$AN103>='Input-Gen'!$M$38,W260,0) + W412 + W868 -W564 -> 0 | X108: =IF('Input-Infra'!$AN103>='Input-Gen'!$M$38,X260,0) + X412 + X868 -X564 -> 0 | Y108: =IF('Input-Infra'!$AN103>='Input-Gen'!$M$38,Y260,0) + Y412 + Y868 -Y564 -> 0 | Z108: =IF('Input-Infra'!$AN103>='Input-Gen'!$M$38,Z260,0) + Z412 + Z868 -Z564 -> 0 | AA108: =IF('Input-Infra'!$AN103>='Input-Gen'!$M$38,AA260,0) + AA412 + AA868 -AA564 -> 0 | AB108: =IF('Input-Infra'!$AN103>='Input-Gen'!$M$38,AB260,0) + AB412 + AB868 -AB564 -> 0 | AC108: =IF('Input-Infra'!$AN103>='Input-Gen'!$M$38,AC260,0) + AC412 + AC868 -AC564 -> 0
G109: 0 | I109: $'000 | K109: 0 | Q109: 0 | S109: =IF('Input-Infra'!$AN104>='Input-Gen'!$M$38,S261,0) + S413 + S869 -S565 -> 0 | T109: =IF('Input-Infra'!$AN104>='Input-Gen'!$M$38,T261,0) + T413 + T869 -T565 -> 0 | U109: =IF('Input-Infra'!$AN104>='Input-Gen'!$M$38,U261,0) + U413 + U869 -U565 -> 0 | V109: =IF('Input-Infra'!$AN104>='Input-Gen'!$M$38,V261,0) + V413 + V869 -V565 -> 0 | W109: =IF('Input-Infra'!$AN104>='Input-Gen'!$M$38,W261,0) + W413 + W869 -W565 -> 0 | X109: =IF('Input-Infra'!$AN104>='Input-Gen'!$M$38,X261,0) + X413 + X869 -X565 -> 0 | Y109: =IF('Input-Infra'!$AN104>='Input-Gen'!$M$38,Y261,0) + Y413 + Y869 -Y565 -> 0 | Z109: =IF('Input-Infra'!$AN104>='Input-Gen'!$M$38,Z261,0) + Z413 + Z869 -Z565 -> 0 | AA109: =IF('Input-Infra'!$AN104>='Input-Gen'!$M$38,AA261,0) + AA413 + AA869 -AA565 -> 0 | AB109: =IF('Input-Infra'!$AN104>='Input-Gen'!$M$38,AB261,0) + AB413 + AB869 -AB565 -> 0 | AC109: =IF('Input-Infra'!$AN104>='Input-Gen'!$M$38,AC261,0) + AC413 + AC869 -AC565 -> 0
G110: 0 | I110: $'000 | K110: 0 | Q110: 0 | S110: =IF('Input-Infra'!$AN105>='Input-Gen'!$M$38,S262,0) + S414 + S870 -S566 -> 0 | T110: =IF('Input-Infra'!$AN105>='Input-Gen'!$M$38,T262,0) + T414 + T870 -T566 -> 0 | U110: =IF('Input-Infra'!$AN105>='Input-Gen'!$M$38,U262,0) + U414 + U870 -U566 -> 0 | V110: =IF('Input-Infra'!$AN105>='Input-Gen'!$M$38,V262,0) + V414 + V870 -V566 -> 0 | W110: =IF('Input-Infra'!$AN105>='Input-Gen'!$M$38,W262,0) + W414 + W870 -W566 -> 0 | X110: =IF('Input-Infra'!$AN105>='Input-Gen'!$M$38,X262,0) + X414 + X870 -X566 -> 0 | Y110: =IF('Input-Infra'!$AN105>='Input-Gen'!$M$38,Y262,0) + Y414 + Y870 -Y566 -> 0 | Z110: =IF('Input-Infra'!$AN105>='Input-Gen'!$M$38,Z262,0) + Z414 + Z870 -Z566 -> 0 | AA110: =IF('Input-Infra'!$AN105>='Input-Gen'!$M$38,AA262,0) + AA414 + AA870 -AA566 -> 0 | AB110: =IF('Input-Infra'!$AN105>='Input-Gen'!$M$38,AB262,0) + AB414 + AB870 -AB566 -> 0 | AC110: =IF('Input-Infra'!$AN105>='Input-Gen'!$M$38,AC262,0) + AC414 + AC870 -AC566 -> 0
G111: 0 | I111: $'000 | K111: 0 | Q111: 0 | S111: =IF('Input-Infra'!$AN106>='Input-Gen'!$M$38,S263,0) + S415 + S871 -S567 -> 0 | T111: =IF('Input-Infra'!$AN106>='Input-Gen'!$M$38,T263,0) + T415 + T871 -T567 -> 0 | U111: =IF('Input-Infra'!$AN106>='Input-Gen'!$M$38,U263,0) + U415 + U871 -U567 -> 0 | V111: =IF('Input-Infra'!$AN106>='Input-Gen'!$M$38,V263,0) + V415 + V871 -V567 -> 0 | W111: =IF('Input-Infra'!$AN106>='Input-Gen'!$M$38,W263,0) + W415 + W871 -W567 -> 0 | X111: =IF('Input-Infra'!$AN106>='Input-Gen'!$M$38,X263,0) + X415 + X871 -X567 -> 0 | Y111: =IF('Input-Infra'!$AN106>='Input-Gen'!$M$38,Y263,0) + Y415 + Y871 -Y567 -> 0 | Z111: =IF('Input-Infra'!$AN106>='Input-Gen'!$M$38,Z263,0) + Z415 + Z871 -Z567 -> 0 | AA111: =IF('Input-Infra'!$AN106>='Input-Gen'!$M$38,AA263,0) + AA415 + AA871 -AA567 -> 0 | AB111: =IF('Input-Infra'!$AN106>='Input-Gen'!$M$38,AB263,0) + AB415 + AB871 -AB567 -> 0 | AC111: =IF('Input-Infra'!$AN106>='Input-Gen'!$M$38,AC263,0) + AC415 + AC871 -AC567 -> 0
G112: 0 | I112: $'000 | K112: 0 | Q112: 0 | S112: =IF('Input-Infra'!$AN107>='Input-Gen'!$M$38,S264,0) + S416 + S872 -S568 -> 0 | T112: =IF('Input-Infra'!$AN107>='Input-Gen'!$M$38,T264,0) + T416 + T872 -T568 -> 0 | U112: =IF('Input-Infra'!$AN107>='Input-Gen'!$M$38,U264,0) + U416 + U872 -U568 -> 0 | V112: =IF('Input-Infra'!$AN107>='Input-Gen'!$M$38,V264,0) + V416 + V872 -V568 -> 0 | W112: =IF('Input-Infra'!$AN107>='Input-Gen'!$M$38,W264,0) + W416 + W872 -W568 -> 0 | X112: =IF('Input-Infra'!$AN107>='Input-Gen'!$M$38,X264,0) + X416 + X872 -X568 -> 0 | Y112: =IF('Input-Infra'!$AN107>='Input-Gen'!$M$38,Y264,0) + Y416 + Y872 -Y568 -> 0 | Z112: =IF('Input-Infra'!$AN107>='Input-Gen'!$M$38,Z264,0) + Z416 + Z872 -Z568 -> 0 | AA112: =IF('Input-Infra'!$AN107>='Input-Gen'!$M$38,AA264,0) + AA416 + AA872 -AA568 -> 0 | AB112: =IF('Input-Infra'!$AN107>='Input-Gen'!$M$38,AB264,0) + AB416 + AB872 -AB568 -> 0 | AC112: =IF('Input-Infra'!$AN107>='Input-Gen'!$M$38,AC264,0) + AC416 + AC872 -AC568 -> 0
G113: 0 | I113: $'000 | K113: 0 | Q113: 0 | S113: =IF('Input-Infra'!$AN108>='Input-Gen'!$M$38,S265,0) + S417 + S873 -S569 -> 0 | T113: =IF('Input-Infra'!$AN108>='Input-Gen'!$M$38,T265,0) + T417 + T873 -T569 -> 0 | U113: =IF('Input-Infra'!$AN108>='Input-Gen'!$M$38,U265,0) + U417 + U873 -U569 -> 0 | V113: =IF('Input-Infra'!$AN108>='Input-Gen'!$M$38,V265,0) + V417 + V873 -V569 -> 0 | W113: =IF('Input-Infra'!$AN108>='Input-Gen'!$M$38,W265,0) + W417 + W873 -W569 -> 0 | X113: =IF('Input-Infra'!$AN108>='Input-Gen'!$M$38,X265,0) + X417 + X873 -X569 -> 0 | Y113: =IF('Input-Infra'!$AN108>='Input-Gen'!$M$38,Y265,0) + Y417 + Y873 -Y569 -> 0 | Z113: =IF('Input-Infra'!$AN108>='Input-Gen'!$M$38,Z265,0) + Z417 + Z873 -Z569 -> 0 | AA113: =IF('Input-Infra'!$AN108>='Input-Gen'!$M$38,AA265,0) + AA417 + AA873 -AA569 -> 0 | AB113: =IF('Input-Infra'!$AN108>='Input-Gen'!$M$38,AB265,0) + AB417 + AB873 -AB569 -> 0 | AC113: =IF('Input-Infra'!$AN108>='Input-Gen'!$M$38,AC265,0) + AC417 + AC873 -AC569 -> 0
G114: 0 | I114: $'000 | K114: 0 | Q114: 0 | S114: =IF('Input-Infra'!$AN109>='Input-Gen'!$M$38,S266,0) + S418 + S874 -S570 -> 0 | T114: =IF('Input-Infra'!$AN109>='Input-Gen'!$M$38,T266,0) + T418 + T874 -T570 -> 0 | U114: =IF('Input-Infra'!$AN109>='Input-Gen'!$M$38,U266,0) + U418 + U874 -U570 -> 0 | V114: =IF('Input-Infra'!$AN109>='Input-Gen'!$M$38,V266,0) + V418 + V874 -V570 -> 0 | W114: =IF('Input-Infra'!$AN109>='Input-Gen'!$M$38,W266,0) + W418 + W874 -W570 -> 0 | X114: =IF('Input-Infra'!$AN109>='Input-Gen'!$M$38,X266,0) + X418 + X874 -X570 -> 0 | Y114: =IF('Input-Infra'!$AN109>='Input-Gen'!$M$38,Y266,0) + Y418 + Y874 -Y570 -> 0 | Z114: =IF('Input-Infra'!$AN109>='Input-Gen'!$M$38,Z266,0) + Z418 + Z874 -Z570 -> 0 | AA114: =IF('Input-Infra'!$AN109>='Input-Gen'!$M$38,AA266,0) + AA418 + AA874 -AA570 -> 0 | AB114: =IF('Input-Infra'!$AN109>='Input-Gen'!$M$38,AB266,0) + AB418 + AB874 -AB570 -> 0 | AC114: =IF('Input-Infra'!$AN109>='Input-Gen'!$M$38,AC266,0) + AC418 + AC874 -AC570 -> 0
G115: 0 | I115: $'000 | K115: 0 | Q115: 0 | S115: =IF('Input-Infra'!$AN110>='Input-Gen'!$M$38,S267,0) + S419 + S875 -S571 -> 0 | T115: =IF('Input-Infra'!$AN110>='Input-Gen'!$M$38,T267,0) + T419 + T875 -T571 -> 0 | U115: =IF('Input-Infra'!$AN110>='Input-Gen'!$M$38,U267,0) + U419 + U875 -U571 -> 0 | V115: =IF('Input-Infra'!$AN110>='Input-Gen'!$M$38,V267,0) + V419 + V875 -V571 -> 0 | W115: =IF('Input-Infra'!$AN110>='Input-Gen'!$M$38,W267,0) + W419 + W875 -W571 -> 0 | X115: =IF('Input-Infra'!$AN110>='Input-Gen'!$M$38,X267,0) + X419 + X875 -X571 -> 0 | Y115: =IF('Input-Infra'!$AN110>='Input-Gen'!$M$38,Y267,0) + Y419 + Y875 -Y571 -> 0 | Z115: =IF('Input-Infra'!$AN110>='Input-Gen'!$M$38,Z267,0) + Z419 + Z875 -Z571 -> 0 | AA115: =IF('Input-Infra'!$AN110>='Input-Gen'!$M$38,AA267,0) + AA419 + AA875 -AA571 -> 0 | AB115: =IF('Input-Infra'!$AN110>='Input-Gen'!$M$38,AB267,0) + AB419 + AB875 -AB571 -> 0 | AC115: =IF('Input-Infra'!$AN110>='Input-Gen'!$M$38,AC267,0) + AC419 + AC875 -AC571 -> 0
G116: 0 | I116: $'000 | K116: 0 | Q116: 0 | S116: =IF('Input-Infra'!$AN111>='Input-Gen'!$M$38,S268,0) + S420 + S876 -S572 -> 0 | T116: =IF('Input-Infra'!$AN111>='Input-Gen'!$M$38,T268,0) + T420 + T876 -T572 -> 0 | U116: =IF('Input-Infra'!$AN111>='Input-Gen'!$M$38,U268,0) + U420 + U876 -U572 -> 0 | V116: =IF('Input-Infra'!$AN111>='Input-Gen'!$M$38,V268,0) + V420 + V876 -V572 -> 0 | W116: =IF('Input-Infra'!$AN111>='Input-Gen'!$M$38,W268,0) + W420 + W876 -W572 -> 0 | X116: =IF('Input-Infra'!$AN111>='Input-Gen'!$M$38,X268,0) + X420 + X876 -X572 -> 0 | Y116: =IF('Input-Infra'!$AN111>='Input-Gen'!$M$38,Y268,0) + Y420 + Y876 -Y572 -> 0 | Z116: =IF('Input-Infra'!$AN111>='Input-Gen'!$M$38,Z268,0) + Z420 + Z876 -Z572 -> 0 | AA116: =IF('Input-Infra'!$AN111>='Input-Gen'!$M$38,AA268,0) + AA420 + AA876 -AA572 -> 0 | AB116: =IF('Input-Infra'!$AN111>='Input-Gen'!$M$38,AB268,0) + AB420 + AB876 -AB572 -> 0 | AC116: =IF('Input-Infra'!$AN111>='Input-Gen'!$M$38,AC268,0) + AC420 + AC876 -AC572 -> 0
G117: 0 | I117: $'000 | K117: 0 | Q117: 0 | S117: =IF('Input-Infra'!$AN112>='Input-Gen'!$M$38,S269,0) + S421 + S877 -S573 -> 0 | T117: =IF('Input-Infra'!$AN112>='Input-Gen'!$M$38,T269,0) + T421 + T877 -T573 -> 0 | U117: =IF('Input-Infra'!$AN112>='Input-Gen'!$M$38,U269,0) + U421 + U877 -U573 -> 0 | V117: =IF('Input-Infra'!$AN112>='Input-Gen'!$M$38,V269,0) + V421 + V877 -V573 -> 0 | W117: =IF('Input-Infra'!$AN112>='Input-Gen'!$M$38,W269,0) + W421 + W877 -W573 -> 0 | X117: =IF('Input-Infra'!$AN112>='Input-Gen'!$M$38,X269,0) + X421 + X877 -X573 -> 0 | Y117: =IF('Input-Infra'!$AN112>='Input-Gen'!$M$38,Y269,0) + Y421 + Y877 -Y573 -> 0 | Z117: =IF('Input-Infra'!$AN112>='Input-Gen'!$M$38,Z269,0) + Z421 + Z877 -Z573 -> 0 | AA117: =IF('Input-Infra'!$AN112>='Input-Gen'!$M$38,AA269,0) + AA421 + AA877 -AA573 -> 0 | AB117: =IF('Input-Infra'!$AN112>='Input-Gen'!$M$38,AB269,0) + AB421 + AB877 -AB573 -> 0 | AC117: =IF('Input-Infra'!$AN112>='Input-Gen'!$M$38,AC269,0) + AC421 + AC877 -AC573 -> 0
G118: 0 | I118: $'000 | K118: 0 | Q118: 0 | S118: =IF('Input-Infra'!$AN113>='Input-Gen'!$M$38,S270,0) + S422 + S878 -S574 -> 0 | T118: =IF('Input-Infra'!$AN113>='Input-Gen'!$M$38,T270,0) + T422 + T878 -T574 -> 0 | U118: =IF('Input-Infra'!$AN113>='Input-Gen'!$M$38,U270,0) + U422 + U878 -U574 -> 0 | V118: =IF('Input-Infra'!$AN113>='Input-Gen'!$M$38,V270,0) + V422 + V878 -V574 -> 0 | W118: =IF('Input-Infra'!$AN113>='Input-Gen'!$M$38,W270,0) + W422 + W878 -W574 -> 0 | X118: =IF('Input-Infra'!$AN113>='Input-Gen'!$M$38,X270,0) + X422 + X878 -X574 -> 0 | Y118: =IF('Input-Infra'!$AN113>='Input-Gen'!$M$38,Y270,0) + Y422 + Y878 -Y574 -> 0 | Z118: =IF('Input-Infra'!$AN113>='Input-Gen'!$M$38,Z270,0) + Z422 + Z878 -Z574 -> 0 | AA118: =IF('Input-Infra'!$AN113>='Input-Gen'!$M$38,AA270,0) + AA422 + AA878 -AA574 -> 0 | AB118: =IF('Input-Infra'!$AN113>='Input-Gen'!$M$38,AB270,0) + AB422 + AB878 -AB574 -> 0 | AC118: =IF('Input-Infra'!$AN113>='Input-Gen'!$M$38,AC270,0) + AC422 + AC878 -AC574 -> 0
G120: Subtotal | I120: $'000 | K120: =SUM(K30:K118) -> 108932.5353 | Q120: =SUM(Q30:Q118) -> 108932.5353 | S120: =SUM(S30:S118) -> 108932.5353 | T120: =SUM(T30:T118) -> 0 | U120: 0 | V120: 0 | W120: 0 | X120: 0 | Y120: 0 | Z120: 0 | AA120: 0 | AB120: 0 | AC120: 0
G122: Future Infrastructure
G124: =Future -> CDE-CF-001 | I124: $'000 | K124: =NPV(WACC_nom,T124:AC124)+S124 -> 1046.831236 | Q124: =SUM(S124:AC124) -> 1243.619655 | S124: =IF('Input-Infra'!$AN120>='Input-Gen'!$M$38,S276,0) + S428 + S884 - S580 -> 0 | T124: =IF('Input-Infra'!$AN120>='Input-Gen'!$M$38,T276,0) + T428 + T884 - T580 -> 0 | U124: =IF('Input-Infra'!$AN120>='Input-Gen'!$M$38,U276,0) + U428 + U884 - U580 -> 0 | V124: =IF('Input-Infra'!$AN120>='Input-Gen'!$M$38,V276,0) + V428 + V884 - V580 -> 1243.619655 | W124: =IF('Input-Infra'!$AN120>='Input-Gen'!$M$38,W276,0) + W428 + W884 - W580 -> 0 | X124: =IF('Input-Infra'!$AN120>='Input-Gen'!$M$38,X276,0) + X428 + X884 - X580 -> 0 | Y124: =IF('Input-Infra'!$AN120>='Input-Gen'!$M$38,Y276,0) + Y428 + Y884 - Y580 -> 0 | Z124: =IF('Input-Infra'!$AN120>='Input-Gen'!$M$38,Z276,0) + Z428 + Z884 - Z580 -> 0 | AA124: =IF('Input-Infra'!$AN120>='Input-Gen'!$M$38,AA276,0) + AA428 + AA884 - AA580 -> 0 | AB124: =IF('Input-Infra'!$AN120>='Input-Gen'!$M$38,AB276,0) + AB428 + AB884 - AB580 -> 0 | AC124: =IF('Input-Infra'!$AN120>='Input-Gen'!$M$38,AC276,0) + AC428 + AC884 - AC580 -> 0
G125: EAF-CF-001 | I125: $'000 | K125: 8396.492216 | Q125: =SUM(S125:AC125) -> 13292.10104 | S125: =IF('Input-Infra'!$AN121>='Input-Gen'!$M$38,S277,0) + S429 + S885 - S581 -> 0 | T125: =IF('Input-Infra'!$AN121>='Input-Gen'!$M$38,T277,0) + T429 + T885 - T581 -> 0 | U125: =IF('Input-Infra'!$AN121>='Input-Gen'!$M$38,U277,0) + U429 + U885 - U581 -> 0 | V125: =IF('Input-Infra'!$AN121>='Input-Gen'!$M$38,V277,0) + V429 + V885 - V581 -> 0 | W125: =IF('Input-Infra'!$AN121>='Input-Gen'!$M$38,W277,0) + W429 + W885 - W581 -> 0 | X125: =IF('Input-Infra'!$AN121>='Input-Gen'!$M$38,X277,0) + X429 + X885 - X581 -> 0 | Y125: =IF('Input-Infra'!$AN121>='Input-Gen'!$M$38,Y277,0) + Y429 + Y885 - Y581 -> 0 | Z125: =IF('Input-Infra'!$AN121>='Input-Gen'!$M$38,Z277,0) + Z429 + Z885 - Z581 -> 0 | AA125: =IF('Input-Infra'!$AN121>='Input-Gen'!$M$38,AA277,0) + AA429 + AA885 - AA581 -> 13292.10104 | AB125: =IF('Input-Infra'!$AN121>='Input-Gen'!$M$38,AB277,0) + AB429 + AB885 - AB581 -> 0 | AC125: =IF('Input-Infra'!$AN121>='Input-Gen'!$M$38,AC277,0) + AC429 + AC885 - AC581 -> 0
G126: MIT-CF-001 | I126: $'000 | K126: 14671.64172 | Q126: 17429.68817 | S126: =IF('Input-Infra'!$AN122>='Input-Gen'!$M$38,S278,0) + S430 + S886 - S582 -> 0 | T126: =IF('Input-Infra'!$AN122>='Input-Gen'!$M$38,T278,0) + T430 + T886 - T582 -> 0 | U126: =IF('Input-Infra'!$AN122>='Input-Gen'!$M$38,U278,0) + U430 + U886 - U582 -> 0 | V126: =IF('Input-Infra'!$AN122>='Input-Gen'!$M$38,V278,0) + V430 + V886 - V582 -> 17429.68817 | W126: =IF('Input-Infra'!$AN122>='Input-Gen'!$M$38,W278,0) + W430 + W886 - W582 -> 0 | X126: =IF('Input-Infra'!$AN122>='Input-Gen'!$M$38,X278,0) + X430 + X886 - X582 -> 0 | Y126: =IF('Input-Infra'!$AN122>='Input-Gen'!$M$38,Y278,0) + Y430 + Y886 - Y582 -> 0 | Z126: =IF('Input-Infra'!$AN122>='Input-Gen'!$M$38,Z278,0) + Z430 + Z886 - Z582 -> 0 | AA126: =IF('Input-Infra'!$AN122>='Input-Gen'!$M$38,AA278,0) + AA430 + AA886 - AA582 -> 0 | AB126: =IF('Input-Infra'!$AN122>='Input-Gen'!$M$38,AB278,0) + AB430 + AB886 - AB582 -> 0 | AC126: =IF('Input-Infra'!$AN122>='Input-Gen'!$M$38,AC278,0) + AC430 + AC886 - AC582 -> 0
G127: ROC-CF-001 | I127: $'000 | K127: 1775.861221 | Q127: 2109.696235 | S127: =IF('Input-Infra'!$AN123>='Input-Gen'!$M$38,S279,0) + S431 + S887 - S583 -> 0 | T127: =IF('Input-Infra'!$AN123>='Input-Gen'!$M$38,T279,0) + T431 + T887 - T583 -> 0 | U127: =IF('Input-Infra'!$AN123>='Input-Gen'!$M$38,U279,0) + U431 + U887 - U583 -> 0 | V127: =IF('Input-Infra'!$AN123>='Input-Gen'!$M$38,V279,0) + V431 + V887 - V583 -> 2109.696235 | W127: =IF('Input-Infra'!$AN123>='Input-Gen'!$M$38,W279,0) + W431 + W887 - W583 -> 0 | X127: =IF('Input-Infra'!$AN123>='Input-Gen'!$M$38,X279,0) + X431 + X887 - X583 -> 0 | Y127: =IF('Input-Infra'!$AN123>='Input-Gen'!$M$38,Y279,0) + Y431 + Y887 - Y583 -> 0 | Z127: =IF('Input-Infra'!$AN123>='Input-Gen'!$M$38,Z279,0) + Z431 + Z887 - Z583 -> 0 | AA127: =IF('Input-Infra'!$AN123>='Input-Gen'!$M$38,AA279,0) + AA431 + AA887 - AA583 -> 0 | AB127: =IF('Input-Infra'!$AN123>='Input-Gen'!$M$38,AB279,0) + AB431 + AB887 - AB583 -> 0 | AC127: =IF('Input-Infra'!$AN123>='Input-Gen'!$M$38,AC279,0) + AC431 + AC887 - AC583 -> 0
G128: WES-CF-001 | I128: $'000 | K128: 2300.682542 | Q128: 3642.104825 | S128: =IF('Input-Infra'!$AN124>='Input-Gen'!$M$38,S280,0) + S432 + S888 - S584 -> 0 | T128: =IF('Input-Infra'!$AN124>='Input-Gen'!$M$38,T280,0) + T432 + T888 - T584 -> 0 | U128: =IF('Input-Infra'!$AN124>='Input-Gen'!$M$38,U280,0) + U432 + U888 - U584 -> 0 | V128: =IF('Input-Infra'!$AN124>='Input-Gen'!$M$38,V280,0) + V432 + V888 - V584 -> 0 | W128: =IF('Input-Infra'!$AN124>='Input-Gen'!$M$38,W280,0) + W432 + W888 - W584 -> 0 | X128: =IF('Input-Infra'!$AN124>='Input-Gen'!$M$38,X280,0) + X432 + X888 - X584 -> 0 | Y128: =IF('Input-Infra'!$AN124>='Input-Gen'!$M$38,Y280,0) + Y432 + Y888 - Y584 -> 0 | Z128: =IF('Input-Infra'!$AN124>='Input-Gen'!$M$38,Z280,0) + Z432 + Z888 - Z584 -> 0 | AA128: =IF('Input-Infra'!$AN124>='Input-Gen'!$M$38,AA280,0) + AA432 + AA888 - AA584 -> 3642.104825 | AB128: =IF('Input-Infra'!$AN124>='Input-Gen'!$M$38,AB280,0) + AB432 + AB888 - AB584 -> 0 | AC128: =IF('Input-Infra'!$AN124>='Input-Gen'!$M$38,AC280,0) + AC432 + AC888 - AC584 -> 0
G129: WSR-CF-001 | I129: $'000 | K129: 4057.870257 | Q129: 4820.68841 | S129: =IF('Input-Infra'!$AN125>='Input-Gen'!$M$38,S281,0) + S433 + S889 - S585 -> 0 | T129: =IF('Input-Infra'!$AN125>='Input-Gen'!$M$38,T281,0) + T433 + T889 - T585 -> 0 | U129: =IF('Input-Infra'!$AN125>='Input-Gen'!$M$38,U281,0) + U433 + U889 - U585 -> 0 | V129: =IF('Input-Infra'!$AN125>='Input-Gen'!$M$38,V281,0) + V433 + V889 - V585 -> 4820.68841 | W129: =IF('Input-Infra'!$AN125>='Input-Gen'!$M$38,W281,0) + W433 + W889 - W585 -> 0 | X129: =IF('Input-Infra'!$AN125>='Input-Gen'!$M$38,X281,0) + X433 + X889 - X585 -> 0 | Y129: =IF('Input-Infra'!$AN125>='Input-Gen'!$M$38,Y281,0) + Y433 + Y889 - Y585 -> 0 | Z129: =IF('Input-Infra'!$AN125>='Input-Gen'!$M$38,Z281,0) + Z433 + Z889 - Z585 -> 0 | AA129: =IF('Input-Infra'!$AN125>='Input-Gen'!$M$38,AA281,0) + AA433 + AA889 - AA585 -> 0 | AB129: =IF('Input-Infra'!$AN125>='Input-Gen'!$M$38,AB281,0) + AB433 + AB889 - AB585 -> 0 | AC129: =IF('Input-Infra'!$AN125>='Input-Gen'!$M$38,AC281,0) + AC433 + AC889 - AC585 -> 0
G130: Spare 1 | I130: $'000 | K130: 0 | Q130: 0 | S130: =IF('Input-Infra'!$AN126>='Input-Gen'!$M$38,S282,0) + S434 + S890 - S586 -> 0 | T130: =IF('Input-Infra'!$AN126>='Input-Gen'!$M$38,T282,0) + T434 + T890 - T586 -> 0 | U130: =IF('Input-Infra'!$AN126>='Input-Gen'!$M$38,U282,0) + U434 + U890 - U586 -> 0 | V130: =IF('Input-Infra'!$AN126>='Input-Gen'!$M$38,V282,0) + V434 + V890 - V586 -> 0 | W130: =IF('Input-Infra'!$AN126>='Input-Gen'!$M$38,W282,0) + W434 + W890 - W586 -> 0 | X130: =IF('Input-Infra'!$AN126>='Input-Gen'!$M$38,X282,0) + X434 + X890 - X586 -> 0 | Y130: =IF('Input-Infra'!$AN126>='Input-Gen'!$M$38,Y282,0) + Y434 + Y890 - Y586 -> 0 | Z130: =IF('Input-Infra'!$AN126>='Input-Gen'!$M$38,Z282,0) + Z434 + Z890 - Z586 -> 0 | AA130: =IF('Input-Infra'!$AN126>='Input-Gen'!$M$38,AA282,0) + AA434 + AA890 - AA586 -> 0 | AB130: =IF('Input-Infra'!$AN126>='Input-Gen'!$M$38,AB282,0) + AB434 + AB890 - AB586 -> 0 | AC130: =IF('Input-Infra'!$AN126>='Input-Gen'!$M$38,AC282,0) + AC434 + AC890 - AC586 -> 0
G131: Spare 2 | I131: $'000 | K131: 0 | Q131: 0 | S131: =IF('Input-Infra'!$AN127>='Input-Gen'!$M$38,S283,0) + S435 + S891 - S587 -> 0 | T131: =IF('Input-Infra'!$AN127>='Input-Gen'!$M$38,T283,0) + T435 + T891 - T587 -> 0 | U131: =IF('Input-Infra'!$AN127>='Input-Gen'!$M$38,U283,0) + U435 + U891 - U587 -> 0 | V131: =IF('Input-Infra'!$AN127>='Input-Gen'!$M$38,V283,0) + V435 + V891 - V587 -> 0 | W131: =IF('Input-Infra'!$AN127>='Input-Gen'!$M$38,W283,0) + W435 + W891 - W587 -> 0 | X131: =IF('Input-Infra'!$AN127>='Input-Gen'!$M$38,X283,0) + X435 + X891 - X587 -> 0 | Y131: =IF('Input-Infra'!$AN127>='Input-Gen'!$M$38,Y283,0) + Y435 + Y891 - Y587 -> 0 | Z131: =IF('Input-Infra'!$AN127>='Input-Gen'!$M$38,Z283,0) + Z435 + Z891 - Z587 -> 0 | AA131: =IF('Input-Infra'!$AN127>='Input-Gen'!$M$38,AA283,0) + AA435 + AA891 - AA587 -> 0 | AB131: =IF('Input-Infra'!$AN127>='Input-Gen'!$M$38,AB283,0) + AB435 + AB891 - AB587 -> 0 | AC131: =IF('Input-Infra'!$AN127>='Input-Gen'!$M$38,AC283,0) + AC435 + AC891 - AC587 -> 0
G132: Spare 3 | I132: $'000 | K132: 0 | Q132: 0 | S132: =IF('Input-Infra'!$AN128>='Input-Gen'!$M$38,S284,0) + S436 + S892 - S588 -> 0 | T132: =IF('Input-Infra'!$AN128>='Input-Gen'!$M$38,T284,0) + T436 + T892 - T588 -> 0 | U132: =IF('Input-Infra'!$AN128>='Input-Gen'!$M$38,U284,0) + U436 + U892 - U588 -> 0 | V132: =IF('Input-Infra'!$AN128>='Input-Gen'!$M$38,V284,0) + V436 + V892 - V588 -> 0 | W132: =IF('Input-Infra'!$AN128>='Input-Gen'!$M$38,W284,0) + W436 + W892 - W588 -> 0 | X132: =IF('Input-Infra'!$AN128>='Input-Gen'!$M$38,X284,0) + X436 + X892 - X588 -> 0 | Y132: =IF('Input-Infra'!$AN128>='Input-Gen'!$M$38,Y284,0) + Y436 + Y892 - Y588 -> 0 | Z132: =IF('Input-Infra'!$AN128>='Input-Gen'!$M$38,Z284,0) + Z436 + Z892 - Z588 -> 0 | AA132: =IF('Input-Infra'!$AN128>='Input-Gen'!$M$38,AA284,0) + AA436 + AA892 - AA588 -> 0 | AB132: =IF('Input-Infra'!$AN128>='Input-Gen'!$M$38,AB284,0) + AB436 + AB892 - AB588 -> 0 | AC132: =IF('Input-Infra'!$AN128>='Input-Gen'!$M$38,AC284,0) + AC436 + AC892 - AC588 -> 0
G133: Spare 4 | I133: $'000 | K133: 0 | Q133: 0 | S133: =IF('Input-Infra'!$AN129>='Input-Gen'!$M$38,S285,0) + S437 + S893 - S589 -> 0 | T133: =IF('Input-Infra'!$AN129>='Input-Gen'!$M$38,T285,0) + T437 + T893 - T589 -> 0 | U133: =IF('Input-Infra'!$AN129>='Input-Gen'!$M$38,U285,0) + U437 + U893 - U589 -> 0 | V133: =IF('Input-Infra'!$AN129>='Input-Gen'!$M$38,V285,0) + V437 + V893 - V589 -> 0 | W133: =IF('Input-Infra'!$AN129>='Input-Gen'!$M$38,W285,0) + W437 + W893 - W589 -> 0 | X133: =IF('Input-Infra'!$AN129>='Input-Gen'!$M$38,X285,0) + X437 + X893 - X589 -> 0 | Y133: =IF('Input-Infra'!$AN129>='Input-Gen'!$M$38,Y285,0) + Y437 + Y893 - Y589 -> 0 | Z133: =IF('Input-Infra'!$AN129>='Input-Gen'!$M$38,Z285,0) + Z437 + Z893 - Z589 -> 0 | AA133: =IF('Input-Infra'!$AN129>='Input-Gen'!$M$38,AA285,0) + AA437 + AA893 - AA589 -> 0 | AB133: =IF('Input-Infra'!$AN129>='Input-Gen'!$M$38,AB285,0) + AB437 + AB893 - AB589 -> 0 | AC133: =IF('Input-Infra'!$AN129>='Input-Gen'!$M$38,AC285,0) + AC437 + AC893 - AC589 -> 0
G134: Spare 5 | I134: $'000 | K134: 0 | Q134: 0 | S134: =IF('Input-Infra'!$AN130>='Input-Gen'!$M$38,S286,0) + S438 + S894 - S590 -> 0 | T134: =IF('Input-Infra'!$AN130>='Input-Gen'!$M$38,T286,0) + T438 + T894 - T590 -> 0 | U134: =IF('Input-Infra'!$AN130>='Input-Gen'!$M$38,U286,0) + U438 + U894 - U590 -> 0 | V134: =IF('Input-Infra'!$AN130>='Input-Gen'!$M$38,V286,0) + V438 + V894 - V590 -> 0 | W134: =IF('Input-Infra'!$AN130>='Input-Gen'!$M$38,W286,0) + W438 + W894 - W590 -> 0 | X134: =IF('Input-Infra'!$AN130>='Input-Gen'!$M$38,X286,0) + X438 + X894 - X590 -> 0 | Y134: =IF('Input-Infra'!$AN130>='Input-Gen'!$M$38,Y286,0) + Y438 + Y894 - Y590 -> 0 | Z134: =IF('Input-Infra'!$AN130>='Input-Gen'!$M$38,Z286,0) + Z438 + Z894 - Z590 -> 0 | AA134: =IF('Input-Infra'!$AN130>='Input-Gen'!$M$38,AA286,0) + AA438 + AA894 - AA590 -> 0 | AB134: =IF('Input-Infra'!$AN130>='Input-Gen'!$M$38,AB286,0) + AB438 + AB894 - AB590 -> 0 | AC134: =IF('Input-Infra'!$AN130>='Input-Gen'!$M$38,AC286,0) + AC438 + AC894 - AC590 -> 0
G135: Spare 6 | I135: $'000 | K135: 0 | Q135: 0 | S135: =IF('Input-Infra'!$AN131>='Input-Gen'!$M$38,S287,0) + S439 + S895 - S591 -> 0 | T135: =IF('Input-Infra'!$AN131>='Input-Gen'!$M$38,T287,0) + T439 + T895 - T591 -> 0 | U135: =IF('Input-Infra'!$AN131>='Input-Gen'!$M$38,U287,0) + U439 + U895 - U591 -> 0 | V135: =IF('Input-Infra'!$AN131>='Input-Gen'!$M$38,V287,0) + V439 + V895 - V591 -> 0 | W135: =IF('Input-Infra'!$AN131>='Input-Gen'!$M$38,W287,0) + W439 + W895 - W591 -> 0 | X135: =IF('Input-Infra'!$AN131>='Input-Gen'!$M$38,X287,0) + X439 + X895 - X591 -> 0 | Y135: =IF('Input-Infra'!$AN131>='Input-Gen'!$M$38,Y287,0) + Y439 + Y895 - Y591 -> 0 | Z135: =IF('Input-Infra'!$AN131>='Input-Gen'!$M$38,Z287,0) + Z439 + Z895 - Z591 -> 0 | AA135: =IF('Input-Infra'!$AN131>='Input-Gen'!$M$38,AA287,0) + AA439 + AA895 - AA591 -> 0 | AB135: =IF('Input-Infra'!$AN131>='Input-Gen'!$M$38,AB287,0) + AB439 + AB895 - AB591 -> 0 | AC135: =IF('Input-Infra'!$AN131>='Input-Gen'!$M$38,AC287,0) + AC439 + AC895 - AC591 -> 0
G136: Spare 7 | I136: $'000 | K136: 0 | Q136: 0 | S136: =IF('Input-Infra'!$AN132>='Input-Gen'!$M$38,S288,0) + S440 + S896 - S592 -> 0 | T136: =IF('Input-Infra'!$AN132>='Input-Gen'!$M$38,T288,0) + T440 + T896 - T592 -> 0 | U136: =IF('Input-Infra'!$AN132>='Input-Gen'!$M$38,U288,0) + U440 + U896 - U592 -> 0 | V136: =IF('Input-Infra'!$AN132>='Input-Gen'!$M$38,V288,0) + V440 + V896 - V592 -> 0 | W136: =IF('Input-Infra'!$AN132>='Input-Gen'!$M$38,W288,0) + W440 + W896 - W592 -> 0 | X136: =IF('Input-Infra'!$AN132>='Input-Gen'!$M$38,X288,0) + X440 + X896 - X592 -> 0 | Y136: =IF('Input-Infra'!$AN132>='Input-Gen'!$M$38,Y288,0) + Y440 + Y896 - Y592 -> 0 | Z136: =IF('Input-Infra'!$AN132>='Input-Gen'!$M$38,Z288,0) + Z440 + Z896 - Z592 -> 0 | AA136: =IF('Input-Infra'!$AN132>='Input-Gen'!$M$38,AA288,0) + AA440 + AA896 - AA592 -> 0 | AB136: =IF('Input-Infra'!$AN132>='Input-Gen'!$M$38,AB288,0) + AB440 + AB896 - AB592 -> 0 | AC136: =IF('Input-Infra'!$AN132>='Input-Gen'!$M$38,AC288,0) + AC440 + AC896 - AC592 -> 0
G137: Spare 8 | I137: $'000 | K137: 0 | Q137: 0 | S137: =IF('Input-Infra'!$AN133>='Input-Gen'!$M$38,S289,0) + S441 + S897 - S593 -> 0 | T137: =IF('Input-Infra'!$AN133>='Input-Gen'!$M$38,T289,0) + T441 + T897 - T593 -> 0 | U137: =IF('Input-Infra'!$AN133>='Input-Gen'!$M$38,U289,0) + U441 + U897 - U593 -> 0 | V137: =IF('Input-Infra'!$AN133>='Input-Gen'!$M$38,V289,0) + V441 + V897 - V593 -> 0 | W137: =IF('Input-Infra'!$AN133>='Input-Gen'!$M$38,W289,0) + W441 + W897 - W593 -> 0 | X137: =IF('Input-Infra'!$AN133>='Input-Gen'!$M$38,X289,0) + X441 + X897 - X593 -> 0 | Y137: =IF('Input-Infra'!$AN133>='Input-Gen'!$M$38,Y289,0) + Y441 + Y897 - Y593 -> 0 | Z137: =IF('Input-Infra'!$AN133>='Input-Gen'!$M$38,Z289,0) + Z441 + Z897 - Z593 -> 0 | AA137: =IF('Input-Infra'!$AN133>='Input-Gen'!$M$38,AA289,0) + AA441 + AA897 - AA593 -> 0 | AB137: =IF('Input-Infra'!$AN133>='Input-Gen'!$M$38,AB289,0) + AB441 + AB897 - AB593 -> 0 | AC137: =IF('Input-Infra'!$AN133>='Input-Gen'!$M$38,AC289,0) + AC441 + AC897 - AC593 -> 0
G138: Spare 9 | I138: $'000 | K138: 0 | Q138: 0 | S138: =IF('Input-Infra'!$AN134>='Input-Gen'!$M$38,S290,0) + S442 + S898 - S594 -> 0 | T138: =IF('Input-Infra'!$AN134>='Input-Gen'!$M$38,T290,0) + T442 + T898 - T594 -> 0 | U138: =IF('Input-Infra'!$AN134>='Input-Gen'!$M$38,U290,0) + U442 + U898 - U594 -> 0 | V138: =IF('Input-Infra'!$AN134>='Input-Gen'!$M$38,V290,0) + V442 + V898 - V594 -> 0 | W138: =IF('Input-Infra'!$AN134>='Input-Gen'!$M$38,W290,0) + W442 + W898 - W594 -> 0 | X138: =IF('Input-Infra'!$AN134>='Input-Gen'!$M$38,X290,0) + X442 + X898 - X594 -> 0 | Y138: =IF('Input-Infra'!$AN134>='Input-Gen'!$M$38,Y290,0) + Y442 + Y898 - Y594 -> 0 | Z138: =IF('Input-Infra'!$AN134>='Input-Gen'!$M$38,Z290,0) + Z442 + Z898 - Z594 -> 0 | AA138: =IF('Input-Infra'!$AN134>='Input-Gen'!$M$38,AA290,0) + AA442 + AA898 - AA594 -> 0 | AB138: =IF('Input-Infra'!$AN134>='Input-Gen'!$M$38,AB290,0) + AB442 + AB898 - AB594 -> 0 | AC138: =IF('Input-Infra'!$AN134>='Input-Gen'!$M$38,AC290,0) + AC442 + AC898 - AC594 -> 0
G139: Spare 10 | I139: $'000 | K139: 0 | Q139: 0 | S139: =IF('Input-Infra'!$AN135>='Input-Gen'!$M$38,S291,0) + S443 + S899 - S595 -> 0 | T139: =IF('Input-Infra'!$AN135>='Input-Gen'!$M$38,T291,0) + T443 + T899 - T595 -> 0 | U139: =IF('Input-Infra'!$AN135>='Input-Gen'!$M$38,U291,0) + U443 + U899 - U595 -> 0 | V139: =IF('Input-Infra'!$AN135>='Input-Gen'!$M$38,V291,0) + V443 + V899 - V595 -> 0 | W139: =IF('Input-Infra'!$AN135>='Input-Gen'!$M$38,W291,0) + W443 + W899 - W595 -> 0 | X139: =IF('Input-Infra'!$AN135>='Input-Gen'!$M$38,X291,0) + X443 + X899 - X595 -> 0 | Y139: =IF('Input-Infra'!$AN135>='Input-Gen'!$M$38,Y291,0) + Y443 + Y899 - Y595 -> 0 | Z139: =IF('Input-Infra'!$AN135>='Input-Gen'!$M$38,Z291,0) + Z443 + Z899 - Z595 -> 0 | AA139: =IF('Input-Infra'!$AN135>='Input-Gen'!$M$38,AA291,0) + AA443 + AA899 - AA595 -> 0 | AB139: =IF('Input-Infra'!$AN135>='Input-Gen'!$M$38,AB291,0) + AB443 + AB899 - AB595 -> 0 | AC139: =IF('Input-Infra'!$AN135>='Input-Gen'!$M$38,AC291,0) + AC443 + AC899 - AC595 -> 0
G140: Spare 11 | I140: $'000 | K140: 0 | Q140: 0 | S140: =IF('Input-Infra'!$AN136>='Input-Gen'!$M$38,S292,0) + S444 + S900 - S596 -> 0 | T140: =IF('Input-Infra'!$AN136>='Input-Gen'!$M$38,T292,0) + T444 + T900 - T596 -> 0 | U140: =IF('Input-Infra'!$AN136>='Input-Gen'!$M$38,U292,0) + U444 + U900 - U596 -> 0 | V140: =IF('Input-Infra'!$AN136>='Input-Gen'!$M$38,V292,0) + V444 + V900 - V596 -> 0 | W140: =IF('Input-Infra'!$AN136>='Input-Gen'!$M$38,W292,0) + W444 + W900 - W596 -> 0 | X140: =IF('Input-Infra'!$AN136>='Input-Gen'!$M$38,X292,0) + X444 + X900 - X596 -> 0 | Y140: =IF('Input-Infra'!$AN136>='Input-Gen'!$M$38,Y292,0) + Y444 + Y900 - Y596 -> 0 | Z140: =IF('Input-Infra'!$AN136>='Input-Gen'!$M$38,Z292,0) + Z444 + Z900 - Z596 -> 0 | AA140: =IF('Input-Infra'!$AN136>='Input-Gen'!$M$38,AA292,0) + AA444 + AA900 - AA596 -> 0 | AB140: =IF('Input-Infra'!$AN136>='Input-Gen'!$M$38,AB292,0) + AB444 + AB900 - AB596 -> 0 | AC140: =IF('Input-Infra'!$AN136>='Input-Gen'!$M$38,AC292,0) + AC444 + AC900 - AC596 -> 0
G141: Spare 12 | I141: $'000 | K141: 0 | Q141: 0 | S141: =IF('Input-Infra'!$AN137>='Input-Gen'!$M$38,S293,0) + S445 + S901 - S597 -> 0 | T141: =IF('Input-Infra'!$AN137>='Input-Gen'!$M$38,T293,0) + T445 + T901 - T597 -> 0 | U141: =IF('Input-Infra'!$AN137>='Input-Gen'!$M$38,U293,0) + U445 + U901 - U597 -> 0 | V141: =IF('Input-Infra'!$AN137>='Input-Gen'!$M$38,V293,0) + V445 + V901 - V597 -> 0 | W141: =IF('Input-Infra'!$AN137>='Input-Gen'!$M$38,W293,0) + W445 + W901 - W597 -> 0 | X141: =IF('Input-Infra'!$AN137>='Input-Gen'!$M$38,X293,0) + X445 + X901 - X597 -> 0 | Y141: =IF('Input-Infra'!$AN137>='Input-Gen'!$M$38,Y293,0) + Y445 + Y901 - Y597 -> 0 | Z141: =IF('Input-Infra'!$AN137>='Input-Gen'!$M$38,Z293,0) + Z445 + Z901 - Z597 -> 0 | AA141: =IF('Input-Infra'!$AN137>='Input-Gen'!$M$38,AA293,0) + AA445 + AA901 - AA597 -> 0 | AB141: =IF('Input-Infra'!$AN137>='Input-Gen'!$M$38,AB293,0) + AB445 + AB901 - AB597 -> 0 | AC141: =IF('Input-Infra'!$AN137>='Input-Gen'!$M$38,AC293,0) + AC445 + AC901 - AC597 -> 0
G142: Spare 13 | I142: $'000 | K142: 0 | Q142: 0 | S142: =IF('Input-Infra'!$AN138>='Input-Gen'!$M$38,S294,0) + S446 + S902 - S598 -> 0 | T142: =IF('Input-Infra'!$AN138>='Input-Gen'!$M$38,T294,0) + T446 + T902 - T598 -> 0 | U142: =IF('Input-Infra'!$AN138>='Input-Gen'!$M$38,U294,0) + U446 + U902 - U598 -> 0 | V142: =IF('Input-Infra'!$AN138>='Input-Gen'!$M$38,V294,0) + V446 + V902 - V598 -> 0 | W142: =IF('Input-Infra'!$AN138>='Input-Gen'!$M$38,W294,0) + W446 + W902 - W598 -> 0 | X142: =IF('Input-Infra'!$AN138>='Input-Gen'!$M$38,X294,0) + X446 + X902 - X598 -> 0 | Y142: =IF('Input-Infra'!$AN138>='Input-Gen'!$M$38,Y294,0) + Y446 + Y902 - Y598 -> 0 | Z142: =IF('Input-Infra'!$AN138>='Input-Gen'!$M$38,Z294,0) + Z446 + Z902 - Z598 -> 0 | AA142: =IF('Input-Infra'!$AN138>='Input-Gen'!$M$38,AA294,0) + AA446 + AA902 - AA598 -> 0 | AB142: =IF('Input-Infra'!$AN138>='Input-Gen'!$M$38,AB294,0) + AB446 + AB902 - AB598 -> 0 | AC142: =IF('Input-Infra'!$AN138>='Input-Gen'!$M$38,AC294,0) + AC446 + AC902 - AC598 -> 0
G143: Spare 14 | I143: $'000 | K143: 0 | Q143: 0 | S143: =IF('Input-Infra'!$AN139>='Input-Gen'!$M$38,S295,0) + S447 + S903 - S599 -> 0 | T143: =IF('Input-Infra'!$AN139>='Input-Gen'!$M$38,T295,0) + T447 + T903 - T599 -> 0 | U143: =IF('Input-Infra'!$AN139>='Input-Gen'!$M$38,U295,0) + U447 + U903 - U599 -> 0 | V143: =IF('Input-Infra'!$AN139>='Input-Gen'!$M$38,V295,0) + V447 + V903 - V599 -> 0 | W143: =IF('Input-Infra'!$AN139>='Input-Gen'!$M$38,W295,0) + W447 + W903 - W599 -> 0 | X143: =IF('Input-Infra'!$AN139>='Input-Gen'!$M$38,X295,0) + X447 + X903 - X599 -> 0 | Y143: =IF('Input-Infra'!$AN139>='Input-Gen'!$M$38,Y295,0) + Y447 + Y903 - Y599 -> 0 | Z143: =IF('Input-Infra'!$AN139>='Input-Gen'!$M$38,Z295,0) + Z447 + Z903 - Z599 -> 0 | AA143: =IF('Input-Infra'!$AN139>='Input-Gen'!$M$38,AA295,0) + AA447 + AA903 - AA599 -> 0 | AB143: =IF('Input-Infra'!$AN139>='Input-Gen'!$M$38,AB295,0) + AB447 + AB903 - AB599 -> 0 | AC143: =IF('Input-Infra'!$AN139>='Input-Gen'!$M$38,AC295,0) + AC447 + AC903 - AC599 -> 0
G144: Spare 15 | I144: $'000 | K144: 0 | Q144: 0 | S144: =IF('Input-Infra'!$AN140>='Input-Gen'!$M$38,S296,0) + S448 + S904 - S600 -> 0 | T144: =IF('Input-Infra'!$AN140>='Input-Gen'!$M$38,T296,0) + T448 + T904 - T600 -> 0 | U144: =IF('Input-Infra'!$AN140>='Input-Gen'!$M$38,U296,0) + U448 + U904 - U600 -> 0 | V144: =IF('Input-Infra'!$AN140>='Input-Gen'!$M$38,V296,0) + V448 + V904 - V600 -> 0 | W144: =IF('Input-Infra'!$AN140>='Input-Gen'!$M$38,W296,0) + W448 + W904 - W600 -> 0 | X144: =IF('Input-Infra'!$AN140>='Input-Gen'!$M$38,X296,0) + X448 + X904 - X600 -> 0 | Y144: =IF('Input-Infra'!$AN140>='Input-Gen'!$M$38,Y296,0) + Y448 + Y904 - Y600 -> 0 | Z144: =IF('Input-Infra'!$AN140>='Input-Gen'!$M$38,Z296,0) + Z448 + Z904 - Z600 -> 0 | AA144: =IF('Input-Infra'!$AN140>='Input-Gen'!$M$38,AA296,0) + AA448 + AA904 - AA600 -> 0 | AB144: =IF('Input-Infra'!$AN140>='Input-Gen'!$M$38,AB296,0) + AB448 + AB904 - AB600 -> 0 | AC144: =IF('Input-Infra'!$AN140>='Input-Gen'!$M$38,AC296,0) + AC448 + AC904 - AC600 -> 0
G145: Spare 16 | I145: $'000 | K145: 0 | Q145: 0 | S145: =IF('Input-Infra'!$AN141>='Input-Gen'!$M$38,S297,0) + S449 + S905 - S601 -> 0 | T145: =IF('Input-Infra'!$AN141>='Input-Gen'!$M$38,T297,0) + T449 + T905 - T601 -> 0 | U145: =IF('Input-Infra'!$AN141>='Input-Gen'!$M$38,U297,0) + U449 + U905 - U601 -> 0 | V145: =IF('Input-Infra'!$AN141>='Input-Gen'!$M$38,V297,0) + V449 + V905 - V601 -> 0 | W145: =IF('Input-Infra'!$AN141>='Input-Gen'!$M$38,W297,0) + W449 + W905 - W601 -> 0 | X145: =IF('Input-Infra'!$AN141>='Input-Gen'!$M$38,X297,0) + X449 + X905 - X601 -> 0 | Y145: =IF('Input-Infra'!$AN141>='Input-Gen'!$M$38,Y297,0) + Y449 + Y905 - Y601 -> 0 | Z145: =IF('Input-Infra'!$AN141>='Input-Gen'!$M$38,Z297,0) + Z449 + Z905 - Z601 -> 0 | AA145: =IF('Input-Infra'!$AN141>='Input-Gen'!$M$38,AA297,0) + AA449 + AA905 - AA601 -> 0 | AB145: =IF('Input-Infra'!$AN141>='Input-Gen'!$M$38,AB297,0) + AB449 + AB905 - AB601 -> 0 | AC145: =IF('Input-Infra'!$AN141>='Input-Gen'!$M$38,AC297,0) + AC449 + AC905 - AC601 -> 0
G146: Spare 17 | I146: $'000 | K146: 0 | Q146: 0 | S146: =IF('Input-Infra'!$AN142>='Input-Gen'!$M$38,S298,0) + S450 + S906 - S602 -> 0 | T146: =IF('Input-Infra'!$AN142>='Input-Gen'!$M$38,T298,0) + T450 + T906 - T602 -> 0 | U146: =IF('Input-Infra'!$AN142>='Input-Gen'!$M$38,U298,0) + U450 + U906 - U602 -> 0 | V146: =IF('Input-Infra'!$AN142>='Input-Gen'!$M$38,V298,0) + V450 + V906 - V602 -> 0 | W146: =IF('Input-Infra'!$AN142>='Input-Gen'!$M$38,W298,0) + W450 + W906 - W602 -> 0 | X146: =IF('Input-Infra'!$AN142>='Input-Gen'!$M$38,X298,0) + X450 + X906 - X602 -> 0 | Y146: =IF('Input-Infra'!$AN142>='Input-Gen'!$M$38,Y298,0) + Y450 + Y906 - Y602 -> 0 | Z146: =IF('Input-Infra'!$AN142>='Input-Gen'!$M$38,Z298,0) + Z450 + Z906 - Z602 -> 0 | AA146: =IF('Input-Infra'!$AN142>='Input-Gen'!$M$38,AA298,0) + AA450 + AA906 - AA602 -> 0 | AB146: =IF('Input-Infra'!$AN142>='Input-Gen'!$M$38,AB298,0) + AB450 + AB906 - AB602 -> 0 | AC146: =IF('Input-Infra'!$AN142>='Input-Gen'!$M$38,AC298,0) + AC450 + AC906 - AC602 -> 0
G147: Spare 18 | I147: $'000 | K147: 0 | Q147: 0 | S147: =IF('Input-Infra'!$AN143>='Input-Gen'!$M$38,S299,0) + S451 + S907 - S603 -> 0 | T147: =IF('Input-Infra'!$AN143>='Input-Gen'!$M$38,T299,0) + T451 + T907 - T603 -> 0 | U147: =IF('Input-Infra'!$AN143>='Input-Gen'!$M$38,U299,0) + U451 + U907 - U603 -> 0 | V147: =IF('Input-Infra'!$AN143>='Input-Gen'!$M$38,V299,0) + V451 + V907 - V603 -> 0 | W147: =IF('Input-Infra'!$AN143>='Input-Gen'!$M$38,W299,0) + W451 + W907 - W603 -> 0 | X147: =IF('Input-Infra'!$AN143>='Input-Gen'!$M$38,X299,0) + X451 + X907 - X603 -> 0 | Y147: =IF('Input-Infra'!$AN143>='Input-Gen'!$M$38,Y299,0) + Y451 + Y907 - Y603 -> 0 | Z147: =IF('Input-Infra'!$AN143>='Input-Gen'!$M$38,Z299,0) + Z451 + Z907 - Z603 -> 0 | AA147: =IF('Input-Infra'!$AN143>='Input-Gen'!$M$38,AA299,0) + AA451 + AA907 - AA603 -> 0 | AB147: =IF('Input-Infra'!$AN143>='Input-Gen'!$M$38,AB299,0) + AB451 + AB907 - AB603 -> 0 | AC147: =IF('Input-Infra'!$AN143>='Input-Gen'!$M$38,AC299,0) + AC451 + AC907 - AC603 -> 0
G148: Spare 19 | I148: $'000 | K148: 0 | Q148: 0 | S148: =IF('Input-Infra'!$AN144>='Input-Gen'!$M$38,S300,0) + S452 + S908 - S604 -> 0 | T148: =IF('Input-Infra'!$AN144>='Input-Gen'!$M$38,T300,0) + T452 + T908 - T604 -> 0 | U148: =IF('Input-Infra'!$AN144>='Input-Gen'!$M$38,U300,0) + U452 + U908 - U604 -> 0 | V148: =IF('Input-Infra'!$AN144>='Input-Gen'!$M$38,V300,0) + V452 + V908 - V604 -> 0 | W148: =IF('Input-Infra'!$AN144>='Input-Gen'!$M$38,W300,0) + W452 + W908 - W604 -> 0 | X148: =IF('Input-Infra'!$AN144>='Input-Gen'!$M$38,X300,0) + X452 + X908 - X604 -> 0 | Y148: =IF('Input-Infra'!$AN144>='Input-Gen'!$M$38,Y300,0) + Y452 + Y908 - Y604 -> 0 | Z148: =IF('Input-Infra'!$AN144>='Input-Gen'!$M$38,Z300,0) + Z452 + Z908 - Z604 -> 0 | AA148: =IF('Input-Infra'!$AN144>='Input-Gen'!$M$38,AA300,0) + AA452 + AA908 - AA604 -> 0 | AB148: =IF('Input-Infra'!$AN144>='Input-Gen'!$M$38,AB300,0) + AB452 + AB908 - AB604 -> 0 | AC148: =IF('Input-Infra'!$AN144>='Input-Gen'!$M$38,AC300,0) + AC452 + AC908 - AC604 -> 0
G149: Spare 20 | I149: $'000 | K149: 0 | Q149: 0 | S149: =IF('Input-Infra'!$AN145>='Input-Gen'!$M$38,S301,0) + S453 + S909 - S605 -> 0 | T149: =IF('Input-Infra'!$AN145>='Input-Gen'!$M$38,T301,0) + T453 + T909 - T605 -> 0 | U149: =IF('Input-Infra'!$AN145>='Input-Gen'!$M$38,U301,0) + U453 + U909 - U605 -> 0 | V149: =IF('Input-Infra'!$AN145>='Input-Gen'!$M$38,V301,0) + V453 + V909 - V605 -> 0 | W149: =IF('Input-Infra'!$AN145>='Input-Gen'!$M$38,W301,0) + W453 + W909 - W605 -> 0 | X149: =IF('Input-Infra'!$AN145>='Input-Gen'!$M$38,X301,0) + X453 + X909 - X605 -> 0 | Y149: =IF('Input-Infra'!$AN145>='Input-Gen'!$M$38,Y301,0) + Y453 + Y909 - Y605 -> 0 | Z149: =IF('Input-Infra'!$AN145>='Input-Gen'!$M$38,Z301,0) + Z453 + Z909 - Z605 -> 0 | AA149: =IF('Input-Infra'!$AN145>='Input-Gen'!$M$38,AA301,0) + AA453 + AA909 - AA605 -> 0 | AB149: =IF('Input-Infra'!$AN145>='Input-Gen'!$M$38,AB301,0) + AB453 + AB909 - AB605 -> 0 | AC149: =IF('Input-Infra'!$AN145>='Input-Gen'!$M$38,AC301,0) + AC453 + AC909 - AC605 -> 0
G150: Spare 21 | I150: $'000 | K150: 0 | Q150: 0 | S150: =IF('Input-Infra'!$AN146>='Input-Gen'!$M$38,S302,0) + S454 + S910 - S606 -> 0 | T150: =IF('Input-Infra'!$AN146>='Input-Gen'!$M$38,T302,0) + T454 + T910 - T606 -> 0 | U150: =IF('Input-Infra'!$AN146>='Input-Gen'!$M$38,U302,0) + U454 + U910 - U606 -> 0 | V150: =IF('Input-Infra'!$AN146>='Input-Gen'!$M$38,V302,0) + V454 + V910 - V606 -> 0 | W150: =IF('Input-Infra'!$AN146>='Input-Gen'!$M$38,W302,0) + W454 + W910 - W606 -> 0 | X150: =IF('Input-Infra'!$AN146>='Input-Gen'!$M$38,X302,0) + X454 + X910 - X606 -> 0 | Y150: =IF('Input-Infra'!$AN146>='Input-Gen'!$M$38,Y302,0) + Y454 + Y910 - Y606 -> 0 | Z150: =IF('Input-Infra'!$AN146>='Input-Gen'!$M$38,Z302,0) + Z454 + Z910 - Z606 -> 0 | AA150: =IF('Input-Infra'!$AN146>='Input-Gen'!$M$38,AA302,0) + AA454 + AA910 - AA606 -> 0 | AB150: =IF('Input-Infra'!$AN146>='Input-Gen'!$M$38,AB302,0) + AB454 + AB910 - AB606 -> 0 | AC150: =IF('Input-Infra'!$AN146>='Input-Gen'!$M$38,AC302,0) + AC454 + AC910 - AC606 -> 0
G151: Spare 22 | I151: $'000 | K151: 0 | Q151: 0 | S151: =IF('Input-Infra'!$AN147>='Input-Gen'!$M$38,S303,0) + S455 + S911 - S607 -> 0 | T151: =IF('Input-Infra'!$AN147>='Input-Gen'!$M$38,T303,0) + T455 + T911 - T607 -> 0 | U151: =IF('Input-Infra'!$AN147>='Input-Gen'!$M$38,U303,0) + U455 + U911 - U607 -> 0 | V151: =IF('Input-Infra'!$AN147>='Input-Gen'!$M$38,V303,0) + V455 + V911 - V607 -> 0 | W151: =IF('Input-Infra'!$AN147>='Input-Gen'!$M$38,W303,0) + W455 + W911 - W607 -> 0 | X151: =IF('Input-Infra'!$AN147>='Input-Gen'!$M$38,X303,0) + X455 + X911 - X607 -> 0 | Y151: =IF('Input-Infra'!$AN147>='Input-Gen'!$M$38,Y303,0) + Y455 + Y911 - Y607 -> 0 | Z151: =IF('Input-Infra'!$AN147>='Input-Gen'!$M$38,Z303,0) + Z455 + Z911 - Z607 -> 0 | AA151: =IF('Input-Infra'!$AN147>='Input-Gen'!$M$38,AA303,0) + AA455 + AA911 - AA607 -> 0 | AB151: =IF('Input-Infra'!$AN147>='Input-Gen'!$M$38,AB303,0) + AB455 + AB911 - AB607 -> 0 | AC151: =IF('Input-Infra'!$AN147>='Input-Gen'!$M$38,AC303,0) + AC455 + AC911 - AC607 -> 0
G152: Spare 23 | I152: $'000 | K152: 0 | Q152: 0 | S152: =IF('Input-Infra'!$AN148>='Input-Gen'!$M$38,S304,0) + S456 + S912 - S608 -> 0 | T152: =IF('Input-Infra'!$AN148>='Input-Gen'!$M$38,T304,0) + T456 + T912 - T608 -> 0 | U152: =IF('Input-Infra'!$AN148>='Input-Gen'!$M$38,U304,0) + U456 + U912 - U608 -> 0 | V152: =IF('Input-Infra'!$AN148>='Input-Gen'!$M$38,V304,0) + V456 + V912 - V608 -> 0 | W152: =IF('Input-Infra'!$AN148>='Input-Gen'!$M$38,W304,0) + W456 + W912 - W608 -> 0 | X152: =IF('Input-Infra'!$AN148>='Input-Gen'!$M$38,X304,0) + X456 + X912 - X608 -> 0 | Y152: =IF('Input-Infra'!$AN148>='Input-Gen'!$M$38,Y304,0) + Y456 + Y912 - Y608 -> 0 | Z152: =IF('Input-Infra'!$AN148>='Input-Gen'!$M$38,Z304,0) + Z456 + Z912 - Z608 -> 0 | AA152: =IF('Input-Infra'!$AN148>='Input-Gen'!$M$38,AA304,0) + AA456 + AA912 - AA608 -> 0 | AB152: =IF('Input-Infra'!$AN148>='Input-Gen'!$M$38,AB304,0) + AB456 + AB912 - AB608 -> 0 | AC152: =IF('Input-Infra'!$AN148>='Input-Gen'!$M$38,AC304,0) + AC456 + AC912 - AC608 -> 0
G153: Spare 24 | I153: $'000 | K153: 0 | Q153: 0 | S153: =IF('Input-Infra'!$AN149>='Input-Gen'!$M$38,S305,0) + S457 + S913 - S609 -> 0 | T153: =IF('Input-Infra'!$AN149>='Input-Gen'!$M$38,T305,0) + T457 + T913 - T609 -> 0 | U153: =IF('Input-Infra'!$AN149>='Input-Gen'!$M$38,U305,0) + U457 + U913 - U609 -> 0 | V153: =IF('Input-Infra'!$AN149>='Input-Gen'!$M$38,V305,0) + V457 + V913 - V609 -> 0 | W153: =IF('Input-Infra'!$AN149>='Input-Gen'!$M$38,W305,0) + W457 + W913 - W609 -> 0 | X153: =IF('Input-Infra'!$AN149>='Input-Gen'!$M$38,X305,0) + X457 + X913 - X609 -> 0 | Y153: =IF('Input-Infra'!$AN149>='Input-Gen'!$M$38,Y305,0) + Y457 + Y913 - Y609 -> 0 | Z153: =IF('Input-Infra'!$AN149>='Input-Gen'!$M$38,Z305,0) + Z457 + Z913 - Z609 -> 0 | AA153: =IF('Input-Infra'!$AN149>='Input-Gen'!$M$38,AA305,0) + AA457 + AA913 - AA609 -> 0 | AB153: =IF('Input-Infra'!$AN149>='Input-Gen'!$M$38,AB305,0) + AB457 + AB913 - AB609 -> 0 | AC153: =IF('Input-Infra'!$AN149>='Input-Gen'!$M$38,AC305,0) + AC457 + AC913 - AC609 -> 0
G154: Spare 25 | I154: $'000 | K154: 0 | Q154: 0 | S154: =IF('Input-Infra'!$AN150>='Input-Gen'!$M$38,S306,0) + S458 + S914 - S610 -> 0 | T154: =IF('Input-Infra'!$AN150>='Input-Gen'!$M$38,T306,0) + T458 + T914 - T610 -> 0 | U154: =IF('Input-Infra'!$AN150>='Input-Gen'!$M$38,U306,0) + U458 + U914 - U610 -> 0 | V154: =IF('Input-Infra'!$AN150>='Input-Gen'!$M$38,V306,0) + V458 + V914 - V610 -> 0 | W154: =IF('Input-Infra'!$AN150>='Input-Gen'!$M$38,W306,0) + W458 + W914 - W610 -> 0 | X154: =IF('Input-Infra'!$AN150>='Input-Gen'!$M$38,X306,0) + X458 + X914 - X610 -> 0 | Y154: =IF('Input-Infra'!$AN150>='Input-Gen'!$M$38,Y306,0) + Y458 + Y914 - Y610 -> 0 | Z154: =IF('Input-Infra'!$AN150>='Input-Gen'!$M$38,Z306,0) + Z458 + Z914 - Z610 -> 0 | AA154: =IF('Input-Infra'!$AN150>='Input-Gen'!$M$38,AA306,0) + AA458 + AA914 - AA610 -> 0 | AB154: =IF('Input-Infra'!$AN150>='Input-Gen'!$M$38,AB306,0) + AB458 + AB914 - AB610 -> 0 | AC154: =IF('Input-Infra'!$AN150>='Input-Gen'!$M$38,AC306,0) + AC458 + AC914 - AC610 -> 0
G155: Spare 26 | I155: $'000 | K155: 0 | Q155: 0 | S155: =IF('Input-Infra'!$AN151>='Input-Gen'!$M$38,S307,0) + S459 + S915 - S611 -> 0 | T155: =IF('Input-Infra'!$AN151>='Input-Gen'!$M$38,T307,0) + T459 + T915 - T611 -> 0 | U155: =IF('Input-Infra'!$AN151>='Input-Gen'!$M$38,U307,0) + U459 + U915 - U611 -> 0 | V155: =IF('Input-Infra'!$AN151>='Input-Gen'!$M$38,V307,0) + V459 + V915 - V611 -> 0 | W155: =IF('Input-Infra'!$AN151>='Input-Gen'!$M$38,W307,0) + W459 + W915 - W611 -> 0 | X155: =IF('Input-Infra'!$AN151>='Input-Gen'!$M$38,X307,0) + X459 + X915 - X611 -> 0 | Y155: =IF('Input-Infra'!$AN151>='Input-Gen'!$M$38,Y307,0) + Y459 + Y915 - Y611 -> 0 | Z155: =IF('Input-Infra'!$AN151>='Input-Gen'!$M$38,Z307,0) + Z459 + Z915 - Z611 -> 0 | AA155: =IF('Input-Infra'!$AN151>='Input-Gen'!$M$38,AA307,0) + AA459 + AA915 - AA611 -> 0 | AB155: =IF('Input-Infra'!$AN151>='Input-Gen'!$M$38,AB307,0) + AB459 + AB915 - AB611 -> 0 | AC155: =IF('Input-Infra'!$AN151>='Input-Gen'!$M$38,AC307,0) + AC459 + AC915 - AC611 -> 0
G156: Spare 27 | I156: $'000 | K156: 0 | Q156: 0 | S156: =IF('Input-Infra'!$AN152>='Input-Gen'!$M$38,S308,0) + S460 + S916 - S612 -> 0 | T156: =IF('Input-Infra'!$AN152>='Input-Gen'!$M$38,T308,0) + T460 + T916 - T612 -> 0 | U156: =IF('Input-Infra'!$AN152>='Input-Gen'!$M$38,U308,0) + U460 + U916 - U612 -> 0 | V156: =IF('Input-Infra'!$AN152>='Input-Gen'!$M$38,V308,0) + V460 + V916 - V612 -> 0 | W156: =IF('Input-Infra'!$AN152>='Input-Gen'!$M$38,W308,0) + W460 + W916 - W612 -> 0 | X156: =IF('Input-Infra'!$AN152>='Input-Gen'!$M$38,X308,0) + X460 + X916 - X612 -> 0 | Y156: =IF('Input-Infra'!$AN152>='Input-Gen'!$M$38,Y308,0) + Y460 + Y916 - Y612 -> 0 | Z156: =IF('Input-Infra'!$AN152>='Input-Gen'!$M$38,Z308,0) + Z460 + Z916 - Z612 -> 0 | AA156: =IF('Input-Infra'!$AN152>='Input-Gen'!$M$38,AA308,0) + AA460 + AA916 - AA612 -> 0 | AB156: =IF('Input-Infra'!$AN152>='Input-Gen'!$M$38,AB308,0) + AB460 + AB916 - AB612 -> 0 | AC156: =IF('Input-Infra'!$AN152>='Input-Gen'!$M$38,AC308,0) + AC460 + AC916 - AC612 -> 0
G157: Spare 28 | I157: $'000 | K157: 0 | Q157: 0 | S157: =IF('Input-Infra'!$AN153>='Input-Gen'!$M$38,S309,0) + S461 + S917 - S613 -> 0 | T157: =IF('Input-Infra'!$AN153>='Input-Gen'!$M$38,T309,0) + T461 + T917 - T613 -> 0 | U157: =IF('Input-Infra'!$AN153>='Input-Gen'!$M$38,U309,0) + U461 + U917 - U613 -> 0 | V157: =IF('Input-Infra'!$AN153>='Input-Gen'!$M$38,V309,0) + V461 + V917 - V613 -> 0 | W157: =IF('Input-Infra'!$AN153>='Input-Gen'!$M$38,W309,0) + W461 + W917 - W613 -> 0 | X157: =IF('Input-Infra'!$AN153>='Input-Gen'!$M$38,X309,0) + X461 + X917 - X613 -> 0 | Y157: =IF('Input-Infra'!$AN153>='Input-Gen'!$M$38,Y309,0) + Y461 + Y917 - Y613 -> 0 | Z157: =IF('Input-Infra'!$AN153>='Input-Gen'!$M$38,Z309,0) + Z461 + Z917 - Z613 -> 0 | AA157: =IF('Input-Infra'!$AN153>='Input-Gen'!$M$38,AA309,0) + AA461 + AA917 - AA613 -> 0 | AB157: =IF('Input-Infra'!$AN153>='Input-Gen'!$M$38,AB309,0) + AB461 + AB917 - AB613 -> 0 | AC157: =IF('Input-Infra'!$AN153>='Input-Gen'!$M$38,AC309,0) + AC461 + AC917 - AC613 -> 0
G158: Spare 29 | I158: $'000 | K158: 0 | Q158: 0 | S158: =IF('Input-Infra'!$AN154>='Input-Gen'!$M$38,S310,0) + S462 + S918 - S614 -> 0 | T158: =IF('Input-Infra'!$AN154>='Input-Gen'!$M$38,T310,0) + T462 + T918 - T614 -> 0 | U158: =IF('Input-Infra'!$AN154>='Input-Gen'!$M$38,U310,0) + U462 + U918 - U614 -> 0 | V158: =IF('Input-Infra'!$AN154>='Input-Gen'!$M$38,V310,0) + V462 + V918 - V614 -> 0 | W158: =IF('Input-Infra'!$AN154>='Input-Gen'!$M$38,W310,0) + W462 + W918 - W614 -> 0 | X158: =IF('Input-Infra'!$AN154>='Input-Gen'!$M$38,X310,0) + X462 + X918 - X614 -> 0 | Y158: =IF('Input-Infra'!$AN154>='Input-Gen'!$M$38,Y310,0) + Y462 + Y918 - Y614 -> 0 | Z158: =IF('Input-Infra'!$AN154>='Input-Gen'!$M$38,Z310,0) + Z462 + Z918 - Z614 -> 0 | AA158: =IF('Input-Infra'!$AN154>='Input-Gen'!$M$38,AA310,0) + AA462 + AA918 - AA614 -> 0 | AB158: =IF('Input-Infra'!$AN154>='Input-Gen'!$M$38,AB310,0) + AB462 + AB918 - AB614 -> 0 | AC158: =IF('Input-Infra'!$AN154>='Input-Gen'!$M$38,AC310,0) + AC462 + AC918 - AC614 -> 0
G159: Spare 30 | I159: $'000 | K159: 0 | Q159: 0 | S159: =IF('Input-Infra'!$AN155>='Input-Gen'!$M$38,S311,0) + S463 + S919 - S615 -> 0 | T159: =IF('Input-Infra'!$AN155>='Input-Gen'!$M$38,T311,0) + T463 + T919 - T615 -> 0 | U159: =IF('Input-Infra'!$AN155>='Input-Gen'!$M$38,U311,0) + U463 + U919 - U615 -> 0 | V159: =IF('Input-Infra'!$AN155>='Input-Gen'!$M$38,V311,0) + V463 + V919 - V615 -> 0 | W159: =IF('Input-Infra'!$AN155>='Input-Gen'!$M$38,W311,0) + W463 + W919 - W615 -> 0 | X159: =IF('Input-Infra'!$AN155>='Input-Gen'!$M$38,X311,0) + X463 + X919 - X615 -> 0 | Y159: =IF('Input-Infra'!$AN155>='Input-Gen'!$M$38,Y311,0) + Y463 + Y919 - Y615 -> 0 | Z159: =IF('Input-Infra'!$AN155>='Input-Gen'!$M$38,Z311,0) + Z463 + Z919 - Z615 -> 0 | AA159: =IF('Input-Infra'!$AN155>='Input-Gen'!$M$38,AA311,0) + AA463 + AA919 - AA615 -> 0 | AB159: =IF('Input-Infra'!$AN155>='Input-Gen'!$M$38,AB311,0) + AB463 + AB919 - AB615 -> 0 | AC159: =IF('Input-Infra'!$AN155>='Input-Gen'!$M$38,AC311,0) + AC463 + AC919 - AC615 -> 0
G160: Spare 31 | I160: $'000 | K160: 0 | Q160: 0 | S160: =IF('Input-Infra'!$AN156>='Input-Gen'!$M$38,S312,0) + S464 + S920 - S616 -> 0 | T160: =IF('Input-Infra'!$AN156>='Input-Gen'!$M$38,T312,0) + T464 + T920 - T616 -> 0 | U160: =IF('Input-Infra'!$AN156>='Input-Gen'!$M$38,U312,0) + U464 + U920 - U616 -> 0 | V160: =IF('Input-Infra'!$AN156>='Input-Gen'!$M$38,V312,0) + V464 + V920 - V616 -> 0 | W160: =IF('Input-Infra'!$AN156>='Input-Gen'!$M$38,W312,0) + W464 + W920 - W616 -> 0 | X160: =IF('Input-Infra'!$AN156>='Input-Gen'!$M$38,X312,0) + X464 + X920 - X616 -> 0 | Y160: =IF('Input-Infra'!$AN156>='Input-Gen'!$M$38,Y312,0) + Y464 + Y920 - Y616 -> 0 | Z160: =IF('Input-Infra'!$AN156>='Input-Gen'!$M$38,Z312,0) + Z464 + Z920 - Z616 -> 0 | AA160: =IF('Input-Infra'!$AN156>='Input-Gen'!$M$38,AA312,0) + AA464 + AA920 - AA616 -> 0 | AB160: =IF('Input-Infra'!$AN156>='Input-Gen'!$M$38,AB312,0) + AB464 + AB920 - AB616 -> 0 | AC160: =IF('Input-Infra'!$AN156>='Input-Gen'!$M$38,AC312,0) + AC464 + AC920 - AC616 -> 0
G161: Spare 32 | I161: $'000 | K161: 0 | Q161: 0 | S161: =IF('Input-Infra'!$AN157>='Input-Gen'!$M$38,S313,0) + S465 + S921 - S617 -> 0 | T161: =IF('Input-Infra'!$AN157>='Input-Gen'!$M$38,T313,0) + T465 + T921 - T617 -> 0 | U161: =IF('Input-Infra'!$AN157>='Input-Gen'!$M$38,U313,0) + U465 + U921 - U617 -> 0 | V161: =IF('Input-Infra'!$AN157>='Input-Gen'!$M$38,V313,0) + V465 + V921 - V617 -> 0 | W161: =IF('Input-Infra'!$AN157>='Input-Gen'!$M$38,W313,0) + W465 + W921 - W617 -> 0 | X161: =IF('Input-Infra'!$AN157>='Input-Gen'!$M$38,X313,0) + X465 + X921 - X617 -> 0 | Y161: =IF('Input-Infra'!$AN157>='Input-Gen'!$M$38,Y313,0) + Y465 + Y921 - Y617 -> 0 | Z161: =IF('Input-Infra'!$AN157>='Input-Gen'!$M$38,Z313,0) + Z465 + Z921 - Z617 -> 0 | AA161: =IF('Input-Infra'!$AN157>='Input-Gen'!$M$38,AA313,0) + AA465 + AA921 - AA617 -> 0 | AB161: =IF('Input-Infra'!$AN157>='Input-Gen'!$M$38,AB313,0) + AB465 + AB921 - AB617 -> 0 | AC161: =IF('Input-Infra'!$AN157>='Input-Gen'!$M$38,AC313,0) + AC465 + AC921 - AC617 -> 0
G162: Spare 33 | I162: $'000 | K162: 0 | Q162: 0 | S162: =IF('Input-Infra'!$AN158>='Input-Gen'!$M$38,S314,0) + S466 + S922 - S618 -> 0 | T162: =IF('Input-Infra'!$AN158>='Input-Gen'!$M$38,T314,0) + T466 + T922 - T618 -> 0 | U162: =IF('Input-Infra'!$AN158>='Input-Gen'!$M$38,U314,0) + U466 + U922 - U618 -> 0 | V162: =IF('Input-Infra'!$AN158>='Input-Gen'!$M$38,V314,0) + V466 + V922 - V618 -> 0 | W162: =IF('Input-Infra'!$AN158>='Input-Gen'!$M$38,W314,0) + W466 + W922 - W618 -> 0 | X162: =IF('Input-Infra'!$AN158>='Input-Gen'!$M$38,X314,0) + X466 + X922 - X618 -> 0 | Y162: =IF('Input-Infra'!$AN158>='Input-Gen'!$M$38,Y314,0) + Y466 + Y922 - Y618 -> 0 | Z162: =IF('Input-Infra'!$AN158>='Input-Gen'!$M$38,Z314,0) + Z466 + Z922 - Z618 -> 0 | AA162: =IF('Input-Infra'!$AN158>='Input-Gen'!$M$38,AA314,0) + AA466 + AA922 - AA618 -> 0 | AB162: =IF('Input-Infra'!$AN158>='Input-Gen'!$M$38,AB314,0) + AB466 + AB922 - AB618 -> 0 | AC162: =IF('Input-Infra'!$AN158>='Input-Gen'!$M$38,AC314,0) + AC466 + AC922 - AC618 -> 0
G163: Spare 34 | I163: $'000 | K163: 0 | Q163: 0 | S163: =IF('Input-Infra'!$AN159>='Input-Gen'!$M$38,S315,0) + S467 + S923 - S619 -> 0 | T163: =IF('Input-Infra'!$AN159>='Input-Gen'!$M$38,T315,0) + T467 + T923 - T619 -> 0 | U163: =IF('Input-Infra'!$AN159>='Input-Gen'!$M$38,U315,0) + U467 + U923 - U619 -> 0 | V163: =IF('Input-Infra'!$AN159>='Input-Gen'!$M$38,V315,0) + V467 + V923 - V619 -> 0 | W163: =IF('Input-Infra'!$AN159>='Input-Gen'!$M$38,W315,0) + W467 + W923 - W619 -> 0 | X163: =IF('Input-Infra'!$AN159>='Input-Gen'!$M$38,X315,0) + X467 + X923 - X619 -> 0 | Y163: =IF('Input-Infra'!$AN159>='Input-Gen'!$M$38,Y315,0) + Y467 + Y923 - Y619 -> 0 | Z163: =IF('Input-Infra'!$AN159>='Input-Gen'!$M$38,Z315,0) + Z467 + Z923 - Z619 -> 0 | AA163: =IF('Input-Infra'!$AN159>='Input-Gen'!$M$38,AA315,0) + AA467 + AA923 - AA619 -> 0 | AB163: =IF('Input-Infra'!$AN159>='Input-Gen'!$M$38,AB315,0) + AB467 + AB923 - AB619 -> 0 | AC163: =IF('Input-Infra'!$AN159>='Input-Gen'!$M$38,AC315,0) + AC467 + AC923 - AC619 -> 0
G164: Spare 35 | I164: $'000 | K164: 0 | Q164: 0 | S164: =IF('Input-Infra'!$AN160>='Input-Gen'!$M$38,S316,0) + S468 + S924 - S620 -> 0 | T164: =IF('Input-Infra'!$AN160>='Input-Gen'!$M$38,T316,0) + T468 + T924 - T620 -> 0 | U164: =IF('Input-Infra'!$AN160>='Input-Gen'!$M$38,U316,0) + U468 + U924 - U620 -> 0 | V164: =IF('Input-Infra'!$AN160>='Input-Gen'!$M$38,V316,0) + V468 + V924 - V620 -> 0 | W164: =IF('Input-Infra'!$AN160>='Input-Gen'!$M$38,W316,0) + W468 + W924 - W620 -> 0 | X164: =IF('Input-Infra'!$AN160>='Input-Gen'!$M$38,X316,0) + X468 + X924 - X620 -> 0 | Y164: =IF('Input-Infra'!$AN160>='Input-Gen'!$M$38,Y316,0) + Y468 + Y924 - Y620 -> 0 | Z164: =IF('Input-Infra'!$AN160>='Input-Gen'!$M$38,Z316,0) + Z468 + Z924 - Z620 -> 0 | AA164: =IF('Input-Infra'!$AN160>='Input-Gen'!$M$38,AA316,0) + AA468 + AA924 - AA620 -> 0 | AB164: =IF('Input-Infra'!$AN160>='Input-Gen'!$M$38,AB316,0) + AB468 + AB924 - AB620 -> 0 | AC164: =IF('Input-Infra'!$AN160>='Input-Gen'!$M$38,AC316,0) + AC468 + AC924 - AC620 -> 0
G165: Spare 36 | I165: $'000 | K165: 0 | Q165: 0 | S165: =IF('Input-Infra'!$AN161>='Input-Gen'!$M$38,S317,0) + S469 + S925 - S621 -> 0 | T165: =IF('Input-Infra'!$AN161>='Input-Gen'!$M$38,T317,0) + T469 + T925 - T621 -> 0 | U165: =IF('Input-Infra'!$AN161>='Input-Gen'!$M$38,U317,0) + U469 + U925 - U621 -> 0 | V165: =IF('Input-Infra'!$AN161>='Input-Gen'!$M$38,V317,0) + V469 + V925 - V621 -> 0 | W165: =IF('Input-Infra'!$AN161>='Input-Gen'!$M$38,W317,0) + W469 + W925 - W621 -> 0 | X165: =IF('Input-Infra'!$AN161>='Input-Gen'!$M$38,X317,0) + X469 + X925 - X621 -> 0 | Y165: =IF('Input-Infra'!$AN161>='Input-Gen'!$M$38,Y317,0) + Y469 + Y925 - Y621 -> 0 | Z165: =IF('Input-Infra'!$AN161>='Input-Gen'!$M$38,Z317,0) + Z469 + Z925 - Z621 -> 0 | AA165: =IF('Input-Infra'!$AN161>='Input-Gen'!$M$38,AA317,0) + AA469 + AA925 - AA621 -> 0 | AB165: =IF('Input-Infra'!$AN161>='Input-Gen'!$M$38,AB317,0) + AB469 + AB925 - AB621 -> 0 | AC165: =IF('Input-Infra'!$AN161>='Input-Gen'!$M$38,AC317,0) + AC469 + AC925 - AC621 -> 0
G166: Spare 37 | I166: $'000 | K166: 0 | Q166: 0 | S166: =IF('Input-Infra'!$AN162>='Input-Gen'!$M$38,S318,0) + S470 + S926 - S622 -> 0 | T166: =IF('Input-Infra'!$AN162>='Input-Gen'!$M$38,T318,0) + T470 + T926 - T622 -> 0 | U166: =IF('Input-Infra'!$AN162>='Input-Gen'!$M$38,U318,0) + U470 + U926 - U622 -> 0 | V166: =IF('Input-Infra'!$AN162>='Input-Gen'!$M$38,V318,0) + V470 + V926 - V622 -> 0 | W166: =IF('Input-Infra'!$AN162>='Input-Gen'!$M$38,W318,0) + W470 + W926 - W622 -> 0 | X166: =IF('Input-Infra'!$AN162>='Input-Gen'!$M$38,X318,0) + X470 + X926 - X622 -> 0 | Y166: =IF('Input-Infra'!$AN162>='Input-Gen'!$M$38,Y318,0) + Y470 + Y926 - Y622 -> 0 | Z166: =IF('Input-Infra'!$AN162>='Input-Gen'!$M$38,Z318,0) + Z470 + Z926 - Z622 -> 0 | AA166: =IF('Input-Infra'!$AN162>='Input-Gen'!$M$38,AA318,0) + AA470 + AA926 - AA622 -> 0 | AB166: =IF('Input-Infra'!$AN162>='Input-Gen'!$M$38,AB318,0) + AB470 + AB926 - AB622 -> 0 | AC166: =IF('Input-Infra'!$AN162>='Input-Gen'!$M$38,AC318,0) + AC470 + AC926 - AC622 -> 0
G167: Spare 38 | I167: $'000 | K167: 0 | Q167: 0 | S167: =IF('Input-Infra'!$AN163>='Input-Gen'!$M$38,S319,0) + S471 + S927 - S623 -> 0 | T167: =IF('Input-Infra'!$AN163>='Input-Gen'!$M$38,T319,0) + T471 + T927 - T623 -> 0 | U167: =IF('Input-Infra'!$AN163>='Input-Gen'!$M$38,U319,0) + U471 + U927 - U623 -> 0 | V167: =IF('Input-Infra'!$AN163>='Input-Gen'!$M$38,V319,0) + V471 + V927 - V623 -> 0 | W167: =IF('Input-Infra'!$AN163>='Input-Gen'!$M$38,W319,0) + W471 + W927 - W623 -> 0 | X167: =IF('Input-Infra'!$AN163>='Input-Gen'!$M$38,X319,0) + X471 + X927 - X623 -> 0 | Y167: =IF('Input-Infra'!$AN163>='Input-Gen'!$M$38,Y319,0) + Y471 + Y927 - Y623 -> 0 | Z167: =IF('Input-Infra'!$AN163>='Input-Gen'!$M$38,Z319,0) + Z471 + Z927 - Z623 -> 0 | AA167: =IF('Input-Infra'!$AN163>='Input-Gen'!$M$38,AA319,0) + AA471 + AA927 - AA623 -> 0 | AB167: =IF('Input-Infra'!$AN163>='Input-Gen'!$M$38,AB319,0) + AB471 + AB927 - AB623 -> 0 | AC167: =IF('Input-Infra'!$AN163>='Input-Gen'!$M$38,AC319,0) + AC471 + AC927 - AC623 -> 0
G168: Spare 39 | I168: $'000 | K168: 0 | Q168: 0 | S168: =IF('Input-Infra'!$AN164>='Input-Gen'!$M$38,S320,0) + S472 + S928 - S624 -> 0 | T168: =IF('Input-Infra'!$AN164>='Input-Gen'!$M$38,T320,0) + T472 + T928 - T624 -> 0 | U168: =IF('Input-Infra'!$AN164>='Input-Gen'!$M$38,U320,0) + U472 + U928 - U624 -> 0 | V168: =IF('Input-Infra'!$AN164>='Input-Gen'!$M$38,V320,0) + V472 + V928 - V624 -> 0 | W168: =IF('Input-Infra'!$AN164>='Input-Gen'!$M$38,W320,0) + W472 + W928 - W624 -> 0 | X168: =IF('Input-Infra'!$AN164>='Input-Gen'!$M$38,X320,0) + X472 + X928 - X624 -> 0 | Y168: =IF('Input-Infra'!$AN164>='Input-Gen'!$M$38,Y320,0) + Y472 + Y928 - Y624 -> 0 | Z168: =IF('Input-Infra'!$AN164>='Input-Gen'!$M$38,Z320,0) + Z472 + Z928 - Z624 -> 0 | AA168: =IF('Input-Infra'!$AN164>='Input-Gen'!$M$38,AA320,0) + AA472 + AA928 - AA624 -> 0 | AB168: =IF('Input-Infra'!$AN164>='Input-Gen'!$M$38,AB320,0) + AB472 + AB928 - AB624 -> 0 | AC168: =IF('Input-Infra'!$AN164>='Input-Gen'!$M$38,AC320,0) + AC472 + AC928 - AC624 -> 0
G169: Spare 40 | I169: $'000 | K169: 0 | Q169: 0 | S169: =IF('Input-Infra'!$AN165>='Input-Gen'!$M$38,S321,0) + S473 + S929 - S625 -> 0 | T169: =IF('Input-Infra'!$AN165>='Input-Gen'!$M$38,T321,0) + T473 + T929 - T625 -> 0 | U169: =IF('Input-Infra'!$AN165>='Input-Gen'!$M$38,U321,0) + U473 + U929 - U625 -> 0 | V169: =IF('Input-Infra'!$AN165>='Input-Gen'!$M$38,V321,0) + V473 + V929 - V625 -> 0 | W169: =IF('Input-Infra'!$AN165>='Input-Gen'!$M$38,W321,0) + W473 + W929 - W625 -> 0 | X169: =IF('Input-Infra'!$AN165>='Input-Gen'!$M$38,X321,0) + X473 + X929 - X625 -> 0 | Y169: =IF('Input-Infra'!$AN165>='Input-Gen'!$M$38,Y321,0) + Y473 + Y929 - Y625 -> 0 | Z169: =IF('Input-Infra'!$AN165>='Input-Gen'!$M$38,Z321,0) + Z473 + Z929 - Z625 -> 0 | AA169: =IF('Input-Infra'!$AN165>='Input-Gen'!$M$38,AA321,0) + AA473 + AA929 - AA625 -> 0 | AB169: =IF('Input-Infra'!$AN165>='Input-Gen'!$M$38,AB321,0) + AB473 + AB929 - AB625 -> 0 | AC169: =IF('Input-Infra'!$AN165>='Input-Gen'!$M$38,AC321,0) + AC473 + AC929 - AC625 -> 0
G170: Spare 41 | I170: $'000 | K170: 0 | Q170: 0 | S170: =IF('Input-Infra'!$AN166>='Input-Gen'!$M$38,S322,0) + S474 + S930 - S626 -> 0 | T170: =IF('Input-Infra'!$AN166>='Input-Gen'!$M$38,T322,0) + T474 + T930 - T626 -> 0 | U170: =IF('Input-Infra'!$AN166>='Input-Gen'!$M$38,U322,0) + U474 + U930 - U626 -> 0 | V170: =IF('Input-Infra'!$AN166>='Input-Gen'!$M$38,V322,0) + V474 + V930 - V626 -> 0 | W170: =IF('Input-Infra'!$AN166>='Input-Gen'!$M$38,W322,0) + W474 + W930 - W626 -> 0 | X170: =IF('Input-Infra'!$AN166>='Input-Gen'!$M$38,X322,0) + X474 + X930 - X626 -> 0 | Y170: =IF('Input-Infra'!$AN166>='Input-Gen'!$M$38,Y322,0) + Y474 + Y930 - Y626 -> 0 | Z170: =IF('Input-Infra'!$AN166>='Input-Gen'!$M$38,Z322,0) + Z474 + Z930 - Z626 -> 0 | AA170: =IF('Input-Infra'!$AN166>='Input-Gen'!$M$38,AA322,0) + AA474 + AA930 - AA626 -> 0 | AB170: =IF('Input-Infra'!$AN166>='Input-Gen'!$M$38,AB322,0) + AB474 + AB930 - AB626 -> 0 | AC170: =IF('Input-Infra'!$AN166>='Input-Gen'!$M$38,AC322,0) + AC474 + AC930 - AC626 -> 0
G171: Spare 42 | I171: $'000 | K171: 0 | Q171: 0 | S171: =IF('Input-Infra'!$AN167>='Input-Gen'!$M$38,S323,0) + S475 + S931 - S627 -> 0 | T171: =IF('Input-Infra'!$AN167>='Input-Gen'!$M$38,T323,0) + T475 + T931 - T627 -> 0 | U171: =IF('Input-Infra'!$AN167>='Input-Gen'!$M$38,U323,0) + U475 + U931 - U627 -> 0 | V171: =IF('Input-Infra'!$AN167>='Input-Gen'!$M$38,V323,0) + V475 + V931 - V627 -> 0 | W171: =IF('Input-Infra'!$AN167>='Input-Gen'!$M$38,W323,0) + W475 + W931 - W627 -> 0 | X171: =IF('Input-Infra'!$AN167>='Input-Gen'!$M$38,X323,0) + X475 + X931 - X627 -> 0 | Y171: =IF('Input-Infra'!$AN167>='Input-Gen'!$M$38,Y323,0) + Y475 + Y931 - Y627 -> 0 | Z171: =IF('Input-Infra'!$AN167>='Input-Gen'!$M$38,Z323,0) + Z475 + Z931 - Z627 -> 0 | AA171: =IF('Input-Infra'!$AN167>='Input-Gen'!$M$38,AA323,0) + AA475 + AA931 - AA627 -> 0 | AB171: =IF('Input-Infra'!$AN167>='Input-Gen'!$M$38,AB323,0) + AB475 + AB931 - AB627 -> 0 | AC171: =IF('Input-Infra'!$AN167>='Input-Gen'!$M$38,AC323,0) + AC475 + AC931 - AC627 -> 0
G173: =G120 -> Subtotal | I173: $'000 | K173: =SUM(K124:K171) -> 32249.37919 | Q173: =SUM(S173:AC173) -> 42537.89833 | S173: =SUM(S124:S171) -> 0 | T173: =SUM(T124:T171) -> 0 | U173: 0 | V173: 25603.69246 | W173: 0 | X173: 0 | Y173: 0 | Z173: 0 | AA173: 16934.20587 | AB173: 0 | AC173: 0
G175: Total | I175: $'000 | K175: =SUM(K120,K173) -> 141181.9145 | Q175: =SUM(Q120,Q173) -> 151470.4336 | S175: =SUM(S120,S173) -> 108932.5353 | T175: 0 | U175: 0 | V175: 25603.69246 | W175: 0 | X175: 0 | Y175: 0 | Z175: 0 | AA175: 16934.20587 | AB175: 0 | AC175: 0
AT176: ;
F178: Land Costs
G180: Existing Infrastructure
G182: =Existing -> Urban North (local facilities) | I182: $'000 | K182: =NPV(WACC_nom,T182:AC182)+S182 -> 5049.18086 | M182: ='Input-Infra'!AT25-Q182 -> 0 | O182: =IF(OR(AND(K182<>0,M182<>0),AND(K182=0,M182=0)),0,1) -> 1 | Q182: =SUM(S182:AC182) -> 5049.18086 | S182: =IF(S$9=0,'Input-Infra'!$AT25*(1-'Input-Infra'!$W25)*(1-'Input-Infra'!$U25)*S$19,0) -> 5049.18086 | T182: =IF(T$9=0,'Input-Infra'!$AT25*(1-'Input-Infra'!$W25)*(1-'Input-Infra'!$U25)*T$19,0) -> 0 | U182: =IF(U$9=0,'Input-Infra'!$AT25*(1-'Input-Infra'!$W25)*(1-'Input-Infra'!$U25)*U$19,0) -> 0 | V182: =IF(V$9=0,'Input-Infra'!$AT25*(1-'Input-Infra'!$W25)*(1-'Input-Infra'!$U25)*V$19,0) -> 0 | W182: =IF(W$9=0,'Input-Infra'!$AT25*(1-'Input-Infra'!$W25)*(1-'Input-Infra'!$U25)*W$19,0) -> 0 | X182: =IF(X$9=0,'Input-Infra'!$AT25*(1-'Input-Infra'!$W25)*(1-'Input-Infra'!$U25)*X$19,0) -> 0 | Y182: =IF(Y$9=0,'Input-Infra'!$AT25*(1-'Input-Infra'!$W25)*(1-'Input-Infra'!$U25)*Y$19,0) -> 0 | Z182: =IF(Z$9=0,'Input-Infra'!$AT25*(1-'Input-Infra'!$W25)*(1-'Input-Infra'!$U25)*Z$19,0) -> 0 | AA182: =IF(AA$9=0,'Input-Infra'!$AT25*(1-'Input-Infra'!$W25)*(1-'Input-Infra'!$U25)*AA$19,0) -> 0 | AB182: =IF(AB$9=0,'Input-Infra'!$AT25*(1-'Input-Infra'!$W25)*(1-'Input-Infra'!$U25)*AB$19,0) -> 0 | AC182: =IF(AC$9=0,'Input-Infra'!$AT25*(1-'Input-Infra'!$W25)*(1-'Input-Infra'!$U25)*AC$19,0) -> 0
G183: Urban South (local facilities) | I183: $'000 | K183: 3919.63288 | M183: ='Input-Infra'!AT26-Q183 -> 0 | O183: =IF(OR(AND(K183<>0,M183<>0),AND(K183=0,M183=0)),0,1) -> 1 | Q183: =SUM(S183:AC183) -> 3919.63288 | S183: =IF(S$9=0,'Input-Infra'!$AT26*(1-'Input-Infra'!$W26)*(1-'Input-Infra'!$U26)*S$19,0) -> 3919.63288 | T183: =IF(T$9=0,'Input-Infra'!$AT26*(1-'Input-Infra'!$W26)*(1-'Input-Infra'!$U26)*T$19,0) -> 0 | U183: =IF(U$9=0,'Input-Infra'!$AT26*(1-'Input-Infra'!$W26)*(1-'Input-Infra'!$U26)*U$19,0) -> 0 | V183: =IF(V$9=0,'Input-Infra'!$AT26*(1-'Input-Infra'!$W26)*(1-'Input-Infra'!$U26)*V$19,0) -> 0 | W183: =IF(W$9=0,'Input-Infra'!$AT26*(1-'Input-Infra'!$W26)*(1-'Input-Infra'!$U26)*W$19,0) -> 0 | X183: =IF(X$9=0,'Input-Infra'!$AT26*(1-'Input-Infra'!$W26)*(1-'Input-Infra'!$U26)*X$19,0) -> 0 | Y183: =IF(Y$9=0,'Input-Infra'!$AT26*(1-'Input-Infra'!$W26)*(1-'Input-Infra'!$U26)*Y$19,0) -> 0 | Z183: =IF(Z$9=0,'Input-Infra'!$AT26*(1-'Input-Infra'!$W26)*(1-'Input-Infra'!$U26)*Z$19,0) -> 0 | AA183: =IF(AA$9=0,'Input-Infra'!$AT26*(1-'Input-Infra'!$W26)*(1-'Input-Infra'!$U26)*AA$19,0) -> 0 | AB183: =IF(AB$9=0,'Input-Infra'!$AT26*(1-'Input-Infra'!$W26)*(1-'Input-Infra'!$U26)*AB$19,0) -> 0 | AC183: =IF(AC$9=0,'Input-Infra'!$AT26*(1-'Input-Infra'!$W26)*(1-'Input-Infra'!$U26)*AC$19,0) -> 0
G184: Urban East (local facilities) | I184: $'000 | K184: 6874.1903 | M184: ='Input-Infra'!AT27-Q184 -> 0 | O184: 1 | Q184: 6874.1903 | S184: =IF(S$9=0,'Input-Infra'!$AT27*(1-'Input-Infra'!$W27)*(1-'Input-Infra'!$U27)*S$19,0) -> 6874.1903 | T184: =IF(T$9=0,'Input-Infra'!$AT27*(1-'Input-Infra'!$W27)*(1-'Input-Infra'!$U27)*T$19,0) -> 0 | U184: =IF(U$9=0,'Input-Infra'!$AT27*(1-'Input-Infra'!$W27)*(1-'Input-Infra'!$U27)*U$19,0) -> 0 | V184: =IF(V$9=0,'Input-Infra'!$AT27*(1-'Input-Infra'!$W27)*(1-'Input-Infra'!$U27)*V$19,0) -> 0 | W184: =IF(W$9=0,'Input-Infra'!$AT27*(1-'Input-Infra'!$W27)*(1-'Input-Infra'!$U27)*W$19,0) -> 0 | X184: =IF(X$9=0,'Input-Infra'!$AT27*(1-'Input-Infra'!$W27)*(1-'Input-Infra'!$U27)*X$19,0) -> 0 | Y184: =IF(Y$9=0,'Input-Infra'!$AT27*(1-'Input-Infra'!$W27)*(1-'Input-Infra'!$U27)*Y$19,0) -> 0 | Z184: =IF(Z$9=0,'Input-Infra'!$AT27*(1-'Input-Infra'!$W27)*(1-'Input-Infra'!$U27)*Z$19,0) -> 0 | AA184: =IF(AA$9=0,'Input-Infra'!$AT27*(1-'Input-Infra'!$W27)*(1-'Input-Infra'!$U27)*AA$19,0) -> 0 | AB184: =IF(AB$9=0,'Input-Infra'!$AT27*(1-'Input-Infra'!$W27)*(1-'Input-Infra'!$U27)*AB$19,0) -> 0 | AC184: =IF(AC$9=0,'Input-Infra'!$AT27*(1-'Input-Infra'!$W27)*(1-'Input-Infra'!$U27)*AC$19,0) -> 0
G185: Urban West (local facilities) | I185: $'000 | K185: 9426.8607 | M185: ='Input-Infra'!AT28-Q185 -> 0 | O185: 1 | Q185: 9426.8607 | S185: =IF(S$9=0,'Input-Infra'!$AT28*(1-'Input-Infra'!$W28)*(1-'Input-Infra'!$U28)*S$19,0) -> 9426.8607 | T185: =IF(T$9=0,'Input-Infra'!$AT28*(1-'Input-Infra'!$W28)*(1-'Input-Infra'!$U28)*T$19,0) -> 0 | U185: =IF(U$9=0,'Input-Infra'!$AT28*(1-'Input-Infra'!$W28)*(1-'Input-Infra'!$U28)*U$19,0) -> 0 | V185: =IF(V$9=0,'Input-Infra'!$AT28*(1-'Input-Infra'!$W28)*(1-'Input-Infra'!$U28)*V$19,0) -> 0 | W185: =IF(W$9=0,'Input-Infra'!$AT28*(1-'Input-Infra'!$W28)*(1-'Input-Infra'!$U28)*W$19,0) -> 0 | X185: =IF(X$9=0,'Input-Infra'!$AT28*(1-'Input-Infra'!$W28)*(1-'Input-Infra'!$U28)*X$19,0) -> 0 | Y185: =IF(Y$9=0,'Input-Infra'!$AT28*(1-'Input-Infra'!$W28)*(1-'Input-Infra'!$U28)*Y$19,0) -> 0 | Z185: =IF(Z$9=0,'Input-Infra'!$AT28*(1-'Input-Infra'!$W28)*(1-'Input-Infra'!$U28)*Z$19,0) -> 0 | AA185: =IF(AA$9=0,'Input-Infra'!$AT28*(1-'Input-Infra'!$W28)*(1-'Input-Infra'!$U28)*AA$19,0) -> 0 | AB185: =IF(AB$9=0,'Input-Infra'!$AT28*(1-'Input-Infra'!$W28)*(1-'Input-Infra'!$U28)*AB$19,0) -> 0 | AC185: =IF(AC$9=0,'Input-Infra'!$AT28*(1-'Input-Infra'!$W28)*(1-'Input-Infra'!$U28)*AC$19,0) -> 0
G186: Citywide (District, metropolitan facilities) | I186: $'000 | K186: 55520.83901 | M186: ='Input-Infra'!AT29-Q186 -> 0 | O186: 1 | Q186: 55520.83901 | S186: =IF(S$9=0,'Input-Infra'!$AT29*(1-'Input-Infra'!$W29)*(1-'Input-Infra'!$U29)*S$19,0) -> 55520.83901 | T186: =IF(T$9=0,'Input-Infra'!$AT29*(1-'Input-Infra'!$W29)*(1-'Input-Infra'!$U29)*T$19,0) -> 0 | U186: =IF(U$9=0,'Input-Infra'!$AT29*(1-'Input-Infra'!$W29)*(1-'Input-Infra'!$U29)*U$19,0) -> 0 | V186: =IF(V$9=0,'Input-Infra'!$AT29*(1-'Input-Infra'!$W29)*(1-'Input-Infra'!$U29)*V$19,0) -> 0 | W186: =IF(W$9=0,'Input-Infra'!$AT29*(1-'Input-Infra'!$W29)*(1-'Input-Infra'!$U29)*W$19,0) -> 0 | X186: =IF(X$9=0,'Input-Infra'!$AT29*(1-'Input-Infra'!$W29)*(1-'Input-Infra'!$U29)*X$19,0) -> 0 | Y186: =IF(Y$9=0,'Input-Infra'!$AT29*(1-'Input-Infra'!$W29)*(1-'Input-Infra'!$U29)*Y$19,0) -> 0 | Z186: =IF(Z$9=0,'Input-Infra'!$AT29*(1-'Input-Infra'!$W29)*(1-'Input-Infra'!$U29)*Z$19,0) -> 0 | AA186: =IF(AA$9=0,'Input-Infra'!$AT29*(1-'Input-Infra'!$W29)*(1-'Input-Infra'!$U29)*AA$19,0) -> 0 | AB186: =IF(AB$9=0,'Input-Infra'!$AT29*(1-'Input-Infra'!$W29)*(1-'Input-Infra'!$U29)*AB$19,0) -> 0 | AC186: =IF(AC$9=0,'Input-Infra'!$AT29*(1-'Input-Infra'!$W29)*(1-'Input-Infra'!$U29)*AC$19,0) -> 0
G187: Fringe (local facilities) | I187: $'000 | K187: 7.92654 | M187: ='Input-Infra'!AT30-Q187 -> 0 | O187: 1 | Q187: 7.92654 | S187: =IF(S$9=0,'Input-Infra'!$AT30*(1-'Input-Infra'!$W30)*(1-'Input-Infra'!$U30)*S$19,0) -> 7.92654 | T187: =IF(T$9=0,'Input-Infra'!$AT30*(1-'Input-Infra'!$W30)*(1-'Input-Infra'!$U30)*T$19,0) -> 0 | U187: =IF(U$9=0,'Input-Infra'!$AT30*(1-'Input-Infra'!$W30)*(1-'Input-Infra'!$U30)*U$19,0) -> 0 | V187: =IF(V$9=0,'Input-Infra'!$AT30*(1-'Input-Infra'!$W30)*(1-'Input-Infra'!$U30)*V$19,0) -> 0 | W187: =IF(W$9=0,'Input-Infra'!$AT30*(1-'Input-Infra'!$W30)*(1-'Input-Infra'!$U30)*W$19,0) -> 0 | X187: =IF(X$9=0,'Input-Infra'!$AT30*(1-'Input-Infra'!$W30)*(1-'Input-Infra'!$U30)*X$19,0) -> 0 | Y187: =IF(Y$9=0,'Input-Infra'!$AT30*(1-'Input-Infra'!$W30)*(1-'Input-Infra'!$U30)*Y$19,0) -> 0 | Z187: =IF(Z$9=0,'Input-Infra'!$AT30*(1-'Input-Infra'!$W30)*(1-'Input-Infra'!$U30)*Z$19,0) -> 0 | AA187: =IF(AA$9=0,'Input-Infra'!$AT30*(1-'Input-Infra'!$W30)*(1-'Input-Infra'!$U30)*AA$19,0) -> 0 | AB187: =IF(AB$9=0,'Input-Infra'!$AT30*(1-'Input-Infra'!$W30)*(1-'Input-Infra'!$U30)*AB$19,0) -> 0 | AC187: =IF(AC$9=0,'Input-Infra'!$AT30*(1-'Input-Infra'!$W30)*(1-'Input-Infra'!$U30)*AC$19,0) -> 0
G188: 0 | I188: $'000 | K188: 0 | M188: ='Input-Infra'!AT31-Q188 -> 0 | O188: 0 | Q188: 0 | S188: =IF(S$9=0,'Input-Infra'!$AT31*(1-'Input-Infra'!$W31)*(1-'Input-Infra'!$U31)*S$19,0) -> 0 | T188: =IF(T$9=0,'Input-Infra'!$AT31*(1-'Input-Infra'!$W31)*(1-'Input-Infra'!$U31)*T$19,0) -> 0 | U188: =IF(U$9=0,'Input-Infra'!$AT31*(1-'Input-Infra'!$W31)*(1-'Input-Infra'!$U31)*U$19,0) -> 0 | V188: =IF(V$9=0,'Input-Infra'!$AT31*(1-'Input-Infra'!$W31)*(1-'Input-Infra'!$U31)*V$19,0) -> 0 | W188: =IF(W$9=0,'Input-Infra'!$AT31*(1-'Input-Infra'!$W31)*(1-'Input-Infra'!$U31)*W$19,0) -> 0 | X188: =IF(X$9=0,'Input-Infra'!$AT31*(1-'Input-Infra'!$W31)*(1-'Input-Infra'!$U31)*X$19,0) -> 0 | Y188: =IF(Y$9=0,'Input-Infra'!$AT31*(1-'Input-Infra'!$W31)*(1-'Input-Infra'!$U31)*Y$19,0) -> 0 | Z188: =IF(Z$9=0,'Input-Infra'!$AT31*(1-'Input-Infra'!$W31)*(1-'Input-Infra'!$U31)*Z$19,0) -> 0 | AA188: =IF(AA$9=0,'Input-Infra'!$AT31*(1-'Input-Infra'!$W31)*(1-'Input-Infra'!$U31)*AA$19,0) -> 0 | AB188: =IF(AB$9=0,'Input-Infra'!$AT31*(1-'Input-Infra'!$W31)*(1-'Input-Infra'!$U31)*AB$19,0) -> 0 | AC188: =IF(AC$9=0,'Input-Infra'!$AT31*(1-'Input-Infra'!$W31)*(1-'Input-Infra'!$U31)*AC$19,0) -> 0
G189: 0 | I189: $'000 | K189: 0 | M189: ='Input-Infra'!AT32-Q189 -> 0 | O189: 0 | Q189: 0 | S189: =IF(S$9=0,'Input-Infra'!$AT32*(1-'Input-Infra'!$W32)*(1-'Input-Infra'!$U32)*S$19,0) -> 0 | T189: =IF(T$9=0,'Input-Infra'!$AT32*(1-'Input-Infra'!$W32)*(1-'Input-Infra'!$U32)*T$19,0) -> 0 | U189: =IF(U$9=0,'Input-Infra'!$AT32*(1-'Input-Infra'!$W32)*(1-'Input-Infra'!$U32)*U$19,0) -> 0 | V189: =IF(V$9=0,'Input-Infra'!$AT32*(1-'Input-Infra'!$W32)*(1-'Input-Infra'!$U32)*V$19,0) -> 0 | W189: =IF(W$9=0,'Input-Infra'!$AT32*(1-'Input-Infra'!$W32)*(1-'Input-Infra'!$U32)*W$19,0) -> 0 | X189: =IF(X$9=0,'Input-Infra'!$AT32*(1-'Input-Infra'!$W32)*(1-'Input-Infra'!$U32)*X$19,0) -> 0 | Y189: =IF(Y$9=0,'Input-Infra'!$AT32*(1-'Input-Infra'!$W32)*(1-'Input-Infra'!$U32)*Y$19,0) -> 0 | Z189: =IF(Z$9=0,'Input-Infra'!$AT32*(1-'Input-Infra'!$W32)*(1-'Input-Infra'!$U32)*Z$19,0) -> 0 | AA189: =IF(AA$9=0,'Input-Infra'!$AT32*(1-'Input-Infra'!$W32)*(1-'Input-Infra'!$U32)*AA$19,0) -> 0 | AB189: =IF(AB$9=0,'Input-Infra'!$AT32*(1-'Input-Infra'!$W32)*(1-'Input-Infra'!$U32)*AB$19,0) -> 0 | AC189: =IF(AC$9=0,'Input-Infra'!$AT32*(1-'Input-Infra'!$W32)*(1-'Input-Infra'!$U32)*AC$19,0) -> 0
G190: 0 | I190: $'000 | K190: 0 | M190: ='Input-Infra'!AT33-Q190 -> 0 | O190: 0 | Q190: 0 | S190: =IF(S$9=0,'Input-Infra'!$AT33*(1-'Input-Infra'!$W33)*(1-'Input-Infra'!$U33)*S$19,0) -> 0 | T190: =IF(T$9=0,'Input-Infra'!$AT33*(1-'Input-Infra'!$W33)*(1-'Input-Infra'!$U33)*T$19,0) -> 0 | U190: =IF(U$9=0,'Input-Infra'!$AT33*(1-'Input-Infra'!$W33)*(1-'Input-Infra'!$U33)*U$19,0) -> 0 | V190: =IF(V$9=0,'Input-Infra'!$AT33*(1-'Input-Infra'!$W33)*(1-'Input-Infra'!$U33)*V$19,0) -> 0 | W190: =IF(W$9=0,'Input-Infra'!$AT33*(1-'Input-Infra'!$W33)*(1-'Input-Infra'!$U33)*W$19,0) -> 0 | X190: =IF(X$9=0,'Input-Infra'!$AT33*(1-'Input-Infra'!$W33)*(1-'Input-Infra'!$U33)*X$19,0) -> 0 | Y190: =IF(Y$9=0,'Input-Infra'!$AT33*(1-'Input-Infra'!$W33)*(1-'Input-Infra'!$U33)*Y$19,0) -> 0 | Z190: =IF(Z$9=0,'Input-Infra'!$AT33*(1-'Input-Infra'!$W33)*(1-'Input-Infra'!$U33)*Z$19,0) -> 0 | AA190: =IF(AA$9=0,'Input-Infra'!$AT33*(1-'Input-Infra'!$W33)*(1-'Input-Infra'!$U33)*AA$19,0) -> 0 | AB190: =IF(AB$9=0,'Input-Infra'!$AT33*(1-'Input-Infra'!$W33)*(1-'Input-Infra'!$U33)*AB$19,0) -> 0 | AC190: =IF(AC$9=0,'Input-Infra'!$AT33*(1-'Input-Infra'!$W33)*(1-'Input-Infra'!$U33)*AC$19,0) -> 0
G191: 0 | I191: $'000 | K191: 0 | M191: ='Input-Infra'!AT34-Q191 -> 0 | O191: 0 | Q191: 0 | S191: =IF(S$9=0,'Input-Infra'!$AT34*(1-'Input-Infra'!$W34)*(1-'Input-Infra'!$U34)*S$19,0) -> 0 | T191: =IF(T$9=0,'Input-Infra'!$AT34*(1-'Input-Infra'!$W34)*(1-'Input-Infra'!$U34)*T$19,0) -> 0 | U191: =IF(U$9=0,'Input-Infra'!$AT34*(1-'Input-Infra'!$W34)*(1-'Input-Infra'!$U34)*U$19,0) -> 0 | V191: =IF(V$9=0,'Input-Infra'!$AT34*(1-'Input-Infra'!$W34)*(1-'Input-Infra'!$U34)*V$19,0) -> 0 | W191: =IF(W$9=0,'Input-Infra'!$AT34*(1-'Input-Infra'!$W34)*(1-'Input-Infra'!$U34)*W$19,0) -> 0 | X191: =IF(X$9=0,'Input-Infra'!$AT34*(1-'Input-Infra'!$W34)*(1-'Input-Infra'!$U34)*X$19,0) -> 0 | Y191: =IF(Y$9=0,'Input-Infra'!$AT34*(1-'Input-Infra'!$W34)*(1-'Input-Infra'!$U34)*Y$19,0) -> 0 | Z191: =IF(Z$9=0,'Input-Infra'!$AT34*(1-'Input-Infra'!$W34)*(1-'Input-Infra'!$U34)*Z$19,0) -> 0 | AA191: =IF(AA$9=0,'Input-Infra'!$AT34*(1-'Input-Infra'!$W34)*(1-'Input-Infra'!$U34)*AA$19,0) -> 0 | AB191: =IF(AB$9=0,'Input-Infra'!$AT34*(1-'Input-Infra'!$W34)*(1-'Input-Infra'!$U34)*AB$19,0) -> 0 | AC191: =IF(AC$9=0,'Input-Infra'!$AT34*(1-'Input-Infra'!$W34)*(1-'Input-Infra'!$U34)*AC$19,0) -> 0
G192: 0 | I192: $'000 | K192: 0 | M192: ='Input-Infra'!AT35-Q192 -> 0 | O192: 0 | Q192: 0 | S192: =IF(S$9=0,'Input-Infra'!$AT35*(1-'Input-Infra'!$W35)*(1-'Input-Infra'!$U35)*S$19,0) -> 0 | T192: =IF(T$9=0,'Input-Infra'!$AT35*(1-'Input-Infra'!$W35)*(1-'Input-Infra'!$U35)*T$19,0) -> 0 | U192: =IF(U$9=0,'Input-Infra'!$AT35*(1-'Input-Infra'!$W35)*(1-'Input-Infra'!$U35)*U$19,0) -> 0 | V192: =IF(V$9=0,'Input-Infra'!$AT35*(1-'Input-Infra'!$W35)*(1-'Input-Infra'!$U35)*V$19,0) -> 0 | W192: =IF(W$9=0,'Input-Infra'!$AT35*(1-'Input-Infra'!$W35)*(1-'Input-Infra'!$U35)*W$19,0) -> 0 | X192: =IF(X$9=0,'Input-Infra'!$AT35*(1-'Input-Infra'!$W35)*(1-'Input-Infra'!$U35)*X$19,0) -> 0 | Y192: =IF(Y$9=0,'Input-Infra'!$AT35*(1-'Input-Infra'!$W35)*(1-'Input-Infra'!$U35)*Y$19,0) -> 0 | Z192: =IF(Z$9=0,'Input-Infra'!$AT35*(1-'Input-Infra'!$W35)*(1-'Input-Infra'!$U35)*Z$19,0) -> 0 | AA192: =IF(AA$9=0,'Input-Infra'!$AT35*(1-'Input-Infra'!$W35)*(1-'Input-Infra'!$U35)*AA$19,0) -> 0 | AB192: =IF(AB$9=0,'Input-Infra'!$AT35*(1-'Input-Infra'!$W35)*(1-'Input-Infra'!$U35)*AB$19,0) -> 0 | AC192: =IF(AC$9=0,'Input-Infra'!$AT35*(1-'Input-Infra'!$W35)*(1-'Input-Infra'!$U35)*AC$19,0) -> 0
G193: 0 | I193: $'000 | K193: 0 | M193: ='Input-Infra'!AT36-Q193 -> 0 | O193: 0 | Q193: 0 | S193: =IF(S$9=0,'Input-Infra'!$AT36*(1-'Input-Infra'!$W36)*(1-'Input-Infra'!$U36)*S$19,0) -> 0 | T193: =IF(T$9=0,'Input-Infra'!$AT36*(1-'Input-Infra'!$W36)*(1-'Input-Infra'!$U36)*T$19,0) -> 0 | U193: =IF(U$9=0,'Input-Infra'!$AT36*(1-'Input-Infra'!$W36)*(1-'Input-Infra'!$U36)*U$19,0) -> 0 | V193: =IF(V$9=0,'Input-Infra'!$AT36*(1-'Input-Infra'!$W36)*(1-'Input-Infra'!$U36)*V$19,0) -> 0 | W193: =IF(W$9=0,'Input-Infra'!$AT36*(1-'Input-Infra'!$W36)*(1-'Input-Infra'!$U36)*W$19,0) -> 0 | X193: =IF(X$9=0,'Input-Infra'!$AT36*(1-'Input-Infra'!$W36)*(1-'Input-Infra'!$U36)*X$19,0) -> 0 | Y193: =IF(Y$9=0,'Input-Infra'!$AT36*(1-'Input-Infra'!$W36)*(1-'Input-Infra'!$U36)*Y$19,0) -> 0 | Z193: =IF(Z$9=0,'Input-Infra'!$AT36*(1-'Input-Infra'!$W36)*(1-'Input-Infra'!$U36)*Z$19,0) -> 0 | AA193: =IF(AA$9=0,'Input-Infra'!$AT36*(1-'Input-Infra'!$W36)*(1-'Input-Infra'!$U36)*AA$19,0) -> 0 | AB193: =IF(AB$9=0,'Input-Infra'!$AT36*(1-'Input-Infra'!$W36)*(1-'Input-Infra'!$U36)*AB$19,0) -> 0 | AC193: =IF(AC$9=0,'Input-Infra'!$AT36*(1-'Input-Infra'!$W36)*(1-'Input-Infra'!$U36)*AC$19,0) -> 0
G194: 0 | I194: $'000 | K194: 0 | M194: ='Input-Infra'!AT37-Q194 -> 0 | O194: 0 | Q194: 0 | S194: =IF(S$9=0,'Input-Infra'!$AT37*(1-'Input-Infra'!$W37)*(1-'Input-Infra'!$U37)*S$19,0) -> 0 | T194: =IF(T$9=0,'Input-Infra'!$AT37*(1-'Input-Infra'!$W37)*(1-'Input-Infra'!$U37)*T$19,0) -> 0 | U194: =IF(U$9=0,'Input-Infra'!$AT37*(1-'Input-Infra'!$W37)*(1-'Input-Infra'!$U37)*U$19,0) -> 0 | V194: =IF(V$9=0,'Input-Infra'!$AT37*(1-'Input-Infra'!$W37)*(1-'Input-Infra'!$U37)*V$19,0) -> 0 | W194: =IF(W$9=0,'Input-Infra'!$AT37*(1-'Input-Infra'!$W37)*(1-'Input-Infra'!$U37)*W$19,0) -> 0 | X194: =IF(X$9=0,'Input-Infra'!$AT37*(1-'Input-Infra'!$W37)*(1-'Input-Infra'!$U37)*X$19,0) -> 0 | Y194: =IF(Y$9=0,'Input-Infra'!$AT37*(1-'Input-Infra'!$W37)*(1-'Input-Infra'!$U37)*Y$19,0) -> 0 | Z194: =IF(Z$9=0,'Input-Infra'!$AT37*(1-'Input-Infra'!$W37)*(1-'Input-Infra'!$U37)*Z$19,0) -> 0 | AA194: =IF(AA$9=0,'Input-Infra'!$AT37*(1-'Input-Infra'!$W37)*(1-'Input-Infra'!$U37)*AA$19,0) -> 0 | AB194: =IF(AB$9=0,'Input-Infra'!$AT37*(1-'Input-Infra'!$W37)*(1-'Input-Infra'!$U37)*AB$19,0) -> 0 | AC194: =IF(AC$9=0,'Input-Infra'!$AT37*(1-'Input-Infra'!$W37)*(1-'Input-Infra'!$U37)*AC$19,0) -> 0
G195: 0 | I195: $'000 | K195: 0 | M195: ='Input-Infra'!AT38-Q195 -> 0 | O195: 0 | Q195: 0 | S195: =IF(S$9=0,'Input-Infra'!$AT38*(1-'Input-Infra'!$W38)*(1-'Input-Infra'!$U38)*S$19,0) -> 0 | T195: =IF(T$9=0,'Input-Infra'!$AT38*(1-'Input-Infra'!$W38)*(1-'Input-Infra'!$U38)*T$19,0) -> 0 | U195: =IF(U$9=0,'Input-Infra'!$AT38*(1-'Input-Infra'!$W38)*(1-'Input-Infra'!$U38)*U$19,0) -> 0 | V195: =IF(V$9=0,'Input-Infra'!$AT38*(1-'Input-Infra'!$W38)*(1-'Input-Infra'!$U38)*V$19,0) -> 0 | W195: =IF(W$9=0,'Input-Infra'!$AT38*(1-'Input-Infra'!$W38)*(1-'Input-Infra'!$U38)*W$19,0) -> 0 | X195: =IF(X$9=0,'Input-Infra'!$AT38*(1-'Input-Infra'!$W38)*(1-'Input-Infra'!$U38)*X$19,0) -> 0 | Y195: =IF(Y$9=0,'Input-Infra'!$AT38*(1-'Input-Infra'!$W38)*(1-'Input-Infra'!$U38)*Y$19,0) -> 0 | Z195: =IF(Z$9=0,'Input-Infra'!$AT38*(1-'Input-Infra'!$W38)*(1-'Input-Infra'!$U38)*Z$19,0) -> 0 | AA195: =IF(AA$9=0,'Input-Infra'!$AT38*(1-'Input-Infra'!$W38)*(1-'Input-Infra'!$U38)*AA$19,0) -> 0 | AB195: =IF(AB$9=0,'Input-Infra'!$AT38*(1-'Input-Infra'!$W38)*(1-'Input-Infra'!$U38)*AB$19,0) -> 0 | AC195: =IF(AC$9=0,'Input-Infra'!$AT38*(1-'Input-Infra'!$W38)*(1-'Input-Infra'!$U38)*AC$19,0) -> 0
G196: 0 | I196: $'000 | K196: 0 | M196: ='Input-Infra'!AT39-Q196 -> 0 | O196: 0 | Q196: 0 | S196: =IF(S$9=0,'Input-Infra'!$AT39*(1-'Input-Infra'!$W39)*(1-'Input-Infra'!$U39)*S$19,0) -> 0 | T196: =IF(T$9=0,'Input-Infra'!$AT39*(1-'Input-Infra'!$W39)*(1-'Input-Infra'!$U39)*T$19,0) -> 0 | U196: =IF(U$9=0,'Input-Infra'!$AT39*(1-'Input-Infra'!$W39)*(1-'Input-Infra'!$U39)*U$19,0) -> 0 | V196: =IF(V$9=0,'Input-Infra'!$AT39*(1-'Input-Infra'!$W39)*(1-'Input-Infra'!$U39)*V$19,0) -> 0 | W196: =IF(W$9=0,'Input-Infra'!$AT39*(1-'Input-Infra'!$W39)*(1-'Input-Infra'!$U39)*W$19,0) -> 0 | X196: =IF(X$9=0,'Input-Infra'!$AT39*(1-'Input-Infra'!$W39)*(1-'Input-Infra'!$U39)*X$19,0) -> 0 | Y196: =IF(Y$9=0,'Input-Infra'!$AT39*(1-'Input-Infra'!$W39)*(1-'Input-Infra'!$U39)*Y$19,0) -> 0 | Z196: =IF(Z$9=0,'Input-Infra'!$AT39*(1-'Input-Infra'!$W39)*(1-'Input-Infra'!$U39)*Z$19,0) -> 0 | AA196: =IF(AA$9=0,'Input-Infra'!$AT39*(1-'Input-Infra'!$W39)*(1-'Input-Infra'!$U39)*AA$19,0) -> 0 | AB196: =IF(AB$9=0,'Input-Infra'!$AT39*(1-'Input-Infra'!$W39)*(1-'Input-Infra'!$U39)*AB$19,0) -> 0 | AC196: =IF(AC$9=0,'Input-Infra'!$AT39*(1-'Input-Infra'!$W39)*(1-'Input-Infra'!$U39)*AC$19,0) -> 0
G197: 0 | I197: $'000 | K197: 0 | M197: ='Input-Infra'!AT40-Q197 -> 0 | O197: 0 | Q197: 0 | S197: =IF(S$9=0,'Input-Infra'!$AT40*(1-'Input-Infra'!$W40)*(1-'Input-Infra'!$U40)*S$19,0) -> 0 | T197: =IF(T$9=0,'Input-Infra'!$AT40*(1-'Input-Infra'!$W40)*(1-'Input-Infra'!$U40)*T$19,0) -> 0 | U197: =IF(U$9=0,'Input-Infra'!$AT40*(1-'Input-Infra'!$W40)*(1-'Input-Infra'!$U40)*U$19,0) -> 0 | V197: =IF(V$9=0,'Input-Infra'!$AT40*(1-'Input-Infra'!$W40)*(1-'Input-Infra'!$U40)*V$19,0) -> 0 | W197: =IF(W$9=0,'Input-Infra'!$AT40*(1-'Input-Infra'!$W40)*(1-'Input-Infra'!$U40)*W$19,0) -> 0 | X197: =IF(X$9=0,'Input-Infra'!$AT40*(1-'Input-Infra'!$W40)*(1-'Input-Infra'!$U40)*X$19,0) -> 0 | Y197: =IF(Y$9=0,'Input-Infra'!$AT40*(1-'Input-Infra'!$W40)*(1-'Input-Infra'!$U40)*Y$19,0) -> 0 | Z197: =IF(Z$9=0,'Input-Infra'!$AT40*(1-'Input-Infra'!$W40)*(1-'Input-Infra'!$U40)*Z$19,0) -> 0 | AA197: =IF(AA$9=0,'Input-Infra'!$AT40*(1-'Input-Infra'!$W40)*(1-'Input-Infra'!$U40)*AA$19,0) -> 0 | AB197: =IF(AB$9=0,'Input-Infra'!$AT40*(1-'Input-Infra'!$W40)*(1-'Input-Infra'!$U40)*AB$19,0) -> 0 | AC197: =IF(AC$9=0,'Input-Infra'!$AT40*(1-'Input-Infra'!$W40)*(1-'Input-Infra'!$U40)*AC$19,0) -> 0
G198: 0 | I198: $'000 | K198: 0 | M198: ='Input-Infra'!AT41-Q198 -> 0 | O198: 0 | Q198: 0 | S198: =IF(S$9=0,'Input-Infra'!$AT41*(1-'Input-Infra'!$W41)*(1-'Input-Infra'!$U41)*S$19,0) -> 0 | T198: =IF(T$9=0,'Input-Infra'!$AT41*(1-'Input-Infra'!$W41)*(1-'Input-Infra'!$U41)*T$19,0) -> 0 | U198: =IF(U$9=0,'Input-Infra'!$AT41*(1-'Input-Infra'!$W41)*(1-'Input-Infra'!$U41)*U$19,0) -> 0 | V198: =IF(V$9=0,'Input-Infra'!$AT41*(1-'Input-Infra'!$W41)*(1-'Input-Infra'!$U41)*V$19,0) -> 0 | W198: =IF(W$9=0,'Input-Infra'!$AT41*(1-'Input-Infra'!$W41)*(1-'Input-Infra'!$U41)*W$19,0) -> 0 | X198: =IF(X$9=0,'Input-Infra'!$AT41*(1-'Input-Infra'!$W41)*(1-'Input-Infra'!$U41)*X$19,0) -> 0 | Y198: =IF(Y$9=0,'Input-Infra'!$AT41*(1-'Input-Infra'!$W41)*(1-'Input-Infra'!$U41)*Y$19,0) -> 0 | Z198: =IF(Z$9=0,'Input-Infra'!$AT41*(1-'Input-Infra'!$W41)*(1-'Input-Infra'!$U41)*Z$19,0) -> 0 | AA198: =IF(AA$9=0,'Input-Infra'!$AT41*(1-'Input-Infra'!$W41)*(1-'Input-Infra'!$U41)*AA$19,0) -> 0 | AB198: =IF(AB$9=0,'Input-Infra'!$AT41*(1-'Input-Infra'!$W41)*(1-'Input-Infra'!$U41)*AB$19,0) -> 0 | AC198: =IF(AC$9=0,'Input-Infra'!$AT41*(1-'Input-Infra'!$W41)*(1-'Input-Infra'!$U41)*AC$19,0) -> 0
G199: 0 | I199: $'000 | K199: 0 | M199: ='Input-Infra'!AT42-Q199 -> 0 | O199: 0 | Q199: 0 | S199: =IF(S$9=0,'Input-Infra'!$AT42*(1-'Input-Infra'!$W42)*(1-'Input-Infra'!$U42)*S$19,0) -> 0 | T199: =IF(T$9=0,'Input-Infra'!$AT42*(1-'Input-Infra'!$W42)*(1-'Input-Infra'!$U42)*T$19,0) -> 0 | U199: =IF(U$9=0,'Input-Infra'!$AT42*(1-'Input-Infra'!$W42)*(1-'Input-Infra'!$U42)*U$19,0) -> 0 | V199: =IF(V$9=0,'Input-Infra'!$AT42*(1-'Input-Infra'!$W42)*(1-'Input-Infra'!$U42)*V$19,0) -> 0 | W199: =IF(W$9=0,'Input-Infra'!$AT42*(1-'Input-Infra'!$W42)*(1-'Input-Infra'!$U42)*W$19,0) -> 0 | X199: =IF(X$9=0,'Input-Infra'!$AT42*(1-'Input-Infra'!$W42)*(1-'Input-Infra'!$U42)*X$19,0) -> 0 | Y199: =IF(Y$9=0,'Input-Infra'!$AT42*(1-'Input-Infra'!$W42)*(1-'Input-Infra'!$U42)*Y$19,0) -> 0 | Z199: =IF(Z$9=0,'Input-Infra'!$AT42*(1-'Input-Infra'!$W42)*(1-'Input-Infra'!$U42)*Z$19,0) -> 0 | AA199: =IF(AA$9=0,'Input-Infra'!$AT42*(1-'Input-Infra'!$W42)*(1-'Input-Infra'!$U42)*AA$19,0) -> 0 | AB199: =IF(AB$9=0,'Input-Infra'!$AT42*(1-'Input-Infra'!$W42)*(1-'Input-Infra'!$U42)*AB$19,0) -> 0 | AC199: =IF(AC$9=0,'Input-Infra'!$AT42*(1-'Input-Infra'!$W42)*(1-'Input-Infra'!$U42)*AC$19,0) -> 0
G200: 0 | I200: $'000 | K200: 0 | M200: ='Input-Infra'!AT43-Q200 -> 0 | O200: 0 | Q200: 0 | S200: =IF(S$9=0,'Input-Infra'!$AT43*(1-'Input-Infra'!$W43)*(1-'Input-Infra'!$U43)*S$19,0) -> 0 | T200: =IF(T$9=0,'Input-Infra'!$AT43*(1-'Input-Infra'!$W43)*(1-'Input-Infra'!$U43)*T$19,0) -> 0 | U200: =IF(U$9=0,'Input-Infra'!$AT43*(1-'Input-Infra'!$W43)*(1-'Input-Infra'!$U43)*U$19,0) -> 0 | V200: =IF(V$9=0,'Input-Infra'!$AT43*(1-'Input-Infra'!$W43)*(1-'Input-Infra'!$U43)*V$19,0) -> 0 | W200: =IF(W$9=0,'Input-Infra'!$AT43*(1-'Input-Infra'!$W43)*(1-'Input-Infra'!$U43)*W$19,0) -> 0 | X200: =IF(X$9=0,'Input-Infra'!$AT43*(1-'Input-Infra'!$W43)*(1-'Input-Infra'!$U43)*X$19,0) -> 0 | Y200: =IF(Y$9=0,'Input-Infra'!$AT43*(1-'Input-Infra'!$W43)*(1-'Input-Infra'!$U43)*Y$19,0) -> 0 | Z200: =IF(Z$9=0,'Input-Infra'!$AT43*(1-'Input-Infra'!$W43)*(1-'Input-Infra'!$U43)*Z$19,0) -> 0 | AA200: =IF(AA$9=0,'Input-Infra'!$AT43*(1-'Input-Infra'!$W43)*(1-'Input-Infra'!$U43)*AA$19,0) -> 0 | AB200: =IF(AB$9=0,'Input-Infra'!$AT43*(1-'Input-Infra'!$W43)*(1-'Input-Infra'!$U43)*AB$19,0) -> 0 | AC200: =IF(AC$9=0,'Input-Infra'!$AT43*(1-'Input-Infra'!$W43)*(1-'Input-Infra'!$U43)*AC$19,0) -> 0
G201: 0 | I201: $'000 | K201: 0 | M201: ='Input-Infra'!AT44-Q201 -> 0 | O201: 0 | Q201: 0 | S201: =IF(S$9=0,'Input-Infra'!$AT44*(1-'Input-Infra'!$W44)*(1-'Input-Infra'!$U44)*S$19,0) -> 0 | T201: =IF(T$9=0,'Input-Infra'!$AT44*(1-'Input-Infra'!$W44)*(1-'Input-Infra'!$U44)*T$19,0) -> 0 | U201: =IF(U$9=0,'Input-Infra'!$AT44*(1-'Input-Infra'!$W44)*(1-'Input-Infra'!$U44)*U$19,0) -> 0 | V201: =IF(V$9=0,'Input-Infra'!$AT44*(1-'Input-Infra'!$W44)*(1-'Input-Infra'!$U44)*V$19,0) -> 0 | W201: =IF(W$9=0,'Input-Infra'!$AT44*(1-'Input-Infra'!$W44)*(1-'Input-Infra'!$U44)*W$19,0) -> 0 | X201: =IF(X$9=0,'Input-Infra'!$AT44*(1-'Input-Infra'!$W44)*(1-'Input-Infra'!$U44)*X$19,0) -> 0 | Y201: =IF(Y$9=0,'Input-Infra'!$AT44*(1-'Input-Infra'!$W44)*(1-'Input-Infra'!$U44)*Y$19,0) -> 0 | Z201: =IF(Z$9=0,'Input-Infra'!$AT44*(1-'Input-Infra'!$W44)*(1-'Input-Infra'!$U44)*Z$19,0) -> 0 | AA201: =IF(AA$9=0,'Input-Infra'!$AT44*(1-'Input-Infra'!$W44)*(1-'Input-Infra'!$U44)*AA$19,0) -> 0 | AB201: =IF(AB$9=0,'Input-Infra'!$AT44*(1-'Input-Infra'!$W44)*(1-'Input-Infra'!$U44)*AB$19,0) -> 0 | AC201: =IF(AC$9=0,'Input-Infra'!$AT44*(1-'Input-Infra'!$W44)*(1-'Input-Infra'!$U44)*AC$19,0) -> 0
G202: 0 | I202: $'000 | K202: 0 | M202: ='Input-Infra'!AT45-Q202 -> 0 | O202: 0 | Q202: 0 | S202: =IF(S$9=0,'Input-Infra'!$AT45*(1-'Input-Infra'!$W45)*(1-'Input-Infra'!$U45)*S$19,0) -> 0 | T202: =IF(T$9=0,'Input-Infra'!$AT45*(1-'Input-Infra'!$W45)*(1-'Input-Infra'!$U45)*T$19,0) -> 0 | U202: =IF(U$9=0,'Input-Infra'!$AT45*(1-'Input-Infra'!$W45)*(1-'Input-Infra'!$U45)*U$19,0) -> 0 | V202: =IF(V$9=0,'Input-Infra'!$AT45*(1-'Input-Infra'!$W45)*(1-'Input-Infra'!$U45)*V$19,0) -> 0 | W202: =IF(W$9=0,'Input-Infra'!$AT45*(1-'Input-Infra'!$W45)*(1-'Input-Infra'!$U45)*W$19,0) -> 0 | X202: =IF(X$9=0,'Input-Infra'!$AT45*(1-'Input-Infra'!$W45)*(1-'Input-Infra'!$U45)*X$19,0) -> 0 | Y202: =IF(Y$9=0,'Input-Infra'!$AT45*(1-'Input-Infra'!$W45)*(1-'Input-Infra'!$U45)*Y$19,0) -> 0 | Z202: =IF(Z$9=0,'Input-Infra'!$AT45*(1-'Input-Infra'!$W45)*(1-'Input-Infra'!$U45)*Z$19,0) -> 0 | AA202: =IF(AA$9=0,'Input-Infra'!$AT45*(1-'Input-Infra'!$W45)*(1-'Input-Infra'!$U45)*AA$19,0) -> 0 | AB202: =IF(AB$9=0,'Input-Infra'!$AT45*(1-'Input-Infra'!$W45)*(1-'Input-Infra'!$U45)*AB$19,0) -> 0 | AC202: =IF(AC$9=0,'Input-Infra'!$AT45*(1-'Input-Infra'!$W45)*(1-'Input-Infra'!$U45)*AC$19,0) -> 0
G203: 0 | I203: $'000 | K203: 0 | M203: ='Input-Infra'!AT46-Q203 -> 0 | O203: 0 | Q203: 0 | S203: =IF(S$9=0,'Input-Infra'!$AT46*(1-'Input-Infra'!$W46)*(1-'Input-Infra'!$U46)*S$19,0) -> 0 | T203: =IF(T$9=0,'Input-Infra'!$AT46*(1-'Input-Infra'!$W46)*(1-'Input-Infra'!$U46)*T$19,0) -> 0 | U203: =IF(U$9=0,'Input-Infra'!$AT46*(1-'Input-Infra'!$W46)*(1-'Input-Infra'!$U46)*U$19,0) -> 0 | V203: =IF(V$9=0,'Input-Infra'!$AT46*(1-'Input-Infra'!$W46)*(1-'Input-Infra'!$U46)*V$19,0) -> 0 | W203: =IF(W$9=0,'Input-Infra'!$AT46*(1-'Input-Infra'!$W46)*(1-'Input-Infra'!$U46)*W$19,0) -> 0 | X203: =IF(X$9=0,'Input-Infra'!$AT46*(1-'Input-Infra'!$W46)*(1-'Input-Infra'!$U46)*X$19,0) -> 0 | Y203: =IF(Y$9=0,'Input-Infra'!$AT46*(1-'Input-Infra'!$W46)*(1-'Input-Infra'!$U46)*Y$19,0) -> 0 | Z203: =IF(Z$9=0,'Input-Infra'!$AT46*(1-'Input-Infra'!$W46)*(1-'Input-Infra'!$U46)*Z$19,0) -> 0 | AA203: =IF(AA$9=0,'Input-Infra'!$AT46*(1-'Input-Infra'!$W46)*(1-'Input-Infra'!$U46)*AA$19,0) -> 0 | AB203: =IF(AB$9=0,'Input-Infra'!$AT46*(1-'Input-Infra'!$W46)*(1-'Input-Infra'!$U46)*AB$19,0) -> 0 | AC203: =IF(AC$9=0,'Input-Infra'!$AT46*(1-'Input-Infra'!$W46)*(1-'Input-Infra'!$U46)*AC$19,0) -> 0
G204: 0 | I204: $'000 | K204: 0 | M204: ='Input-Infra'!AT47-Q204 -> 0 | O204: 0 | Q204: 0 | S204: =IF(S$9=0,'Input-Infra'!$AT47*(1-'Input-Infra'!$W47)*(1-'Input-Infra'!$U47)*S$19,0) -> 0 | T204: =IF(T$9=0,'Input-Infra'!$AT47*(1-'Input-Infra'!$W47)*(1-'Input-Infra'!$U47)*T$19,0) -> 0 | U204: =IF(U$9=0,'Input-Infra'!$AT47*(1-'Input-Infra'!$W47)*(1-'Input-Infra'!$U47)*U$19,0) -> 0 | V204: =IF(V$9=0,'Input-Infra'!$AT47*(1-'Input-Infra'!$W47)*(1-'Input-Infra'!$U47)*V$19,0) -> 0 | W204: =IF(W$9=0,'Input-Infra'!$AT47*(1-'Input-Infra'!$W47)*(1-'Input-Infra'!$U47)*W$19,0) -> 0 | X204: =IF(X$9=0,'Input-Infra'!$AT47*(1-'Input-Infra'!$W47)*(1-'Input-Infra'!$U47)*X$19,0) -> 0 | Y204: =IF(Y$9=0,'Input-Infra'!$AT47*(1-'Input-Infra'!$W47)*(1-'Input-Infra'!$U47)*Y$19,0) -> 0 | Z204: =IF(Z$9=0,'Input-Infra'!$AT47*(1-'Input-Infra'!$W47)*(1-'Input-Infra'!$U47)*Z$19,0) -> 0 | AA204: =IF(AA$9=0,'Input-Infra'!$AT47*(1-'Input-Infra'!$W47)*(1-'Input-Infra'!$U47)*AA$19,0) -> 0 | AB204: =IF(AB$9=0,'Input-Infra'!$AT47*(1-'Input-Infra'!$W47)*(1-'Input-Infra'!$U47)*AB$19,0) -> 0 | AC204: =IF(AC$9=0,'Input-Infra'!$AT47*(1-'Input-Infra'!$W47)*(1-'Input-Infra'!$U47)*AC$19,0) -> 0
G205: 0 | I205: $'000 | K205: 0 | M205: ='Input-Infra'!AT48-Q205 -> 0 | O205: 0 | Q205: 0 | S205: =IF(S$9=0,'Input-Infra'!$AT48*(1-'Input-Infra'!$W48)*(1-'Input-Infra'!$U48)*S$19,0) -> 0 | T205: =IF(T$9=0,'Input-Infra'!$AT48*(1-'Input-Infra'!$W48)*(1-'Input-Infra'!$U48)*T$19,0) -> 0 | U205: =IF(U$9=0,'Input-Infra'!$AT48*(1-'Input-Infra'!$W48)*(1-'Input-Infra'!$U48)*U$19,0) -> 0 | V205: =IF(V$9=0,'Input-Infra'!$AT48*(1-'Input-Infra'!$W48)*(1-'Input-Infra'!$U48)*V$19,0) -> 0 | W205: =IF(W$9=0,'Input-Infra'!$AT48*(1-'Input-Infra'!$W48)*(1-'Input-Infra'!$U48)*W$19,0) -> 0 | X205: =IF(X$9=0,'Input-Infra'!$AT48*(1-'Input-Infra'!$W48)*(1-'Input-Infra'!$U48)*X$19,0) -> 0 | Y205: =IF(Y$9=0,'Input-Infra'!$AT48*(1-'Input-Infra'!$W48)*(1-'Input-Infra'!$U48)*Y$19,0) -> 0 | Z205: =IF(Z$9=0,'Input-Infra'!$AT48*(1-'Input-Infra'!$W48)*(1-'Input-Infra'!$U48)*Z$19,0) -> 0 | AA205: =IF(AA$9=0,'Input-Infra'!$AT48*(1-'Input-Infra'!$W48)*(1-'Input-Infra'!$U48)*AA$19,0) -> 0 | AB205: =IF(AB$9=0,'Input-Infra'!$AT48*(1-'Input-Infra'!$W48)*(1-'Input-Infra'!$U48)*AB$19,0) -> 0 | AC205: =IF(AC$9=0,'Input-Infra'!$AT48*(1-'Input-Infra'!$W48)*(1-'Input-Infra'!$U48)*AC$19,0) -> 0
G206: 0 | I206: $'000 | K206: 0 | M206: ='Input-Infra'!AT49-Q206 -> 0 | O206: 0 | Q206: 0 | S206: =IF(S$9=0,'Input-Infra'!$AT49*(1-'Input-Infra'!$W49)*(1-'Input-Infra'!$U49)*S$19,0) -> 0 | T206: =IF(T$9=0,'Input-Infra'!$AT49*(1-'Input-Infra'!$W49)*(1-'Input-Infra'!$U49)*T$19,0) -> 0 | U206: =IF(U$9=0,'Input-Infra'!$AT49*(1-'Input-Infra'!$W49)*(1-'Input-Infra'!$U49)*U$19,0) -> 0 | V206: =IF(V$9=0,'Input-Infra'!$AT49*(1-'Input-Infra'!$W49)*(1-'Input-Infra'!$U49)*V$19,0) -> 0 | W206: =IF(W$9=0,'Input-Infra'!$AT49*(1-'Input-Infra'!$W49)*(1-'Input-Infra'!$U49)*W$19,0) -> 0 | X206: =IF(X$9=0,'Input-Infra'!$AT49*(1-'Input-Infra'!$W49)*(1-'Input-Infra'!$U49)*X$19,0) -> 0 | Y206: =IF(Y$9=0,'Input-Infra'!$AT49*(1-'Input-Infra'!$W49)*(1-'Input-Infra'!$U49)*Y$19,0) -> 0 | Z206: =IF(Z$9=0,'Input-Infra'!$AT49*(1-'Input-Infra'!$W49)*(1-'Input-Infra'!$U49)*Z$19,0) -> 0 | AA206: =IF(AA$9=0,'Input-Infra'!$AT49*(1-'Input-Infra'!$W49)*(1-'Input-Infra'!$U49)*AA$19,0) -> 0 | AB206: =IF(AB$9=0,'Input-Infra'!$AT49*(1-'Input-Infra'!$W49)*(1-'Input-Infra'!$U49)*AB$19,0) -> 0 | AC206: =IF(AC$9=0,'Input-Infra'!$AT49*(1-'Input-Infra'!$W49)*(1-'Input-Infra'!$U49)*AC$19,0) -> 0
G207: 0 | I207: $'000 | K207: 0 | M207: ='Input-Infra'!AT50-Q207 -> 0 | O207: 0 | Q207: 0 | S207: =IF(S$9=0,'Input-Infra'!$AT50*(1-'Input-Infra'!$W50)*(1-'Input-Infra'!$U50)*S$19,0) -> 0 | T207: =IF(T$9=0,'Input-Infra'!$AT50*(1-'Input-Infra'!$W50)*(1-'Input-Infra'!$U50)*T$19,0) -> 0 | U207: =IF(U$9=0,'Input-Infra'!$AT50*(1-'Input-Infra'!$W50)*(1-'Input-Infra'!$U50)*U$19,0) -> 0 | V207: =IF(V$9=0,'Input-Infra'!$AT50*(1-'Input-Infra'!$W50)*(1-'Input-Infra'!$U50)*V$19,0) -> 0 | W207: =IF(W$9=0,'Input-Infra'!$AT50*(1-'Input-Infra'!$W50)*(1-'Input-Infra'!$U50)*W$19,0) -> 0 | X207: =IF(X$9=0,'Input-Infra'!$AT50*(1-'Input-Infra'!$W50)*(1-'Input-Infra'!$U50)*X$19,0) -> 0 | Y207: =IF(Y$9=0,'Input-Infra'!$AT50*(1-'Input-Infra'!$W50)*(1-'Input-Infra'!$U50)*Y$19,0) -> 0 | Z207: =IF(Z$9=0,'Input-Infra'!$AT50*(1-'Input-Infra'!$W50)*(1-'Input-Infra'!$U50)*Z$19,0) -> 0 | AA207: =IF(AA$9=0,'Input-Infra'!$AT50*(1-'Input-Infra'!$W50)*(1-'Input-Infra'!$U50)*AA$19,0) -> 0 | AB207: =IF(AB$9=0,'Input-Infra'!$AT50*(1-'Input-Infra'!$W50)*(1-'Input-Infra'!$U50)*AB$19,0) -> 0 | AC207: =IF(AC$9=0,'Input-Infra'!$AT50*(1-'Input-Infra'!$W50)*(1-'Input-Infra'!$U50)*AC$19,0) -> 0
G208: 0 | I208: $'000 | K208: 0 | M208: ='Input-Infra'!AT51-Q208 -> 0 | O208: 0 | Q208: 0 | S208: =IF(S$9=0,'Input-Infra'!$AT51*(1-'Input-Infra'!$W51)*(1-'Input-Infra'!$U51)*S$19,0) -> 0 | T208: =IF(T$9=0,'Input-Infra'!$AT51*(1-'Input-Infra'!$W51)*(1-'Input-Infra'!$U51)*T$19,0) -> 0 | U208: =IF(U$9=0,'Input-Infra'!$AT51*(1-'Input-Infra'!$W51)*(1-'Input-Infra'!$U51)*U$19,0) -> 0 | V208: =IF(V$9=0,'Input-Infra'!$AT51*(1-'Input-Infra'!$W51)*(1-'Input-Infra'!$U51)*V$19,0) -> 0 | W208: =IF(W$9=0,'Input-Infra'!$AT51*(1-'Input-Infra'!$W51)*(1-'Input-Infra'!$U51)*W$19,0) -> 0 | X208: =IF(X$9=0,'Input-Infra'!$AT51*(1-'Input-Infra'!$W51)*(1-'Input-Infra'!$U51)*X$19,0) -> 0 | Y208: =IF(Y$9=0,'Input-Infra'!$AT51*(1-'Input-Infra'!$W51)*(1-'Input-Infra'!$U51)*Y$19,0) -> 0 | Z208: =IF(Z$9=0,'Input-Infra'!$AT51*(1-'Input-Infra'!$W51)*(1-'Input-Infra'!$U51)*Z$19,0) -> 0 | AA208: =IF(AA$9=0,'Input-Infra'!$AT51*(1-'Input-Infra'!$W51)*(1-'Input-Infra'!$U51)*AA$19,0) -> 0 | AB208: =IF(AB$9=0,'Input-Infra'!$AT51*(1-'Input-Infra'!$W51)*(1-'Input-Infra'!$U51)*AB$19,0) -> 0 | AC208: =IF(AC$9=0,'Input-Infra'!$AT51*(1-'Input-Infra'!$W51)*(1-'Input-Infra'!$U51)*AC$19,0) -> 0
G209: 0 | I209: $'000 | K209: 0 | M209: ='Input-Infra'!AT52-Q209 -> 0 | O209: 0 | Q209: 0 | S209: =IF(S$9=0,'Input-Infra'!$AT52*(1-'Input-Infra'!$W52)*(1-'Input-Infra'!$U52)*S$19,0) -> 0 | T209: =IF(T$9=0,'Input-Infra'!$AT52*(1-'Input-Infra'!$W52)*(1-'Input-Infra'!$U52)*T$19,0) -> 0 | U209: =IF(U$9=0,'Input-Infra'!$AT52*(1-'Input-Infra'!$W52)*(1-'Input-Infra'!$U52)*U$19,0) -> 0 | V209: =IF(V$9=0,'Input-Infra'!$AT52*(1-'Input-Infra'!$W52)*(1-'Input-Infra'!$U52)*V$19,0) -> 0 | W209: =IF(W$9=0,'Input-Infra'!$AT52*(1-'Input-Infra'!$W52)*(1-'Input-Infra'!$U52)*W$19,0) -> 0 | X209: =IF(X$9=0,'Input-Infra'!$AT52*(1-'Input-Infra'!$W52)*(1-'Input-Infra'!$U52)*X$19,0) -> 0 | Y209: =IF(Y$9=0,'Input-Infra'!$AT52*(1-'Input-Infra'!$W52)*(1-'Input-Infra'!$U52)*Y$19,0) -> 0 | Z209: =IF(Z$9=0,'Input-Infra'!$AT52*(1-'Input-Infra'!$W52)*(1-'Input-Infra'!$U52)*Z$19,0) -> 0 | AA209: =IF(AA$9=0,'Input-Infra'!$AT52*(1-'Input-Infra'!$W52)*(1-'Input-Infra'!$U52)*AA$19,0) -> 0 | AB209: =IF(AB$9=0,'Input-Infra'!$AT52*(1-'Input-Infra'!$W52)*(1-'Input-Infra'!$U52)*AB$19,0) -> 0 | AC209: =IF(AC$9=0,'Input-Infra'!$AT52*(1-'Input-Infra'!$W52)*(1-'Input-Infra'!$U52)*AC$19,0) -> 0
G210: 0 | I210: $'000 | K210: 0 | M210: ='Input-Infra'!AT53-Q210 -> 0 | O210: 0 | Q210: 0 | S210: =IF(S$9=0,'Input-Infra'!$AT53*(1-'Input-Infra'!$W53)*(1-'Input-Infra'!$U53)*S$19,0) -> 0 | T210: =IF(T$9=0,'Input-Infra'!$AT53*(1-'Input-Infra'!$W53)*(1-'Input-Infra'!$U53)*T$19,0) -> 0 | U210: =IF(U$9=0,'Input-Infra'!$AT53*(1-'Input-Infra'!$W53)*(1-'Input-Infra'!$U53)*U$19,0) -> 0 | V210: =IF(V$9=0,'Input-Infra'!$AT53*(1-'Input-Infra'!$W53)*(1-'Input-Infra'!$U53)*V$19,0) -> 0 | W210: =IF(W$9=0,'Input-Infra'!$AT53*(1-'Input-Infra'!$W53)*(1-'Input-Infra'!$U53)*W$19,0) -> 0 | X210: =IF(X$9=0,'Input-Infra'!$AT53*(1-'Input-Infra'!$W53)*(1-'Input-Infra'!$U53)*X$19,0) -> 0 | Y210: =IF(Y$9=0,'Input-Infra'!$AT53*(1-'Input-Infra'!$W53)*(1-'Input-Infra'!$U53)*Y$19,0) -> 0 | Z210: =IF(Z$9=0,'Input-Infra'!$AT53*(1-'Input-Infra'!$W53)*(1-'Input-Infra'!$U53)*Z$19,0) -> 0 | AA210: =IF(AA$9=0,'Input-Infra'!$AT53*(1-'Input-Infra'!$W53)*(1-'Input-Infra'!$U53)*AA$19,0) -> 0 | AB210: =IF(AB$9=0,'Input-Infra'!$AT53*(1-'Input-Infra'!$W53)*(1-'Input-Infra'!$U53)*AB$19,0) -> 0 | AC210: =IF(AC$9=0,'Input-Infra'!$AT53*(1-'Input-Infra'!$W53)*(1-'Input-Infra'!$U53)*AC$19,0) -> 0
G211: 0 | I211: $'000 | K211: 0 | M211: ='Input-Infra'!AT54-Q211 -> 0 | O211: 0 | Q211: 0 | S211: =IF(S$9=0,'Input-Infra'!$AT54*(1-'Input-Infra'!$W54)*(1-'Input-Infra'!$U54)*S$19,0) -> 0 | T211: =IF(T$9=0,'Input-Infra'!$AT54*(1-'Input-Infra'!$W54)*(1-'Input-Infra'!$U54)*T$19,0) -> 0 | U211: =IF(U$9=0,'Input-Infra'!$AT54*(1-'Input-Infra'!$W54)*(1-'Input-Infra'!$U54)*U$19,0) -> 0 | V211: =IF(V$9=0,'Input-Infra'!$AT54*(1-'Input-Infra'!$W54)*(1-'Input-Infra'!$U54)*V$19,0) -> 0 | W211: =IF(W$9=0,'Input-Infra'!$AT54*(1-'Input-Infra'!$W54)*(1-'Input-Infra'!$U54)*W$19,0) -> 0 | X211: =IF(X$9=0,'Input-Infra'!$AT54*(1-'Input-Infra'!$W54)*(1-'Input-Infra'!$U54)*X$19,0) -> 0 | Y211: =IF(Y$9=0,'Input-Infra'!$AT54*(1-'Input-Infra'!$W54)*(1-'Input-Infra'!$U54)*Y$19,0) -> 0 | Z211: =IF(Z$9=0,'Input-Infra'!$AT54*(1-'Input-Infra'!$W54)*(1-'Input-Infra'!$U54)*Z$19,0) -> 0 | AA211: =IF(AA$9=0,'Input-Infra'!$AT54*(1-'Input-Infra'!$W54)*(1-'Input-Infra'!$U54)*AA$19,0) -> 0 | AB211: =IF(AB$9=0,'Input-Infra'!$AT54*(1-'Input-Infra'!$W54)*(1-'Input-Infra'!$U54)*AB$19,0) -> 0 | AC211: =IF(AC$9=0,'Input-Infra'!$AT54*(1-'Input-Infra'!$W54)*(1-'Input-Infra'!$U54)*AC$19,0) -> 0
G212: 0 | I212: $'000 | K212: 0 | M212: ='Input-Infra'!AT55-Q212 -> 0 | O212: 0 | Q212: 0 | S212: =IF(S$9=0,'Input-Infra'!$AT55*(1-'Input-Infra'!$W55)*(1-'Input-Infra'!$U55)*S$19,0) -> 0 | T212: =IF(T$9=0,'Input-Infra'!$AT55*(1-'Input-Infra'!$W55)*(1-'Input-Infra'!$U55)*T$19,0) -> 0 | U212: =IF(U$9=0,'Input-Infra'!$AT55*(1-'Input-Infra'!$W55)*(1-'Input-Infra'!$U55)*U$19,0) -> 0 | V212: =IF(V$9=0,'Input-Infra'!$AT55*(1-'Input-Infra'!$W55)*(1-'Input-Infra'!$U55)*V$19,0) -> 0 | W212: =IF(W$9=0,'Input-Infra'!$AT55*(1-'Input-Infra'!$W55)*(1-'Input-Infra'!$U55)*W$19,0) -> 0 | X212: =IF(X$9=0,'Input-Infra'!$AT55*(1-'Input-Infra'!$W55)*(1-'Input-Infra'!$U55)*X$19,0) -> 0 | Y212: =IF(Y$9=0,'Input-Infra'!$AT55*(1-'Input-Infra'!$W55)*(1-'Input-Infra'!$U55)*Y$19,0) -> 0 | Z212: =IF(Z$9=0,'Input-Infra'!$AT55*(1-'Input-Infra'!$W55)*(1-'Input-Infra'!$U55)*Z$19,0) -> 0 | AA212: =IF(AA$9=0,'Input-Infra'!$AT55*(1-'Input-Infra'!$W55)*(1-'Input-Infra'!$U55)*AA$19,0) -> 0 | AB212: =IF(AB$9=0,'Input-Infra'!$AT55*(1-'Input-Infra'!$W55)*(1-'Input-Infra'!$U55)*AB$19,0) -> 0 | AC212: =IF(AC$9=0,'Input-Infra'!$AT55*(1-'Input-Infra'!$W55)*(1-'Input-Infra'!$U55)*AC$19,0) -> 0
G213: 0 | I213: $'000 | K213: 0 | M213: ='Input-Infra'!AT56-Q213 -> 0 | O213: 0 | Q213: 0 | S213: =IF(S$9=0,'Input-Infra'!$AT56*(1-'Input-Infra'!$W56)*(1-'Input-Infra'!$U56)*S$19,0) -> 0 | T213: =IF(T$9=0,'Input-Infra'!$AT56*(1-'Input-Infra'!$W56)*(1-'Input-Infra'!$U56)*T$19,0) -> 0 | U213: =IF(U$9=0,'Input-Infra'!$AT56*(1-'Input-Infra'!$W56)*(1-'Input-Infra'!$U56)*U$19,0) -> 0 | V213: =IF(V$9=0,'Input-Infra'!$AT56*(1-'Input-Infra'!$W56)*(1-'Input-Infra'!$U56)*V$19,0) -> 0 | W213: =IF(W$9=0,'Input-Infra'!$AT56*(1-'Input-Infra'!$W56)*(1-'Input-Infra'!$U56)*W$19,0) -> 0 | X213: =IF(X$9=0,'Input-Infra'!$AT56*(1-'Input-Infra'!$W56)*(1-'Input-Infra'!$U56)*X$19,0) -> 0 | Y213: =IF(Y$9=0,'Input-Infra'!$AT56*(1-'Input-Infra'!$W56)*(1-'Input-Infra'!$U56)*Y$19,0) -> 0 | Z213: =IF(Z$9=0,'Input-Infra'!$AT56*(1-'Input-Infra'!$W56)*(1-'Input-Infra'!$U56)*Z$19,0) -> 0 | AA213: =IF(AA$9=0,'Input-Infra'!$AT56*(1-'Input-Infra'!$W56)*(1-'Input-Infra'!$U56)*AA$19,0) -> 0 | AB213: =IF(AB$9=0,'Input-Infra'!$AT56*(1-'Input-Infra'!$W56)*(1-'Input-Infra'!$U56)*AB$19,0) -> 0 | AC213: =IF(AC$9=0,'Input-Infra'!$AT56*(1-'Input-Infra'!$W56)*(1-'Input-Infra'!$U56)*AC$19,0) -> 0
G214: 0 | I214: $'000 | K214: =NPV(WACC_nom,T214:AC214)+S214 -> 0 | M214: ='Input-Infra'!AT57-Q214 -> 0 | O214: 0 | Q214: 0 | S214: =IF(S$9=0,'Input-Infra'!$AT57*(1-'Input-Infra'!$W57)*(1-'Input-Infra'!$U57)*S$19,0) -> 0 | T214: =IF(T$9=0,'Input-Infra'!$AT57*(1-'Input-Infra'!$W57)*(1-'Input-Infra'!$U57)*T$19,0) -> 0 | U214: =IF(U$9=0,'Input-Infra'!$AT57*(1-'Input-Infra'!$W57)*(1-'Input-Infra'!$U57)*U$19,0) -> 0 | V214: =IF(V$9=0,'Input-Infra'!$AT57*(1-'Input-Infra'!$W57)*(1-'Input-Infra'!$U57)*V$19,0) -> 0 | W214: =IF(W$9=0,'Input-Infra'!$AT57*(1-'Input-Infra'!$W57)*(1-'Input-Infra'!$U57)*W$19,0) -> 0 | X214: =IF(X$9=0,'Input-Infra'!$AT57*(1-'Input-Infra'!$W57)*(1-'Input-Infra'!$U57)*X$19,0) -> 0 | Y214: =IF(Y$9=0,'Input-Infra'!$AT57*(1-'Input-Infra'!$W57)*(1-'Input-Infra'!$U57)*Y$19,0) -> 0 | Z214: =IF(Z$9=0,'Input-Infra'!$AT57*(1-'Input-Infra'!$W57)*(1-'Input-Infra'!$U57)*Z$19,0) -> 0 | AA214: =IF(AA$9=0,'Input-Infra'!$AT57*(1-'Input-Infra'!$W57)*(1-'Input-Infra'!$U57)*AA$19,0) -> 0 | AB214: =IF(AB$9=0,'Input-Infra'!$AT57*(1-'Input-Infra'!$W57)*(1-'Input-Infra'!$U57)*AB$19,0) -> 0 | AC214: =IF(AC$9=0,'Input-Infra'!$AT57*(1-'Input-Infra'!$W57)*(1-'Input-Infra'!$U57)*AC$19,0) -> 0
G215: 0 | I215: $'000 | K215: 0 | M215: ='Input-Infra'!AT58-Q215 -> 0 | O215: 0 | Q215: 0 | S215: =IF(S$9=0,'Input-Infra'!$AT58*(1-'Input-Infra'!$W58)*(1-'Input-Infra'!$U58)*S$19,0) -> 0 | T215: =IF(T$9=0,'Input-Infra'!$AT58*(1-'Input-Infra'!$W58)*(1-'Input-Infra'!$U58)*T$19,0) -> 0 | U215: =IF(U$9=0,'Input-Infra'!$AT58*(1-'Input-Infra'!$W58)*(1-'Input-Infra'!$U58)*U$19,0) -> 0 | V215: =IF(V$9=0,'Input-Infra'!$AT58*(1-'Input-Infra'!$W58)*(1-'Input-Infra'!$U58)*V$19,0) -> 0 | W215: =IF(W$9=0,'Input-Infra'!$AT58*(1-'Input-Infra'!$W58)*(1-'Input-Infra'!$U58)*W$19,0) -> 0 | X215: =IF(X$9=0,'Input-Infra'!$AT58*(1-'Input-Infra'!$W58)*(1-'Input-Infra'!$U58)*X$19,0) -> 0 | Y215: =IF(Y$9=0,'Input-Infra'!$AT58*(1-'Input-Infra'!$W58)*(1-'Input-Infra'!$U58)*Y$19,0) -> 0 | Z215: =IF(Z$9=0,'Input-Infra'!$AT58*(1-'Input-Infra'!$W58)*(1-'Input-Infra'!$U58)*Z$19,0) -> 0 | AA215: =IF(AA$9=0,'Input-Infra'!$AT58*(1-'Input-Infra'!$W58)*(1-'Input-Infra'!$U58)*AA$19,0) -> 0 | AB215: =IF(AB$9=0,'Input-Infra'!$AT58*(1-'Input-Infra'!$W58)*(1-'Input-Infra'!$U58)*AB$19,0) -> 0 | AC215: =IF(AC$9=0,'Input-Infra'!$AT58*(1-'Input-Infra'!$W58)*(1-'Input-Infra'!$U58)*AC$19,0) -> 0
G216: 0 | I216: $'000 | K216: 0 | M216: ='Input-Infra'!AT59-Q216 -> 0 | O216: 0 | Q216: 0 | S216: =IF(S$9=0,'Input-Infra'!$AT59*(1-'Input-Infra'!$W59)*(1-'Input-Infra'!$U59)*S$19,0) -> 0 | T216: =IF(T$9=0,'Input-Infra'!$AT59*(1-'Input-Infra'!$W59)*(1-'Input-Infra'!$U59)*T$19,0) -> 0 | U216: =IF(U$9=0,'Input-Infra'!$AT59*(1-'Input-Infra'!$W59)*(1-'Input-Infra'!$U59)*U$19,0) -> 0 | V216: =IF(V$9=0,'Input-Infra'!$AT59*(1-'Input-Infra'!$W59)*(1-'Input-Infra'!$U59)*V$19,0) -> 0 | W216: =IF(W$9=0,'Input-Infra'!$AT59*(1-'Input-Infra'!$W59)*(1-'Input-Infra'!$U59)*W$19,0) -> 0 | X216: =IF(X$9=0,'Input-Infra'!$AT59*(1-'Input-Infra'!$W59)*(1-'Input-Infra'!$U59)*X$19,0) -> 0 | Y216: =IF(Y$9=0,'Input-Infra'!$AT59*(1-'Input-Infra'!$W59)*(1-'Input-Infra'!$U59)*Y$19,0) -> 0 | Z216: =IF(Z$9=0,'Input-Infra'!$AT59*(1-'Input-Infra'!$W59)*(1-'Input-Infra'!$U59)*Z$19,0) -> 0 | AA216: =IF(AA$9=0,'Input-Infra'!$AT59*(1-'Input-Infra'!$W59)*(1-'Input-Infra'!$U59)*AA$19,0) -> 0 | AB216: =IF(AB$9=0,'Input-Infra'!$AT59*(1-'Input-Infra'!$W59)*(1-'Input-Infra'!$U59)*AB$19,0) -> 0 | AC216: =IF(AC$9=0,'Input-Infra'!$AT59*(1-'Input-Infra'!$W59)*(1-'Input-Infra'!$U59)*AC$19,0) -> 0
G217: 0 | I217: $'000 | K217: 0 | M217: ='Input-Infra'!AT60-Q217 -> 0 | O217: 0 | Q217: 0 | S217: =IF(S$9=0,'Input-Infra'!$AT60*(1-'Input-Infra'!$W60)*(1-'Input-Infra'!$U60)*S$19,0) -> 0 | T217: =IF(T$9=0,'Input-Infra'!$AT60*(1-'Input-Infra'!$W60)*(1-'Input-Infra'!$U60)*T$19,0) -> 0 | U217: =IF(U$9=0,'Input-Infra'!$AT60*(1-'Input-Infra'!$W60)*(1-'Input-Infra'!$U60)*U$19,0) -> 0 | V217: =IF(V$9=0,'Input-Infra'!$AT60*(1-'Input-Infra'!$W60)*(1-'Input-Infra'!$U60)*V$19,0) -> 0 | W217: =IF(W$9=0,'Input-Infra'!$AT60*(1-'Input-Infra'!$W60)*(1-'Input-Infra'!$U60)*W$19,0) -> 0 | X217: =IF(X$9=0,'Input-Infra'!$AT60*(1-'Input-Infra'!$W60)*(1-'Input-Infra'!$U60)*X$19,0) -> 0 | Y217: =IF(Y$9=0,'Input-Infra'!$AT60*(1-'Input-Infra'!$W60)*(1-'Input-Infra'!$U60)*Y$19,0) -> 0 | Z217: =IF(Z$9=0,'Input-Infra'!$AT60*(1-'Input-Infra'!$W60)*(1-'Input-Infra'!$U60)*Z$19,0) -> 0 | AA217: =IF(AA$9=0,'Input-Infra'!$AT60*(1-'Input-Infra'!$W60)*(1-'Input-Infra'!$U60)*AA$19,0) -> 0 | AB217: =IF(AB$9=0,'Input-Infra'!$AT60*(1-'Input-Infra'!$W60)*(1-'Input-Infra'!$U60)*AB$19,0) -> 0 | AC217: =IF(AC$9=0,'Input-Infra'!$AT60*(1-'Input-Infra'!$W60)*(1-'Input-Infra'!$U60)*AC$19,0) -> 0
G218: 0 | I218: $'000 | K218: 0 | M218: ='Input-Infra'!AT61-Q218 -> 0 | O218: 0 | Q218: 0 | S218: =IF(S$9=0,'Input-Infra'!$AT61*(1-'Input-Infra'!$W61)*(1-'Input-Infra'!$U61)*S$19,0) -> 0 | T218: =IF(T$9=0,'Input-Infra'!$AT61*(1-'Input-Infra'!$W61)*(1-'Input-Infra'!$U61)*T$19,0) -> 0 | U218: =IF(U$9=0,'Input-Infra'!$AT61*(1-'Input-Infra'!$W61)*(1-'Input-Infra'!$U61)*U$19,0) -> 0 | V218: =IF(V$9=0,'Input-Infra'!$AT61*(1-'Input-Infra'!$W61)*(1-'Input-Infra'!$U61)*V$19,0) -> 0 | W218: =IF(W$9=0,'Input-Infra'!$AT61*(1-'Input-Infra'!$W61)*(1-'Input-Infra'!$U61)*W$19,0) -> 0 | X218: =IF(X$9=0,'Input-Infra'!$AT61*(1-'Input-Infra'!$W61)*(1-'Input-Infra'!$U61)*X$19,0) -> 0 | Y218: =IF(Y$9=0,'Input-Infra'!$AT61*(1-'Input-Infra'!$W61)*(1-'Input-Infra'!$U61)*Y$19,0) -> 0 | Z218: =IF(Z$9=0,'Input-Infra'!$AT61*(1-'Input-Infra'!$W61)*(1-'Input-Infra'!$U61)*Z$19,0) -> 0 | AA218: =IF(AA$9=0,'Input-Infra'!$AT61*(1-'Input-Infra'!$W61)*(1-'Input-Infra'!$U61)*AA$19,0) -> 0 | AB218: =IF(AB$9=0,'Input-Infra'!$AT61*(1-'Input-Infra'!$W61)*(1-'Input-Infra'!$U61)*AB$19,0) -> 0 | AC218: =IF(AC$9=0,'Input-Infra'!$AT61*(1-'Input-Infra'!$W61)*(1-'Input-Infra'!$U61)*AC$19,0) -> 0
G219: 0 | I219: $'000 | K219: 0 | M219: ='Input-Infra'!AT62-Q219 -> 0 | O219: 0 | Q219: 0 | S219: =IF(S$9=0,'Input-Infra'!$AT62*(1-'Input-Infra'!$W62)*(1-'Input-Infra'!$U62)*S$19,0) -> 0 | T219: =IF(T$9=0,'Input-Infra'!$AT62*(1-'Input-Infra'!$W62)*(1-'Input-Infra'!$U62)*T$19,0) -> 0 | U219: =IF(U$9=0,'Input-Infra'!$AT62*(1-'Input-Infra'!$W62)*(1-'Input-Infra'!$U62)*U$19,0) -> 0 | V219: =IF(V$9=0,'Input-Infra'!$AT62*(1-'Input-Infra'!$W62)*(1-'Input-Infra'!$U62)*V$19,0) -> 0 | W219: =IF(W$9=0,'Input-Infra'!$AT62*(1-'Input-Infra'!$W62)*(1-'Input-Infra'!$U62)*W$19,0) -> 0 | X219: =IF(X$9=0,'Input-Infra'!$AT62*(1-'Input-Infra'!$W62)*(1-'Input-Infra'!$U62)*X$19,0) -> 0 | Y219: =IF(Y$9=0,'Input-Infra'!$AT62*(1-'Input-Infra'!$W62)*(1-'Input-Infra'!$U62)*Y$19,0) -> 0 | Z219: =IF(Z$9=0,'Input-Infra'!$AT62*(1-'Input-Infra'!$W62)*(1-'Input-Infra'!$U62)*Z$19,0) -> 0 | AA219: =IF(AA$9=0,'Input-Infra'!$AT62*(1-'Input-Infra'!$W62)*(1-'Input-Infra'!$U62)*AA$19,0) -> 0 | AB219: =IF(AB$9=0,'Input-Infra'!$AT62*(1-'Input-Infra'!$W62)*(1-'Input-Infra'!$U62)*AB$19,0) -> 0 | AC219: =IF(AC$9=0,'Input-Infra'!$AT62*(1-'Input-Infra'!$W62)*(1-'Input-Infra'!$U62)*AC$19,0) -> 0
... 677 more rows

Sheet Servicing cost
F2: Brisbane City Council
F3: ='Input-Gen'!$F$3 -> Schedule of Works Model - Land for community facilities network
F5: Servicing cost
G6: =IF(BaseCaseCheck=0,BaseCase,NotBaseCase) -> Please Note: Model is not currently applying Base Case parameter values
G9: Period Number | K9: ="NPV as at" & " " & TEXT(Model_Start_Date-1,"dd-mmm-yyyy") -> NPV as at 30-Jun-2016 | O9: Total Nominal Value | S9: =ForecastPeriod -> 0 | T9: 1 | U9: 2 | V9: 3 | W9: 4 | X9: 5 | Y9: 6 | Z9: 7 | AA9: 8 | AB9: 9 | AC9: 10 | AD9: 0 | AE9: 0 | AF9: 0 | AG9: 0 | AH9: 0 | AI9: 0 | AJ9: 0 | AK9: 0 | AL9: 0 | AM9: 0
G10: Period Beginning Date | S10: =FY_Begin -> 2015-07-01 | T10: 2016-07-01 | U10: 2017-07-01 | V10: 2018-07-01 | W10: 2019-07-01 | X10: 2020-07-01 | Y10: 2021-07-01 | Z10: 2022-07-01 | AA10: 2023-07-01 | AB10: 2024-07-01 | AC10: 2025-07-01
G11: Period Ending Date | S11: =FY_End -> 2016-06-30 | T11: 2017-06-30 | U11: 2018-06-30 | V11: 2019-06-30 | W11: 2020-06-30 | X11: 2021-06-30 | Y11: 2022-06-30 | Z11: 2023-06-30 | AA11: 2024-06-30 | AB11: 2025-06-30 | AC11: 2026-06-30
F15: Indexation
G17: Revenue Index | I17: # | S17: ='Nominal Cost (Avg)'!S23 -> 1 | T17: ='Nominal Cost (Avg)'!T23 -> 1 | U17: ='Nominal Cost (Avg)'!U23 -> 1 | V17: ='Nominal Cost (Avg)'!V23 -> 1 | W17: ='Nominal Cost (Avg)'!W23 -> 1 | X17: ='Nominal Cost (Avg)'!X23 -> 1 | Y17: ='Nominal Cost (Avg)'!Y23 -> 1 | Z17: ='Nominal Cost (Avg)'!Z23 -> 1 | AA17: ='Nominal Cost (Avg)'!AA23 -> 1 | AB17: ='Nominal Cost (Avg)'!AB23 -> 1 | AC17: ='Nominal Cost (Avg)'!AC23 -> 1
F19: Servicing Cost by catchment
G21: Average Approach
G23: ='Input-Time Series'!G54 -> Urban East | I23: $/EP | K23: =IF(OR(K95=0,'Input-Time Series'!$K91=0),0,K95*thousand/('Input-Time Series'!K54+'Input-Time Series'!K79)) -> 110.1064922 | S23: =$K23*S$17 -> 110.1064922 | T23: 110.1064922 | U23: 110.1064922 | V23: 110.1064922 | W23: 110.1064922 | X23: 110.1064922 | Y23: 110.1064922 | Z23: 110.1064922 | AA23: 110.1064922 | AB23: 110.1064922 | AC23: =$K23*AC$17 -> 110.1064922
G24: ='Input-Time Series'!G55 -> Urban North | I24: $/EP | K24: =IF(OR(K96=0,'Input-Time Series'!$K92=0),0,K96*thousand/('Input-Time Series'!K55+'Input-Time Series'!K80)) -> 104.1650415 | S24: 104.1650415 | T24: 104.1650415 | U24: 104.1650415 | V24: 104.1650415 | W24: 104.1650415 | X24: 104.1650415 | Y24: 104.1650415 | Z24: 104.1650415 | AA24: 104.1650415 | AB24: 104.1650415 | AC24: 104.1650415
G25: ='Input-Time Series'!G56 -> Urban South | I25: $/EP | K25: =IF(OR(K97=0,'Input-Time Series'!$K93=0),0,K97*thousand/('Input-Time Series'!K56+'Input-Time Series'!K81)) -> 98.75046908 | S25: 98.75046908 | T25: 98.75046908 | U25: 98.75046908 | V25: 98.75046908 | W25: 98.75046908 | X25: 98.75046908 | Y25: 98.75046908 | Z25: 98.75046908 | AA25: 98.75046908 | AB25: 98.75046908 | AC25: 98.75046908
G26: ='Input-Time Series'!G57 -> Urban West | I26: $/EP | K26: =IF(OR(K98=0,'Input-Time Series'!$K94=0),0,K98*thousand/('Input-Time Series'!K57+'Input-Time Series'!K82)) -> 118.5689618 | S26: 118.5689618 | T26: 118.5689618 | U26: 118.5689618 | V26: 118.5689618 | W26: 118.5689618 | X26: 118.5689618 | Y26: 118.5689618 | Z26: 118.5689618 | AA26: 118.5689618 | AB26: 118.5689618 | AC26: 118.5689618
G27: ='Input-Time Series'!G58 -> Fringe | I27: $/EP | K27: =IF(OR(K99=0,'Input-Time Series'!$K95=0),0,K99*thousand/('Input-Time Series'!K58+'Input-Time Series'!K83)) -> 77.26331286 | S27: 77.26331286 | T27: 77.26331286 | U27: 77.26331286 | V27: 77.26331286 | W27: 77.26331286 | X27: 77.26331286 | Y27: 77.26331286 | Z27: 77.26331286 | AA27: 77.26331286 | AB27: 77.26331286 | AC27: 77.26331286
G29: Average Charge | I29: $/EP | K29: =IF(OR(K101=0,'Input-Time Series'!$K97=0),0,(K101*thousand/('Input-Time Series'!K60+'Input-Time Series'!K85))) -> 106.1297558 | S29: =$K29*S$17 -> 106.1297558 | T29: 106.1297558 | U29: 106.1297558 | V29: 106.1297558 | W29: 106.1297558 | X29: 106.1297558 | Y29: 106.1297558 | Z29: 106.1297558 | AA29: 106.1297558 | AB29: 106.1297558 | AC29: 106.1297558
G31: Maximum | I31: $/EP | K31: =MAX(K$23:K$27) -> 118.5689618
G32: Minimum | I32: $/EP | K32: =MIN(K$23:K$27) -> 77.26331286
G34: Marginal Approach (not applicable to LGIP)
G36: =G23 -> Urban East | I36: $/Demand
G37: =G24 -> Urban North | I37: $/Demand
G38: Urban South | I38: $/Demand
G39: Urban West | I39: $/Demand
G40: Fringe | I40: $/Demand
G42: =G29 -> Average Charge | I42: $/EP
G44: =G31 -> Maximum | I44: $/EP
G45: =G32 -> Minimum | I45: $/EP
F47: Revenue (see LGIP revenue and cash flows model)
G49: Average Approach
G51: Future Demand
G53: =G36 -> Urban East | I53: $'000
G54: =G37 -> Urban North | I54: $'000
G55: Urban South | I55: $'000
G56: Urban West | I56: $'000
G57: =G40 -> Fringe | I57: $'000
G59: Total Revenue | I59: $'000
G61: Recoverable Revenue as % of Future Cost | I61: %
G62: Recoverable Revenue as % of Total Cost | I62: %
G64: Existing Demand
G66: =G53 -> Urban East | I66: $'000
G67: =G54 -> Urban North | I67: $'000
G68: Urban South | I68: $'000
G69: Urban West | I69: $'000
G70: =G57 -> Fringe | I70: $'000
G72: =G59 -> Total Revenue | I72: $'000
G74: Total Existing and Future Revenue | I74: $'000
G76: Marginal Approach
G78: Future Demand
G80: =G66 -> Urban East | I80: $'000
G81: =G67 -> Urban North | I81: $'000
G82: Urban South | I82: $'000
G83: Urban West | I83: $'000
G84: =G70 -> Fringe | I84: $'000
G86: =G59 -> Total Revenue | I86: $'000
G88: =G61 -> Recoverable Revenue as % of Future Cost | I88: %
G89: =G62 -> Recoverable Revenue as % of Total Cost | I89: %
F91: Recoverable Costs by Service Catchment (Average Approach)
G93: Existing and Future
G95: =G80 -> Urban East | I95: $'000 | K95: =NPV(WACC_nom,T95:AC95)+S95 -> 30468.36918 | M95: =K95/$K$101 -> 0.2158092932 | S95: =S106+S117 -> 25094.53257 | T95: 0 | U95: 0 | V95: 4313.669499 | W95: 0 | X95: 0 | Y95: 0 | Z95: 0 | AA95: 2758.875988 | AB95: 0 | AC95: 0
G96: =G81 -> Urban North | I96: $'000 | K96: =NPV(WACC_nom,T96:AC96)+S96 -> 41776.10056 | M96: =K96/$K$101 -> 0.2959026353 | S96: =S107+S118 -> 29860.38768 | T96: 0 | U96: 0 | V96: 11128.31153 | W96: 0 | X96: 0 | Y96: 0 | Z96: 0 | AA96: 4034.140761 | AB96: 0 | AC96: 0
G97: Urban South | I97: $'000 | K97: =NPV(WACC_nom,T97:AC97)+S97 -> 37887.10266 | M97: 0.2683566291 | S97: =S108+S119 -> 28076.94559 | T97: 0 | U97: 0 | V97: 6027.982163 | W97: 0 | X97: 0 | Y97: 0 | Z97: 0 | AA97: 7497.396764 | AB97: 0 | AC97: 0
G98: Urban West | I98: $'000 | K98: =NPV(WACC_nom,T98:AC98)+S98 -> 29506.37612 | M98: 0.2089954385 | S98: =S109+S120 -> 24742.50191 | T98: 0 | U98: 0 | V98: 3824.042365 | W98: 0 | X98: 0 | Y98: 0 | Z98: 0 | AA98: 2445.727161 | AB98: 0 | AC98: 0
G99: =G84 -> Fringe | I99: $'000 | K99: =NPV(WACC_nom,T99:AC99)+S99 -> 1543.965957 | M99: 0.01093600382 | S99: =S110+S121 -> 1158.167538 | T99: 0 | U99: 0 | V99: 309.6869126 | W99: 0 | X99: 0 | Y99: 0 | Z99: 0 | AA99: 198.0651942 | AB99: 0 | AC99: 0
G101: Total | I101: $'000 | K101: =SUM(K95:K99) -> 141181.9145 | M101: =SUM(M95:M99) -> 1 | S101: =SUM(S95:S99) -> 108932.5353 | T101: 0 | U101: 0 | V101: 25603.69246 | W101: 0 | X101: 0 | Y101: 0 | Z101: 0 | AA101: 16934.20587 | AB101: 0 | AC101: 0
G104: Existing Infrastructure
G106: =G95 -> Urban East | I106: $'000 | K106: =NPV(WACC_nom,T106:AC106)+S106 -> 25094.53257 | M106: =K106/K95 -> 0.8236257221 | O106: =SUM(S106:AC106) -> 25094.53257 | S106: =SUMPRODUCT(INDEX('Input-Infra'!$AA$25:$AE$113,,MATCH($G106,'Input-Infra'!$AA$17:$AE$17,0)),'Nominal Cost (Avg)'!S$30:S$118) -> 25094.53257 | T106: =SUMPRODUCT(INDEX('Input-Infra'!$AA$25:$AE$113,,MATCH($G106,'Input-Infra'!$AA$17:$AE$17,0)),'Nominal Cost (Avg)'!T$30:T$118) -> 0 | U106: =SUMPRODUCT(INDEX('Input-Infra'!$AA$25:$AE$113,,MATCH($G106,'Input-Infra'!$AA$17:$AE$17,0)),'Nominal Cost (Avg)'!U$30:U$118) -> 0 | V106: =SUMPRODUCT(INDEX('Input-Infra'!$AA$25:$AE$113,,MATCH($G106,'Input-Infra'!$AA$17:$AE$17,0)),'Nominal Cost (Avg)'!V$30:V$118) -> 0 | W106: =SUMPRODUCT(INDEX('Input-Infra'!$AA$25:$AE$113,,MATCH($G106,'Input-Infra'!$AA$17:$AE$17,0)),'Nominal Cost (Avg)'!W$30:W$118) -> 0 | X106: =SUMPRODUCT(INDEX('Input-Infra'!$AA$25:$AE$113,,MATCH($G106,'Input-Infra'!$AA$17:$AE$17,0)),'Nominal Cost (Avg)'!X$30:X$118) -> 0 | Y106: =SUMPRODUCT(INDEX('Input-Infra'!$AA$25:$AE$113,,MATCH($G106,'Input-Infra'!$AA$17:$AE$17,0)),'Nominal Cost (Avg)'!Y$30:Y$118) -> 0 | Z106: =SUMPRODUCT(INDEX('Input-Infra'!$AA$25:$AE$113,,MATCH($G106,'Input-Infra'!$AA$17:$AE$17,0)),'Nominal Cost (Avg)'!Z$30:Z$118) -> 0 | AA106: =SUMPRODUCT(INDEX('Input-Infra'!$AA$25:$AE$113,,MATCH($G106,'Input-Infra'!$AA$17:$AE$17,0)),'Nominal Cost (Avg)'!AA$30:AA$118) -> 0 | AB106: =SUMPRODUCT(INDEX('Input-Infra'!$AA$25:$AE$113,,MATCH($G106,'Input-Infra'!$AA$17:$AE$17,0)),'Nominal Cost (Avg)'!AB$30:AB$118) -> 0 | AC106: =SUMPRODUCT(INDEX('Input-Infra'!$AA$25:$AE$113,,MATCH($G106,'Input-Infra'!$AA$17:$AE$17,0)),'Nominal Cost (Avg)'!AC$30:AC$118) -> 0
G107: =G96 -> Urban North | I107: $'000 | K107: =NPV(WACC_nom,T107:AC107)+S107 -> 29860.38768 | M107: =K107/K96 -> 0.7147720175 | O107: =SUM(S107:AC107) -> 29860.38768 | S107: =SUMPRODUCT(INDEX('Input-Infra'!$AA$25:$AE$113,,MATCH($G107,'Input-Infra'!$AA$17:$AE$17,0)),'Nominal Cost (Avg)'!S$30:S$118) -> 29860.38768 | T107: =SUMPRODUCT(INDEX('Input-Infra'!$AA$25:$AE$113,,MATCH($G107,'Input-Infra'!$AA$17:$AE$17,0)),'Nominal Cost (Avg)'!T$30:T$118) -> 0 | U107: =SUMPRODUCT(INDEX('Input-Infra'!$AA$25:$AE$113,,MATCH($G107,'Input-Infra'!$AA$17:$AE$17,0)),'Nominal Cost (Avg)'!U$30:U$118) -> 0 | V107: =SUMPRODUCT(INDEX('Input-Infra'!$AA$25:$AE$113,,MATCH($G107,'Input-Infra'!$AA$17:$AE$17,0)),'Nominal Cost (Avg)'!V$30:V$118) -> 0 | W107: =SUMPRODUCT(INDEX('Input-Infra'!$AA$25:$AE$113,,MATCH($G107,'Input-Infra'!$AA$17:$AE$17,0)),'Nominal Cost (Avg)'!W$30:W$118) -> 0 | X107: =SUMPRODUCT(INDEX('Input-Infra'!$AA$25:$AE$113,,MATCH($G107,'Input-Infra'!$AA$17:$AE$17,0)),'Nominal Cost (Avg)'!X$30:X$118) -> 0 | Y107: =SUMPRODUCT(INDEX('Input-Infra'!$AA$25:$AE$113,,MATCH($G107,'Input-Infra'!$AA$17:$AE$17,0)),'Nominal Cost (Avg)'!Y$30:Y$118) -> 0 | Z107: =SUMPRODUCT(INDEX('Input-Infra'!$AA$25:$AE$113,,MATCH($G107,'Input-Infra'!$AA$17:$AE$17,0)),'Nominal Cost (Avg)'!Z$30:Z$118) -> 0 | AA107: =SUMPRODUCT(INDEX('Input-Infra'!$AA$25:$AE$113,,MATCH($G107,'Input-Infra'!$AA$17:$AE$17,0)),'Nominal Cost (Avg)'!AA$30:AA$118) -> 0 | AB107: =SUMPRODUCT(INDEX('Input-Infra'!$AA$25:$AE$113,,MATCH($G107,'Input-Infra'!$AA$17:$AE$17,0)),'Nominal Cost (Avg)'!AB$30:AB$118) -> 0 | AC107: =SUMPRODUCT(INDEX('Input-Infra'!$AA$25:$AE$113,,MATCH($G107,'Input-Infra'!$AA$17:$AE$17,0)),'Nominal Cost (Avg)'!AC$30:AC$118) -> 0
G108: Urban South | I108: $'000 | K108: =NPV(WACC_nom,T108:AC108)+S108 -> 28076.94559 | M108: 0.7410686913 | O108: 28076.94559 | S108: =SUMPRODUCT(INDEX('Input-Infra'!$AA$25:$AE$113,,MATCH($G108,'Input-Infra'!$AA$17:$AE$17,0)),'Nominal Cost (Avg)'!S$30:S$118) -> 28076.94559 | T108: =SUMPRODUCT(INDEX('Input-Infra'!$AA$25:$AE$113,,MATCH($G108,'Input-Infra'!$AA$17:$AE$17,0)),'Nominal Cost (Avg)'!T$30:T$118) -> 0 | U108: =SUMPRODUCT(INDEX('Input-Infra'!$AA$25:$AE$113,,MATCH($G108,'Input-Infra'!$AA$17:$AE$17,0)),'Nominal Cost (Avg)'!U$30:U$118) -> 0 | V108: =SUMPRODUCT(INDEX('Input-Infra'!$AA$25:$AE$113,,MATCH($G108,'Input-Infra'!$AA$17:$AE$17,0)),'Nominal Cost (Avg)'!V$30:V$118) -> 0 | W108: =SUMPRODUCT(INDEX('Input-Infra'!$AA$25:$AE$113,,MATCH($G108,'Input-Infra'!$AA$17:$AE$17,0)),'Nominal Cost (Avg)'!W$30:W$118) -> 0 | X108: =SUMPRODUCT(INDEX('Input-Infra'!$AA$25:$AE$113,,MATCH($G108,'Input-Infra'!$AA$17:$AE$17,0)),'Nominal Cost (Avg)'!X$30:X$118) -> 0 | Y108: =SUMPRODUCT(INDEX('Input-Infra'!$AA$25:$AE$113,,MATCH($G108,'Input-Infra'!$AA$17:$AE$17,0)),'Nominal Cost (Avg)'!Y$30:Y$118) -> 0 | Z108: =SUMPRODUCT(INDEX('Input-Infra'!$AA$25:$AE$113,,MATCH($G108,'Input-Infra'!$AA$17:$AE$17,0)),'Nominal Cost (Avg)'!Z$30:Z$118) -> 0 | AA108: =SUMPRODUCT(INDEX('Input-Infra'!$AA$25:$AE$113,,MATCH($G108,'Input-Infra'!$AA$17:$AE$17,0)),'Nominal Cost (Avg)'!AA$30:AA$118) -> 0 | AB108: =SUMPRODUCT(INDEX('Input-Infra'!$AA$25:$AE$113,,MATCH($G108,'Input-Infra'!$AA$17:$AE$17,0)),'Nominal Cost (Avg)'!AB$30:AB$118) -> 0 | AC108: =SUMPRODUCT(INDEX('Input-Infra'!$AA$25:$AE$113,,MATCH($G108,'Input-Infra'!$AA$17:$AE$17,0)),'Nominal Cost (Avg)'!AC$30:AC$118) -> 0
G109: Urban West | I109: $'000 | K109: =NPV(WACC_nom,T109:AC109)+S109 -> 24742.50191 | M109: 0.838547635 | O109: 24742.50191 | S109: =SUMPRODUCT(INDEX('Input-Infra'!$AA$25:$AE$113,,MATCH($G109,'Input-Infra'!$AA$17:$AE$17,0)),'Nominal Cost (Avg)'!S$30:S$118) -> 24742.50191 | T109: =SUMPRODUCT(INDEX('Input-Infra'!$AA$25:$AE$113,,MATCH($G109,'Input-Infra'!$AA$17:$AE$17,0)),'Nominal Cost (Avg)'!T$30:T$118) -> 0 | U109: =SUMPRODUCT(INDEX('Input-Infra'!$AA$25:$AE$113,,MATCH($G109,'Input-Infra'!$AA$17:$AE$17,0)),'Nominal Cost (Avg)'!U$30:U$118) -> 0 | V109: =SUMPRODUCT(INDEX('Input-Infra'!$AA$25:$AE$113,,MATCH($G109,'Input-Infra'!$AA$17:$AE$17,0)),'Nominal Cost (Avg)'!V$30:V$118) -> 0 | W109: =SUMPRODUCT(INDEX('Input-Infra'!$AA$25:$AE$113,,MATCH($G109,'Input-Infra'!$AA$17:$AE$17,0)),'Nominal Cost (Avg)'!W$30:W$118) -> 0 | X109: =SUMPRODUCT(INDEX('Input-Infra'!$AA$25:$AE$113,,MATCH($G109,'Input-Infra'!$AA$17:$AE$17,0)),'Nominal Cost (Avg)'!X$30:X$118) -> 0 | Y109: =SUMPRODUCT(INDEX('Input-Infra'!$AA$25:$AE$113,,MATCH($G109,'Input-Infra'!$AA$17:$AE$17,0)),'Nominal Cost (Avg)'!Y$30:Y$118) -> 0 | Z109: =SUMPRODUCT(INDEX('Input-Infra'!$AA$25:$AE$113,,MATCH($G109,'Input-Infra'!$AA$17:$AE$17,0)),'Nominal Cost (Avg)'!Z$30:Z$118) -> 0 | AA109: =SUMPRODUCT(INDEX('Input-Infra'!$AA$25:$AE$113,,MATCH($G109,'Input-Infra'!$AA$17:$AE$17,0)),'Nominal Cost (Avg)'!AA$30:AA$118) -> 0 | AB109: =SUMPRODUCT(INDEX('Input-Infra'!$AA$25:$AE$113,,MATCH($G109,'Input-Infra'!$AA$17:$AE$17,0)),'Nominal Cost (Avg)'!AB$30:AB$118) -> 0 | AC109: =SUMPRODUCT(INDEX('Input-Infra'!$AA$25:$AE$113,,MATCH($G109,'Input-Infra'!$AA$17:$AE$17,0)),'Nominal Cost (Avg)'!AC$30:AC$118) -> 0
G110: =G99 -> Fringe | I110: $'000 | K110: =NPV(WACC_nom,T110:AC110)+S110 -> 1158.167538 | M110: 0.7501250487 | O110: 1158.167538 | S110: =SUMPRODUCT(INDEX('Input-Infra'!$AA$25:$AE$113,,MATCH($G110,'Input-Infra'!$AA$17:$AE$17,0)),'Nominal Cost (Avg)'!S$30:S$118) -> 1158.167538 | T110: =SUMPRODUCT(INDEX('Input-Infra'!$AA$25:$AE$113,,MATCH($G110,'Input-Infra'!$AA$17:$AE$17,0)),'Nominal Cost (Avg)'!T$30:T$118) -> 0 | U110: =SUMPRODUCT(INDEX('Input-Infra'!$AA$25:$AE$113,,MATCH($G110,'Input-Infra'!$AA$17:$AE$17,0)),'Nominal Cost (Avg)'!U$30:U$118) -> 0 | V110: =SUMPRODUCT(INDEX('Input-Infra'!$AA$25:$AE$113,,MATCH($G110,'Input-Infra'!$AA$17:$AE$17,0)),'Nominal Cost (Avg)'!V$30:V$118) -> 0 | W110: =SUMPRODUCT(INDEX('Input-Infra'!$AA$25:$AE$113,,MATCH($G110,'Input-Infra'!$AA$17:$AE$17,0)),'Nominal Cost (Avg)'!W$30:W$118) -> 0 | X110: =SUMPRODUCT(INDEX('Input-Infra'!$AA$25:$AE$113,,MATCH($G110,'Input-Infra'!$AA$17:$AE$17,0)),'Nominal Cost (Avg)'!X$30:X$118) -> 0 | Y110: =SUMPRODUCT(INDEX('Input-Infra'!$AA$25:$AE$113,,MATCH($G110,'Input-Infra'!$AA$17:$AE$17,0)),'Nominal Cost (Avg)'!Y$30:Y$118) -> 0 | Z110: =SUMPRODUCT(INDEX('Input-Infra'!$AA$25:$AE$113,,MATCH($G110,'Input-Infra'!$AA$17:$AE$17,0)),'Nominal Cost (Avg)'!Z$30:Z$118) -> 0 | AA110: =SUMPRODUCT(INDEX('Input-Infra'!$AA$25:$AE$113,,MATCH($G110,'Input-Infra'!$AA$17:$AE$17,0)),'Nominal Cost (Avg)'!AA$30:AA$118) -> 0 | AB110: =SUMPRODUCT(INDEX('Input-Infra'!$AA$25:$AE$113,,MATCH($G110,'Input-Infra'!$AA$17:$AE$17,0)),'Nominal Cost (Avg)'!AB$30:AB$118) -> 0 | AC110: =SUMPRODUCT(INDEX('Input-Infra'!$AA$25:$AE$113,,MATCH($G110,'Input-Infra'!$AA$17:$AE$17,0)),'Nominal Cost (Avg)'!AC$30:AC$118) -> 0
G112: =G101 -> Total | I112: $'000 | K112: =SUM(K106:K110) -> 108932.5353 | M112: =K112/K101 -> 0.7715757056 | O112: =SUM(O106:O110) -> 108932.5353 | S112: =SUM(S106:S110) -> 108932.5353 | T112: 0 | U112: 0 | V112: 0 | W112: 0 | X112: 0 | Y112: 0 | Z112: 0 | AA112: 0 | AB112: 0 | AC112: 0
G115: Future Infrastructure
G117: =G106 -> Urban East | I117: $'000 | K117: =NPV(WACC_nom,T117:AC117)+S117 -> 5373.836613 | M117: =K117/K95 -> 0.1763742779 | O117: =SUM(S117:AC117) -> 7072.545486 | S117: =SUMPRODUCT(INDEX('Input-Infra'!$AA$120:$AE$167,,MATCH($G117,'Input-Infra'!$AA$17:$AE$17,)),'Nominal Cost (Avg)'!S$124:S$171) -> 0 | T117: =SUMPRODUCT(INDEX('Input-Infra'!$AA$120:$AE$167,,MATCH($G117,'Input-Infra'!$AA$17:$AE$17,)),'Nominal Cost (Avg)'!T$124:T$171) -> 0 | U117: =SUMPRODUCT(INDEX('Input-Infra'!$AA$120:$AE$167,,MATCH($G117,'Input-Infra'!$AA$17:$AE$17,)),'Nominal Cost (Avg)'!U$124:U$171) -> 0 | V117: =SUMPRODUCT(INDEX('Input-Infra'!$AA$120:$AE$167,,MATCH($G117,'Input-Infra'!$AA$17:$AE$17,)),'Nominal Cost (Avg)'!V$124:V$171) -> 4313.669499 | W117: =SUMPRODUCT(INDEX('Input-Infra'!$AA$120:$AE$167,,MATCH($G117,'Input-Infra'!$AA$17:$AE$17,)),'Nominal Cost (Avg)'!W$124:W$171) -> 0 | X117: =SUMPRODUCT(INDEX('Input-Infra'!$AA$120:$AE$167,,MATCH($G117,'Input-Infra'!$AA$17:$AE$17,)),'Nominal Cost (Avg)'!X$124:X$171) -> 0 | Y117: =SUMPRODUCT(INDEX('Input-Infra'!$AA$120:$AE$167,,MATCH($G117,'Input-Infra'!$AA$17:$AE$17,)),'Nominal Cost (Avg)'!Y$124:Y$171) -> 0 | Z117: =SUMPRODUCT(INDEX('Input-Infra'!$AA$120:$AE$167,,MATCH($G117,'Input-Infra'!$AA$17:$AE$17,)),'Nominal Cost (Avg)'!Z$124:Z$171) -> 0 | AA117: =SUMPRODUCT(INDEX('Input-Infra'!$AA$120:$AE$167,,MATCH($G117,'Input-Infra'!$AA$17:$AE$17,)),'Nominal Cost (Avg)'!AA$124:AA$171) -> 2758.875988 | AB117: =SUMPRODUCT(INDEX('Input-Infra'!$AA$120:$AE$167,,MATCH($G117,'Input-Infra'!$AA$17:$AE$17,)),'Nominal Cost (Avg)'!AB$124:AB$171) -> 0 | AC117: =SUMPRODUCT(INDEX('Input-Infra'!$AA$120:$AE$167,,MATCH($G117,'Input-Infra'!$AA$17:$AE$17,)),'Nominal Cost (Avg)'!AC$124:AC$171) -> 0
G118: =G107 -> Urban North | I118: $'000 | K118: =NPV(WACC_nom,T118:AC118)+S118 -> 11915.71288 | M118: =K118/K96 -> 0.2852279825 | O118: =SUM(S118:AC118) -> 15162.45229 | S118: =SUMPRODUCT(INDEX('Input-Infra'!$AA$120:$AE$167,,MATCH($G118,'Input-Infra'!$AA$17:$AE$17,)),'Nominal Cost (Avg)'!S$124:S$171) -> 0 | T118: =SUMPRODUCT(INDEX('Input-Infra'!$AA$120:$AE$167,,MATCH($G118,'Input-Infra'!$AA$17:$AE$17,)),'Nominal Cost (Avg)'!T$124:T$171) -> 0 | U118: =SUMPRODUCT(INDEX('Input-Infra'!$AA$120:$AE$167,,MATCH($G118,'Input-Infra'!$AA$17:$AE$17,)),'Nominal Cost (Avg)'!U$124:U$171) -> 0 | V118: =SUMPRODUCT(INDEX('Input-Infra'!$AA$120:$AE$167,,MATCH($G118,'Input-Infra'!$AA$17:$AE$17,)),'Nominal Cost (Avg)'!V$124:V$171) -> 11128.31153 | W118: =SUMPRODUCT(INDEX('Input-Infra'!$AA$120:$AE$167,,MATCH($G118,'Input-Infra'!$AA$17:$AE$17,)),'Nominal Cost (Avg)'!W$124:W$171) -> 0 | X118: =SUMPRODUCT(INDEX('Input-Infra'!$AA$120:$AE$167,,MATCH($G118,'Input-Infra'!$AA$17:$AE$17,)),'Nominal Cost (Avg)'!X$124:X$171) -> 0 | Y118: =SUMPRODUCT(INDEX('Input-Infra'!$AA$120:$AE$167,,MATCH($G118,'Input-Infra'!$AA$17:$AE$17,)),'Nominal Cost (Avg)'!Y$124:Y$171) -> 0 | Z118: =SUMPRODUCT(INDEX('Input-Infra'!$AA$120:$AE$167,,MATCH($G118,'Input-Infra'!$AA$17:$AE$17,)),'Nominal Cost (Avg)'!Z$124:Z$171) -> 0 | AA118: =SUMPRODUCT(INDEX('Input-Infra'!$AA$120:$AE$167,,MATCH($G118,'Input-Infra'!$AA$17:$AE$17,)),'Nominal Cost (Avg)'!AA$124:AA$171) -> 4034.140761 | AB118: =SUMPRODUCT(INDEX('Input-Infra'!$AA$120:$AE$167,,MATCH($G118,'Input-Infra'!$AA$17:$AE$17,)),'Nominal Cost (Avg)'!AB$124:AB$171) -> 0 | AC118: =SUMPRODUCT(INDEX('Input-Infra'!$AA$120:$AE$167,,MATCH($G118,'Input-Infra'!$AA$17:$AE$17,)),'Nominal Cost (Avg)'!AC$124:AC$171) -> 0
G119: Urban South | I119: $'000 | K119: =NPV(WACC_nom,T119:AC119)+S119 -> 9810.157077 | M119: 0.2589313087 | O119: 13525.37893 | S119: =SUMPRODUCT(INDEX('Input-Infra'!$AA$120:$AE$167,,MATCH($G119,'Input-Infra'!$AA$17:$AE$17,)),'Nominal Cost (Avg)'!S$124:S$171) -> 0 | T119: =SUMPRODUCT(INDEX('Input-Infra'!$AA$120:$AE$167,,MATCH($G119,'Input-Infra'!$AA$17:$AE$17,)),'Nominal Cost (Avg)'!T$124:T$171) -> 0 | U119: =SUMPRODUCT(INDEX('Input-Infra'!$AA$120:$AE$167,,MATCH($G119,'Input-Infra'!$AA$17:$AE$17,)),'Nominal Cost (Avg)'!U$124:U$171) -> 0 | V119: =SUMPRODUCT(INDEX('Input-Infra'!$AA$120:$AE$167,,MATCH($G119,'Input-Infra'!$AA$17:$AE$17,)),'Nominal Cost (Avg)'!V$124:V$171) -> 6027.982163 | W119: =SUMPRODUCT(INDEX('Input-Infra'!$AA$120:$AE$167,,MATCH($G119,'Input-Infra'!$AA$17:$AE$17,)),'Nominal Cost (Avg)'!W$124:W$171) -> 0 | X119: =SUMPRODUCT(INDEX('Input-Infra'!$AA$120:$AE$167,,MATCH($G119,'Input-Infra'!$AA$17:$AE$17,)),'Nominal Cost (Avg)'!X$124:X$171) -> 0 | Y119: =SUMPRODUCT(INDEX('Input-Infra'!$AA$120:$AE$167,,MATCH($G119,'Input-Infra'!$AA$17:$AE$17,)),'Nominal Cost (Avg)'!Y$124:Y$171) -> 0 | Z119: =SUMPRODUCT(INDEX('Input-Infra'!$AA$120:$AE$167,,MATCH($G119,'Input-Infra'!$AA$17:$AE$17,)),'Nominal Cost (Avg)'!Z$124:Z$171) -> 0 | AA119: =SUMPRODUCT(INDEX('Input-Infra'!$AA$120:$AE$167,,MATCH($G119,'Input-Infra'!$AA$17:$AE$17,)),'Nominal Cost (Avg)'!AA$124:AA$171) -> 7497.396764 | AB119: =SUMPRODUCT(INDEX('Input-Infra'!$AA$120:$AE$167,,MATCH($G119,'Input-Infra'!$AA$17:$AE$17,)),'Nominal Cost (Avg)'!AB$124:AB$171) -> 0 | AC119: =SUMPRODUCT(INDEX('Input-Infra'!$AA$120:$AE$167,,MATCH($G119,'Input-Infra'!$AA$17:$AE$17,)),'Nominal Cost (Avg)'!AC$124:AC$171) -> 0
G120: Urban West | I120: $'000 | K120: =NPV(WACC_nom,T120:AC120)+S120 -> 4763.874208 | M120: 0.161452365 | O120: 6269.769525 | S120: =SUMPRODUCT(INDEX('Input-Infra'!$AA$120:$AE$167,,MATCH($G120,'Input-Infra'!$AA$17:$AE$17,)),'Nominal Cost (Avg)'!S$124:S$171) -> 0 | T120: =SUMPRODUCT(INDEX('Input-Infra'!$AA$120:$AE$167,,MATCH($G120,'Input-Infra'!$AA$17:$AE$17,)),'Nominal Cost (Avg)'!T$124:T$171) -> 0 | U120: =SUMPRODUCT(INDEX('Input-Infra'!$AA$120:$AE$167,,MATCH($G120,'Input-Infra'!$AA$17:$AE$17,)),'Nominal Cost (Avg)'!U$124:U$171) -> 0 | V120: =SUMPRODUCT(INDEX('Input-Infra'!$AA$120:$AE$167,,MATCH($G120,'Input-Infra'!$AA$17:$AE$17,)),'Nominal Cost (Avg)'!V$124:V$171) -> 3824.042365 | W120: =SUMPRODUCT(INDEX('Input-Infra'!$AA$120:$AE$167,,MATCH($G120,'Input-Infra'!$AA$17:$AE$17,)),'Nominal Cost (Avg)'!W$124:W$171) -> 0 | X120: =SUMPRODUCT(INDEX('Input-Infra'!$AA$120:$AE$167,,MATCH($G120,'Input-Infra'!$AA$17:$AE$17,)),'Nominal Cost (Avg)'!X$124:X$171) -> 0 | Y120: =SUMPRODUCT(INDEX('Input-Infra'!$AA$120:$AE$167,,MATCH($G120,'Input-Infra'!$AA$17:$AE$17,)),'Nominal Cost (Avg)'!Y$124:Y$171) -> 0 | Z120: =SUMPRODUCT(INDEX('Input-Infra'!$AA$120:$AE$167,,MATCH($G120,'Input-Infra'!$AA$17:$AE$17,)),'Nominal Cost (Avg)'!Z$124:Z$171) -> 0 | AA120: =SUMPRODUCT(INDEX('Input-Infra'!$AA$120:$AE$167,,MATCH($G120,'Input-Infra'!$AA$17:$AE$17,)),'Nominal Cost (Avg)'!AA$124:AA$171) -> 2445.727161 | AB120: =SUMPRODUCT(INDEX('Input-Infra'!$AA$120:$AE$167,,MATCH($G120,'Input-Infra'!$AA$17:$AE$17,)),'Nominal Cost (Avg)'!AB$124:AB$171) -> 0 | AC120: =SUMPRODUCT(INDEX('Input-Infra'!$AA$120:$AE$167,,MATCH($G120,'Input-Infra'!$AA$17:$AE$17,)),'Nominal Cost (Avg)'!AC$124:AC$171) -> 0
G121: =G110 -> Fringe | I121: $'000 | K121: =NPV(WACC_nom,T121:AC121)+S121 -> 385.7984182 | M121: 0.2498749513 | O121: 507.7521067 | S121: =SUMPRODUCT(INDEX('Input-Infra'!$AA$120:$AE$167,,MATCH($G121,'Input-Infra'!$AA$17:$AE$17,)),'Nominal Cost (Avg)'!S$124:S$171) -> 0 | T121: =SUMPRODUCT(INDEX('Input-Infra'!$AA$120:$AE$167,,MATCH($G121,'Input-Infra'!$AA$17:$AE$17,)),'Nominal Cost (Avg)'!T$124:T$171) -> 0 | U121: =SUMPRODUCT(INDEX('Input-Infra'!$AA$120:$AE$167,,MATCH($G121,'Input-Infra'!$AA$17:$AE$17,)),'Nominal Cost (Avg)'!U$124:U$171) -> 0 | V121: =SUMPRODUCT(INDEX('Input-Infra'!$AA$120:$AE$167,,MATCH($G121,'Input-Infra'!$AA$17:$AE$17,)),'Nominal Cost (Avg)'!V$124:V$171) -> 309.6869126 | W121: =SUMPRODUCT(INDEX('Input-Infra'!$AA$120:$AE$167,,MATCH($G121,'Input-Infra'!$AA$17:$AE$17,)),'Nominal Cost (Avg)'!W$124:W$171) -> 0 | X121: =SUMPRODUCT(INDEX('Input-Infra'!$AA$120:$AE$167,,MATCH($G121,'Input-Infra'!$AA$17:$AE$17,)),'Nominal Cost (Avg)'!X$124:X$171) -> 0 | Y121: =SUMPRODUCT(INDEX('Input-Infra'!$AA$120:$AE$167,,MATCH($G121,'Input-Infra'!$AA$17:$AE$17,)),'Nominal Cost (Avg)'!Y$124:Y$171) -> 0 | Z121: =SUMPRODUCT(INDEX('Input-Infra'!$AA$120:$AE$167,,MATCH($G121,'Input-Infra'!$AA$17:$AE$17,)),'Nominal Cost (Avg)'!Z$124:Z$171) -> 0 | AA121: =SUMPRODUCT(INDEX('Input-Infra'!$AA$120:$AE$167,,MATCH($G121,'Input-Infra'!$AA$17:$AE$17,)),'Nominal Cost (Avg)'!AA$124:AA$171) -> 198.0651942 | AB121: =SUMPRODUCT(INDEX('Input-Infra'!$AA$120:$AE$167,,MATCH($G121,'Input-Infra'!$AA$17:$AE$17,)),'Nominal Cost (Avg)'!AB$124:AB$171) -> 0 | AC121: =SUMPRODUCT(INDEX('Input-Infra'!$AA$120:$AE$167,,MATCH($G121,'Input-Infra'!$AA$17:$AE$17,)),'Nominal Cost (Avg)'!AC$124:AC$171) -> 0
G123: =G112 -> Total | I123: $'000 | K123: =SUM(K117:K121) -> 32249.37919 | M123: =K123/K101 -> 0.2284242944 | O123: =SUM(O117:O121) -> 42537.89833 | S123: =SUM(S117:S121) -> 0 | T123: 0 | U123: 0 | V123: 25603.69246 | W123: 0 | X123: 0 | Y123: 0 | Z123: 0 | AA123: 16934.20587 | AB123: 0 | AC123: 0
F126: Recoverable Costs by Service catchment (Marginal Approach)
G128: Existing and Future
G130: =G117 -> Urban East | I130: $'000
G131: =G118 -> Urban North | I131: $'001
G132: Urban South | I132: $'002
G133: Urban West | I133: $'003
G134: =G121 -> Fringe | I134: $'000
G136: =G123 -> Total | I136: $'000
G139: Existing Infrastructure
G141: =G130 -> Urban East | I141: $'000
G142: =G131 -> Urban North | I142: $'000
G143: Urban South | I143: $'000
G144: Urban West | I144: $'000
G145: Fringe | I145: $'000
G147: =G136 -> Total | I147: $'000
G150: Future Infrastructure
G152: =G141 -> Urban East | I152: $'000
G153: =G142 -> Urban North | I153: $'000
G154: Urban South | I154: $'000
G155: Urban West | I155: $'000
G156: =G145 -> Fringe | I156: $'000
G158: =G147 -> Total | I158: $'000
F161: Recoverable Costs by Existing, Future and Administration (Average Approach)
G163: Existing Infrastructure
G165: =G95 -> Urban East | I165: $'000 | K165: =K106-SUMPRODUCT(INDEX('Input-Infra'!$AA$25:$AE$29,,MATCH($G117,'Input-Infra'!$AA$17:$AE$17,)),'Nominal Cost (Avg)'!K$790:K$794) -> 25094.53257
G166: =G96 -> Urban North | I166: $'000 | K166: =K107-SUMPRODUCT(INDEX('Input-Infra'!$AA$25:$AE$29,,MATCH($G118,'Input-Infra'!$AA$17:$AE$17,)),'Nominal Cost (Avg)'!K$790:K$794) -> 29860.38768
G167: Urban South | I167: $'000 | K167: =K108-SUMPRODUCT(INDEX('Input-Infra'!$AA$25:$AE$29,,MATCH($G119,'Input-Infra'!$AA$17:$AE$17,)),'Nominal Cost (Avg)'!K$790:K$794) -> 28076.94559
G168: Urban West | I168: $'000 | K168: =K109-SUMPRODUCT(INDEX('Input-Infra'!$AA$25:$AE$29,,MATCH($G120,'Input-Infra'!$AA$17:$AE$17,)),'Nominal Cost (Avg)'!K$790:K$794) -> 24742.50191
G169: =G99 -> Fringe | I169: $'000 | K169: =K110-SUMPRODUCT(INDEX('Input-Infra'!$AA$25:$AE$29,,MATCH($G121,'Input-Infra'!$AA$17:$AE$17,)),'Nominal Cost (Avg)'!K$790:K$794) -> 1158.167538
G171: Total | I171: $'000 | K171: =SUM(K165:K169) -> 108932.5353
G173: Future Infrastructure
G175: =G165 -> Urban East | I175: $'000 | K175: =K117-SUMPRODUCT(INDEX('Input-Infra'!$AA$120:$AE$167,,MATCH($G117,'Input-Infra'!$AA$17:$AE$17,)),'Nominal Cost (Avg)'!K$884:K$931) -> 5373.836613
G176: =G166 -> Urban North | I176: $'000 | K176: =K118-SUMPRODUCT(INDEX('Input-Infra'!$AA$120:$AE$167,,MATCH($G118,'Input-Infra'!$AA$17:$AE$17,)),'Nominal Cost (Avg)'!K$884:K$931) -> 11915.71288
G177: Urban South | I177: $'000 | K177: =K119-SUMPRODUCT(INDEX('Input-Infra'!$AA$120:$AE$167,,MATCH($G119,'Input-Infra'!$AA$17:$AE$17,)),'Nominal Cost (Avg)'!K$884:K$931) -> 9810.157077
G178: Urban West | I178: $'000 | K178: =K120-SUMPRODUCT(INDEX('Input-Infra'!$AA$120:$AE$167,,MATCH($G120,'Input-Infra'!$AA$17:$AE$17,)),'Nominal Cost (Avg)'!K$884:K$931) -> 4763.874208
G179: =G169 -> Fringe | I179: $'000 | K179: =K121-SUMPRODUCT(INDEX('Input-Infra'!$AA$120:$AE$167,,MATCH($G121,'Input-Infra'!$AA$17:$AE$17,)),'Nominal Cost (Avg)'!K$884:K$931) -> 385.7984182
G181: =G171 -> Total | I181: $'000 | K181: =SUM(K175:K179) -> 32249.37919
G183: Administration
G185: =G165 -> Urban East | I185: $'000 | K185: =SUMPRODUCT(INDEX('Input-Infra'!$AA$25:$AE$29,,MATCH($G117,'Input-Infra'!$AA$17:$AE$17,)),'Nominal Cost (Avg)'!K$790:K$794)+SUMPRODUCT(INDEX('Input-Infra'!$AA$120:$AE$167,,MATCH($G117,'Input-Infra'!$AA$17:$AE$17,)),'Nominal Cost (Avg)'!K$884:K$931) -> 0
G186: =G166 -> Urban North | I186: $'000 | K186: =SUMPRODUCT(INDEX('Input-Infra'!$AA$25:$AE$29,,MATCH($G118,'Input-Infra'!$AA$17:$AE$17,)),'Nominal Cost (Avg)'!K$790:K$794)+SUMPRODUCT(INDEX('Input-Infra'!$AA$120:$AE$167,,MATCH($G118,'Input-Infra'!$AA$17:$AE$17,)),'Nominal Cost (Avg)'!K$884:K$931) -> 0
G187: Urban South | I187: $'000 | K187: =SUMPRODUCT(INDEX('Input-Infra'!$AA$25:$AE$29,,MATCH($G119,'Input-Infra'!$AA$17:$AE$17,)),'Nominal Cost (Avg)'!K$790:K$794)+SUMPRODUCT(INDEX('Input-Infra'!$AA$120:$AE$167,,MATCH($G119,'Input-Infra'!$AA$17:$AE$17,)),'Nominal Cost (Avg)'!K$884:K$931) -> 0
G188: Urban West | I188: $'000 | K188: =SUMPRODUCT(INDEX('Input-Infra'!$AA$25:$AE$29,,MATCH($G120,'Input-Infra'!$AA$17:$AE$17,)),'Nominal Cost (Avg)'!K$790:K$794)+SUMPRODUCT(INDEX('Input-Infra'!$AA$120:$AE$167,,MATCH($G120,'Input-Infra'!$AA$17:$AE$17,)),'Nominal Cost (Avg)'!K$884:K$931) -> 0
G189: Fringe | I189: $'000 | K189: =SUMPRODUCT(INDEX('Input-Infra'!$AA$25:$AE$29,,MATCH($G121,'Input-Infra'!$AA$17:$AE$17,)),'Nominal Cost (Avg)'!K$790:K$794)+SUMPRODUCT(INDEX('Input-Infra'!$AA$120:$AE$167,,MATCH($G121,'Input-Infra'!$AA$17:$AE$17,)),'Nominal Cost (Avg)'!K$884:K$931) -> 0
G191: =G181 -> Total | I191: $'000 | K191: =SUM(K185:K189) -> 0
F193: Recoverable Costs by Existing, Future and Administration (Marginal Approach)
G195: =G163 -> Existing Infrastructure
G197: =G185 -> Urban East | I197: $'000
G198: =G186 -> Urban North | I198: $'000
G199: Urban South | I199: $'000
G200: Urban West | I200: $'000
G201: =G189 -> Fringe | I201: $'000
G203: =G191 -> Total | I203: $'000
G205: =G173 -> Future Infrastructure
G207: =G197 -> Urban East | I207: $'000
G208: =G198 -> Urban North | I208: $'000
G209: Urban South | I209: $'000
G210: Urban West | I210: $'000
G211: Fringe | I211: $'000
G213: =G203 -> Total | I213: $'000
G215: =G183 -> Administration
G217: =G207 -> Urban East | I217: $'000
G218: =G208 -> Urban North | I218: $'000
G219: Urban South | I219: $'000
G220: Urban West | I220: $'000
G221: Fringe | I221: $'000
G223: =G213 -> Total | I223: $'000
F225: End of Page

Sheet Integrity (hidden)
F2: Brisbane City Council
F3: Infrastructure Charges Model - COMMUNITY FACILITIES
G5: Integrity
G6: =IF(BaseCaseCheck=0,BaseCase,NotBaseCase) -> Please Note: Model is not currently applying Base Case parameter values
G7: =IF(Integrity=0,IntOK,IntErr) -> 
F15: Base Case Checks | M15: Base Case Value | O15: Current Value | Q15: Check
G17: Timing & Structure
G19: Model Start Date | I19: dd-mmm-yy | M19: 2011-07-01 | O19: ='Input-Gen'!M19 -> 2016-07-01 | Q19: =IF(M19=O19,0,1) -> 1
G20: Modelling Periods | I20: No. of Years | M20: 20 | O20: ='Input-Gen'!M20 -> 10 | Q20: =IF(M20=O20,0,1) -> 1
G21: Model End Date | I21: dd-mmm-yy | M21: 2031-06-30 | O21: ='Input-Gen'!M21 -> 2026-06-30 | Q21: 1
G23: Months in Year | I23: months | M23: 12 | O23: ='Input-Gen'!M23 -> 12 | Q23: 0
G24: Duration between each planning period | I24: years | M24: 5 | O24: ='Input-Gen'!M24 -> 5 | Q24: 0
G25: Thousand Conversion | I25: # | M25: 1000 | O25: ='Input-Gen'!M25 -> 1000 | Q25: 0
G27: Method for calculating infrastructure charge
G29: Public Parks and Land for Community Facilities | I29: Select >>> | M29: 0 | O29: ='Input-Gen'!M29 -> 1 | Q29: =IF(M29=O29,0,1) -> 1
G31: On Costs and Contingencies - Embellishments Only
G33: On Cost | I33: % build cost | M33: 0.14 | O33: ='Input-Gen'!M33 -> 0 | Q33: =IF(M33=O33,0,1) -> 1
G34: Contingency | I34: % build cost | M34: 0.25 | O34: ='Input-Gen'!M34 -> 0 | Q34: 1
G36: Other Conditions
G38: Land, cut-off date for inclusion in infrastructure charges | I38: dd-mmm-yy | M38: 1990-01-01 | O38: ='Input-Gen'!M38 -> 1990-01-01 | Q38: =IF(M38=O38,0,1) -> 0
G40: Maximum administration cost recoverable without approval from the Department of Infrastructure and Planning | I40: % | M40: 0.02 | O40: ='Input-Gen'!M40 -> 0 | Q40: =IF(M40=O40,0,1) -> 1
G42: WACC
G44: Revenue escalation rate | I44: % | M44: 0.04841308727 | O44: ='Input-Gen'!M52 -> 0.0187258123 | Q44: =IF(M44=O44,0,1) -> 1
G45: ='Input-Gen'!G58 -> Ten year bond rate, average 20 working days to 01-Jul-11 | I45: % | M45: 0.05155 | O45: ='Input-Gen'!M58 -> 0 | Q45: =IF(M45=O45,0,1) -> 1
G46: Recommended premium to bond rate, post-tax nominal | I46: % | M46: 0.03 | O46: ='Input-Gen'!M56 -> 0 | Q46: =IF(M46=O46,0,1) -> 1
G47: Rate of return, pre-tax nominal | I47: % | M47: 0.08155 | O47: ='Input-Gen'!M59 -> 0.0591 | Q47: 1
G48: Rate of return, pre-tax real | I48: % | M48: 0.0316067332 | O48: ='Input-Gen'!M60 -> 0.0591 | Q48: 1
G50: Escalation
G52: Base Case
